Workbook

Sheet ACCUEILPRO
A1: Accueil
F7: =ACCUEIL!F7 -> 2022-06-05

Sheet ACCUEILPREM
A1: Accueil
F7: =ACCUEIL!F7 -> 2022-06-05

Sheet ACCUEILGP
A1: Accueil
F7: =ACCUEIL!F7 -> 2022-06-05

Sheet ACCUEIL
F7: 2022-06-05

Sheet Accueilagence
A1: Accueil
E7: =ACCUEIL!F7 -> 2022-06-05

Sheet Accueilsecteur
A1: Accueil
E7: =ACCUEIL!F7 -> 2022-06-05

Sheet AccueilDircom
A1: Accueil
E7: =ACCUEIL!F7 -> 2022-06-05

Sheet DC_FICHE
A1: Accueil
A2: BAROMETRE BDD
A4: UNITE: | B4: DIRECTION REGIONALE | E4: ETP perf : | F4: =VLOOKUP(A5,'RECAP DIRCOM'!$G$6:$I$12,3,FALSE) -> 217.82
A5: =VLOOKUP(B5,LISTES!$M$6:$N$12,2,FALSE) -> 262 | B5: BAS-RHIN
C6: Coefficient du critére | E6: Résultats | I6: Ecart au 1ier | M6: Evolution | O6: Rang
E7: du 1ier | G7: DIRECTION | I7: Du mois | K7: Au 31/12/2019
A9: RANG au CLASSEMENT GENERAL | K9: =VLOOKUP($A$5,#REF!,168,FALSE) ->  | M9: =+K9-O9 ->  | O9: =VLOOKUP($A$5,'RECAP DIRCOM'!$G$6:$CY$312,168,FALSE) -> 
A11: CRITERE CLIENTS | C11: 15% | O11: =VLOOKUP($A$5,'RECAP DIRCOM'!$G$6:$CY$312,23,FALSE) -> 26.33826095
B12: PNB Evolution nette Clients BP | C12: 4% | E12: ='RECAP DIRCOM'!#REF! ->  | G12: =VLOOKUP($A$5,'RECAP DIRCOM'!$G$6:$CY$312,6,FALSE) -> 0.8 | I12: =VLOOKUP($A$5,'RECAP DIRCOM'!$G$6:$CY$312,7,FALSE) -> 500% | K12: =VLOOKUP($A$5,#REF!,7,FALSE) ->  | M12: =+K12-I12 ->  | O12: =VLOOKUP($A$5,'RECAP DIRCOM'!$G$6:$CY$312,8,FALSE) -> 0.606902113
B13: PNB Evolution nette Clients PREMIUM | C13: 5% | E13: ='RECAP DIRCOM'!#REF! ->  | G13: =VLOOKUP($A$5,'RECAP DIRCOM'!$G$6:$CY$312,10,FALSE) -> 4.0 | I13: =VLOOKUP($A$5,'RECAP DIRCOM'!$G$6:$CY$312,11,FALSE) -> 43% | K13: =VLOOKUP($A$5,#REF!,11,FALSE) ->  | M13: =+K13-I13 ->  | O13: =VLOOKUP($A$5,'RECAP DIRCOM'!$G$6:$CY$312,12,FALSE) -> 0.4343137734
B14: PNB Evolution nette Clients Jeunes Equipés | C14: 3% | E14: ='RECAP DIRCOM'!#REF! ->  | G14: =VLOOKUP($A$5,'RECAP DIRCOM'!$G$6:$CY$312,14,FALSE) -> 0.0 | I14: =VLOOKUP($A$5,'RECAP DIRCOM'!$G$6:$CY$312,15,FALSE) -> 0% | K14: =VLOOKUP($A$5,#REF!,15,FALSE) ->  | M14: =+K14-I14 ->  | O14: =VLOOKUP($A$5,'RECAP DIRCOM'!$G$6:$CY$312,16,FALSE) -> 0
B15: PNB Evolution nette Clients Pro Actifs Equipés | C15: 3% | E15: ='RECAP DIRCOM'!W4 -> 0.0 | G15: =VLOOKUP($A$5,'RECAP DIRCOM'!$G$6:$CY$312,18,FALSE) -> 2325.3 | I15: =VLOOKUP($A$5,'RECAP DIRCOM'!$G$6:$CY$312,19,FALSE) -> 1068% | K15: =VLOOKUP($A$5,#REF!,19,FALSE) ->  | M15: =+K15-I15 ->  | O15: =VLOOKUP($A$5,'RECAP DIRCOM'!$G$6:$CY$312,20,FALSE) -> 0.2620214785
A17: CRITERE BANCARISATION | C17: 15% | O17: =VLOOKUP($A$5,'RECAP DIRCOM'!$G$6:$CY$312,48,FALSE) -> 20022.74472
B18: PNB Ventes nettes forfaits | C18: 4% | E18: ='RECAP DIRCOM'!X4 -> 14.5 | G18: =VLOOKUP($A$5,'RECAP DIRCOM'!$G$6:$CY$312,31,FALSE) -> 0.0 | I18: =VLOOKUP($A$5,'RECAP DIRCOM'!$G$6:$CY$312,32,FALSE) -> 0% | K18: =VLOOKUP($A$5,#REF!,32,FALSE) ->  | M18: =+K18-I18 ->  | O18: =VLOOKUP($A$5,'RECAP DIRCOM'!$G$6:$CY$312,33,FALSE) -> 29508.43743
B19: PNB Ventes nettes IZICARTES Débit Différé | C19: 4% | E19: ='RECAP DIRCOM'!AB4 -> 33.2 | G19: =VLOOKUP($A$5,'RECAP DIRCOM'!$G$6:$CY$312,35,FALSE) -> 0.2 | I19: =VLOOKUP($A$5,'RECAP DIRCOM'!$G$6:$CY$312,36,FALSE) -> 300% | K19: =VLOOKUP($A$5,#REF!,36,FALSE) ->  | M19: =+K19-I19 ->  | O19: =VLOOKUP($A$5,'RECAP DIRCOM'!$G$6:$CY$312,37,FALSE) -> 5914
B20: PNB Ventes nettes cartes HDG Débit Différé | C20: 4% | E20: ='RECAP DIRCOM'!#REF! ->  | G20: =VLOOKUP($A$5,'RECAP DIRCOM'!$G$6:$CY$312,39,FALSE) -> 0.2 | I20: =VLOOKUP($A$5,'RECAP DIRCOM'!$G$6:$CY$312,40,FALSE) -> 300% | K20: =VLOOKUP($A$5,#REF!,40,FALSE) ->  | M20: =+K20-I20 ->  | O20: =VLOOKUP($A$5,'RECAP DIRCOM'!$G$6:$CY$312,41,FALSE) -> 0.2057496719
B21: PNB Ventes nettes Forfaits Pro, Carte pro | C21: 3% | E21: ='RECAP DIRCOM'!#REF! ->  | G21: =VLOOKUP($A$5,'RECAP DIRCOM'!$G$6:$CY$312,43,FALSE) -> 3.0 | I21: =VLOOKUP($A$5,'RECAP DIRCOM'!$G$6:$CY$312,44,FALSE) -> 0% | K21: =VLOOKUP($A$5,#REF!,44,FALSE) ->  | M21: =+K21-I21 ->  | O21: =VLOOKUP($A$5,'RECAP DIRCOM'!$G$6:$CY$312,45,FALSE) -> 0
A23: CRITERE EPARGNE | C23: 10% | O23: =VLOOKUP($A$5,'RECAP DIRCOM'!$G$6:$CY$312,69,FALSE) -> 0.3514051907
B24: PNB Epargne Liquide | C24: 3% | E24: ='RECAP DIRCOM'!AM4 -> 166.5 | G24: =VLOOKUP($A$5,'RECAP DIRCOM'!$G$6:$CY$312,56,FALSE) -> 2062.0 | I24: =VLOOKUP($A$5,'RECAP DIRCOM'!$G$6:$CY$312,57,FALSE) -> 947% | K24: =VLOOKUP($A$5,#REF!,57,FALSE) ->  | M24: =+K24-I24 ->  | O24: =VLOOKUP($A$5,'RECAP DIRCOM'!$G$6:$CY$312,58,FALSE) -> 0.4022180775
B25: PNB CA UC + arbitrage | C25: 4% | E25: ='RECAP DIRCOM'!AQ4 -> 35.5 | G25: =VLOOKUP($A$5,'RECAP DIRCOM'!$G$6:$CY$312,60,FALSE) -> 0.4 | I25: =VLOOKUP($A$5,'RECAP DIRCOM'!$G$6:$CY$312,61,FALSE) -> 32% | K25: =VLOOKUP($A$5,#REF!,61,FALSE) ->  | M25: =+K25-I25 ->  | O25: =VLOOKUP($A$5,'RECAP DIRCOM'!$G$6:$CY$312,62,FALSE) -> 5
B26: PNB Excédent assurance vie | C26: 3% | E26: ='RECAP DIRCOM'!#REF! ->  | G26: =VLOOKUP($A$5,'RECAP DIRCOM'!$G$6:$CY$312,64,FALSE) -> 0.0 | I26: =VLOOKUP($A$5,'RECAP DIRCOM'!$G$6:$CY$312,65,FALSE) -> 0% | K26: =VLOOKUP($A$5,#REF!,65,FALSE) ->  | M26: =+K26-I26 ->  | O26: =VLOOKUP($A$5,'RECAP DIRCOM'!$G$6:$CY$312,66,FALSE) -> 0
A28: CRITERE CREDITS | C28: 15% | O28: =VLOOKUP($A$5,'RECAP DIRCOM'!$G$6:$CY$312,102,FALSE) -> 
B29: PNB crédit conso | C29: 4% | E29: ='RECAP DIRCOM'!BB4 -> 174.3 | G29: =VLOOKUP($A$5,'RECAP DIRCOM'!$G$6:$CY$312,77,FALSE) -> 4.0 | I29: =VLOOKUP($A$5,'RECAP DIRCOM'!$G$6:$CY$312,78,FALSE) -> 0% | K29: =VLOOKUP($A$5,#REF!,78,FALSE) ->  | M29: =+K29-I29 ->  | O29: =VLOOKUP($A$5,'RECAP DIRCOM'!$G$6:$CY$312,79,FALSE) -> 0
B30: PNB ADE crédit conso | C30: 1% | E30: ='RECAP DIRCOM'!#REF! ->  | G30: =VLOOKUP($A$5,'RECAP DIRCOM'!$G$6:$CY$312,81,FALSE) -> 0.0 | I30: =VLOOKUP($A$5,'RECAP DIRCOM'!$G$6:$CY$312,82,FALSE) -> 0% | K30: =VLOOKUP($A$5,#REF!,82,FALSE) ->  | O30: =VLOOKUP($A$5,'RECAP DIRCOM'!$G$6:$CY$312,83,FALSE) -> 0
B31: PNB crédit immo | C31: 4% | E31: ='RECAP DIRCOM'!BF4 -> 32.4 | G31: =VLOOKUP($A$5,'RECAP DIRCOM'!$G$6:$CY$312,85,FALSE) -> 0.0 | I31: =VLOOKUP($A$5,'RECAP DIRCOM'!$G$6:$CY$312,86,FALSE) -> 0% | K31: =VLOOKUP($A$5,#REF!,86,FALSE) ->  | O31: =VLOOKUP($A$5,'RECAP DIRCOM'!$G$6:$CY$312,87,FALSE) -> 0
B32: PNB ADE crédit immo | C32: 2% | E32: ='RECAP DIRCOM'!#REF! ->  | G32: =VLOOKUP($A$5,'RECAP DIRCOM'!$G$6:$CY$312,89,FALSE) -> 0.0 | I32: =VLOOKUP($A$5,'RECAP DIRCOM'!$G$6:$CY$312,90,FALSE) -> 0% | K32: =VLOOKUP($A$5,#REF!,90,FALSE) ->  | O32: =VLOOKUP($A$5,'RECAP DIRCOM'!$G$6:$CY$312,91,FALSE) -> 0
B33: PNB SACCEF | C33: 2% | E33: ='RECAP DIRCOM'!#REF! ->  | G33: =VLOOKUP($A$5,'RECAP DIRCOM'!$G$6:$CY$312,93,FALSE) -> 0.0 | I33: =VLOOKUP($A$5,'RECAP DIRCOM'!$G$6:$CY$312,94,FALSE) -> 29% | K33: =VLOOKUP($A$5,#REF!,94,FALSE) ->  | O33: =VLOOKUP($A$5,'RECAP DIRCOM'!$G$6:$CY$312,95,FALSE) -> 0.2511270137
B34: PNB Crédit MLT + Crédit Bail | C34: 2% | E34: ='RECAP DIRCOM'!BJ4 -> 15.8 | G34: =VLOOKUP($A$5,'RECAP DIRCOM'!$G$6:$CY$312,97,FALSE) -> 0.0 | I34: =VLOOKUP($A$5,'RECAP DIRCOM'!$G$6:$CY$312,98,FALSE) ->  | K34: =VLOOKUP($A$5,#REF!,98,FALSE) ->  | O34: =VLOOKUP($A$5,'RECAP DIRCOM'!$G$6:$CY$312,99,FALSE) -> 
A36: CRITERE IARD PREVOYANCE | C36: 15% | O36: =VLOOKUP($A$5,'RECAP DIRCOM'!$G$6:$CY$312,119,FALSE) -> 
B37: PNB Ventes nettes IARD | C37: 9% | E37: ='RECAP DIRCOM'!BU4 -> 94.7 | G37: =VLOOKUP($A$5,'RECAP DIRCOM'!$G$6:$CY$312,110,FALSE) ->  | I37: =VLOOKUP($A$5,'RECAP DIRCOM'!$G$6:$CY$312,111,FALSE) ->  | K37: =VLOOKUP($A$5,#REF!,111,FALSE) ->  | M37: =+K37-I37 ->  | O37: =VLOOKUP($A$5,'RECAP DIRCOM'!$G$6:$CY$312,112,FALSE) -> 
B38: PNB Ventes nettes Prévoyance | C38: 6% | E38: ='RECAP DIRCOM'!BY4 -> 25.1 | G38: =VLOOKUP($A$5,'RECAP DIRCOM'!$G$6:$CY$312,114,FALSE) ->  | I38: =VLOOKUP($A$5,'RECAP DIRCOM'!$G$6:$CY$312,115,FALSE) ->  | K38: =VLOOKUP($A$5,#REF!,115,FALSE) ->  | M38: =+K38-I38 ->  | O38: =VLOOKUP($A$5,'RECAP DIRCOM'!$G$6:$CY$312,116,FALSE) -> 
A40: CRITERE ACCELERATEURS PNB | C40: 15% | O40: =VLOOKUP($A$5,'RECAP DIRCOM'!$G$6:$CY$312,144,FALSE) -> 
B41: PNB Ventes brutes SED Finalisées | C41: 6% | E41: ='RECAP DIRCOM'!#REF! ->  | G41: =VLOOKUP($A$5,'RECAP DIRCOM'!$G$6:$CY$312,127,FALSE) ->  | I41: =VLOOKUP($A$5,'RECAP DIRCOM'!$G$6:$CY$312,128,FALSE) ->  | K41: =VLOOKUP($A$5,#REF!,128,FALSE) ->  | M41: =+K41-I41 ->  | O41: =VLOOKUP($A$5,'RECAP DIRCOM'!$G$6:$CY$312,129,FALSE) -> 
B42: PNB clients équipés E documents | C42: 3% | E42: ='RECAP DIRCOM'!#REF! ->  | G42: =VLOOKUP($A$5,'RECAP DIRCOM'!$G$6:$CY$312,131,FALSE) ->  | I42: =VLOOKUP($A$5,'RECAP DIRCOM'!$G$6:$CY$312,132,FALSE) ->  | K42: =VLOOKUP($A$5,#REF!,132,FALSE) ->  | M42: =+K42-I42 ->  | O42: =VLOOKUP($A$5,'RECAP DIRCOM'!$G$6:$CY$312,133,FALSE) -> 
B43: Economie opt'in | C43: 3% | E43: ='RECAP DIRCOM'!#REF! ->  | G43: =VLOOKUP($A$5,'RECAP DIRCOM'!$G$6:$CY$312,135,FALSE) ->  | I43: =VLOOKUP($A$5,'RECAP DIRCOM'!$G$6:$CY$312,136,FALSE) ->  | K43: =VLOOKUP($A$5,#REF!,136,FALSE) ->  | M43: =+K43-I43 ->  | O43: =VLOOKUP($A$5,'RECAP DIRCOM'!$G$6:$CY$312,137,FALSE) -> 
B44: Remises commerciales | C44: 3% | E44: ='RECAP DIRCOM'!#REF! ->  | G44: =VLOOKUP($A$5,'RECAP DIRCOM'!$G$6:$CY$312,139,FALSE) ->  | I44: =VLOOKUP($A$5,'RECAP DIRCOM'!$G$6:$CY$312,140,FALSE) ->  | K44: =VLOOKUP($A$5,#REF!,140,FALSE) ->  | M44: =+K44-I44 ->  | O44: =VLOOKUP($A$5,'RECAP DIRCOM'!$G$6:$CY$312,141,FALSE) -> 
A46: CRITERE Qualité-Satisfaction Clients | C46: 15% | O46: =VLOOKUP($A$5,'RECAP DIRCOM'!$G$6:$CY$312,159,FALSE) -> 
B47: Objectifs NPS* | C47: 8% | E47: ='RECAP DIRCOM'!K4 -> 23 | G47: =VLOOKUP($A$5,'RECAP DIRCOM'!$G$6:$CY$312,151,FALSE) ->  | I47: =VLOOKUP($A$5,'RECAP DIRCOM'!$G$6:$CY$312,152,FALSE) ->  | K47: =VLOOKUP($A$5,#REF!,152,FALSE) ->  | M47: =+K47-I47 ->  | O47: =VLOOKUP($A$5,'RECAP DIRCOM'!$G$6:$CY$312,153,FALSE) -> 
B48: Enquête Qualité Haute Définition | C48: 7% | E48: ='RECAP DIRCOM'!N4 -> 69% | G48: =VLOOKUP($A$5,'RECAP DIRCOM'!$G$6:$CY$312,154,FALSE) ->  | I48: =VLOOKUP($A$5,'RECAP DIRCOM'!$G$6:$CY$312,155,FALSE) ->  | K48: =VLOOKUP($A$5,#REF!,155,FALSE) ->  | M48: =+K48-I48 ->  | O48: =VLOOKUP($A$5,'RECAP DIRCOM'!$G$6:$CY$312,156,FALSE) -> 

Sheet DC_TOTAL
B1: Accueil | D1: BAROMETRE BDD - DIRECTIONS REGIONALES
D2: TOTAL GENERAL
D3: =ACCUEIL!F7 -> 2022-06-05
D7: TOTAL GENERAL | G7: Total Satisfaction Clients | J7: Total Bancarisation | M7: Total Epargne | P7: Total IARD Prévoyance | S7: Total Crédits
E8: coef | F8: =+I8+L8+O8+R8+U8 -> 100% | H8: coef | I8: =DC_SATISFACTION!L8 -> 20% | K8: coef | L8: =DC_BANCA!N8 -> 20% | N8: coef | O8: =DC_EPARGNE!N8 -> 20% | Q8: coef | R8: =DC_IARD!N8 -> 20% | T8: coef | U8: =DC_CREDIT!R8 -> 20%
A9: eds | B9: Direction | C9: ="ETP perf "&DATEMAJ!$C$28 -> ETP perf 05-juin | D9: Moyenne ecart au 1er | E9: % Ecart au 1er | F9: Rang CEGEE | G9: Moyenne ecart au 1er | H9: % Ecart au 1er | I9: Rang CEGEE | J9: Moyenne ecart au 1er | K9: % Ecart au 1er | L9: Rang CEGEE | M9: Moyenne ecart au 1er | N9: % Ecart au 1er | O9: Rang CEGEE | P9: Moyenne ecart au 1er | Q9: % Ecart au 1er | R9: Rang CEGEE | S9: Moyenne ecart au 1er | T9: % Ecart au 1er | U9: Rang CEGEE
A10: 50 | B10: Moselle | C10: 228 | D10: 4% | E10: 0% | F10: 1 | G10: 21% | H10: 21% | I10: 3 | J10: 0% | K10: 0% | L10: 1 | M10: 0% | N10: 0% | O10: 1 | P10: 0% | Q10: 0% | R10: 1 | S10: 7% | T10: 1% | U10: 2
A11: 262 | B11: Marne-Ardennes | C11: 193 | D11: 13% | E11: 9% | F11: 2 | G11: 14% | H11: 14% | I11: 2 | J11: 7% | K11: 7% | L11: 2 | M11: 45% | N11: 45% | O11: 5 | P11: 1% | Q11: 0% | R11: 2 | S11: 6% | T11: 0% | U11: 1
A12: 264 | B12: Meurthe et Moselle Meuse | C12: 202 | D12: 20% | E12: 16% | F12: 3 | G12: 37% | H12: 37% | I12: 4 | J12: 18% | K12: 18% | L12: 3 | M12: 21% | N12: 21% | O12: 4 | P12: 22% | Q12: 22% | R12: 3 | S12: 10% | T12: 4% | U12: 3
A13: 30 | B13: Vosges | C13: 116 | D13: 26% | E13: 22% | F13: 4 | G13: 0% | H13: 0% | I13: 1 | J13: 42% | K13: 42% | L13: 5 | M13: 17% | N13: 17% | O13: 2 | P13: 40% | Q13: 39% | R13: 6 | S13: 38% | T13: 32% | U13: 6
A14: 110 | B14: Bas-Rhin | C14: 218 | D14: 29% | E14: 25% | F14: 5 | G14: 43% | H14: 43% | I14: 5 | J14: 24% | K14: 24% | L14: 4 | M14: 21% | N14: 21% | O14: 3 | P14: 28% | Q14: 27% | R14: 4 | S14: 38% | T14: 32% | U14: 5
A15: 160 | B15: Aube Haute Marne | C15: 113 | D15: 41% | E15: 37% | F15: 6 | G15: 52% | H15: 52% | I15: 6 | J15: 44% | K15: 44% | L15: 6 | M15: 51% | N15: 51% | O15: 6 | P15: 32% | Q15: 32% | R15: 5 | S15: 35% | T15: 29% | U15: 4
A16: 80 | B16: Haut-Rhin | C16: 125 | D16: 57% | E16: 53% | F16: 7 | G16: 56% | H16: 56% | I16: 7 | J16: 62% | K16: 62% | L16: 7 | M16: 74% | N16: 74% | O16: 7 | P16: 53% | Q16: 53% | R16: 7 | S16: 48% | T16: 42% | U16: 7
B17: Total CEGEE Directions Régionales | C17: =SUM(C10:C16) -> 1195

Sheet DC_BANCA
B1: Accueil | D1: BAROMETRE BDD - DIRECTIONS REGIONALES
D2: BANCARISATION
D3: =ACCUEIL!F7 -> 2022-06-05
D7: Ventes Nettes produits pondérés | H7: Ventes sur client non détenteur de l’univers | L7: Total Bancarisation
D8: =DATEMAJ!C8 -> au 05/06 | F8: coef | G8: ='RECAP DIRCOM'!AA4 -> 12% | H8: =DATEMAJ!C9 -> au 05/06 | J8: coef | K8: ='RECAP DIRCOM'!AE4 -> 8% | M8: coef | N8: ='RECAP DIRCOM'!AH4 -> 20%
B9: Direction | C9: ="ETP perf "&DATEMAJ!$C$28 -> ETP perf 05-juin | D9: VN | E9: VN / ETP | F9: % Ecart au 1er | G9: Rang | H9: VB | I9: VB / ETP | J9: % Ecart au 1er | K9: Rang | L9: Moyenne ecart au 1er | M9: % Ecart au 1er | N9: Rang CEGEE
A10: 50 | B10: Aube Haute Marne | C10: =VLOOKUP($A10,'RECAP DIRCOM'!$G$6:$CU$12,3,FALSE) -> 113 | D10: =VLOOKUP($A10,'RECAP DIRCOM'!$G$6:$CU$12,18,FALSE) -> 680 | E10: =VLOOKUP($A10,'RECAP DIRCOM'!$G$6:$CU$12,19,FALSE) -> 5.99 | F10: =VLOOKUP($A10,'RECAP DIRCOM'!$G$6:$CU$12,20,FALSE) -> 59% | G10: =VLOOKUP($A10,'RECAP DIRCOM'!$G$6:$CU$12,21,FALSE) -> 6 | H10: =VLOOKUP($A10,'RECAP DIRCOM'!$G$6:$CU$12,22,FALSE) -> 2,939 | I10: =VLOOKUP($A10,'RECAP DIRCOM'!$G$6:$CU$12,23,FALSE) -> 25.92 | J10: =VLOOKUP($A10,'RECAP DIRCOM'!$G$6:$CU$12,24,FALSE) -> 22% | K10: =VLOOKUP($A10,'RECAP DIRCOM'!$G$6:$CU$12,25,FALSE) -> 5 | L10: =VLOOKUP($A10,'RECAP DIRCOM'!$G$6:$CU$12,26,FALSE) -> 44% | M10: =VLOOKUP($A10,'RECAP DIRCOM'!$G$6:$CU$12,27,FALSE) -> 44% | N10: =VLOOKUP($A10,'RECAP DIRCOM'!$G$6:$CU$12,28,FALSE) -> 6
A11: 262 | B11: Bas-Rhin | C11: =VLOOKUP($A11,'RECAP DIRCOM'!$G$6:$CU$12,3,FALSE) -> 218 | D11: =VLOOKUP($A11,'RECAP DIRCOM'!$G$6:$CU$12,18,FALSE) -> 2,325 | E11: =VLOOKUP($A11,'RECAP DIRCOM'!$G$6:$CU$12,19,FALSE) -> 10.68 | F11: =VLOOKUP($A11,'RECAP DIRCOM'!$G$6:$CU$12,20,FALSE) -> 26% | G11: =VLOOKUP($A11,'RECAP DIRCOM'!$G$6:$CU$12,21,FALSE) -> 3 | H11: =VLOOKUP($A11,'RECAP DIRCOM'!$G$6:$CU$12,22,FALSE) -> 5,737 | I11: =VLOOKUP($A11,'RECAP DIRCOM'!$G$6:$CU$12,23,FALSE) -> 26.34 | J11: =VLOOKUP($A11,'RECAP DIRCOM'!$G$6:$CU$12,24,FALSE) -> 21% | K11: =VLOOKUP($A11,'RECAP DIRCOM'!$G$6:$CU$12,25,FALSE) -> 4 | L11: =VLOOKUP($A11,'RECAP DIRCOM'!$G$6:$CU$12,26,FALSE) -> 24% | M11: =VLOOKUP($A11,'RECAP DIRCOM'!$G$6:$CU$12,27,FALSE) -> 24% | N11: =VLOOKUP($A11,'RECAP DIRCOM'!$G$6:$CU$12,28,FALSE) -> 4
A12: 264 | B12: Haut-Rhin | C12: =VLOOKUP($A12,'RECAP DIRCOM'!$G$6:$CU$12,3,FALSE) -> 125 | D12: =VLOOKUP($A12,'RECAP DIRCOM'!$G$6:$CU$12,18,FALSE) -> 367 | E12: =VLOOKUP($A12,'RECAP DIRCOM'!$G$6:$CU$12,19,FALSE) -> 2.95 | F12: =VLOOKUP($A12,'RECAP DIRCOM'!$G$6:$CU$12,20,FALSE) -> 80% | G12: =VLOOKUP($A12,'RECAP DIRCOM'!$G$6:$CU$12,21,FALSE) -> 7 | H12: =VLOOKUP($A12,'RECAP DIRCOM'!$G$6:$CU$12,22,FALSE) -> 2,626 | I12: =VLOOKUP($A12,'RECAP DIRCOM'!$G$6:$CU$12,23,FALSE) -> 21.08 | J12: =VLOOKUP($A12,'RECAP DIRCOM'!$G$6:$CU$12,24,FALSE) -> 37% | K12: =VLOOKUP($A12,'RECAP DIRCOM'!$G$6:$CU$12,25,FALSE) -> 7 | L12: =VLOOKUP($A12,'RECAP DIRCOM'!$G$6:$CU$12,26,FALSE) -> 62% | M12: =VLOOKUP($A12,'RECAP DIRCOM'!$G$6:$CU$12,27,FALSE) -> 62% | N12: =VLOOKUP($A12,'RECAP DIRCOM'!$G$6:$CU$12,28,FALSE) -> 7
A13: 30 | B13: Marne-Ardennes | C13: =VLOOKUP($A13,'RECAP DIRCOM'!$G$6:$CU$12,3,FALSE) -> 193 | D13: =VLOOKUP($A13,'RECAP DIRCOM'!$G$6:$CU$12,18,FALSE) -> 2,445 | E13: =VLOOKUP($A13,'RECAP DIRCOM'!$G$6:$CU$12,19,FALSE) -> 12.67 | F13: =VLOOKUP($A13,'RECAP DIRCOM'!$G$6:$CU$12,20,FALSE) -> 12% | G13: =VLOOKUP($A13,'RECAP DIRCOM'!$G$6:$CU$12,21,FALSE) -> 2 | H13: =VLOOKUP($A13,'RECAP DIRCOM'!$G$6:$CU$12,22,FALSE) -> 6,416 | I13: =VLOOKUP($A13,'RECAP DIRCOM'!$G$6:$CU$12,23,FALSE) -> 33.24 | J13: =VLOOKUP($A13,'RECAP DIRCOM'!$G$6:$CU$12,24,FALSE) -> 0% | K13: =VLOOKUP($A13,'RECAP DIRCOM'!$G$6:$CU$12,25,FALSE) -> 1 | L13: =VLOOKUP($A13,'RECAP DIRCOM'!$G$6:$CU$12,26,FALSE) -> 7% | M13: =VLOOKUP($A13,'RECAP DIRCOM'!$G$6:$CU$12,27,FALSE) -> 7% | N13: =VLOOKUP($A13,'RECAP DIRCOM'!$G$6:$CU$12,28,FALSE) -> 2
A14: 110 | B14: Meurthe et Moselle Meuse | C14: =VLOOKUP($A14,'RECAP DIRCOM'!$G$6:$CU$12,3,FALSE) -> 202 | D14: =VLOOKUP($A14,'RECAP DIRCOM'!$G$6:$CU$12,18,FALSE) -> 2,136 | E14: =VLOOKUP($A14,'RECAP DIRCOM'!$G$6:$CU$12,19,FALSE) -> 10.56 | F14: =VLOOKUP($A14,'RECAP DIRCOM'!$G$6:$CU$12,20,FALSE) -> 27% | G14: =VLOOKUP($A14,'RECAP DIRCOM'!$G$6:$CU$12,21,FALSE) -> 4 | H14: =VLOOKUP($A14,'RECAP DIRCOM'!$G$6:$CU$12,22,FALSE) -> 6,431 | I14: =VLOOKUP($A14,'RECAP DIRCOM'!$G$6:$CU$12,23,FALSE) -> 31.80 | J14: =VLOOKUP($A14,'RECAP DIRCOM'!$G$6:$CU$12,24,FALSE) -> 4% | K14: =VLOOKUP($A14,'RECAP DIRCOM'!$G$6:$CU$12,25,FALSE) -> 3 | L14: =VLOOKUP($A14,'RECAP DIRCOM'!$G$6:$CU$12,26,FALSE) -> 18% | M14: =VLOOKUP($A14,'RECAP DIRCOM'!$G$6:$CU$12,27,FALSE) -> 18% | N14: =VLOOKUP($A14,'RECAP DIRCOM'!$G$6:$CU$12,28,FALSE) -> 3
A15: 160 | B15: Moselle | C15: =VLOOKUP($A15,'RECAP DIRCOM'!$G$6:$CU$12,3,FALSE) -> 228 | D15: =VLOOKUP($A15,'RECAP DIRCOM'!$G$6:$CU$12,18,FALSE) -> 3,292 | E15: =VLOOKUP($A15,'RECAP DIRCOM'!$G$6:$CU$12,19,FALSE) -> 14.47 | F15: =VLOOKUP($A15,'RECAP DIRCOM'!$G$6:$CU$12,20,FALSE) -> 0% | G15: =VLOOKUP($A15,'RECAP DIRCOM'!$G$6:$CU$12,21,FALSE) -> 1 | H15: =VLOOKUP($A15,'RECAP DIRCOM'!$G$6:$CU$12,22,FALSE) -> 7,542 | I15: =VLOOKUP($A15,'RECAP DIRCOM'!$G$6:$CU$12,23,FALSE) -> 33.14 | J15: =VLOOKUP($A15,'RECAP DIRCOM'!$G$6:$CU$12,24,FALSE) -> 0% | K15: =VLOOKUP($A15,'RECAP DIRCOM'!$G$6:$CU$12,25,FALSE) -> 2 | L15: =VLOOKUP($A15,'RECAP DIRCOM'!$G$6:$CU$12,26,FALSE) -> 0% | M15: =VLOOKUP($A15,'RECAP DIRCOM'!$G$6:$CU$12,27,FALSE) -> 0% | N15: =VLOOKUP($A15,'RECAP DIRCOM'!$G$6:$CU$12,28,FALSE) -> 1
A16: 80 | B16: Vosges | C16: =VLOOKUP($A16,'RECAP DIRCOM'!$G$6:$CU$12,3,FALSE) -> 116 | D16: =VLOOKUP($A16,'RECAP DIRCOM'!$G$6:$CU$12,18,FALSE) -> 828 | E16: =VLOOKUP($A16,'RECAP DIRCOM'!$G$6:$CU$12,19,FALSE) -> 7.11 | F16: =VLOOKUP($A16,'RECAP DIRCOM'!$G$6:$CU$12,20,FALSE) -> 51% | G16: =VLOOKUP($A16,'RECAP DIRCOM'!$G$6:$CU$12,21,FALSE) -> 5 | H16: =VLOOKUP($A16,'RECAP DIRCOM'!$G$6:$CU$12,22,FALSE) -> 2,731 | I16: =VLOOKUP($A16,'RECAP DIRCOM'!$G$6:$CU$12,23,FALSE) -> 23.45 | J16: =VLOOKUP($A16,'RECAP DIRCOM'!$G$6:$CU$12,24,FALSE) -> 29% | K16: =VLOOKUP($A16,'RECAP DIRCOM'!$G$6:$CU$12,25,FALSE) -> 6 | L16: =VLOOKUP($A16,'RECAP DIRCOM'!$G$6:$CU$12,26,FALSE) -> 42% | M16: =VLOOKUP($A16,'RECAP DIRCOM'!$G$6:$CU$12,27,FALSE) -> 42% | N16: =VLOOKUP($A16,'RECAP DIRCOM'!$G$6:$CU$12,28,FALSE) -> 5
B17: Total CEGEE Directions Régionales | C17: =SUM(C10:C16) -> 1195

Sheet DC_EPARGNE
B1: Accueil | D1: BAROMETRE BDD - DIRECTIONS REGIONALES
D2: EPARGNE
D3: =ACCUEIL!F7 -> 2022-06-05
D7: Excédent Epargne hors DAV pondéré | H7: Ventes sur client non détenteur de l’univers | L7: Total Epargne
D8: =DATEMAJ!C14 -> au 05/06 | F8: coef | G8: ='RECAP DIRCOM'!AP4 -> 12% | H8: =DATEMAJ!C15 -> au 05/06 | J8: coef | K8: ='RECAP DIRCOM'!AT4 -> 8% | M8: coef | N8: ='RECAP DIRCOM'!AW4 -> 20%
B9: Direction | C9: ="ETP perf "&DATEMAJ!$C$28 -> ETP perf 05-juin | D9: Excédent | E9: Excédent / ETP | F9: % Ecart au 1er | G9: Rang | H9: VB | I9: VB / ETP | J9: % Ecart au 1er | K9: Rang | L9: Moyenne ecart au 1er | M9: % Ecart au 1er | N9: Rang CEGEE
A10: 50 | B10: Aube Haute Marne | C10: =VLOOKUP($A10,'RECAP DIRCOM'!$G$6:$CU$12,3,FALSE) -> 113 | D10: =VLOOKUP($A10,'RECAP DIRCOM'!$G$6:$CU$12,33,FALSE) -> 6,539 | E10: =VLOOKUP($A10,'RECAP DIRCOM'!$G$6:$CU$12,34,FALSE) -> 57.67 | F10: =VLOOKUP($A10,'RECAP DIRCOM'!$G$6:$CU$12,35,FALSE) -> 65% | G10: =VLOOKUP($A10,'RECAP DIRCOM'!$G$6:$CU$12,36,FALSE) -> 5 | H10: =VLOOKUP($A10,'RECAP DIRCOM'!$G$6:$CU$12,37,FALSE) -> 2,793 | I10: =VLOOKUP($A10,'RECAP DIRCOM'!$G$6:$CU$12,38,FALSE) -> 24.63 | J10: =VLOOKUP($A10,'RECAP DIRCOM'!$G$6:$CU$12,39,FALSE) -> 31% | K10: =VLOOKUP($A10,'RECAP DIRCOM'!$G$6:$CU$12,40,FALSE) -> 5 | L10: =VLOOKUP($A10,'RECAP DIRCOM'!$G$6:$CU$12,41,FALSE) -> 51% | M10: =VLOOKUP($A10,'RECAP DIRCOM'!$G$6:$CU$12,42,FALSE) -> 51% | N10: =VLOOKUP($A10,'RECAP DIRCOM'!$G$6:$CU$12,43,FALSE) -> 6
A11: 262 | B11: Bas-Rhin | C11: =VLOOKUP($A11,'RECAP DIRCOM'!$G$6:$CU$12,3,FALSE) -> 218 | D11: =VLOOKUP($A11,'RECAP DIRCOM'!$G$6:$CU$12,33,FALSE) -> 29,508 | E11: =VLOOKUP($A11,'RECAP DIRCOM'!$G$6:$CU$12,34,FALSE) -> 135.47 | F11: =VLOOKUP($A11,'RECAP DIRCOM'!$G$6:$CU$12,35,FALSE) -> 19% | G11: =VLOOKUP($A11,'RECAP DIRCOM'!$G$6:$CU$12,36,FALSE) -> 3 | H11: =VLOOKUP($A11,'RECAP DIRCOM'!$G$6:$CU$12,37,FALSE) -> 5,914 | I11: =VLOOKUP($A11,'RECAP DIRCOM'!$G$6:$CU$12,38,FALSE) -> 27.15 | J11: =VLOOKUP($A11,'RECAP DIRCOM'!$G$6:$CU$12,39,FALSE) -> 23% | K11: =VLOOKUP($A11,'RECAP DIRCOM'!$G$6:$CU$12,40,FALSE) -> 3 | L11: =VLOOKUP($A11,'RECAP DIRCOM'!$G$6:$CU$12,41,FALSE) -> 21% | M11: =VLOOKUP($A11,'RECAP DIRCOM'!$G$6:$CU$12,42,FALSE) -> 21% | N11: =VLOOKUP($A11,'RECAP DIRCOM'!$G$6:$CU$12,43,FALSE) -> 3
A12: 264 | B12: Haut-Rhin | C12: =VLOOKUP($A12,'RECAP DIRCOM'!$G$6:$CU$12,3,FALSE) -> 125 | D12: =VLOOKUP($A12,'RECAP DIRCOM'!$G$6:$CU$12,33,FALSE) -> 1,633 | E12: =VLOOKUP($A12,'RECAP DIRCOM'!$G$6:$CU$12,34,FALSE) -> 13.11 | F12: =VLOOKUP($A12,'RECAP DIRCOM'!$G$6:$CU$12,35,FALSE) -> 92% | G12: =VLOOKUP($A12,'RECAP DIRCOM'!$G$6:$CU$12,36,FALSE) -> 7 | H12: =VLOOKUP($A12,'RECAP DIRCOM'!$G$6:$CU$12,37,FALSE) -> 2,402 | I12: =VLOOKUP($A12,'RECAP DIRCOM'!$G$6:$CU$12,38,FALSE) -> 19.28 | J12: =VLOOKUP($A12,'RECAP DIRCOM'!$G$6:$CU$12,39,FALSE) -> 46% | K12: =VLOOKUP($A12,'RECAP DIRCOM'!$G$6:$CU$12,40,FALSE) -> 7 | L12: =VLOOKUP($A12,'RECAP DIRCOM'!$G$6:$CU$12,41,FALSE) -> 74% | M12: =VLOOKUP($A12,'RECAP DIRCOM'!$G$6:$CU$12,42,FALSE) -> 74% | N12: =VLOOKUP($A12,'RECAP DIRCOM'!$G$6:$CU$12,43,FALSE) -> 7
A13: 30 | B13: Marne-Ardennes | C13: =VLOOKUP($A13,'RECAP DIRCOM'!$G$6:$CU$12,3,FALSE) -> 193 | D13: =VLOOKUP($A13,'RECAP DIRCOM'!$G$6:$CU$12,33,FALSE) -> 9,251 | E13: =VLOOKUP($A13,'RECAP DIRCOM'!$G$6:$CU$12,34,FALSE) -> 47.92 | F13: =VLOOKUP($A13,'RECAP DIRCOM'!$G$6:$CU$12,35,FALSE) -> 71% | G13: =VLOOKUP($A13,'RECAP DIRCOM'!$G$6:$CU$12,36,FALSE) -> 6 | H13: =VLOOKUP($A13,'RECAP DIRCOM'!$G$6:$CU$12,37,FALSE) -> 6,530 | I13: =VLOOKUP($A13,'RECAP DIRCOM'!$G$6:$CU$12,38,FALSE) -> 33.83 | J13: =VLOOKUP($A13,'RECAP DIRCOM'!$G$6:$CU$12,39,FALSE) -> 5% | K13: =VLOOKUP($A13,'RECAP DIRCOM'!$G$6:$CU$12,40,FALSE) -> 2 | L13: =VLOOKUP($A13,'RECAP DIRCOM'!$G$6:$CU$12,41,FALSE) -> 45% | M13: =VLOOKUP($A13,'RECAP DIRCOM'!$G$6:$CU$12,42,FALSE) -> 45% | N13: =VLOOKUP($A13,'RECAP DIRCOM'!$G$6:$CU$12,43,FALSE) -> 5
A14: 110 | B14: Meurthe et Moselle Meuse | C14: =VLOOKUP($A14,'RECAP DIRCOM'!$G$6:$CU$12,3,FALSE) -> 202 | D14: =VLOOKUP($A14,'RECAP DIRCOM'!$G$6:$CU$12,33,FALSE) -> 27,330 | E14: =VLOOKUP($A14,'RECAP DIRCOM'!$G$6:$CU$12,34,FALSE) -> 135.14 | F14: =VLOOKUP($A14,'RECAP DIRCOM'!$G$6:$CU$12,35,FALSE) -> 19% | G14: =VLOOKUP($A14,'RECAP DIRCOM'!$G$6:$CU$12,36,FALSE) -> 4 | H14: =VLOOKUP($A14,'RECAP DIRCOM'!$G$6:$CU$12,37,FALSE) -> 5,487 | I14: =VLOOKUP($A14,'RECAP DIRCOM'!$G$6:$CU$12,38,FALSE) -> 27.13 | J14: =VLOOKUP($A14,'RECAP DIRCOM'!$G$6:$CU$12,39,FALSE) -> 24% | K14: =VLOOKUP($A14,'RECAP DIRCOM'!$G$6:$CU$12,40,FALSE) -> 4 | L14: =VLOOKUP($A14,'RECAP DIRCOM'!$G$6:$CU$12,41,FALSE) -> 21% | M14: =VLOOKUP($A14,'RECAP DIRCOM'!$G$6:$CU$12,42,FALSE) -> 21% | N14: =VLOOKUP($A14,'RECAP DIRCOM'!$G$6:$CU$12,43,FALSE) -> 4
A15: 160 | B15: Moselle | C15: =VLOOKUP($A15,'RECAP DIRCOM'!$G$6:$CU$12,3,FALSE) -> 228 | D15: =VLOOKUP($A15,'RECAP DIRCOM'!$G$6:$CU$12,33,FALSE) -> 37,891 | E15: =VLOOKUP($A15,'RECAP DIRCOM'!$G$6:$CU$12,34,FALSE) -> 166.51 | F15: =VLOOKUP($A15,'RECAP DIRCOM'!$G$6:$CU$12,35,FALSE) -> 0% | G15: =VLOOKUP($A15,'RECAP DIRCOM'!$G$6:$CU$12,36,FALSE) -> 1 | H15: =VLOOKUP($A15,'RECAP DIRCOM'!$G$6:$CU$12,37,FALSE) -> 8,074 | I15: =VLOOKUP($A15,'RECAP DIRCOM'!$G$6:$CU$12,38,FALSE) -> 35.48 | J15: =VLOOKUP($A15,'RECAP DIRCOM'!$G$6:$CU$12,39,FALSE) -> 0% | K15: =VLOOKUP($A15,'RECAP DIRCOM'!$G$6:$CU$12,40,FALSE) -> 1 | L15: =VLOOKUP($A15,'RECAP DIRCOM'!$G$6:$CU$12,41,FALSE) -> 0% | M15: =VLOOKUP($A15,'RECAP DIRCOM'!$G$6:$CU$12,42,FALSE) -> 0% | N15: =VLOOKUP($A15,'RECAP DIRCOM'!$G$6:$CU$12,43,FALSE) -> 1
A16: 80 | B16: Vosges | C16: =VLOOKUP($A16,'RECAP DIRCOM'!$G$6:$CU$12,3,FALSE) -> 116 | D16: =VLOOKUP($A16,'RECAP DIRCOM'!$G$6:$CU$12,33,FALSE) -> 18,399 | E16: =VLOOKUP($A16,'RECAP DIRCOM'!$G$6:$CU$12,34,FALSE) -> 157.98 | F16: =VLOOKUP($A16,'RECAP DIRCOM'!$G$6:$CU$12,35,FALSE) -> 5% | G16: =VLOOKUP($A16,'RECAP DIRCOM'!$G$6:$CU$12,36,FALSE) -> 2 | H16: =VLOOKUP($A16,'RECAP DIRCOM'!$G$6:$CU$12,37,FALSE) -> 2,724 | I16: =VLOOKUP($A16,'RECAP DIRCOM'!$G$6:$CU$12,38,FALSE) -> 23.39 | J16: =VLOOKUP($A16,'RECAP DIRCOM'!$G$6:$CU$12,39,FALSE) -> 34% | K16: =VLOOKUP($A16,'RECAP DIRCOM'!$G$6:$CU$12,40,FALSE) -> 6 | L16: =VLOOKUP($A16,'RECAP DIRCOM'!$G$6:$CU$12,41,FALSE) -> 17% | M16: =VLOOKUP($A16,'RECAP DIRCOM'!$G$6:$CU$12,42,FALSE) -> 17% | N16: =VLOOKUP($A16,'RECAP DIRCOM'!$G$6:$CU$12,43,FALSE) -> 2
B17: Total CEGEE Directions Régionales | C17: =SUM(C10:C16) -> 1195

Sheet DC_CREDIT
B1: Accueil | D1: BAROMETRE BDD - DIRECTIONS REGIONALES
D2: CREDITS
D3: =ACCUEIL!F7 -> 2022-06-05
D7: Engagements et ventes accessoires pondérés Immo | H7: Engagements et ventes accessoires pondérés Conso | L7: Ventes sur client non détenteur de l’univers | P7: Total Crédits
D8: =DATEMAJ!C18 -> au 05/06 | F8: coef | G8: ='RECAP DIRCOM'!BE4 -> 6% | H8: =DATEMAJ!C19 -> au 05/06 | J8: coef | K8: ='RECAP DIRCOM'!BI4 -> 6% | L8: =DATEMAJ!C20 -> au 05/06 | N8: coef | O8: ='RECAP DIRCOM'!BM4 -> 8% | Q8: coef | R8: ='RECAP DIRCOM'!BP4 -> 20%
B9: Direction | C9: ="ETP perf "&DATEMAJ!$C$28 -> ETP perf 05-juin | D9: PNB | E9: PNB / ETP | F9: % Ecart au 1er | G9: Rang | H9: PNB | I9: PNB / ETP | J9: % Ecart au 1er | K9: Rang | L9: VB | M9: VB / ETP | N9: % Ecart au 1er | O9: Rang | P9: Moyenne ecart au 1er | Q9: % Ecart au 1er | R9: Rang CEGEE
A10: 50 | B10: Aube Haute Marne | C10: =VLOOKUP($A10,'RECAP DIRCOM'!$G$6:$CU$12,3,FALSE) -> 113 | D10: =VLOOKUP($A10,'RECAP DIRCOM'!$G$6:$CU$12,48,FALSE) -> 9,079 | E10: =VLOOKUP($A10,'RECAP DIRCOM'!$G$6:$CU$12,49,FALSE) -> 80.06 | F10: =VLOOKUP($A10,'RECAP DIRCOM'!$G$6:$CU$12,50,FALSE) -> 54% | G10: =VLOOKUP($A10,'RECAP DIRCOM'!$G$6:$CU$12,51,FALSE) -> 5 | H10: =VLOOKUP($A10,'RECAP DIRCOM'!$G$6:$CU$12,52,FALSE) -> 3,116 | I10: =VLOOKUP($A10,'RECAP DIRCOM'!$G$6:$CU$12,53,FALSE) -> 27.48 | J10: =VLOOKUP($A10,'RECAP DIRCOM'!$G$6:$CU$12,54,FALSE) -> 15% | K10: =VLOOKUP($A10,'RECAP DIRCOM'!$G$6:$CU$12,55,FALSE) -> 3 | L10: =VLOOKUP($A10,'RECAP DIRCOM'!$G$6:$CU$12,56,FALSE) -> 1,168 | M10: =VLOOKUP($A10,'RECAP DIRCOM'!$G$6:$CU$12,57,FALSE) -> 10.30 | N10: =VLOOKUP($A10,'RECAP DIRCOM'!$G$6:$CU$12,58,FALSE) -> 35% | O10: =VLOOKUP($A10,'RECAP DIRCOM'!$G$6:$CU$12,59,FALSE) -> 5 | P10: =VLOOKUP($A10,'RECAP DIRCOM'!$G$6:$CU$12,60,FALSE) -> 35% | Q10: =VLOOKUP($A10,'RECAP DIRCOM'!$G$6:$CU$12,61,FALSE) -> 29% | R10: =VLOOKUP($A10,'RECAP DIRCOM'!$G$6:$CU$12,62,FALSE) -> 4
A11: 262 | B11: Bas-Rhin | C11: =VLOOKUP($A11,'RECAP DIRCOM'!$G$6:$CU$12,3,FALSE) -> 218 | D11: =VLOOKUP($A11,'RECAP DIRCOM'!$G$6:$CU$12,48,FALSE) -> 20,023 | E11: =VLOOKUP($A11,'RECAP DIRCOM'!$G$6:$CU$12,49,FALSE) -> 91.92 | F11: =VLOOKUP($A11,'RECAP DIRCOM'!$G$6:$CU$12,50,FALSE) -> 47% | G11: =VLOOKUP($A11,'RECAP DIRCOM'!$G$6:$CU$12,51,FALSE) -> 4 | H11: =VLOOKUP($A11,'RECAP DIRCOM'!$G$6:$CU$12,52,FALSE) -> 5,202 | I11: =VLOOKUP($A11,'RECAP DIRCOM'!$G$6:$CU$12,53,FALSE) -> 23.88 | J11: =VLOOKUP($A11,'RECAP DIRCOM'!$G$6:$CU$12,54,FALSE) -> 26% | K11: =VLOOKUP($A11,'RECAP DIRCOM'!$G$6:$CU$12,55,FALSE) -> 6 | L11: =VLOOKUP($A11,'RECAP DIRCOM'!$G$6:$CU$12,56,FALSE) -> 2,062 | M11: =VLOOKUP($A11,'RECAP DIRCOM'!$G$6:$CU$12,57,FALSE) -> 9.47 | N11: =VLOOKUP($A11,'RECAP DIRCOM'!$G$6:$CU$12,58,FALSE) -> 40% | O11: =VLOOKUP($A11,'RECAP DIRCOM'!$G$6:$CU$12,59,FALSE) -> 6 | P11: =VLOOKUP($A11,'RECAP DIRCOM'!$G$6:$CU$12,60,FALSE) -> 38% | Q11: =VLOOKUP($A11,'RECAP DIRCOM'!$G$6:$CU$12,61,FALSE) -> 32% | R11: =VLOOKUP($A11,'RECAP DIRCOM'!$G$6:$CU$12,62,FALSE) -> 5
A12: 264 | B12: Haut-Rhin | C12: =VLOOKUP($A12,'RECAP DIRCOM'!$G$6:$CU$12,3,FALSE) -> 125 | D12: =VLOOKUP($A12,'RECAP DIRCOM'!$G$6:$CU$12,48,FALSE) -> 8,755 | E12: =VLOOKUP($A12,'RECAP DIRCOM'!$G$6:$CU$12,49,FALSE) -> 70.28 | F12: =VLOOKUP($A12,'RECAP DIRCOM'!$G$6:$CU$12,50,FALSE) -> 60% | G12: =VLOOKUP($A12,'RECAP DIRCOM'!$G$6:$CU$12,51,FALSE) -> 7 | H12: =VLOOKUP($A12,'RECAP DIRCOM'!$G$6:$CU$12,52,FALSE) -> 2,619 | I12: =VLOOKUP($A12,'RECAP DIRCOM'!$G$6:$CU$12,53,FALSE) -> 21.03 | J12: =VLOOKUP($A12,'RECAP DIRCOM'!$G$6:$CU$12,54,FALSE) -> 35% | K12: =VLOOKUP($A12,'RECAP DIRCOM'!$G$6:$CU$12,55,FALSE) -> 7 | L12: =VLOOKUP($A12,'RECAP DIRCOM'!$G$6:$CU$12,56,FALSE) -> 986 | M12: =VLOOKUP($A12,'RECAP DIRCOM'!$G$6:$CU$12,57,FALSE) -> 7.92 | N12: =VLOOKUP($A12,'RECAP DIRCOM'!$G$6:$CU$12,58,FALSE) -> 50% | O12: =VLOOKUP($A12,'RECAP DIRCOM'!$G$6:$CU$12,59,FALSE) -> 7 | P12: =VLOOKUP($A12,'RECAP DIRCOM'!$G$6:$CU$12,60,FALSE) -> 48% | Q12: =VLOOKUP($A12,'RECAP DIRCOM'!$G$6:$CU$12,61,FALSE) -> 42% | R12: =VLOOKUP($A12,'RECAP DIRCOM'!$G$6:$CU$12,62,FALSE) -> 7
A13: 30 | B13: Marne-Ardennes | C13: =VLOOKUP($A13,'RECAP DIRCOM'!$G$6:$CU$12,3,FALSE) -> 193 | D13: =VLOOKUP($A13,'RECAP DIRCOM'!$G$6:$CU$12,48,FALSE) -> 33,651 | E13: =VLOOKUP($A13,'RECAP DIRCOM'!$G$6:$CU$12,49,FALSE) -> 174.32 | F13: =VLOOKUP($A13,'RECAP DIRCOM'!$G$6:$CU$12,50,FALSE) -> 0% | G13: =VLOOKUP($A13,'RECAP DIRCOM'!$G$6:$CU$12,51,FALSE) -> 1 | H13: =VLOOKUP($A13,'RECAP DIRCOM'!$G$6:$CU$12,52,FALSE) -> 4,964 | I13: =VLOOKUP($A13,'RECAP DIRCOM'!$G$6:$CU$12,53,FALSE) -> 25.72 | J13: =VLOOKUP($A13,'RECAP DIRCOM'!$G$6:$CU$12,54,FALSE) -> 21% | K13: =VLOOKUP($A13,'RECAP DIRCOM'!$G$6:$CU$12,55,FALSE) -> 4 | L13: =VLOOKUP($A13,'RECAP DIRCOM'!$G$6:$CU$12,56,FALSE) -> 3,057 | M13: =VLOOKUP($A13,'RECAP DIRCOM'!$G$6:$CU$12,57,FALSE) -> 15.84 | N13: =VLOOKUP($A13,'RECAP DIRCOM'!$G$6:$CU$12,58,FALSE) -> 0% | O13: =VLOOKUP($A13,'RECAP DIRCOM'!$G$6:$CU$12,59,FALSE) -> 1 | P13: =VLOOKUP($A13,'RECAP DIRCOM'!$G$6:$CU$12,60,FALSE) -> 6% | Q13: =VLOOKUP($A13,'RECAP DIRCOM'!$G$6:$CU$12,61,FALSE) -> 0% | R13: =VLOOKUP($A13,'RECAP DIRCOM'!$G$6:$CU$12,62,FALSE) -> 1
A14: 110 | B14: Meurthe et Moselle Meuse | C14: =VLOOKUP($A14,'RECAP DIRCOM'!$G$6:$CU$12,3,FALSE) -> 202 | D14: =VLOOKUP($A14,'RECAP DIRCOM'!$G$6:$CU$12,48,FALSE) -> 32,844 | E14: =VLOOKUP($A14,'RECAP DIRCOM'!$G$6:$CU$12,49,FALSE) -> 162.41 | F14: =VLOOKUP($A14,'RECAP DIRCOM'!$G$6:$CU$12,50,FALSE) -> 7% | G14: =VLOOKUP($A14,'RECAP DIRCOM'!$G$6:$CU$12,51,FALSE) -> 3 | H14: =VLOOKUP($A14,'RECAP DIRCOM'!$G$6:$CU$12,52,FALSE) -> 5,925 | I14: =VLOOKUP($A14,'RECAP DIRCOM'!$G$6:$CU$12,53,FALSE) -> 29.30 | J14: =VLOOKUP($A14,'RECAP DIRCOM'!$G$6:$CU$12,54,FALSE) -> 10% | K14: =VLOOKUP($A14,'RECAP DIRCOM'!$G$6:$CU$12,55,FALSE) -> 2 | L14: =VLOOKUP($A14,'RECAP DIRCOM'!$G$6:$CU$12,56,FALSE) -> 2,806 | M14: =VLOOKUP($A14,'RECAP DIRCOM'!$G$6:$CU$12,57,FALSE) -> 13.88 | N14: =VLOOKUP($A14,'RECAP DIRCOM'!$G$6:$CU$12,58,FALSE) -> 12% | O14: =VLOOKUP($A14,'RECAP DIRCOM'!$G$6:$CU$12,59,FALSE) -> 3 | P14: =VLOOKUP($A14,'RECAP DIRCOM'!$G$6:$CU$12,60,FALSE) -> 10% | Q14: =VLOOKUP($A14,'RECAP DIRCOM'!$G$6:$CU$12,61,FALSE) -> 4% | R14: =VLOOKUP($A14,'RECAP DIRCOM'!$G$6:$CU$12,62,FALSE) -> 3
A15: 160 | B15: Moselle | C15: =VLOOKUP($A15,'RECAP DIRCOM'!$G$6:$CU$12,3,FALSE) -> 228 | D15: =VLOOKUP($A15,'RECAP DIRCOM'!$G$6:$CU$12,48,FALSE) -> 37,207 | E15: =VLOOKUP($A15,'RECAP DIRCOM'!$G$6:$CU$12,49,FALSE) -> 163.51 | F15: =VLOOKUP($A15,'RECAP DIRCOM'!$G$6:$CU$12,50,FALSE) -> 6% | G15: =VLOOKUP($A15,'RECAP DIRCOM'!$G$6:$CU$12,51,FALSE) -> 2 | H15: =VLOOKUP($A15,'RECAP DIRCOM'!$G$6:$CU$12,52,FALSE) -> 7,367 | I15: =VLOOKUP($A15,'RECAP DIRCOM'!$G$6:$CU$12,53,FALSE) -> 32.38 | J15: =VLOOKUP($A15,'RECAP DIRCOM'!$G$6:$CU$12,54,FALSE) -> 0% | K15: =VLOOKUP($A15,'RECAP DIRCOM'!$G$6:$CU$12,55,FALSE) -> 1 | L15: =VLOOKUP($A15,'RECAP DIRCOM'!$G$6:$CU$12,56,FALSE) -> 3,167 | M15: =VLOOKUP($A15,'RECAP DIRCOM'!$G$6:$CU$12,57,FALSE) -> 13.92 | N15: =VLOOKUP($A15,'RECAP DIRCOM'!$G$6:$CU$12,58,FALSE) -> 12% | O15: =VLOOKUP($A15,'RECAP DIRCOM'!$G$6:$CU$12,59,FALSE) -> 2 | P15: =VLOOKUP($A15,'RECAP DIRCOM'!$G$6:$CU$12,60,FALSE) -> 7% | Q15: =VLOOKUP($A15,'RECAP DIRCOM'!$G$6:$CU$12,61,FALSE) -> 1% | R15: =VLOOKUP($A15,'RECAP DIRCOM'!$G$6:$CU$12,62,FALSE) -> 2
A16: 80 | B16: Vosges | C16: =VLOOKUP($A16,'RECAP DIRCOM'!$G$6:$CU$12,3,FALSE) -> 116 | D16: =VLOOKUP($A16,'RECAP DIRCOM'!$G$6:$CU$12,48,FALSE) -> 9,100 | E16: =VLOOKUP($A16,'RECAP DIRCOM'!$G$6:$CU$12,49,FALSE) -> 78.13 | F16: =VLOOKUP($A16,'RECAP DIRCOM'!$G$6:$CU$12,50,FALSE) -> 55% | G16: =VLOOKUP($A16,'RECAP DIRCOM'!$G$6:$CU$12,51,FALSE) -> 6 | H16: =VLOOKUP($A16,'RECAP DIRCOM'!$G$6:$CU$12,52,FALSE) -> 2,785 | I16: =VLOOKUP($A16,'RECAP DIRCOM'!$G$6:$CU$12,53,FALSE) -> 23.91 | J16: =VLOOKUP($A16,'RECAP DIRCOM'!$G$6:$CU$12,54,FALSE) -> 26% | K16: =VLOOKUP($A16,'RECAP DIRCOM'!$G$6:$CU$12,55,FALSE) -> 5 | L16: =VLOOKUP($A16,'RECAP DIRCOM'!$G$6:$CU$12,56,FALSE) -> 1,207 | M16: =VLOOKUP($A16,'RECAP DIRCOM'!$G$6:$CU$12,57,FALSE) -> 10.36 | N16: =VLOOKUP($A16,'RECAP DIRCOM'!$G$6:$CU$12,58,FALSE) -> 35% | O16: =VLOOKUP($A16,'RECAP DIRCOM'!$G$6:$CU$12,59,FALSE) -> 4 | P16: =VLOOKUP($A16,'RECAP DIRCOM'!$G$6:$CU$12,60,FALSE) -> 38% | Q16: =VLOOKUP($A16,'RECAP DIRCOM'!$G$6:$CU$12,61,FALSE) -> 32% | R16: =VLOOKUP($A16,'RECAP DIRCOM'!$G$6:$CU$12,62,FALSE) -> 6
B17: Total CEGEE Directions Régionales | C17: =SUM(C10:C16) -> 1195

Sheet DC_IARD
B1: Accueil | D1: BAROMETRE BDD - DIRECTIONS REGIONALES
D2: IARD ET PREVOYANCE
D3: =ACCUEIL!F7 -> 2022-06-05
D7: Ventes Nettes produits pondérés | H7: Ventes sur client non détenteur de l’univers | L7: Total IARD Prévoyance
D8: =DATEMAJ!C23 -> au 05/06 | F8: coef | G8: ='RECAP DIRCOM'!BX4 -> 12% | H8: =DATEMAJ!C24 -> au 05/06 | J8: coef | K8: ='RECAP DIRCOM'!CB4 -> 8% | M8: coef | N8: ='RECAP DIRCOM'!CE4 -> 20%
B9: Direction | C9: ="ETP perf "&DATEMAJ!$C$28 -> ETP perf 05-juin | D9: VN | E9: VN / ETP | F9: % Ecart au 1er | G9: Rang | H9: VB | I9: VB / ETP | J9: % Ecart au 1er | K9: Rang | L9: Moyenne ecart au 1er | M9: % Ecart au 1er | N9: Rang CEGEE
A10: 50 | B10: Aube Haute Marne | C10: =VLOOKUP($A10,'RECAP DIRCOM'!$G$6:$CU$12,3,FALSE) -> 113 | D10: =VLOOKUP($A10,'RECAP DIRCOM'!$G$6:$CU$12,67,FALSE) -> 6,848 | E10: =VLOOKUP($A10,'RECAP DIRCOM'!$G$6:$CU$12,68,FALSE) -> 60.39 | F10: =VLOOKUP($A10,'RECAP DIRCOM'!$G$6:$CU$12,69,FALSE) -> 36% | G10: =VLOOKUP($A10,'RECAP DIRCOM'!$G$6:$CU$12,70,FALSE) -> 5 | H10: =VLOOKUP($A10,'RECAP DIRCOM'!$G$6:$CU$12,71,FALSE) -> 2,124 | I10: =VLOOKUP($A10,'RECAP DIRCOM'!$G$6:$CU$12,72,FALSE) -> 18.73 | J10: =VLOOKUP($A10,'RECAP DIRCOM'!$G$6:$CU$12,73,FALSE) -> 25% | K10: =VLOOKUP($A10,'RECAP DIRCOM'!$G$6:$CU$12,74,FALSE) -> 5 | L10: =VLOOKUP($A10,'RECAP DIRCOM'!$G$6:$CU$12,75,FALSE) -> 32% | M10: =VLOOKUP($A10,'RECAP DIRCOM'!$G$6:$CU$12,76,FALSE) -> 32% | N10: =VLOOKUP($A10,'RECAP DIRCOM'!$G$6:$CU$12,77,FALSE) -> 5
A11: 262 | B11: Bas-Rhin | C11: =VLOOKUP($A11,'RECAP DIRCOM'!$G$6:$CU$12,3,FALSE) -> 218 | D11: =VLOOKUP($A11,'RECAP DIRCOM'!$G$6:$CU$12,67,FALSE) -> 13,374 | E11: =VLOOKUP($A11,'RECAP DIRCOM'!$G$6:$CU$12,68,FALSE) -> 61.40 | F11: =VLOOKUP($A11,'RECAP DIRCOM'!$G$6:$CU$12,69,FALSE) -> 35% | G11: =VLOOKUP($A11,'RECAP DIRCOM'!$G$6:$CU$12,70,FALSE) -> 4 | H11: =VLOOKUP($A11,'RECAP DIRCOM'!$G$6:$CU$12,71,FALSE) -> 4,576 | I11: =VLOOKUP($A11,'RECAP DIRCOM'!$G$6:$CU$12,72,FALSE) -> 21.01 | J11: =VLOOKUP($A11,'RECAP DIRCOM'!$G$6:$CU$12,73,FALSE) -> 16% | K11: =VLOOKUP($A11,'RECAP DIRCOM'!$G$6:$CU$12,74,FALSE) -> 4 | L11: =VLOOKUP($A11,'RECAP DIRCOM'!$G$6:$CU$12,75,FALSE) -> 28% | M11: =VLOOKUP($A11,'RECAP DIRCOM'!$G$6:$CU$12,76,FALSE) -> 27% | N11: =VLOOKUP($A11,'RECAP DIRCOM'!$G$6:$CU$12,77,FALSE) -> 4
A12: 264 | B12: Haut-Rhin | C12: =VLOOKUP($A12,'RECAP DIRCOM'!$G$6:$CU$12,3,FALSE) -> 125 | D12: =VLOOKUP($A12,'RECAP DIRCOM'!$G$6:$CU$12,67,FALSE) -> 4,121 | E12: =VLOOKUP($A12,'RECAP DIRCOM'!$G$6:$CU$12,68,FALSE) -> 33.08 | F12: =VLOOKUP($A12,'RECAP DIRCOM'!$G$6:$CU$12,69,FALSE) -> 65% | G12: =VLOOKUP($A12,'RECAP DIRCOM'!$G$6:$CU$12,70,FALSE) -> 7 | H12: =VLOOKUP($A12,'RECAP DIRCOM'!$G$6:$CU$12,71,FALSE) -> 2,054 | I12: =VLOOKUP($A12,'RECAP DIRCOM'!$G$6:$CU$12,72,FALSE) -> 16.49 | J12: =VLOOKUP($A12,'RECAP DIRCOM'!$G$6:$CU$12,73,FALSE) -> 34% | K12: =VLOOKUP($A12,'RECAP DIRCOM'!$G$6:$CU$12,74,FALSE) -> 7 | L12: =VLOOKUP($A12,'RECAP DIRCOM'!$G$6:$CU$12,75,FALSE) -> 53% | M12: =VLOOKUP($A12,'RECAP DIRCOM'!$G$6:$CU$12,76,FALSE) -> 53% | N12: =VLOOKUP($A12,'RECAP DIRCOM'!$G$6:$CU$12,77,FALSE) -> 7
A13: 30 | B13: Marne-Ardennes | C13: =VLOOKUP($A13,'RECAP DIRCOM'!$G$6:$CU$12,3,FALSE) -> 193 | D13: =VLOOKUP($A13,'RECAP DIRCOM'!$G$6:$CU$12,67,FALSE) -> 18,088 | E13: =VLOOKUP($A13,'RECAP DIRCOM'!$G$6:$CU$12,68,FALSE) -> 93.70 | F13: =VLOOKUP($A13,'RECAP DIRCOM'!$G$6:$CU$12,69,FALSE) -> 1% | G13: =VLOOKUP($A13,'RECAP DIRCOM'!$G$6:$CU$12,70,FALSE) -> 2 | H13: =VLOOKUP($A13,'RECAP DIRCOM'!$G$6:$CU$12,71,FALSE) -> 4,845 | I13: =VLOOKUP($A13,'RECAP DIRCOM'!$G$6:$CU$12,72,FALSE) -> 25.10 | J13: =VLOOKUP($A13,'RECAP DIRCOM'!$G$6:$CU$12,73,FALSE) -> 0% | K13: =VLOOKUP($A13,'RECAP DIRCOM'!$G$6:$CU$12,74,FALSE) -> 1 | L13: =VLOOKUP($A13,'RECAP DIRCOM'!$G$6:$CU$12,75,FALSE) -> 1% | M13: =VLOOKUP($A13,'RECAP DIRCOM'!$G$6:$CU$12,76,FALSE) -> 0% | N13: =VLOOKUP($A13,'RECAP DIRCOM'!$G$6:$CU$12,77,FALSE) -> 2
A14: 110 | B14: Meurthe et Moselle Meuse | C14: =VLOOKUP($A14,'RECAP DIRCOM'!$G$6:$CU$12,3,FALSE) -> 202 | D14: =VLOOKUP($A14,'RECAP DIRCOM'!$G$6:$CU$12,67,FALSE) -> 13,422 | E14: =VLOOKUP($A14,'RECAP DIRCOM'!$G$6:$CU$12,68,FALSE) -> 66.37 | F14: =VLOOKUP($A14,'RECAP DIRCOM'!$G$6:$CU$12,69,FALSE) -> 30% | G14: =VLOOKUP($A14,'RECAP DIRCOM'!$G$6:$CU$12,70,FALSE) -> 3 | H14: =VLOOKUP($A14,'RECAP DIRCOM'!$G$6:$CU$12,71,FALSE) -> 4,516 | I14: =VLOOKUP($A14,'RECAP DIRCOM'!$G$6:$CU$12,72,FALSE) -> 22.33 | J14: =VLOOKUP($A14,'RECAP DIRCOM'!$G$6:$CU$12,73,FALSE) -> 11% | K14: =VLOOKUP($A14,'RECAP DIRCOM'!$G$6:$CU$12,74,FALSE) -> 3 | L14: =VLOOKUP($A14,'RECAP DIRCOM'!$G$6:$CU$12,75,FALSE) -> 22% | M14: =VLOOKUP($A14,'RECAP DIRCOM'!$G$6:$CU$12,76,FALSE) -> 22% | N14: =VLOOKUP($A14,'RECAP DIRCOM'!$G$6:$CU$12,77,FALSE) -> 3
A15: 160 | B15: Moselle | C15: =VLOOKUP($A15,'RECAP DIRCOM'!$G$6:$CU$12,3,FALSE) -> 228 | D15: =VLOOKUP($A15,'RECAP DIRCOM'!$G$6:$CU$12,67,FALSE) -> 21,542 | E15: =VLOOKUP($A15,'RECAP DIRCOM'!$G$6:$CU$12,68,FALSE) -> 94.67 | F15: =VLOOKUP($A15,'RECAP DIRCOM'!$G$6:$CU$12,69,FALSE) -> 0% | G15: =VLOOKUP($A15,'RECAP DIRCOM'!$G$6:$CU$12,70,FALSE) -> 1 | H15: =VLOOKUP($A15,'RECAP DIRCOM'!$G$6:$CU$12,71,FALSE) -> 5,688 | I15: =VLOOKUP($A15,'RECAP DIRCOM'!$G$6:$CU$12,72,FALSE) -> 25.00 | J15: =VLOOKUP($A15,'RECAP DIRCOM'!$G$6:$CU$12,73,FALSE) -> 0% | K15: =VLOOKUP($A15,'RECAP DIRCOM'!$G$6:$CU$12,74,FALSE) -> 2 | L15: =VLOOKUP($A15,'RECAP DIRCOM'!$G$6:$CU$12,75,FALSE) -> 0% | M15: =VLOOKUP($A15,'RECAP DIRCOM'!$G$6:$CU$12,76,FALSE) -> 0% | N15: =VLOOKUP($A15,'RECAP DIRCOM'!$G$6:$CU$12,77,FALSE) -> 1
A16: 80 | B16: Vosges | C16: =VLOOKUP($A16,'RECAP DIRCOM'!$G$6:$CU$12,3,FALSE) -> 116 | D16: =VLOOKUP($A16,'RECAP DIRCOM'!$G$6:$CU$12,67,FALSE) -> 5,909 | E16: =VLOOKUP($A16,'RECAP DIRCOM'!$G$6:$CU$12,68,FALSE) -> 50.73 | F16: =VLOOKUP($A16,'RECAP DIRCOM'!$G$6:$CU$12,69,FALSE) -> 46% | G16: =VLOOKUP($A16,'RECAP DIRCOM'!$G$6:$CU$12,70,FALSE) -> 6 | H16: =VLOOKUP($A16,'RECAP DIRCOM'!$G$6:$CU$12,71,FALSE) -> 2,063 | I16: =VLOOKUP($A16,'RECAP DIRCOM'!$G$6:$CU$12,72,FALSE) -> 17.71 | J16: =VLOOKUP($A16,'RECAP DIRCOM'!$G$6:$CU$12,73,FALSE) -> 29% | K16: =VLOOKUP($A16,'RECAP DIRCOM'!$G$6:$CU$12,74,FALSE) -> 6 | L16: =VLOOKUP($A16,'RECAP DIRCOM'!$G$6:$CU$12,75,FALSE) -> 40% | M16: =VLOOKUP($A16,'RECAP DIRCOM'!$G$6:$CU$12,76,FALSE) -> 39% | N16: =VLOOKUP($A16,'RECAP DIRCOM'!$G$6:$CU$12,77,FALSE) -> 6
B17: Total CEGEE Directions Régionales | C17: =SUM(C10:C16) -> 1195

Sheet DC_SATISFACTION
B1: Accueil | D1: BAROMETRE BDD - DIRECTIONS REGIONALES
D2: SATISFACTION
D3: =ACCUEIL!F7 -> 2022-06-05
D7: NPS à froid (SAE) | G7: NPS à chaud (QHD) | J7: Total Satisfaction Clients
D8: =DATEMAJ!E4 -> au 30/04 | E8: coef | F8: ='RECAP DIRCOM'!M4 -> 10% | G8: =DATEMAJ!C5 -> au 30/04 | H8: coef | I8: ='RECAP DIRCOM'!P4 -> 10% | K8: coef | L8: ='RECAP DIRCOM'!S4 -> 20%
B9: Direction | C9: ="ETP perf "&DATEMAJ!$C$28 -> ETP perf 05-juin | E9: % Ecart au 1er | F9: Rang | H9: % Ecart au 1er | I9: Rang | J9: Moyenne ecart au 1er | K9: % Ecart au 1er | L9: Rang CEGEE
A10: 50 | B10: Aube Haute Marne | C10: =VLOOKUP($A10,'RECAP DIRCOM'!$G$6:$CU$12,3,FALSE) -> 113 | D10: =VLOOKUP($A10,'RECAP DIRCOM'!$G$6:$CU$12,5,FALSE) -> 4.25 | E10: =VLOOKUP($A10,'RECAP DIRCOM'!$G$6:$CU$12,6,FALSE) -> 82% | F10: =VLOOKUP($A10,'RECAP DIRCOM'!$G$6:$CU$12,7,FALSE) -> 6 | G10: =VLOOKUP($A10,'RECAP DIRCOM'!$G$6:$CU$12,8,FALSE) -> 54% | H10: =VLOOKUP($A10,'RECAP DIRCOM'!$G$6:$CU$12,9,FALSE) -> 21% | I10: =VLOOKUP($A10,'RECAP DIRCOM'!$G$6:$CU$12,10,FALSE) -> 6 | J10: =VLOOKUP($A10,'RECAP DIRCOM'!$G$6:$CU$12,11,FALSE) -> 52% | K10: =VLOOKUP($A10,'RECAP DIRCOM'!$G$6:$CU$12,12,FALSE) -> 52% | L10: =VLOOKUP($A10,'RECAP DIRCOM'!$G$6:$CU$12,13,FALSE) -> 6
A11: 262 | B11: Bas-Rhin | C11: =VLOOKUP($A11,'RECAP DIRCOM'!$G$6:$CU$12,3,FALSE) -> 218 | D11: =VLOOKUP($A11,'RECAP DIRCOM'!$G$6:$CU$12,5,FALSE) -> 5.75 | E11: =VLOOKUP($A11,'RECAP DIRCOM'!$G$6:$CU$12,6,FALSE) -> 75% | F11: =VLOOKUP($A11,'RECAP DIRCOM'!$G$6:$CU$12,7,FALSE) -> 5 | G11: =VLOOKUP($A11,'RECAP DIRCOM'!$G$6:$CU$12,8,FALSE) -> 61% | H11: =VLOOKUP($A11,'RECAP DIRCOM'!$G$6:$CU$12,9,FALSE) -> 12% | I11: =VLOOKUP($A11,'RECAP DIRCOM'!$G$6:$CU$12,10,FALSE) -> 4 | J11: =VLOOKUP($A11,'RECAP DIRCOM'!$G$6:$CU$12,11,FALSE) -> 43% | K11: =VLOOKUP($A11,'RECAP DIRCOM'!$G$6:$CU$12,12,FALSE) -> 43% | L11: =VLOOKUP($A11,'RECAP DIRCOM'!$G$6:$CU$12,13,FALSE) -> 5
A12: 264 | B12: Haut-Rhin | C12: =VLOOKUP($A12,'RECAP DIRCOM'!$G$6:$CU$12,3,FALSE) -> 125 | D12: =VLOOKUP($A12,'RECAP DIRCOM'!$G$6:$CU$12,5,FALSE) -> 3.5 | E12: =VLOOKUP($A12,'RECAP DIRCOM'!$G$6:$CU$12,6,FALSE) -> 85% | F12: =VLOOKUP($A12,'RECAP DIRCOM'!$G$6:$CU$12,7,FALSE) -> 7 | G12: =VLOOKUP($A12,'RECAP DIRCOM'!$G$6:$CU$12,8,FALSE) -> 50% | H12: =VLOOKUP($A12,'RECAP DIRCOM'!$G$6:$CU$12,9,FALSE) -> 27% | I12: =VLOOKUP($A12,'RECAP DIRCOM'!$G$6:$CU$12,10,FALSE) -> 7 | J12: =VLOOKUP($A12,'RECAP DIRCOM'!$G$6:$CU$12,11,FALSE) -> 56% | K12: =VLOOKUP($A12,'RECAP DIRCOM'!$G$6:$CU$12,12,FALSE) -> 56% | L12: =VLOOKUP($A12,'RECAP DIRCOM'!$G$6:$CU$12,13,FALSE) -> 7
A13: 30 | B13: Marne-Ardennes | C13: =VLOOKUP($A13,'RECAP DIRCOM'!$G$6:$CU$12,3,FALSE) -> 193 | D13: =VLOOKUP($A13,'RECAP DIRCOM'!$G$6:$CU$12,5,FALSE) -> 17.25 | E13: =VLOOKUP($A13,'RECAP DIRCOM'!$G$6:$CU$12,6,FALSE) -> 26% | F13: =VLOOKUP($A13,'RECAP DIRCOM'!$G$6:$CU$12,7,FALSE) -> 2 | G13: =VLOOKUP($A13,'RECAP DIRCOM'!$G$6:$CU$12,8,FALSE) -> 67% | H13: =VLOOKUP($A13,'RECAP DIRCOM'!$G$6:$CU$12,9,FALSE) -> 2% | I13: =VLOOKUP($A13,'RECAP DIRCOM'!$G$6:$CU$12,10,FALSE) -> 2 | J13: =VLOOKUP($A13,'RECAP DIRCOM'!$G$6:$CU$12,11,FALSE) -> 14% | K13: =VLOOKUP($A13,'RECAP DIRCOM'!$G$6:$CU$12,12,FALSE) -> 14% | L13: =VLOOKUP($A13,'RECAP DIRCOM'!$G$6:$CU$12,13,FALSE) -> 2
A14: 110 | B14: Meurthe et Moselle Meuse | C14: =VLOOKUP($A14,'RECAP DIRCOM'!$G$6:$CU$12,3,FALSE) -> 202 | D14: =VLOOKUP($A14,'RECAP DIRCOM'!$G$6:$CU$12,5,FALSE) -> 9.5 | E14: =VLOOKUP($A14,'RECAP DIRCOM'!$G$6:$CU$12,6,FALSE) -> 59% | F14: =VLOOKUP($A14,'RECAP DIRCOM'!$G$6:$CU$12,7,FALSE) -> 4 | G14: =VLOOKUP($A14,'RECAP DIRCOM'!$G$6:$CU$12,8,FALSE) -> 59% | H14: =VLOOKUP($A14,'RECAP DIRCOM'!$G$6:$CU$12,9,FALSE) -> 15% | I14: =VLOOKUP($A14,'RECAP DIRCOM'!$G$6:$CU$12,10,FALSE) -> 5 | J14: =VLOOKUP($A14,'RECAP DIRCOM'!$G$6:$CU$12,11,FALSE) -> 37% | K14: =VLOOKUP($A14,'RECAP DIRCOM'!$G$6:$CU$12,12,FALSE) -> 37% | L14: =VLOOKUP($A14,'RECAP DIRCOM'!$G$6:$CU$12,13,FALSE) -> 4
A15: 160 | B15: Moselle | C15: =VLOOKUP($A15,'RECAP DIRCOM'!$G$6:$CU$12,3,FALSE) -> 228 | D15: =VLOOKUP($A15,'RECAP DIRCOM'!$G$6:$CU$12,5,FALSE) -> 15.25 | E15: =VLOOKUP($A15,'RECAP DIRCOM'!$G$6:$CU$12,6,FALSE) -> 34% | F15: =VLOOKUP($A15,'RECAP DIRCOM'!$G$6:$CU$12,7,FALSE) -> 3 | G15: =VLOOKUP($A15,'RECAP DIRCOM'!$G$6:$CU$12,8,FALSE) -> 63% | H15: =VLOOKUP($A15,'RECAP DIRCOM'!$G$6:$CU$12,9,FALSE) -> 8% | I15: =VLOOKUP($A15,'RECAP DIRCOM'!$G$6:$CU$12,10,FALSE) -> 3 | J15: =VLOOKUP($A15,'RECAP DIRCOM'!$G$6:$CU$12,11,FALSE) -> 21% | K15: =VLOOKUP($A15,'RECAP DIRCOM'!$G$6:$CU$12,12,FALSE) -> 21% | L15: =VLOOKUP($A15,'RECAP DIRCOM'!$G$6:$CU$12,13,FALSE) -> 3
A16: 80 | B16: Vosges | C16: =VLOOKUP($A16,'RECAP DIRCOM'!$G$6:$CU$12,3,FALSE) -> 116 | D16: =VLOOKUP($A16,'RECAP DIRCOM'!$G$6:$CU$12,5,FALSE) -> 23.25 | E16: =VLOOKUP($A16,'RECAP DIRCOM'!$G$6:$CU$12,6,FALSE) -> 0% | F16: =VLOOKUP($A16,'RECAP DIRCOM'!$G$6:$CU$12,7,FALSE) -> 1 | G16: =VLOOKUP($A16,'RECAP DIRCOM'!$G$6:$CU$12,8,FALSE) -> 69% | H16: =VLOOKUP($A16,'RECAP DIRCOM'!$G$6:$CU$12,9,FALSE) -> 0% | I16: =VLOOKUP($A16,'RECAP DIRCOM'!$G$6:$CU$12,10,FALSE) -> 1 | J16: =VLOOKUP($A16,'RECAP DIRCOM'!$G$6:$CU$12,11,FALSE) -> 0% | K16: =VLOOKUP($A16,'RECAP DIRCOM'!$G$6:$CU$12,12,FALSE) -> 0% | L16: =VLOOKUP($A16,'RECAP DIRCOM'!$G$6:$CU$12,13,FALSE) -> 1
B17: Total CEGEE Directions Régionales | C17: =SUM(C10:C16) -> 1195

Sheet SE_FICHE
A1: Accueil
A2: BAROMETRE BDD
A4: UNITE: | B4: TERRITOIRE | E4: ETP perf : | F4: =VLOOKUP(A5,'RECAP SECT'!$G$6:$I$23,3,FALSE) -> 49.85
A5: =VLOOKUP(B5,LISTES!$H$6:$I$23,2,FALSE) -> 5130 | B5: COLMAR
C6: Coefficient du critére | E6: Résultats | I6: Ecart au 1ier | M6: Evolution | O6: Rang
E7: du 1ier | G7: du territoire | I7: Du mois | K7: Au 31/12/2019
A9: RANG au CLASSEMENT GENERAL | K9: =VLOOKUP($A$5,#REF!,168,FALSE) ->  | M9: =+K9-O9 ->  | O9: =VLOOKUP($A$5,'RECAP SECT'!$G$6:$CY$312,168,FALSE) ->  | S9: =VLOOKUP($A$5,#REF!,154,FALSE) ->  | U9: =+S9-O9 -> 
A11: CRITERE CONQUETE | C11: 15% | O11: =VLOOKUP($A$5,'RECAP SECT'!$G$6:$CY$312,23,FALSE) -> 25.57673019
B12: PNB Evolution nette Clients BP | C12: 4% | E12: ='RECAP SECT'!#REF! ->  | G12: =VLOOKUP($A$5,'RECAP SECT'!$G$6:$CY$312,6,FALSE) -> 0.9 | I12: =VLOOKUP($A$5,'RECAP SECT'!$G$6:$CY$312,7,FALSE) -> 1600% | K12: =VLOOKUP($A$5,#REF!,7,FALSE) ->  | M12: =+K12-I12 ->  | O12: =VLOOKUP($A$5,'RECAP SECT'!$G$6:$CY$312,8,FALSE) -> 0.5335123997 | S12: =VLOOKUP($A$5,#REF!,6,FALSE) ->  | U12: =+S12-I12 -> 
B13: PNB Evolution nette Clients PREMIUM | C13: 5% | E13: ='RECAP SECT'!#REF! ->  | G13: =VLOOKUP($A$5,'RECAP SECT'!$G$6:$CY$312,10,FALSE) -> 15.0 | I13: =VLOOKUP($A$5,'RECAP SECT'!$G$6:$CY$312,11,FALSE) -> 58% | K13: =VLOOKUP($A$5,#REF!,11,FALSE) ->  | M13: =+K13-I13 ->  | O13: =VLOOKUP($A$5,'RECAP SECT'!$G$6:$CY$312,12,FALSE) -> 0.5379136887 | S13: =VLOOKUP($A$5,#REF!,9,FALSE) ->  | U13: =+S13-I13 -> 
B14: PNB Evolution nette Clients Jeunes Equipés | C14: 3% | E14: ='RECAP SECT'!#REF! ->  | G14: =VLOOKUP($A$5,'RECAP SECT'!$G$6:$CY$312,14,FALSE) -> 0.0 | I14: =VLOOKUP($A$5,'RECAP SECT'!$G$6:$CY$312,15,FALSE) -> 0% | K14: =VLOOKUP($A$5,#REF!,15,FALSE) ->  | M14: =+K14-I14 ->  | O14: =VLOOKUP($A$5,'RECAP SECT'!$G$6:$CY$312,16,FALSE) -> 0 | S14: =VLOOKUP($A$5,#REF!,12,FALSE) ->  | U14: =+S14-I14 -> 
B15: PNB Evolution nette Clients Pro Actifs Equipés | C15: 3% | E15: ='RECAP SECT'!W4 -> 0.0 | G15: =VLOOKUP($A$5,'RECAP SECT'!$G$6:$CY$312,18,FALSE) -> 312.9 | I15: =VLOOKUP($A$5,'RECAP SECT'!$G$6:$CY$312,19,FALSE) -> 628% | K15: =VLOOKUP($A$5,#REF!,19,FALSE) ->  | M15: =+K15-I15 ->  | O15: =VLOOKUP($A$5,'RECAP SECT'!$G$6:$CY$312,20,FALSE) -> 0.7487688837 | S15: =VLOOKUP($A$5,#REF!,15,FALSE) ->  | U15: =+S15-I15 -> 
A17: CRITERE BANCARISATION | C17: 15% | O17: =VLOOKUP($A$5,'RECAP SECT'!$G$6:$CY$312,48,FALSE) -> 3773.246351
B18: PNB Ventes nettes forfaits | C18: 4% | E18: ='RECAP SECT'!X4 -> 25.0 | G18: =VLOOKUP($A$5,'RECAP SECT'!$G$6:$CY$312,31,FALSE) -> 0.0 | I18: =VLOOKUP($A$5,'RECAP SECT'!$G$6:$CY$312,32,FALSE) -> 0% | K18: =VLOOKUP($A$5,#REF!,32,FALSE) ->  | M18: =+K18-I18 ->  | O18: =VLOOKUP($A$5,'RECAP SECT'!$G$6:$CY$312,33,FALSE) -> 4353.467302 | S18: =VLOOKUP($A$5,#REF!,27,FALSE) ->  | U18: =+S18-I18 -> 
B19: PNB Ventes nettes IZICARTES Débit Différé | C19: 4% | E19: ='RECAP SECT'!AB4 -> 46.5 | G19: =VLOOKUP($A$5,'RECAP SECT'!$G$6:$CY$312,35,FALSE) -> 0.7 | I19: =VLOOKUP($A$5,'RECAP SECT'!$G$6:$CY$312,36,FALSE) -> 1300% | K19: =VLOOKUP($A$5,#REF!,36,FALSE) ->  | M19: =+K19-I19 ->  | O19: =VLOOKUP($A$5,'RECAP SECT'!$G$6:$CY$312,37,FALSE) -> 1185 | S19: =VLOOKUP($A$5,#REF!,30,FALSE) ->  | U19: =+S19-I19 -> 
B20: PNB Ventes nettes cartes HDG Débit Différé | C20: 4% | E20: ='RECAP SECT'!#REF! ->  | G20: =VLOOKUP($A$5,'RECAP SECT'!$G$6:$CY$312,39,FALSE) -> 0.5 | I20: =VLOOKUP($A$5,'RECAP SECT'!$G$6:$CY$312,40,FALSE) -> 1800% | K20: =VLOOKUP($A$5,#REF!,40,FALSE) ->  | M20: =+K20-I20 ->  | O20: =VLOOKUP($A$5,'RECAP SECT'!$G$6:$CY$312,41,FALSE) -> 0.6330798701 | S20: =VLOOKUP($A$5,#REF!,33,FALSE) ->  | U20: =+S20-I20 -> 
B21: PNB Ventes nettes Forfaits Pro, Carte pro | C21: 3% | E21: ='RECAP SECT'!#REF! ->  | G21: =VLOOKUP($A$5,'RECAP SECT'!$G$6:$CY$312,43,FALSE) -> 15.0 | I21: =VLOOKUP($A$5,'RECAP SECT'!$G$6:$CY$312,44,FALSE) -> 0% | K21: =VLOOKUP($A$5,#REF!,44,FALSE) ->  | M21: =+K21-I21 ->  | O21: =VLOOKUP($A$5,'RECAP SECT'!$G$6:$CY$312,45,FALSE) -> 0 | S21: =VLOOKUP($A$5,#REF!,39,FALSE) ->  | U21: =+S21-I21 -> 
A23: CRITERE EPARGNE | C23: 10% | O23: =VLOOKUP($A$5,'RECAP SECT'!$G$6:$CY$312,69,FALSE) -> 0.5795958012
B24: PNB Epargne Liquide | C24: 3% | E24: ='RECAP SECT'!AM4 -> 301.2 | G24: =VLOOKUP($A$5,'RECAP SECT'!$G$6:$CY$312,56,FALSE) -> 495.0 | I24: =VLOOKUP($A$5,'RECAP SECT'!$G$6:$CY$312,57,FALSE) -> 993% | K24: =VLOOKUP($A$5,#REF!,57,FALSE) ->  | M24: =+K24-I24 ->  | O24: =VLOOKUP($A$5,'RECAP SECT'!$G$6:$CY$312,58,FALSE) -> 0.5591378127 | S24: =VLOOKUP($A$5,#REF!,51,FALSE) ->  | U24: =+S24-I24 -> 
B25: PNB CA UC + arbitrage | C25: 4% | E25: ='RECAP SECT'!AQ4 -> 49.3 | G25: =VLOOKUP($A$5,'RECAP SECT'!$G$6:$CY$312,60,FALSE) -> 0.5 | I25: =VLOOKUP($A$5,'RECAP SECT'!$G$6:$CY$312,61,FALSE) -> 50% | K25: =VLOOKUP($A$5,#REF!,61,FALSE) ->  | M25: =+K25-I25 ->  | O25: =VLOOKUP($A$5,'RECAP SECT'!$G$6:$CY$312,62,FALSE) -> 18 | S25: =VLOOKUP($A$5,#REF!,57,FALSE) ->  | U25: =+S25-I25 -> 
B26: PNB Excédent assurance vie | C26: 3% | E26: ='RECAP SECT'!#REF! ->  | G26: =VLOOKUP($A$5,'RECAP SECT'!$G$6:$CY$312,64,FALSE) -> 0.0 | I26: =VLOOKUP($A$5,'RECAP SECT'!$G$6:$CY$312,65,FALSE) -> 0% | K26: =VLOOKUP($A$5,#REF!,65,FALSE) ->  | M26: =+K26-I26 ->  | O26: =VLOOKUP($A$5,'RECAP SECT'!$G$6:$CY$312,66,FALSE) -> 0 | S26: =VLOOKUP($A$5,#REF!,60,FALSE) ->  | U26: =+S26-I26 -> 
A28: CRITERE CREDITS | C28: 15% | O28: =VLOOKUP($A$5,'RECAP SECT'!$G$6:$CY$312,102,FALSE) -> 
B29: PNB crédit conso | C29: 4% | E29: ='RECAP SECT'!BB4 -> 268.2 | G29: =VLOOKUP($A$5,'RECAP SECT'!$G$6:$CY$312,77,FALSE) -> 16.0 | I29: =VLOOKUP($A$5,'RECAP SECT'!$G$6:$CY$312,78,FALSE) -> 0% | K29: =VLOOKUP($A$5,#REF!,78,FALSE) ->  | M29: =+K29-I29 ->  | O29: =VLOOKUP($A$5,'RECAP SECT'!$G$6:$CY$312,79,FALSE) -> 0 | S29: =VLOOKUP($A$5,#REF!,75,FALSE) ->  | U29: =+S29-I29 -> 
B30: PNB ADE crédit conso | C30: 1% | E30: ='RECAP SECT'!#REF! ->  | G30: =VLOOKUP($A$5,'RECAP SECT'!$G$6:$CY$312,81,FALSE) -> 0.0 | I30: =VLOOKUP($A$5,'RECAP SECT'!$G$6:$CY$312,82,FALSE) -> 0% | K30: =VLOOKUP($A$5,#REF!,82,FALSE) ->  | O30: =VLOOKUP($A$5,'RECAP SECT'!$G$6:$CY$312,83,FALSE) -> 0 | S30: =VLOOKUP($A$5,#REF!,78,FALSE) -> 
B31: PNB crédit immo | C31: 4% | E31: ='RECAP SECT'!BF4 -> 41.1 | G31: =VLOOKUP($A$5,'RECAP SECT'!$G$6:$CY$312,85,FALSE) -> 0.0 | I31: =VLOOKUP($A$5,'RECAP SECT'!$G$6:$CY$312,86,FALSE) -> 0% | K31: =VLOOKUP($A$5,#REF!,86,FALSE) ->  | O31: =VLOOKUP($A$5,'RECAP SECT'!$G$6:$CY$312,87,FALSE) -> 0 | S31: =VLOOKUP($A$5,#REF!,81,FALSE) -> 
B32: PNB ADE crédit immo | C32: 2% | E32: ='RECAP SECT'!#REF! ->  | G32: =VLOOKUP($A$5,'RECAP SECT'!$G$6:$CY$312,89,FALSE) -> 0.0 | I32: =VLOOKUP($A$5,'RECAP SECT'!$G$6:$CY$312,90,FALSE) -> 0% | K32: =VLOOKUP($A$5,#REF!,90,FALSE) ->  | O32: =VLOOKUP($A$5,'RECAP SECT'!$G$6:$CY$312,91,FALSE) -> 0 | S32: =VLOOKUP($A$5,#REF!,84,FALSE) -> 
B33: PNB SACCEF | C33: 2% | E33: ='RECAP SECT'!#REF! ->  | G33: =VLOOKUP($A$5,'RECAP SECT'!$G$6:$CY$312,93,FALSE) -> 0.0 | I33: =VLOOKUP($A$5,'RECAP SECT'!$G$6:$CY$312,94,FALSE) -> 54% | K33: =VLOOKUP($A$5,#REF!,94,FALSE) ->  | O33: =VLOOKUP($A$5,'RECAP SECT'!$G$6:$CY$312,95,FALSE) -> 0.4014875329 | S33: =VLOOKUP($A$5,#REF!,87,FALSE) -> 
B34: PNB Crédit MLT + Crédit Bail | C34: 2% | E34: ='RECAP SECT'!BJ4 -> 22.5 | G34: =VLOOKUP($A$5,'RECAP SECT'!$G$6:$CY$312,97,FALSE) -> 0.0 | I34: =VLOOKUP($A$5,'RECAP SECT'!$G$6:$CY$312,98,FALSE) ->  | K34: =VLOOKUP($A$5,#REF!,98,FALSE) ->  | O34: =VLOOKUP($A$5,'RECAP SECT'!$G$6:$CY$312,99,FALSE) ->  | S34: =VLOOKUP($A$5,#REF!,90,FALSE) -> 
A36: CRITERE IARD PREVOYANCE | C36: 15% | O36: =VLOOKUP($A$5,'RECAP SECT'!$G$6:$CY$312,119,FALSE) -> 
B37: PNB Ventes nettes IARD | C37: 9% | E37: ='RECAP SECT'!BU4 -> 139.1 | G37: =VLOOKUP($A$5,'RECAP SECT'!$G$6:$CY$312,110,FALSE) ->  | I37: =VLOOKUP($A$5,'RECAP SECT'!$G$6:$CY$312,111,FALSE) ->  | K37: =VLOOKUP($A$5,#REF!,111,FALSE) ->  | M37: =+K37-I37 ->  | O37: =VLOOKUP($A$5,'RECAP SECT'!$G$6:$CY$312,112,FALSE) ->  | S37: =VLOOKUP($A$5,#REF!,102,FALSE) ->  | U37: =+S37-I37 -> 
B38: PNB Ventes nettes Prévoyance | C38: 6% | E38: ='RECAP SECT'!BY4 -> 34.3 | G38: =VLOOKUP($A$5,'RECAP SECT'!$G$6:$CY$312,114,FALSE) ->  | I38: =VLOOKUP($A$5,'RECAP SECT'!$G$6:$CY$312,115,FALSE) ->  | K38: =VLOOKUP($A$5,#REF!,115,FALSE) ->  | M38: =+K38-I38 ->  | O38: =VLOOKUP($A$5,'RECAP SECT'!$G$6:$CY$312,116,FALSE) ->  | S38: =VLOOKUP($A$5,#REF!,105,FALSE) ->  | U38: =+S38-I38 -> 
A40: CRITERE ACCELERATEURS PNB | C40: 15% | O40: =VLOOKUP($A$5,'RECAP SECT'!$G$6:$CY$312,144,FALSE) -> 
B41: PNB Ventes brutes SED Finalisées | C41: 6% | E41: ='RECAP SECT'!#REF! ->  | G41: =VLOOKUP($A$5,'RECAP SECT'!$G$6:$CY$312,127,FALSE) ->  | I41: =VLOOKUP($A$5,'RECAP SECT'!$G$6:$CY$312,128,FALSE) ->  | K41: =VLOOKUP($A$5,#REF!,128,FALSE) ->  | M41: =+K41-I41 ->  | O41: =VLOOKUP($A$5,'RECAP SECT'!$G$6:$CY$312,129,FALSE) ->  | S41: =VLOOKUP($A$5,#REF!,120,FALSE) ->  | U41: =+S41-I41 -> 
B42: PNB clients équipés E documents | C42: 3% | E42: ='RECAP SECT'!#REF! ->  | G42: =VLOOKUP($A$5,'RECAP SECT'!$G$6:$CY$312,131,FALSE) ->  | I42: =VLOOKUP($A$5,'RECAP SECT'!$G$6:$CY$312,132,FALSE) ->  | K42: =VLOOKUP($A$5,#REF!,132,FALSE) ->  | M42: =+K42-I42 ->  | O42: =VLOOKUP($A$5,'RECAP SECT'!$G$6:$CY$312,133,FALSE) ->  | S42: =VLOOKUP($A$5,#REF!,123,FALSE) ->  | U42: =+S42-I42 -> 
B43: Economie opt'in | C43: 3% | E43: ='RECAP SECT'!#REF! ->  | G43: =VLOOKUP($A$5,'RECAP SECT'!$G$6:$CY$312,135,FALSE) ->  | I43: =VLOOKUP($A$5,'RECAP SECT'!$G$6:$CY$312,136,FALSE) ->  | K43: =VLOOKUP($A$5,#REF!,136,FALSE) ->  | M43: =+K43-I43 ->  | O43: =VLOOKUP($A$5,'RECAP SECT'!$G$6:$CY$312,137,FALSE) -> 
B44: Remises commerciales | C44: 3% | E44: ='RECAP SECT'!#REF! ->  | G44: =VLOOKUP($A$5,'RECAP SECT'!$G$6:$CY$312,139,FALSE) ->  | I44: =VLOOKUP($A$5,'RECAP SECT'!$G$6:$CY$312,140,FALSE) ->  | K44: =VLOOKUP($A$5,#REF!,140,FALSE) ->  | M44: =+K44-I44 ->  | O44: =VLOOKUP($A$5,'RECAP SECT'!$G$6:$CY$312,141,FALSE) ->  | S44: =VLOOKUP($A$5,#REF!,126,FALSE) ->  | U44: =+S44-I44 -> 
A46: CRITERE Satisfaction Clients | C46: 15% | O46: =VLOOKUP($A$5,'RECAP SECT'!$G$6:$CY$312,159,FALSE) -> 
B47: Objectifs NPS* | C47: 8% | E47: ='RECAP SECT'!K4 -> 27 | G47: =VLOOKUP($A$5,'RECAP SECT'!$G$6:$CY$312,151,FALSE) ->  | I47: =VLOOKUP($A$5,'RECAP SECT'!$G$6:$CY$312,152,FALSE) ->  | K47: =VLOOKUP($A$5,#REF!,152,FALSE) ->  | M47: =+K47-I47 ->  | O47: =VLOOKUP($A$5,'RECAP SECT'!$G$6:$CY$312,153,FALSE) ->  | S47: =VLOOKUP($A$5,#REF!,138,FALSE) ->  | U47: =+S47-I47 -> 
B48: Enquête Qualité Haute Définition | C48: 7% | E48: ='RECAP SECT'!N4 -> 75% | G48: =VLOOKUP($A$5,'RECAP SECT'!$G$6:$CY$312,154,FALSE) ->  | I48: =VLOOKUP($A$5,'RECAP SECT'!$G$6:$CY$312,155,FALSE) ->  | K48: =VLOOKUP($A$5,#REF!,155,FALSE) ->  | M48: =+K48-I48 ->  | O48: =VLOOKUP($A$5,'RECAP SECT'!$G$6:$CY$312,156,FALSE) ->  | S48: =VLOOKUP($A$5,#REF!,141,FALSE) ->  | U48: =+S48-I48 -> 

Sheet SE_TOTAL
B1: Accueil | F1: BAROMETRE BDD - TERRITOIRES
F2: TOTAL GENERAL
F3: =ACCUEIL!F7 -> 2022-06-05
F7: TOTAL GENERAL | I7: Total Satisfaction Clients | L7: Total Bancarisation | O7: Total Epargne | R7: Total IARD Prévoyance | U7: Total Crédits
G8: coef | H8: =K8+N8+Q8+T8+W8 -> 100% | J8: coef | K8: =SE_SATISFACTION!N8 -> 20% | M8: coef | N8: =SE_BANCA!P8 -> 20% | P8: coef | Q8: =SE_EPARGNE!P8 -> 20% | S8: coef | T8: =SE_IARD!P8 -> 20% | V8: coef | W8: =SE_CREDIT!T8 -> 20%
B9: Direction | C9: eds | D9: Territoire | E9: ="ETP perf "&DATEMAJ!$C$28 -> ETP perf 05-juin | F9: Moyenne ecart au 1er | G9: % Ecart au 1er | H9: Rang CEGEE | I9: Moyenne ecart au 1er | J9: % Ecart au 1er | K9: Rang CEGEE | L9: Moyenne ecart au 1er | M9: % Ecart au 1er | N9: Rang CEGEE | O9: Moyenne ecart au 1er | P9: % Ecart au 1er | Q9: Rang CEGEE | R9: Moyenne ecart au 1er | S9: % Ecart au 1er | T9: Rang CEGEE | U9: Moyenne ecart au 1er | V9: % Ecart au 1er | W9: Rang CEGEE
A10: 50 | B10: MOSELLE | C10: 44 | D10: MOSELLE NORD | E10: 57.3 | F10: 14% | G10: 0% | H10: 1 | I10: 38% | J10: 34% | K10: 12 | L10: 1% | M10: 0% | N10: 1 | O10: 45% | P10: 36% | Q10: 10 | R10: 0% | S10: 0% | T10: 1 | U10: 5% | V10: 0% | W10: 1
A11: 50 | B11: MOSELLE | C11: 42 | D11: MOSELLE EST | E11: 60.1 | F11: 20% | G11: 6% | H11: 2 | I11: 22% | J11: 17% | K11: 4 | L11: 26% | M11: 25% | N11: 3 | O11: 28% | P11: 19% | Q11: 4 | R11: 15% | S11: 15% | T11: 4 | U11: 26% | V11: 21% | W11: 6
A12: 262 | B12: MARNE-ARDENNES | C12: 11 | D12: REIMS | E12: 69.0 | F12: 21% | G12: 7% | H12: 3 | I12: 27% | J12: 22% | K12: 7 | L12: 15% | M12: 14% | N12: 2 | O12: 61% | P12: 52% | Q12: 14 | R12: 13% | S12: 13% | T12: 3 | U12: 9% | V12: 5% | W12: 2
A13: 262 | B13: MARNE-ARDENNES | C13: 2 | D13: CHARLEVILLE MEZIERES | E13: 48.5 | F13: 22% | G13: 8% | H13: 4 | I13: 31% | J13: 26% | K13: 9 | L13: 39% | M13: 38% | N13: 10 | O13: 32% | P13: 23% | Q13: 7 | R13: 8% | S13: 8% | T13: 2 | U13: 20% | V13: 15% | W13: 5
A14: 262 | B14: MOSELLE | C14: 45 | D14: METZ | E14: 72.9 | F14: 23% | G14: 9% | H14: 5 | I14: 26% | J14: 22% | K14: 6 | L14: 42% | M14: 41% | N14: 11 | O14: 9% | P14: 0% | Q14: 1 | R14: 30% | S14: 30% | T14: 8 | U14: 28% | V14: 23% | W14: 7
A15: 264 | B15: MEURTHE ET MOSELLE MEUSE | C15: 26 | D15: NANCY | E15: 55.0 | F15: 26% | G15: 12% | H15: 6 | I15: 42% | J15: 37% | K15: 13 | L15: 34% | M15: 33% | N15: 5 | O15: 24% | P15: 15% | Q15: 2 | R15: 35% | S15: 35% | T15: 10 | U15: 13% | V15: 9% | W15: 3
A16: 264 | B16: BAS-RHIN | C16: 5006 | D16: STRASBOURG | E16: 65.0 | F16: 28% | G16: 14% | H16: 7 | I16: 34% | J16: 29% | K16: 10 | L16: 34% | M16: 33% | N16: 7 | O16: 29% | P16: 20% | Q16: 5 | R16: 21% | S16: 21% | T16: 5 | U16: 40% | V16: 35% | W16: 11
A17: 30 | B17: MARNE-ARDENNES | C17: 6 | D17: CHALONS EN CHAMPAGNE | E17: 38.6 | F17: 29% | G17: 15% | H17: 8 | I17: 8% | J17: 3% | K17: 2 | L17: 34% | M17: 33% | N17: 6 | O17: 70% | P17: 61% | Q17: 16 | R17: 23% | S17: 23% | T17: 6 | U17: 31% | V17: 26% | W17: 9
A18: 30 | B18: AUBE HAUTE MARNE | C18: 21 | D18: CHAUMONT | E18: 33.7 | F18: 30% | G18: 16% | H18: 9 | I18: 28% | J18: 24% | K18: 8 | L18: 44% | M18: 43% | N18: 13 | O18: 30% | P18: 21% | Q18: 6 | R18: 33% | S18: 33% | T18: 9 | U18: 34% | V18: 30% | W18: 10
A19: 30 | B19: MEURTHE ET MOSELLE MEUSE | C19: 31 | D19: VERDUN | E19: 48.3 | F19: 32% | G19: 18% | H19: 10 | I19: 24% | J19: 20% | K19: 5 | L19: 38% | M19: 37% | N19: 9 | O19: 47% | P19: 38% | Q19: 12 | R19: 38% | S19: 38% | T19: 11 | U19: 29% | V19: 24% | W19: 8
A20: 110 | B20: VOSGES | C20: 57 | D20: EPINAL | E20: 53.2 | F20: 32% | G20: 18% | H20: 11 | I20: 14% | J20: 10% | K20: 3 | L20: 50% | M20: 50% | N20: 14 | O20: 28% | P20: 19% | Q20: 3 | R20: 42% | S20: 42% | T20: 14 | U20: 45% | V20: 41% | W20: 15
A21: 110 | B21: MEURTHE ET MOSELLE MEUSE | C21: 27 | D21: PONT A MOUSSON | E21: 59.5 | F21: 33% | G21: 19% | H21: 12 | I21: 59% | J21: 54% | K21: 15 | L21: 32% | M21: 32% | N21: 4 | O21: 46% | P21: 37% | Q21: 11 | R21: 25% | S21: 25% | T21: 7 | U21: 20% | V21: 15% | W21: 4
A22: 110 | B22: VOSGES | C22: 55 | D22: SAINT DIE | E22: 39.7 | F22: 37% | G22: 23% | H22: 13 | I22: 4% | J22: 0% | K22: 1 | L22: 57% | M22: 57% | N22: 15 | O22: 49% | P22: 40% | Q22: 13 | R22: 52% | S22: 52% | T22: 17 | U22: 43% | V22: 38% | W22: 14
A23: 160 | B23: BAS-RHIN | C23: 5060 | D23: HAGUENAU | E23: 56.2 | F23: 40% | G23: 26% | H23: 14 | I23: 38% | J23: 33% | K23: 11 | L23: 44% | M23: 43% | N23: 12 | O23: 41% | P23: 32% | Q23: 8 | R23: 47% | S23: 47% | T23: 15 | U23: 48% | V23: 44% | W23: 17
A24: 160 | B24: BAS-RHIN | C24: 5101 | D24: SELESTAT | E24: 49.3 | F24: 41% | G24: 27% | H24: 15 | I24: 60% | J24: 56% | K24: 16 | L24: 38% | M24: 37% | N24: 8 | O24: 44% | P24: 35% | Q24: 9 | R24: 40% | S24: 40% | T24: 12 | U24: 41% | V24: 37% | W24: 12
A25: 160 | B25: AUBE HAUTE MARNE | C25: 14 | D25: TROYES | E25: 54.1 | F25: 54% | G25: 40% | H25: 16 | I25: 68% | J25: 64% | K25: 18 | L25: 58% | M25: 57% | N25: 16 | O25: 78% | P25: 69% | Q25: 17 | R25: 41% | S25: 41% | T25: 13 | U25: 42% | V25: 37% | W25: 13
A26: 80 | B26: HAUT-RHIN | C26: 5130 | D26: COLMAR | E26: 49.9 | F26: 54% | G26: 40% | H26: 17 | I26: 58% | J26: 54% | K26: 14 | L26: 63% | M26: 62% | N26: 17 | O26: 63% | P26: 54% | Q26: 15 | R26: 51% | S26: 51% | T26: 16 | U26: 54% | V26: 50% | W26: 18
A27: 80 | B27: HAUT-RHIN | C27: 5169 | D27: MULHOUSE | E27: 45.4 | F27: 63% | G27: 49% | H27: 18 | I27: 62% | J27: 57% | K27: 17 | L27: 72% | M27: 71% | N27: 18 | O27: 90% | P27: 81% | Q27: 18 | R27: 63% | S27: 63% | T27: 18 | U27: 48% | V27: 43% | W27: 16
A28: Total CEGEE Directions Régionales | E28: =SUM(E10:E27) -> 956

Sheet SE_BANCA
B1: Accueil | F1: BAROMETRE BDD - TERRITOIRES
F2: BANCARISATION
F3: =ACCUEIL!F7 -> 2022-06-05
F7: Ventes Nettes produits pondérés | J7: Ventes sur client non détenteur de l’univers | N7: Total Bancarisation
F8: =DATEMAJ!C8 -> au 05/06 | H8: coef | I8: ='RECAP DIRCOM'!AA4 -> 12% | J8: =DATEMAJ!C9 -> au 05/06 | L8: coef | M8: ='RECAP DIRCOM'!AE4 -> 8% | O8: coef | P8: ='RECAP DIRCOM'!AH4 -> 20%
B9: Direction | C9: eds | D9: Territoire | E9: ="ETP perf "&DATEMAJ!$C$28 -> ETP perf 05-juin | F9: VN | G9: VN / ETP | H9: % Ecart au 1er | I9: Rang | J9: VB | K9: VB / ETP | L9: % Ecart au 1er | M9: Rang | N9: Moyenne ecart au 1er | O9: % Ecart au 1er | P9: Rang CEGEE
A10: 50 | B10: AUBE HAUTE MARNE | C10: 21 | D10: CHAUMONT | E10: =VLOOKUP($C10,'RECAP SECT'!$G$6:$CU$253,3,FALSE) -> 33.7 | F10: =VLOOKUP($C10,'RECAP SECT'!$G$6:$CU$253,18,FALSE) -> 375 | G10: =VLOOKUP($C10,'RECAP SECT'!$G$6:$CU$253,19,FALSE) -> 11.12 | H10: =VLOOKUP($C10,'RECAP SECT'!$G$6:$CU$253,20,FALSE) -> 55% | I10: =VLOOKUP($C10,'RECAP SECT'!$G$6:$CU$253,21,FALSE) -> 13 | J10: =VLOOKUP($C10,'RECAP SECT'!$G$6:$CU$253,22,FALSE) -> 1,153 | K10: =VLOOKUP($C10,'RECAP SECT'!$G$6:$CU$253,23,FALSE) -> 34.19 | L10: =VLOOKUP($C10,'RECAP SECT'!$G$6:$CU$253,24,FALSE) -> 26% | M10: =VLOOKUP($C10,'RECAP SECT'!$G$6:$CU$253,25,FALSE) -> 10 | N10: =VLOOKUP($C10,'RECAP SECT'!$G$6:$CU$253,26,FALSE) -> 44% | O10: =VLOOKUP($C10,'RECAP SECT'!$G$6:$CU$253,27,FALSE) -> 43% | P10: =VLOOKUP($C10,'RECAP SECT'!$G$6:$CU$253,28,FALSE) -> 13
A11: 50 | B11: AUBE HAUTE MARNE | C11: 14 | D11: TROYES | E11: =VLOOKUP($C11,'RECAP SECT'!$G$6:$CU$253,3,FALSE) -> 54.1 | F11: =VLOOKUP($C11,'RECAP SECT'!$G$6:$CU$253,18,FALSE) -> 305 | G11: =VLOOKUP($C11,'RECAP SECT'!$G$6:$CU$253,19,FALSE) -> 5.63 | H11: =VLOOKUP($C11,'RECAP SECT'!$G$6:$CU$253,20,FALSE) -> 77% | I11: =VLOOKUP($C11,'RECAP SECT'!$G$6:$CU$253,21,FALSE) -> 17 | J11: =VLOOKUP($C11,'RECAP SECT'!$G$6:$CU$253,22,FALSE) -> 1,786 | K11: =VLOOKUP($C11,'RECAP SECT'!$G$6:$CU$253,23,FALSE) -> 32.99 | L11: =VLOOKUP($C11,'RECAP SECT'!$G$6:$CU$253,24,FALSE) -> 29% | M11: =VLOOKUP($C11,'RECAP SECT'!$G$6:$CU$253,25,FALSE) -> 12 | N11: =VLOOKUP($C11,'RECAP SECT'!$G$6:$CU$253,26,FALSE) -> 58% | O11: =VLOOKUP($C11,'RECAP SECT'!$G$6:$CU$253,27,FALSE) -> 57% | P11: =VLOOKUP($C11,'RECAP SECT'!$G$6:$CU$253,28,FALSE) -> 16
A12: 262 | B12: BAS-RHIN | C12: 5060 | D12: HAGUENAU | E12: =VLOOKUP($C12,'RECAP SECT'!$G$6:$CU$253,3,FALSE) -> 56.2 | F12: =VLOOKUP($C12,'RECAP SECT'!$G$6:$CU$253,18,FALSE) -> 741 | G12: =VLOOKUP($C12,'RECAP SECT'!$G$6:$CU$253,19,FALSE) -> 13.19 | H12: =VLOOKUP($C12,'RECAP SECT'!$G$6:$CU$253,20,FALSE) -> 47% | I12: =VLOOKUP($C12,'RECAP SECT'!$G$6:$CU$253,21,FALSE) -> 7 | J12: =VLOOKUP($C12,'RECAP SECT'!$G$6:$CU$253,22,FALSE) -> 1,603 | K12: =VLOOKUP($C12,'RECAP SECT'!$G$6:$CU$253,23,FALSE) -> 28.51 | L12: =VLOOKUP($C12,'RECAP SECT'!$G$6:$CU$253,24,FALSE) -> 39% | M12: =VLOOKUP($C12,'RECAP SECT'!$G$6:$CU$253,25,FALSE) -> 16 | N12: =VLOOKUP($C12,'RECAP SECT'!$G$6:$CU$253,26,FALSE) -> 44% | O12: =VLOOKUP($C12,'RECAP SECT'!$G$6:$CU$253,27,FALSE) -> 43% | P12: =VLOOKUP($C12,'RECAP SECT'!$G$6:$CU$253,28,FALSE) -> 12
A13: 262 | B13: BAS-RHIN | C13: 5101 | D13: SELESTAT | E13: =VLOOKUP($C13,'RECAP SECT'!$G$6:$CU$253,3,FALSE) -> 49.3 | F13: =VLOOKUP($C13,'RECAP SECT'!$G$6:$CU$253,18,FALSE) -> 737 | G13: =VLOOKUP($C13,'RECAP SECT'!$G$6:$CU$253,19,FALSE) -> 14.96 | H13: =VLOOKUP($C13,'RECAP SECT'!$G$6:$CU$253,20,FALSE) -> 40% | I13: =VLOOKUP($C13,'RECAP SECT'!$G$6:$CU$253,21,FALSE) -> 5 | J13: =VLOOKUP($C13,'RECAP SECT'!$G$6:$CU$253,22,FALSE) -> 1,509 | K13: =VLOOKUP($C13,'RECAP SECT'!$G$6:$CU$253,23,FALSE) -> 30.63 | L13: =VLOOKUP($C13,'RECAP SECT'!$G$6:$CU$253,24,FALSE) -> 34% | M13: =VLOOKUP($C13,'RECAP SECT'!$G$6:$CU$253,25,FALSE) -> 14 | N13: =VLOOKUP($C13,'RECAP SECT'!$G$6:$CU$253,26,FALSE) -> 38% | O13: =VLOOKUP($C13,'RECAP SECT'!$G$6:$CU$253,27,FALSE) -> 37% | P13: =VLOOKUP($C13,'RECAP SECT'!$G$6:$CU$253,28,FALSE) -> 8
A14: 262 | B14: BAS-RHIN | C14: 5006 | D14: STRASBOURG | E14: =VLOOKUP($C14,'RECAP SECT'!$G$6:$CU$253,3,FALSE) -> 65.0 | F14: =VLOOKUP($C14,'RECAP SECT'!$G$6:$CU$253,18,FALSE) -> 847 | G14: =VLOOKUP($C14,'RECAP SECT'!$G$6:$CU$253,19,FALSE) -> 13.04 | H14: =VLOOKUP($C14,'RECAP SECT'!$G$6:$CU$253,20,FALSE) -> 48% | I14: =VLOOKUP($C14,'RECAP SECT'!$G$6:$CU$253,21,FALSE) -> 9 | J14: =VLOOKUP($C14,'RECAP SECT'!$G$6:$CU$253,22,FALSE) -> 2,625 | K14: =VLOOKUP($C14,'RECAP SECT'!$G$6:$CU$253,23,FALSE) -> 40.41 | L14: =VLOOKUP($C14,'RECAP SECT'!$G$6:$CU$253,24,FALSE) -> 13% | M14: =VLOOKUP($C14,'RECAP SECT'!$G$6:$CU$253,25,FALSE) -> 5 | N14: =VLOOKUP($C14,'RECAP SECT'!$G$6:$CU$253,26,FALSE) -> 34% | O14: =VLOOKUP($C14,'RECAP SECT'!$G$6:$CU$253,27,FALSE) -> 33% | P14: =VLOOKUP($C14,'RECAP SECT'!$G$6:$CU$253,28,FALSE) -> 7
A15: 264 | B15: HAUT-RHIN | C15: 5130 | D15: COLMAR | E15: =VLOOKUP($C15,'RECAP SECT'!$G$6:$CU$253,3,FALSE) -> 49.9 | F15: =VLOOKUP($C15,'RECAP SECT'!$G$6:$CU$253,18,FALSE) -> 313 | G15: =VLOOKUP($C15,'RECAP SECT'!$G$6:$CU$253,19,FALSE) -> 6.28 | H15: =VLOOKUP($C15,'RECAP SECT'!$G$6:$CU$253,20,FALSE) -> 75% | I15: =VLOOKUP($C15,'RECAP SECT'!$G$6:$CU$253,21,FALSE) -> 16 | J15: =VLOOKUP($C15,'RECAP SECT'!$G$6:$CU$253,22,FALSE) -> 1,275 | K15: =VLOOKUP($C15,'RECAP SECT'!$G$6:$CU$253,23,FALSE) -> 25.58 | L15: =VLOOKUP($C15,'RECAP SECT'!$G$6:$CU$253,24,FALSE) -> 45% | M15: =VLOOKUP($C15,'RECAP SECT'!$G$6:$CU$253,25,FALSE) -> 18 | N15: =VLOOKUP($C15,'RECAP SECT'!$G$6:$CU$253,26,FALSE) -> 63% | O15: =VLOOKUP($C15,'RECAP SECT'!$G$6:$CU$253,27,FALSE) -> 62% | P15: =VLOOKUP($C15,'RECAP SECT'!$G$6:$CU$253,28,FALSE) -> 17
A16: 264 | B16: HAUT-RHIN | C16: 5169 | D16: MULHOUSE | E16: =VLOOKUP($C16,'RECAP SECT'!$G$6:$CU$253,3,FALSE) -> 45.4 | F16: =VLOOKUP($C16,'RECAP SECT'!$G$6:$CU$253,18,FALSE) -> 54 | G16: =VLOOKUP($C16,'RECAP SECT'!$G$6:$CU$253,19,FALSE) -> 1.19 | H16: =VLOOKUP($C16,'RECAP SECT'!$G$6:$CU$253,20,FALSE) -> 95% | I16: =VLOOKUP($C16,'RECAP SECT'!$G$6:$CU$253,21,FALSE) -> 18 | J16: =VLOOKUP($C16,'RECAP SECT'!$G$6:$CU$253,22,FALSE) -> 1,351 | K16: =VLOOKUP($C16,'RECAP SECT'!$G$6:$CU$253,23,FALSE) -> 29.73 | L16: =VLOOKUP($C16,'RECAP SECT'!$G$6:$CU$253,24,FALSE) -> 36% | M16: =VLOOKUP($C16,'RECAP SECT'!$G$6:$CU$253,25,FALSE) -> 15 | N16: =VLOOKUP($C16,'RECAP SECT'!$G$6:$CU$253,26,FALSE) -> 72% | O16: =VLOOKUP($C16,'RECAP SECT'!$G$6:$CU$253,27,FALSE) -> 71% | P16: =VLOOKUP($C16,'RECAP SECT'!$G$6:$CU$253,28,FALSE) -> 18
A17: 30 | B17: MARNE-ARDENNES | C17: 6 | D17: CHALONS EN CHAMPAGNE | E17: =VLOOKUP($C17,'RECAP SECT'!$G$6:$CU$253,3,FALSE) -> 38.6 | F17: =VLOOKUP($C17,'RECAP SECT'!$G$6:$CU$253,18,FALSE) -> 602 | G17: =VLOOKUP($C17,'RECAP SECT'!$G$6:$CU$253,19,FALSE) -> 15.62 | H17: =VLOOKUP($C17,'RECAP SECT'!$G$6:$CU$253,20,FALSE) -> 37% | I17: =VLOOKUP($C17,'RECAP SECT'!$G$6:$CU$253,21,FALSE) -> 4 | J17: =VLOOKUP($C17,'RECAP SECT'!$G$6:$CU$253,22,FALSE) -> 1,281 | K17: =VLOOKUP($C17,'RECAP SECT'!$G$6:$CU$253,23,FALSE) -> 33.22 | L17: =VLOOKUP($C17,'RECAP SECT'!$G$6:$CU$253,24,FALSE) -> 28% | M17: =VLOOKUP($C17,'RECAP SECT'!$G$6:$CU$253,25,FALSE) -> 11 | N17: =VLOOKUP($C17,'RECAP SECT'!$G$6:$CU$253,26,FALSE) -> 34% | O17: =VLOOKUP($C17,'RECAP SECT'!$G$6:$CU$253,27,FALSE) -> 33% | P17: =VLOOKUP($C17,'RECAP SECT'!$G$6:$CU$253,28,FALSE) -> 6
A18: 30 | B18: MARNE-ARDENNES | C18: 2 | D18: CHARLEVILLE MEZIERES | E18: =VLOOKUP($C18,'RECAP SECT'!$G$6:$CU$253,3,FALSE) -> 48.5 | F18: =VLOOKUP($C18,'RECAP SECT'!$G$6:$CU$253,18,FALSE) -> 541 | G18: =VLOOKUP($C18,'RECAP SECT'!$G$6:$CU$253,19,FALSE) -> 11.15 | H18: =VLOOKUP($C18,'RECAP SECT'!$G$6:$CU$253,20,FALSE) -> 55% | I18: =VLOOKUP($C18,'RECAP SECT'!$G$6:$CU$253,21,FALSE) -> 12 | J18: =VLOOKUP($C18,'RECAP SECT'!$G$6:$CU$253,22,FALSE) -> 1,932 | K18: =VLOOKUP($C18,'RECAP SECT'!$G$6:$CU$253,23,FALSE) -> 39.81 | L18: =VLOOKUP($C18,'RECAP SECT'!$G$6:$CU$253,24,FALSE) -> 14% | M18: =VLOOKUP($C18,'RECAP SECT'!$G$6:$CU$253,25,FALSE) -> 6 | N18: =VLOOKUP($C18,'RECAP SECT'!$G$6:$CU$253,26,FALSE) -> 39% | O18: =VLOOKUP($C18,'RECAP SECT'!$G$6:$CU$253,27,FALSE) -> 38% | P18: =VLOOKUP($C18,'RECAP SECT'!$G$6:$CU$253,28,FALSE) -> 10
A19: 30 | B19: MARNE-ARDENNES | C19: 11 | D19: REIMS | E19: =VLOOKUP($C19,'RECAP SECT'!$G$6:$CU$253,3,FALSE) -> 69.0 | F19: =VLOOKUP($C19,'RECAP SECT'!$G$6:$CU$253,18,FALSE) -> 1,302 | G19: =VLOOKUP($C19,'RECAP SECT'!$G$6:$CU$253,19,FALSE) -> 18.88 | H19: =VLOOKUP($C19,'RECAP SECT'!$G$6:$CU$253,20,FALSE) -> 24% | I19: =VLOOKUP($C19,'RECAP SECT'!$G$6:$CU$253,21,FALSE) -> 2 | J19: =VLOOKUP($C19,'RECAP SECT'!$G$6:$CU$253,22,FALSE) -> 3,203 | K19: =VLOOKUP($C19,'RECAP SECT'!$G$6:$CU$253,23,FALSE) -> 46.45 | L19: =VLOOKUP($C19,'RECAP SECT'!$G$6:$CU$253,24,FALSE) -> 0% | M19: =VLOOKUP($C19,'RECAP SECT'!$G$6:$CU$253,25,FALSE) -> 1 | N19: =VLOOKUP($C19,'RECAP SECT'!$G$6:$CU$253,26,FALSE) -> 15% | O19: =VLOOKUP($C19,'RECAP SECT'!$G$6:$CU$253,27,FALSE) -> 14% | P19: =VLOOKUP($C19,'RECAP SECT'!$G$6:$CU$253,28,FALSE) -> 2
A20: 110 | B20: MEURTHE ET MOSELLE MEUSE | C20: 26 | D20: NANCY | E20: =VLOOKUP($C20,'RECAP SECT'!$G$6:$CU$253,3,FALSE) -> 55.0 | F20: =VLOOKUP($C20,'RECAP SECT'!$G$6:$CU$253,18,FALSE) -> 721 | G20: =VLOOKUP($C20,'RECAP SECT'!$G$6:$CU$253,19,FALSE) -> 13.11 | H20: =VLOOKUP($C20,'RECAP SECT'!$G$6:$CU$253,20,FALSE) -> 48% | I20: =VLOOKUP($C20,'RECAP SECT'!$G$6:$CU$253,21,FALSE) -> 8 | J20: =VLOOKUP($C20,'RECAP SECT'!$G$6:$CU$253,22,FALSE) -> 2,228 | K20: =VLOOKUP($C20,'RECAP SECT'!$G$6:$CU$253,23,FALSE) -> 40.51 | L20: =VLOOKUP($C20,'RECAP SECT'!$G$6:$CU$253,24,FALSE) -> 13% | M20: =VLOOKUP($C20,'RECAP SECT'!$G$6:$CU$253,25,FALSE) -> 4 | N20: =VLOOKUP($C20,'RECAP SECT'!$G$6:$CU$253,26,FALSE) -> 34% | O20: =VLOOKUP($C20,'RECAP SECT'!$G$6:$CU$253,27,FALSE) -> 33% | P20: =VLOOKUP($C20,'RECAP SECT'!$G$6:$CU$253,28,FALSE) -> 5
A21: 110 | B21: MEURTHE ET MOSELLE MEUSE | C21: 27 | D21: PONT A MOUSSON | E21: =VLOOKUP($C21,'RECAP SECT'!$G$6:$CU$253,3,FALSE) -> 59.5 | F21: =VLOOKUP($C21,'RECAP SECT'!$G$6:$CU$253,18,FALSE) -> 786 | G21: =VLOOKUP($C21,'RECAP SECT'!$G$6:$CU$253,19,FALSE) -> 13.21 | H21: =VLOOKUP($C21,'RECAP SECT'!$G$6:$CU$253,20,FALSE) -> 47% | I21: =VLOOKUP($C21,'RECAP SECT'!$G$6:$CU$253,21,FALSE) -> 6 | J21: =VLOOKUP($C21,'RECAP SECT'!$G$6:$CU$253,22,FALSE) -> 2,485 | K21: =VLOOKUP($C21,'RECAP SECT'!$G$6:$CU$253,23,FALSE) -> 41.75 | L21: =VLOOKUP($C21,'RECAP SECT'!$G$6:$CU$253,24,FALSE) -> 10% | M21: =VLOOKUP($C21,'RECAP SECT'!$G$6:$CU$253,25,FALSE) -> 3 | N21: =VLOOKUP($C21,'RECAP SECT'!$G$6:$CU$253,26,FALSE) -> 32% | O21: =VLOOKUP($C21,'RECAP SECT'!$G$6:$CU$253,27,FALSE) -> 32% | P21: =VLOOKUP($C21,'RECAP SECT'!$G$6:$CU$253,28,FALSE) -> 4
A22: 110 | B22: MEURTHE ET MOSELLE MEUSE | C22: 31 | D22: VERDUN | E22: =VLOOKUP($C22,'RECAP SECT'!$G$6:$CU$253,3,FALSE) -> 48.3 | F22: =VLOOKUP($C22,'RECAP SECT'!$G$6:$CU$253,18,FALSE) -> 628 | G22: =VLOOKUP($C22,'RECAP SECT'!$G$6:$CU$253,19,FALSE) -> 13.02 | H22: =VLOOKUP($C22,'RECAP SECT'!$G$6:$CU$253,20,FALSE) -> 48% | I22: =VLOOKUP($C22,'RECAP SECT'!$G$6:$CU$253,21,FALSE) -> 10 | J22: =VLOOKUP($C22,'RECAP SECT'!$G$6:$CU$253,22,FALSE) -> 1,718 | K22: =VLOOKUP($C22,'RECAP SECT'!$G$6:$CU$253,23,FALSE) -> 35.61 | L22: =VLOOKUP($C22,'RECAP SECT'!$G$6:$CU$253,24,FALSE) -> 23% | M22: =VLOOKUP($C22,'RECAP SECT'!$G$6:$CU$253,25,FALSE) -> 9 | N22: =VLOOKUP($C22,'RECAP SECT'!$G$6:$CU$253,26,FALSE) -> 38% | O22: =VLOOKUP($C22,'RECAP SECT'!$G$6:$CU$253,27,FALSE) -> 37% | P22: =VLOOKUP($C22,'RECAP SECT'!$G$6:$CU$253,28,FALSE) -> 9
A23: 160 | B23: MOSELLE | C23: 45 | D23: METZ | E23: =VLOOKUP($C23,'RECAP SECT'!$G$6:$CU$253,3,FALSE) -> 72.9 | F23: =VLOOKUP($C23,'RECAP SECT'!$G$6:$CU$253,18,FALSE) -> 838 | G23: =VLOOKUP($C23,'RECAP SECT'!$G$6:$CU$253,19,FALSE) -> 11.49 | H23: =VLOOKUP($C23,'RECAP SECT'!$G$6:$CU$253,20,FALSE) -> 54% | I23: =VLOOKUP($C23,'RECAP SECT'!$G$6:$CU$253,21,FALSE) -> 11 | J23: =VLOOKUP($C23,'RECAP SECT'!$G$6:$CU$253,22,FALSE) -> 2,612 | K23: =VLOOKUP($C23,'RECAP SECT'!$G$6:$CU$253,23,FALSE) -> 35.84 | L23: =VLOOKUP($C23,'RECAP SECT'!$G$6:$CU$253,24,FALSE) -> 23% | M23: =VLOOKUP($C23,'RECAP SECT'!$G$6:$CU$253,25,FALSE) -> 8 | N23: =VLOOKUP($C23,'RECAP SECT'!$G$6:$CU$253,26,FALSE) -> 42% | O23: =VLOOKUP($C23,'RECAP SECT'!$G$6:$CU$253,27,FALSE) -> 41% | P23: =VLOOKUP($C23,'RECAP SECT'!$G$6:$CU$253,28,FALSE) -> 11
A24: 160 | B24: MOSELLE | C24: 42 | D24: MOSELLE EST | E24: =VLOOKUP($C24,'RECAP SECT'!$G$6:$CU$253,3,FALSE) -> 60.1 | F24: =VLOOKUP($C24,'RECAP SECT'!$G$6:$CU$253,18,FALSE) -> 1,023 | G24: =VLOOKUP($C24,'RECAP SECT'!$G$6:$CU$253,19,FALSE) -> 17.03 | H24: =VLOOKUP($C24,'RECAP SECT'!$G$6:$CU$253,20,FALSE) -> 32% | I24: =VLOOKUP($C24,'RECAP SECT'!$G$6:$CU$253,21,FALSE) -> 3 | J24: =VLOOKUP($C24,'RECAP SECT'!$G$6:$CU$253,22,FALSE) -> 2,320 | K24: =VLOOKUP($C24,'RECAP SECT'!$G$6:$CU$253,23,FALSE) -> 38.62 | L24: =VLOOKUP($C24,'RECAP SECT'!$G$6:$CU$253,24,FALSE) -> 17% | M24: =VLOOKUP($C24,'RECAP SECT'!$G$6:$CU$253,25,FALSE) -> 7 | N24: =VLOOKUP($C24,'RECAP SECT'!$G$6:$CU$253,26,FALSE) -> 26% | O24: =VLOOKUP($C24,'RECAP SECT'!$G$6:$CU$253,27,FALSE) -> 25% | P24: =VLOOKUP($C24,'RECAP SECT'!$G$6:$CU$253,28,FALSE) -> 3
A25: 160 | B25: MOSELLE | C25: 44 | D25: MOSELLE NORD | E25: =VLOOKUP($C25,'RECAP SECT'!$G$6:$CU$253,3,FALSE) -> 57.3 | F25: =VLOOKUP($C25,'RECAP SECT'!$G$6:$CU$253,18,FALSE) -> 1,431 | G25: =VLOOKUP($C25,'RECAP SECT'!$G$6:$CU$253,19,FALSE) -> 24.98 | H25: =VLOOKUP($C25,'RECAP SECT'!$G$6:$CU$253,20,FALSE) -> 0% | I25: =VLOOKUP($C25,'RECAP SECT'!$G$6:$CU$253,21,FALSE) -> 1 | J25: =VLOOKUP($C25,'RECAP SECT'!$G$6:$CU$253,22,FALSE) -> 2,610 | K25: =VLOOKUP($C25,'RECAP SECT'!$G$6:$CU$253,23,FALSE) -> 45.57 | L25: =VLOOKUP($C25,'RECAP SECT'!$G$6:$CU$253,24,FALSE) -> 2% | M25: =VLOOKUP($C25,'RECAP SECT'!$G$6:$CU$253,25,FALSE) -> 2 | N25: =VLOOKUP($C25,'RECAP SECT'!$G$6:$CU$253,26,FALSE) -> 1% | O25: =VLOOKUP($C25,'RECAP SECT'!$G$6:$CU$253,27,FALSE) -> 0% | P25: =VLOOKUP($C25,'RECAP SECT'!$G$6:$CU$253,28,FALSE) -> 1
A26: 80 | B26: VOSGES | C26: 57 | D26: EPINAL | E26: =VLOOKUP($C26,'RECAP SECT'!$G$6:$CU$253,3,FALSE) -> 53.2 | F26: =VLOOKUP($C26,'RECAP SECT'!$G$6:$CU$253,18,FALSE) -> 502 | G26: =VLOOKUP($C26,'RECAP SECT'!$G$6:$CU$253,19,FALSE) -> 9.43 | H26: =VLOOKUP($C26,'RECAP SECT'!$G$6:$CU$253,20,FALSE) -> 62% | I26: =VLOOKUP($C26,'RECAP SECT'!$G$6:$CU$253,21,FALSE) -> 14 | J26: =VLOOKUP($C26,'RECAP SECT'!$G$6:$CU$253,22,FALSE) -> 1,673 | K26: =VLOOKUP($C26,'RECAP SECT'!$G$6:$CU$253,23,FALSE) -> 31.45 | L26: =VLOOKUP($C26,'RECAP SECT'!$G$6:$CU$253,24,FALSE) -> 32% | M26: =VLOOKUP($C26,'RECAP SECT'!$G$6:$CU$253,25,FALSE) -> 13 | N26: =VLOOKUP($C26,'RECAP SECT'!$G$6:$CU$253,26,FALSE) -> 50% | O26: =VLOOKUP($C26,'RECAP SECT'!$G$6:$CU$253,27,FALSE) -> 50% | P26: =VLOOKUP($C26,'RECAP SECT'!$G$6:$CU$253,28,FALSE) -> 14
A27: 80 | B27: VOSGES | C27: 55 | D27: SAINT DIE | E27: =VLOOKUP($C27,'RECAP SECT'!$G$6:$CU$253,3,FALSE) -> 39.7 | F27: =VLOOKUP($C27,'RECAP SECT'!$G$6:$CU$253,18,FALSE) -> 326 | G27: =VLOOKUP($C27,'RECAP SECT'!$G$6:$CU$253,19,FALSE) -> 8.22 | H27: =VLOOKUP($C27,'RECAP SECT'!$G$6:$CU$253,20,FALSE) -> 67% | I27: =VLOOKUP($C27,'RECAP SECT'!$G$6:$CU$253,21,FALSE) -> 15 | J27: =VLOOKUP($C27,'RECAP SECT'!$G$6:$CU$253,22,FALSE) -> 1,058 | K27: =VLOOKUP($C27,'RECAP SECT'!$G$6:$CU$253,23,FALSE) -> 26.66 | L27: =VLOOKUP($C27,'RECAP SECT'!$G$6:$CU$253,24,FALSE) -> 43% | M27: =VLOOKUP($C27,'RECAP SECT'!$G$6:$CU$253,25,FALSE) -> 17 | N27: =VLOOKUP($C27,'RECAP SECT'!$G$6:$CU$253,26,FALSE) -> 57% | O27: =VLOOKUP($C27,'RECAP SECT'!$G$6:$CU$253,27,FALSE) -> 57% | P27: =VLOOKUP($C27,'RECAP SECT'!$G$6:$CU$253,28,FALSE) -> 15
A28: Total CEGEE Directions Régionales | E28: =SUM(E10:E27) -> 956

Sheet SE_EPARGNE
B1: Accueil | F1: BAROMETRE BDD - TERRITOIRES
F2: EPARGNE
F3: =ACCUEIL!F7 -> 2022-06-05
F7: Excédent Epargne hors DAV pondéré | J7: Ventes sur client non détenteur de l’univers | N7: Total Epargne
F8: =DATEMAJ!C14 -> au 05/06 | H8: coef | I8: ='RECAP DIRCOM'!AP4 -> 12% | J8: =DATEMAJ!C15 -> au 05/06 | L8: coef | M8: ='RECAP DIRCOM'!AT4 -> 8% | O8: coef | P8: ='RECAP DIRCOM'!AW4 -> 20%
A9: eds | B9: Direction | C9: eds | D9: Territoire | E9: ="ETP perf "&DATEMAJ!$C$28 -> ETP perf 05-juin | F9: Excédent | G9: Excédent / ETP | H9: % Ecart au 1er | I9: Rang | J9: VB | K9: VB / ETP | L9: % Ecart au 1er | M9: Rang | N9: Moyenne ecart au 1er | O9: % Ecart au 1er | P9: Rang CEGEE
A10: 50 | B10: AUBE HAUTE MARNE | C10: 21 | D10: CHAUMONT | E10: =VLOOKUP($C10,'RECAP SECT'!$G$6:$CU$253,3,FALSE) -> 33.7 | F10: =VLOOKUP($C10,'RECAP SECT'!$G$6:$CU$253,33,FALSE) -> 7,541 | G10: =VLOOKUP($C10,'RECAP SECT'!$G$6:$CU$253,34,FALSE) -> 223.63 | H10: =VLOOKUP($C10,'RECAP SECT'!$G$6:$CU$253,35,FALSE) -> 26% | I10: =VLOOKUP($C10,'RECAP SECT'!$G$6:$CU$253,36,FALSE) -> 4 | J10: =VLOOKUP($C10,'RECAP SECT'!$G$6:$CU$253,37,FALSE) -> 1,065 | K10: =VLOOKUP($C10,'RECAP SECT'!$G$6:$CU$253,38,FALSE) -> 31.58 | L10: =VLOOKUP($C10,'RECAP SECT'!$G$6:$CU$253,39,FALSE) -> 36% | M10: =VLOOKUP($C10,'RECAP SECT'!$G$6:$CU$253,40,FALSE) -> 13 | N10: =VLOOKUP($C10,'RECAP SECT'!$G$6:$CU$253,41,FALSE) -> 30% | O10: =VLOOKUP($C10,'RECAP SECT'!$G$6:$CU$253,42,FALSE) -> 21% | P10: =VLOOKUP($C10,'RECAP SECT'!$G$6:$CU$253,43,FALSE) -> 6
A11: 50 | B11: AUBE HAUTE MARNE | C11: 14 | D11: TROYES | E11: =VLOOKUP($C11,'RECAP SECT'!$G$6:$CU$253,3,FALSE) -> 54.1 | F11: =VLOOKUP($C11,'RECAP SECT'!$G$6:$CU$253,33,FALSE) -> -1,001 | G11: =VLOOKUP($C11,'RECAP SECT'!$G$6:$CU$253,34,FALSE) -> -18.50 | H11: =VLOOKUP($C11,'RECAP SECT'!$G$6:$CU$253,35,FALSE) -> 106% | I11: =VLOOKUP($C11,'RECAP SECT'!$G$6:$CU$253,36,FALSE) -> 17 | J11: =VLOOKUP($C11,'RECAP SECT'!$G$6:$CU$253,37,FALSE) -> 1,728 | K11: =VLOOKUP($C11,'RECAP SECT'!$G$6:$CU$253,38,FALSE) -> 31.92 | L11: =VLOOKUP($C11,'RECAP SECT'!$G$6:$CU$253,39,FALSE) -> 35% | M11: =VLOOKUP($C11,'RECAP SECT'!$G$6:$CU$253,40,FALSE) -> 11 | N11: =VLOOKUP($C11,'RECAP SECT'!$G$6:$CU$253,41,FALSE) -> 78% | O11: =VLOOKUP($C11,'RECAP SECT'!$G$6:$CU$253,42,FALSE) -> 69% | P11: =VLOOKUP($C11,'RECAP SECT'!$G$6:$CU$253,43,FALSE) -> 17
A12: 262 | B12: BAS-RHIN | C12: 5060 | D12: HAGUENAU | E12: =VLOOKUP($C12,'RECAP SECT'!$G$6:$CU$253,3,FALSE) -> 56.2 | F12: =VLOOKUP($C12,'RECAP SECT'!$G$6:$CU$253,33,FALSE) -> 10,096 | G12: =VLOOKUP($C12,'RECAP SECT'!$G$6:$CU$253,34,FALSE) -> 179.55 | H12: =VLOOKUP($C12,'RECAP SECT'!$G$6:$CU$253,35,FALSE) -> 40% | I12: =VLOOKUP($C12,'RECAP SECT'!$G$6:$CU$253,36,FALSE) -> 7 | J12: =VLOOKUP($C12,'RECAP SECT'!$G$6:$CU$253,37,FALSE) -> 1,615 | K12: =VLOOKUP($C12,'RECAP SECT'!$G$6:$CU$253,38,FALSE) -> 28.72 | L12: =VLOOKUP($C12,'RECAP SECT'!$G$6:$CU$253,39,FALSE) -> 42% | M12: =VLOOKUP($C12,'RECAP SECT'!$G$6:$CU$253,40,FALSE) -> 15 | N12: =VLOOKUP($C12,'RECAP SECT'!$G$6:$CU$253,41,FALSE) -> 41% | O12: =VLOOKUP($C12,'RECAP SECT'!$G$6:$CU$253,42,FALSE) -> 32% | P12: =VLOOKUP($C12,'RECAP SECT'!$G$6:$CU$253,43,FALSE) -> 8
A13: 262 | B13: BAS-RHIN | C13: 5101 | D13: SELESTAT | E13: =VLOOKUP($C13,'RECAP SECT'!$G$6:$CU$253,3,FALSE) -> 49.3 | F13: =VLOOKUP($C13,'RECAP SECT'!$G$6:$CU$253,33,FALSE) -> 7,411 | G13: =VLOOKUP($C13,'RECAP SECT'!$G$6:$CU$253,34,FALSE) -> 150.44 | H13: =VLOOKUP($C13,'RECAP SECT'!$G$6:$CU$253,35,FALSE) -> 50% | I13: =VLOOKUP($C13,'RECAP SECT'!$G$6:$CU$253,36,FALSE) -> 9 | J13: =VLOOKUP($C13,'RECAP SECT'!$G$6:$CU$253,37,FALSE) -> 1,570 | K13: =VLOOKUP($C13,'RECAP SECT'!$G$6:$CU$253,38,FALSE) -> 31.87 | L13: =VLOOKUP($C13,'RECAP SECT'!$G$6:$CU$253,39,FALSE) -> 35% | M13: =VLOOKUP($C13,'RECAP SECT'!$G$6:$CU$253,40,FALSE) -> 12 | N13: =VLOOKUP($C13,'RECAP SECT'!$G$6:$CU$253,41,FALSE) -> 44% | O13: =VLOOKUP($C13,'RECAP SECT'!$G$6:$CU$253,42,FALSE) -> 35% | P13: =VLOOKUP($C13,'RECAP SECT'!$G$6:$CU$253,43,FALSE) -> 9
A14: 262 | B14: BAS-RHIN | C14: 5006 | D14: STRASBOURG | E14: =VLOOKUP($C14,'RECAP SECT'!$G$6:$CU$253,3,FALSE) -> 65.0 | F14: =VLOOKUP($C14,'RECAP SECT'!$G$6:$CU$253,33,FALSE) -> 12,002 | G14: =VLOOKUP($C14,'RECAP SECT'!$G$6:$CU$253,34,FALSE) -> 184.75 | H14: =VLOOKUP($C14,'RECAP SECT'!$G$6:$CU$253,35,FALSE) -> 39% | I14: =VLOOKUP($C14,'RECAP SECT'!$G$6:$CU$253,36,FALSE) -> 6 | J14: =VLOOKUP($C14,'RECAP SECT'!$G$6:$CU$253,37,FALSE) -> 2,729 | K14: =VLOOKUP($C14,'RECAP SECT'!$G$6:$CU$253,38,FALSE) -> 42.01 | L14: =VLOOKUP($C14,'RECAP SECT'!$G$6:$CU$253,39,FALSE) -> 15% | M14: =VLOOKUP($C14,'RECAP SECT'!$G$6:$CU$253,40,FALSE) -> 4 | N14: =VLOOKUP($C14,'RECAP SECT'!$G$6:$CU$253,41,FALSE) -> 29% | O14: =VLOOKUP($C14,'RECAP SECT'!$G$6:$CU$253,42,FALSE) -> 20% | P14: =VLOOKUP($C14,'RECAP SECT'!$G$6:$CU$253,43,FALSE) -> 5
A15: 264 | B15: HAUT-RHIN | C15: 5130 | D15: COLMAR | E15: =VLOOKUP($C15,'RECAP SECT'!$G$6:$CU$253,3,FALSE) -> 49.9 | F15: =VLOOKUP($C15,'RECAP SECT'!$G$6:$CU$253,33,FALSE) -> 4,353 | G15: =VLOOKUP($C15,'RECAP SECT'!$G$6:$CU$253,34,FALSE) -> 87.33 | H15: =VLOOKUP($C15,'RECAP SECT'!$G$6:$CU$253,35,FALSE) -> 71% | I15: =VLOOKUP($C15,'RECAP SECT'!$G$6:$CU$253,36,FALSE) -> 13 | J15: =VLOOKUP($C15,'RECAP SECT'!$G$6:$CU$253,37,FALSE) -> 1,185 | K15: =VLOOKUP($C15,'RECAP SECT'!$G$6:$CU$253,38,FALSE) -> 23.77 | L15: =VLOOKUP($C15,'RECAP SECT'!$G$6:$CU$253,39,FALSE) -> 52% | M15: =VLOOKUP($C15,'RECAP SECT'!$G$6:$CU$253,40,FALSE) -> 18 | N15: =VLOOKUP($C15,'RECAP SECT'!$G$6:$CU$253,41,FALSE) -> 63% | O15: =VLOOKUP($C15,'RECAP SECT'!$G$6:$CU$253,42,FALSE) -> 54% | P15: =VLOOKUP($C15,'RECAP SECT'!$G$6:$CU$253,43,FALSE) -> 15
A16: 264 | B16: HAUT-RHIN | C16: 5169 | D16: MULHOUSE | E16: =VLOOKUP($C16,'RECAP SECT'!$G$6:$CU$253,3,FALSE) -> 45.4 | F16: =VLOOKUP($C16,'RECAP SECT'!$G$6:$CU$253,33,FALSE) -> -2,721 | G16: =VLOOKUP($C16,'RECAP SECT'!$G$6:$CU$253,34,FALSE) -> -59.88 | H16: =VLOOKUP($C16,'RECAP SECT'!$G$6:$CU$253,35,FALSE) -> 120% | I16: =VLOOKUP($C16,'RECAP SECT'!$G$6:$CU$253,36,FALSE) -> 18 | J16: =VLOOKUP($C16,'RECAP SECT'!$G$6:$CU$253,37,FALSE) -> 1,217 | K16: =VLOOKUP($C16,'RECAP SECT'!$G$6:$CU$253,38,FALSE) -> 26.78 | L16: =VLOOKUP($C16,'RECAP SECT'!$G$6:$CU$253,39,FALSE) -> 46% | M16: =VLOOKUP($C16,'RECAP SECT'!$G$6:$CU$253,40,FALSE) -> 16 | N16: =VLOOKUP($C16,'RECAP SECT'!$G$6:$CU$253,41,FALSE) -> 90% | O16: =VLOOKUP($C16,'RECAP SECT'!$G$6:$CU$253,42,FALSE) -> 81% | P16: =VLOOKUP($C16,'RECAP SECT'!$G$6:$CU$253,43,FALSE) -> 18
A17: 30 | B17: MARNE-ARDENNES | C17: 6 | D17: CHALONS EN CHAMPAGNE | E17: =VLOOKUP($C17,'RECAP SECT'!$G$6:$CU$253,3,FALSE) -> 38.6 | F17: =VLOOKUP($C17,'RECAP SECT'!$G$6:$CU$253,33,FALSE) -> 62 | G17: =VLOOKUP($C17,'RECAP SECT'!$G$6:$CU$253,34,FALSE) -> 1.60 | H17: =VLOOKUP($C17,'RECAP SECT'!$G$6:$CU$253,35,FALSE) -> 99% | I17: =VLOOKUP($C17,'RECAP SECT'!$G$6:$CU$253,36,FALSE) -> 16 | J17: =VLOOKUP($C17,'RECAP SECT'!$G$6:$CU$253,37,FALSE) -> 1,430 | K17: =VLOOKUP($C17,'RECAP SECT'!$G$6:$CU$253,38,FALSE) -> 37.09 | L17: =VLOOKUP($C17,'RECAP SECT'!$G$6:$CU$253,39,FALSE) -> 25% | M17: =VLOOKUP($C17,'RECAP SECT'!$G$6:$CU$253,40,FALSE) -> 7 | N17: =VLOOKUP($C17,'RECAP SECT'!$G$6:$CU$253,41,FALSE) -> 70% | O17: =VLOOKUP($C17,'RECAP SECT'!$G$6:$CU$253,42,FALSE) -> 61% | P17: =VLOOKUP($C17,'RECAP SECT'!$G$6:$CU$253,43,FALSE) -> 16
A18: 30 | B18: MARNE-ARDENNES | C18: 2 | D18: CHARLEVILLE MEZIERES | E18: =VLOOKUP($C18,'RECAP SECT'!$G$6:$CU$253,3,FALSE) -> 48.5 | F18: =VLOOKUP($C18,'RECAP SECT'!$G$6:$CU$253,33,FALSE) -> 7,814 | G18: =VLOOKUP($C18,'RECAP SECT'!$G$6:$CU$253,34,FALSE) -> 161.01 | H18: =VLOOKUP($C18,'RECAP SECT'!$G$6:$CU$253,35,FALSE) -> 47% | I18: =VLOOKUP($C18,'RECAP SECT'!$G$6:$CU$253,36,FALSE) -> 8 | J18: =VLOOKUP($C18,'RECAP SECT'!$G$6:$CU$253,37,FALSE) -> 2,134 | K18: =VLOOKUP($C18,'RECAP SECT'!$G$6:$CU$253,38,FALSE) -> 43.97 | L18: =VLOOKUP($C18,'RECAP SECT'!$G$6:$CU$253,39,FALSE) -> 11% | M18: =VLOOKUP($C18,'RECAP SECT'!$G$6:$CU$253,40,FALSE) -> 2 | N18: =VLOOKUP($C18,'RECAP SECT'!$G$6:$CU$253,41,FALSE) -> 32% | O18: =VLOOKUP($C18,'RECAP SECT'!$G$6:$CU$253,42,FALSE) -> 23% | P18: =VLOOKUP($C18,'RECAP SECT'!$G$6:$CU$253,43,FALSE) -> 7
A19: 30 | B19: MARNE-ARDENNES | C19: 11 | D19: REIMS | E19: =VLOOKUP($C19,'RECAP SECT'!$G$6:$CU$253,3,FALSE) -> 69.0 | F19: =VLOOKUP($C19,'RECAP SECT'!$G$6:$CU$253,33,FALSE) -> 1,376 | G19: =VLOOKUP($C19,'RECAP SECT'!$G$6:$CU$253,34,FALSE) -> 19.95 | H19: =VLOOKUP($C19,'RECAP SECT'!$G$6:$CU$253,35,FALSE) -> 93% | I19: =VLOOKUP($C19,'RECAP SECT'!$G$6:$CU$253,36,FALSE) -> 15 | J19: =VLOOKUP($C19,'RECAP SECT'!$G$6:$CU$253,37,FALSE) -> 2,966 | K19: =VLOOKUP($C19,'RECAP SECT'!$G$6:$CU$253,38,FALSE) -> 43.02 | L19: =VLOOKUP($C19,'RECAP SECT'!$G$6:$CU$253,39,FALSE) -> 13% | M19: =VLOOKUP($C19,'RECAP SECT'!$G$6:$CU$253,40,FALSE) -> 3 | N19: =VLOOKUP($C19,'RECAP SECT'!$G$6:$CU$253,41,FALSE) -> 61% | O19: =VLOOKUP($C19,'RECAP SECT'!$G$6:$CU$253,42,FALSE) -> 52% | P19: =VLOOKUP($C19,'RECAP SECT'!$G$6:$CU$253,43,FALSE) -> 14
A20: 110 | B20: MEURTHE ET MOSELLE MEUSE | C20: 26 | D20: NANCY | E20: =VLOOKUP($C20,'RECAP SECT'!$G$6:$CU$253,3,FALSE) -> 55.0 | F20: =VLOOKUP($C20,'RECAP SECT'!$G$6:$CU$253,33,FALSE) -> 12,702 | G20: =VLOOKUP($C20,'RECAP SECT'!$G$6:$CU$253,34,FALSE) -> 230.95 | H20: =VLOOKUP($C20,'RECAP SECT'!$G$6:$CU$253,35,FALSE) -> 23% | I20: =VLOOKUP($C20,'RECAP SECT'!$G$6:$CU$253,36,FALSE) -> 3 | J20: =VLOOKUP($C20,'RECAP SECT'!$G$6:$CU$253,37,FALSE) -> 2,023 | K20: =VLOOKUP($C20,'RECAP SECT'!$G$6:$CU$253,38,FALSE) -> 36.78 | L20: =VLOOKUP($C20,'RECAP SECT'!$G$6:$CU$253,39,FALSE) -> 25% | M20: =VLOOKUP($C20,'RECAP SECT'!$G$6:$CU$253,40,FALSE) -> 8 | N20: =VLOOKUP($C20,'RECAP SECT'!$G$6:$CU$253,41,FALSE) -> 24% | O20: =VLOOKUP($C20,'RECAP SECT'!$G$6:$CU$253,42,FALSE) -> 15% | P20: =VLOOKUP($C20,'RECAP SECT'!$G$6:$CU$253,43,FALSE) -> 2
A21: 110 | B21: MEURTHE ET MOSELLE MEUSE | C21: 27 | D21: PONT A MOUSSON | E21: =VLOOKUP($C21,'RECAP SECT'!$G$6:$CU$253,3,FALSE) -> 59.5 | F21: =VLOOKUP($C21,'RECAP SECT'!$G$6:$CU$253,33,FALSE) -> 8,252 | G21: =VLOOKUP($C21,'RECAP SECT'!$G$6:$CU$253,34,FALSE) -> 138.65 | H21: =VLOOKUP($C21,'RECAP SECT'!$G$6:$CU$253,35,FALSE) -> 54% | I21: =VLOOKUP($C21,'RECAP SECT'!$G$6:$CU$253,36,FALSE) -> 11 | J21: =VLOOKUP($C21,'RECAP SECT'!$G$6:$CU$253,37,FALSE) -> 1,902 | K21: =VLOOKUP($C21,'RECAP SECT'!$G$6:$CU$253,38,FALSE) -> 31.96 | L21: =VLOOKUP($C21,'RECAP SECT'!$G$6:$CU$253,39,FALSE) -> 35% | M21: =VLOOKUP($C21,'RECAP SECT'!$G$6:$CU$253,40,FALSE) -> 10 | N21: =VLOOKUP($C21,'RECAP SECT'!$G$6:$CU$253,41,FALSE) -> 46% | O21: =VLOOKUP($C21,'RECAP SECT'!$G$6:$CU$253,42,FALSE) -> 37% | P21: =VLOOKUP($C21,'RECAP SECT'!$G$6:$CU$253,43,FALSE) -> 11
A22: 110 | B22: MEURTHE ET MOSELLE MEUSE | C22: 31 | D22: VERDUN | E22: =VLOOKUP($C22,'RECAP SECT'!$G$6:$CU$253,3,FALSE) -> 48.3 | F22: =VLOOKUP($C22,'RECAP SECT'!$G$6:$CU$253,33,FALSE) -> 6,375 | G22: =VLOOKUP($C22,'RECAP SECT'!$G$6:$CU$253,34,FALSE) -> 132.13 | H22: =VLOOKUP($C22,'RECAP SECT'!$G$6:$CU$253,35,FALSE) -> 56% | I22: =VLOOKUP($C22,'RECAP SECT'!$G$6:$CU$253,36,FALSE) -> 12 | J22: =VLOOKUP($C22,'RECAP SECT'!$G$6:$CU$253,37,FALSE) -> 1,562 | K22: =VLOOKUP($C22,'RECAP SECT'!$G$6:$CU$253,38,FALSE) -> 32.37 | L22: =VLOOKUP($C22,'RECAP SECT'!$G$6:$CU$253,39,FALSE) -> 34% | M22: =VLOOKUP($C22,'RECAP SECT'!$G$6:$CU$253,40,FALSE) -> 9 | N22: =VLOOKUP($C22,'RECAP SECT'!$G$6:$CU$253,41,FALSE) -> 47% | O22: =VLOOKUP($C22,'RECAP SECT'!$G$6:$CU$253,42,FALSE) -> 38% | P22: =VLOOKUP($C22,'RECAP SECT'!$G$6:$CU$253,43,FALSE) -> 12
A23: 160 | B23: MOSELLE | C23: 45 | D23: METZ | E23: =VLOOKUP($C23,'RECAP SECT'!$G$6:$CU$253,3,FALSE) -> 72.9 | F23: =VLOOKUP($C23,'RECAP SECT'!$G$6:$CU$253,33,FALSE) -> 21,949 | G23: =VLOOKUP($C23,'RECAP SECT'!$G$6:$CU$253,34,FALSE) -> 301.16 | H23: =VLOOKUP($C23,'RECAP SECT'!$G$6:$CU$253,35,FALSE) -> 0% | I23: =VLOOKUP($C23,'RECAP SECT'!$G$6:$CU$253,36,FALSE) -> 1 | J23: =VLOOKUP($C23,'RECAP SECT'!$G$6:$CU$253,37,FALSE) -> 2,788 | K23: =VLOOKUP($C23,'RECAP SECT'!$G$6:$CU$253,38,FALSE) -> 38.25 | L23: =VLOOKUP($C23,'RECAP SECT'!$G$6:$CU$253,39,FALSE) -> 22% | M23: =VLOOKUP($C23,'RECAP SECT'!$G$6:$CU$253,40,FALSE) -> 6 | N23: =VLOOKUP($C23,'RECAP SECT'!$G$6:$CU$253,41,FALSE) -> 9% | O23: =VLOOKUP($C23,'RECAP SECT'!$G$6:$CU$253,42,FALSE) -> 0% | P23: =VLOOKUP($C23,'RECAP SECT'!$G$6:$CU$253,43,FALSE) -> 1
A24: 160 | B24: MOSELLE | C24: 42 | D24: MOSELLE EST | E24: =VLOOKUP($C24,'RECAP SECT'!$G$6:$CU$253,3,FALSE) -> 60.1 | F24: =VLOOKUP($C24,'RECAP SECT'!$G$6:$CU$253,33,FALSE) -> 11,605 | G24: =VLOOKUP($C24,'RECAP SECT'!$G$6:$CU$253,34,FALSE) -> 193.19 | H24: =VLOOKUP($C24,'RECAP SECT'!$G$6:$CU$253,35,FALSE) -> 36% | I24: =VLOOKUP($C24,'RECAP SECT'!$G$6:$CU$253,36,FALSE) -> 5 | J24: =VLOOKUP($C24,'RECAP SECT'!$G$6:$CU$253,37,FALSE) -> 2,463 | K24: =VLOOKUP($C24,'RECAP SECT'!$G$6:$CU$253,38,FALSE) -> 41.00 | L24: =VLOOKUP($C24,'RECAP SECT'!$G$6:$CU$253,39,FALSE) -> 17% | M24: =VLOOKUP($C24,'RECAP SECT'!$G$6:$CU$253,40,FALSE) -> 5 | N24: =VLOOKUP($C24,'RECAP SECT'!$G$6:$CU$253,41,FALSE) -> 28% | O24: =VLOOKUP($C24,'RECAP SECT'!$G$6:$CU$253,42,FALSE) -> 19% | P24: =VLOOKUP($C24,'RECAP SECT'!$G$6:$CU$253,43,FALSE) -> 4
A25: 160 | B25: MOSELLE | C25: 44 | D25: MOSELLE NORD | E25: =VLOOKUP($C25,'RECAP SECT'!$G$6:$CU$253,3,FALSE) -> 57.3 | F25: =VLOOKUP($C25,'RECAP SECT'!$G$6:$CU$253,33,FALSE) -> 4,337 | G25: =VLOOKUP($C25,'RECAP SECT'!$G$6:$CU$253,34,FALSE) -> 75.72 | H25: =VLOOKUP($C25,'RECAP SECT'!$G$6:$CU$253,35,FALSE) -> 75% | I25: =VLOOKUP($C25,'RECAP SECT'!$G$6:$CU$253,36,FALSE) -> 14 | J25: =VLOOKUP($C25,'RECAP SECT'!$G$6:$CU$253,37,FALSE) -> 2,823 | K25: =VLOOKUP($C25,'RECAP SECT'!$G$6:$CU$253,38,FALSE) -> 49.28 | L25: =VLOOKUP($C25,'RECAP SECT'!$G$6:$CU$253,39,FALSE) -> 0% | M25: =VLOOKUP($C25,'RECAP SECT'!$G$6:$CU$253,40,FALSE) -> 1 | N25: =VLOOKUP($C25,'RECAP SECT'!$G$6:$CU$253,41,FALSE) -> 45% | O25: =VLOOKUP($C25,'RECAP SECT'!$G$6:$CU$253,42,FALSE) -> 36% | P25: =VLOOKUP($C25,'RECAP SECT'!$G$6:$CU$253,43,FALSE) -> 10
A26: 80 | B26: VOSGES | C26: 57 | D26: EPINAL | E26: =VLOOKUP($C26,'RECAP SECT'!$G$6:$CU$253,3,FALSE) -> 53.2 | F26: =VLOOKUP($C26,'RECAP SECT'!$G$6:$CU$253,33,FALSE) -> 12,487 | G26: =VLOOKUP($C26,'RECAP SECT'!$G$6:$CU$253,34,FALSE) -> 234.73 | H26: =VLOOKUP($C26,'RECAP SECT'!$G$6:$CU$253,35,FALSE) -> 22% | I26: =VLOOKUP($C26,'RECAP SECT'!$G$6:$CU$253,36,FALSE) -> 2 | J26: =VLOOKUP($C26,'RECAP SECT'!$G$6:$CU$253,37,FALSE) -> 1,670 | K26: =VLOOKUP($C26,'RECAP SECT'!$G$6:$CU$253,38,FALSE) -> 31.39 | L26: =VLOOKUP($C26,'RECAP SECT'!$G$6:$CU$253,39,FALSE) -> 36% | M26: =VLOOKUP($C26,'RECAP SECT'!$G$6:$CU$253,40,FALSE) -> 14 | N26: =VLOOKUP($C26,'RECAP SECT'!$G$6:$CU$253,41,FALSE) -> 28% | O26: =VLOOKUP($C26,'RECAP SECT'!$G$6:$CU$253,42,FALSE) -> 19% | P26: =VLOOKUP($C26,'RECAP SECT'!$G$6:$CU$253,43,FALSE) -> 3
A27: 80 | B27: VOSGES | C27: 55 | D27: SAINT DIE | E27: =VLOOKUP($C27,'RECAP SECT'!$G$6:$CU$253,3,FALSE) -> 39.7 | F27: =VLOOKUP($C27,'RECAP SECT'!$G$6:$CU$253,33,FALSE) -> 5,912 | G27: =VLOOKUP($C27,'RECAP SECT'!$G$6:$CU$253,34,FALSE) -> 148.95 | H27: =VLOOKUP($C27,'RECAP SECT'!$G$6:$CU$253,35,FALSE) -> 51% | I27: =VLOOKUP($C27,'RECAP SECT'!$G$6:$CU$253,36,FALSE) -> 10 | J27: =VLOOKUP($C27,'RECAP SECT'!$G$6:$CU$253,37,FALSE) -> 1,054 | K27: =VLOOKUP($C27,'RECAP SECT'!$G$6:$CU$253,38,FALSE) -> 26.56 | L27: =VLOOKUP($C27,'RECAP SECT'!$G$6:$CU$253,39,FALSE) -> 46% | M27: =VLOOKUP($C27,'RECAP SECT'!$G$6:$CU$253,40,FALSE) -> 17 | N27: =VLOOKUP($C27,'RECAP SECT'!$G$6:$CU$253,41,FALSE) -> 49% | O27: =VLOOKUP($C27,'RECAP SECT'!$G$6:$CU$253,42,FALSE) -> 40% | P27: =VLOOKUP($C27,'RECAP SECT'!$G$6:$CU$253,43,FALSE) -> 13
A28: Total CEGEE Directions Régionales | E28: =SUM(E10:E27) -> 956

Sheet SE_CREDIT
B1: Accueil | F1: BAROMETRE BDD - TERRITOIRES
F2: CREDITS
F3: =ACCUEIL!F7 -> 2022-06-05
F7: Engagements et ventes accessoires pondérés Immo | J7: Engagements et ventes accessoires pondérés Conso | N7: Ventes sur client non détenteur de l’univers | R7: Total Crédits
F8: =DATEMAJ!C18 -> au 05/06 | H8: coef | I8: ='RECAP DIRCOM'!BE4 -> 6% | J8: =DATEMAJ!C19 -> au 05/06 | L8: coef | M8: ='RECAP DIRCOM'!BI4 -> 6% | N8: =DATEMAJ!C20 -> au 05/06 | P8: coef | Q8: ='RECAP DIRCOM'!BM4 -> 8% | S8: coef | T8: ='RECAP DIRCOM'!BP4 -> 20%
B9: Direction | C9: eds | D9: Territoire | E9: ="ETP perf "&DATEMAJ!$C$28 -> ETP perf 05-juin | F9: PNB | G9: PNB / ETP | H9: % Ecart au 1er | I9: Rang | J9: PNB | K9: PNB / ETP | L9: % Ecart au 1er | M9: Rang | N9: VB | O9: VB / ETP | P9: % Ecart au 1er | Q9: Rang | R9: Moyenne ecart au 1er | S9: % Ecart au 1er | T9: Rang CEGEE
A10: 50 | B10: AUBE HAUTE MARNE | C10: 21 | D10: CHAUMONT | E10: =VLOOKUP($C10,'RECAP SECT'!$G$6:$CU$253,3,FALSE) -> 33.7 | F10: =VLOOKUP($C10,'RECAP SECT'!$G$6:$CU$253,48,FALSE) -> 3,305 | G10: =VLOOKUP($C10,'RECAP SECT'!$G$6:$CU$253,49,FALSE) -> 98.00 | H10: =VLOOKUP($C10,'RECAP SECT'!$G$6:$CU$253,50,FALSE) -> 63% | I10: =VLOOKUP($C10,'RECAP SECT'!$G$6:$CU$253,51,FALSE) -> 15 | J10: =VLOOKUP($C10,'RECAP SECT'!$G$6:$CU$253,52,FALSE) -> 1,278 | K10: =VLOOKUP($C10,'RECAP SECT'!$G$6:$CU$253,53,FALSE) -> 37.91 | L10: =VLOOKUP($C10,'RECAP SECT'!$G$6:$CU$253,54,FALSE) -> 8% | M10: =VLOOKUP($C10,'RECAP SECT'!$G$6:$CU$253,55,FALSE) -> 4 | N10: =VLOOKUP($C10,'RECAP SECT'!$G$6:$CU$253,56,FALSE) -> 512 | O10: =VLOOKUP($C10,'RECAP SECT'!$G$6:$CU$253,57,FALSE) -> 15.18 | P10: =VLOOKUP($C10,'RECAP SECT'!$G$6:$CU$253,58,FALSE) -> 33% | Q10: =VLOOKUP($C10,'RECAP SECT'!$G$6:$CU$253,59,FALSE) -> 7 | R10: =VLOOKUP($C10,'RECAP SECT'!$G$6:$CU$253,60,FALSE) -> 34% | S10: =VLOOKUP($C10,'RECAP SECT'!$G$6:$CU$253,61,FALSE) -> 30% | T10: =VLOOKUP($C10,'RECAP SECT'!$G$6:$CU$253,62,FALSE) -> 10
A11: 50 | B11: AUBE HAUTE MARNE | C11: 14 | D11: TROYES | E11: =VLOOKUP($C11,'RECAP SECT'!$G$6:$CU$253,3,FALSE) -> 54.1 | F11: =VLOOKUP($C11,'RECAP SECT'!$G$6:$CU$253,48,FALSE) -> 5,775 | G11: =VLOOKUP($C11,'RECAP SECT'!$G$6:$CU$253,49,FALSE) -> 106.68 | H11: =VLOOKUP($C11,'RECAP SECT'!$G$6:$CU$253,50,FALSE) -> 60% | I11: =VLOOKUP($C11,'RECAP SECT'!$G$6:$CU$253,51,FALSE) -> 13 | J11: =VLOOKUP($C11,'RECAP SECT'!$G$6:$CU$253,52,FALSE) -> 1,837 | K11: =VLOOKUP($C11,'RECAP SECT'!$G$6:$CU$253,53,FALSE) -> 33.95 | L11: =VLOOKUP($C11,'RECAP SECT'!$G$6:$CU$253,54,FALSE) -> 17% | M11: =VLOOKUP($C11,'RECAP SECT'!$G$6:$CU$253,55,FALSE) -> 7 | N11: =VLOOKUP($C11,'RECAP SECT'!$G$6:$CU$253,56,FALSE) -> 656 | O11: =VLOOKUP($C11,'RECAP SECT'!$G$6:$CU$253,57,FALSE) -> 12.12 | P11: =VLOOKUP($C11,'RECAP SECT'!$G$6:$CU$253,58,FALSE) -> 46% | Q11: =VLOOKUP($C11,'RECAP SECT'!$G$6:$CU$253,59,FALSE) -> 14 | R11: =VLOOKUP($C11,'RECAP SECT'!$G$6:$CU$253,60,FALSE) -> 42% | S11: =VLOOKUP($C11,'RECAP SECT'!$G$6:$CU$253,61,FALSE) -> 37% | T11: =VLOOKUP($C11,'RECAP SECT'!$G$6:$CU$253,62,FALSE) -> 13
A12: 262 | B12: BAS-RHIN | C12: 5060 | D12: HAGUENAU | E12: =VLOOKUP($C12,'RECAP SECT'!$G$6:$CU$253,3,FALSE) -> 56.2 | F12: =VLOOKUP($C12,'RECAP SECT'!$G$6:$CU$253,48,FALSE) -> 4,937 | G12: =VLOOKUP($C12,'RECAP SECT'!$G$6:$CU$253,49,FALSE) -> 87.79 | H12: =VLOOKUP($C12,'RECAP SECT'!$G$6:$CU$253,50,FALSE) -> 67% | I12: =VLOOKUP($C12,'RECAP SECT'!$G$6:$CU$253,51,FALSE) -> 17 | J12: =VLOOKUP($C12,'RECAP SECT'!$G$6:$CU$253,52,FALSE) -> 1,804 | K12: =VLOOKUP($C12,'RECAP SECT'!$G$6:$CU$253,53,FALSE) -> 32.08 | L12: =VLOOKUP($C12,'RECAP SECT'!$G$6:$CU$253,54,FALSE) -> 22% | M12: =VLOOKUP($C12,'RECAP SECT'!$G$6:$CU$253,55,FALSE) -> 13 | N12: =VLOOKUP($C12,'RECAP SECT'!$G$6:$CU$253,56,FALSE) -> 581 | O12: =VLOOKUP($C12,'RECAP SECT'!$G$6:$CU$253,57,FALSE) -> 10.33 | P12: =VLOOKUP($C12,'RECAP SECT'!$G$6:$CU$253,58,FALSE) -> 54% | Q12: =VLOOKUP($C12,'RECAP SECT'!$G$6:$CU$253,59,FALSE) -> 17 | R12: =VLOOKUP($C12,'RECAP SECT'!$G$6:$CU$253,60,FALSE) -> 48% | S12: =VLOOKUP($C12,'RECAP SECT'!$G$6:$CU$253,61,FALSE) -> 44% | T12: =VLOOKUP($C12,'RECAP SECT'!$G$6:$CU$253,62,FALSE) -> 17
A13: 262 | B13: BAS-RHIN | C13: 5101 | D13: SELESTAT | E13: =VLOOKUP($C13,'RECAP SECT'!$G$6:$CU$253,3,FALSE) -> 49.3 | F13: =VLOOKUP($C13,'RECAP SECT'!$G$6:$CU$253,48,FALSE) -> 6,164 | G13: =VLOOKUP($C13,'RECAP SECT'!$G$6:$CU$253,49,FALSE) -> 125.13 | H13: =VLOOKUP($C13,'RECAP SECT'!$G$6:$CU$253,50,FALSE) -> 53% | I13: =VLOOKUP($C13,'RECAP SECT'!$G$6:$CU$253,51,FALSE) -> 11 | J13: =VLOOKUP($C13,'RECAP SECT'!$G$6:$CU$253,52,FALSE) -> 1,583 | K13: =VLOOKUP($C13,'RECAP SECT'!$G$6:$CU$253,53,FALSE) -> 32.13 | L13: =VLOOKUP($C13,'RECAP SECT'!$G$6:$CU$253,54,FALSE) -> 22% | M13: =VLOOKUP($C13,'RECAP SECT'!$G$6:$CU$253,55,FALSE) -> 12 | N13: =VLOOKUP($C13,'RECAP SECT'!$G$6:$CU$253,56,FALSE) -> 589 | O13: =VLOOKUP($C13,'RECAP SECT'!$G$6:$CU$253,57,FALSE) -> 11.96 | P13: =VLOOKUP($C13,'RECAP SECT'!$G$6:$CU$253,58,FALSE) -> 47% | Q13: =VLOOKUP($C13,'RECAP SECT'!$G$6:$CU$253,59,FALSE) -> 15 | R13: =VLOOKUP($C13,'RECAP SECT'!$G$6:$CU$253,60,FALSE) -> 41% | S13: =VLOOKUP($C13,'RECAP SECT'!$G$6:$CU$253,61,FALSE) -> 37% | T13: =VLOOKUP($C13,'RECAP SECT'!$G$6:$CU$253,62,FALSE) -> 12
A14: 262 | B14: BAS-RHIN | C14: 5006 | D14: STRASBOURG | E14: =VLOOKUP($C14,'RECAP SECT'!$G$6:$CU$253,3,FALSE) -> 65.0 | F14: =VLOOKUP($C14,'RECAP SECT'!$G$6:$CU$253,48,FALSE) -> 8,922 | G14: =VLOOKUP($C14,'RECAP SECT'!$G$6:$CU$253,49,FALSE) -> 137.35 | H14: =VLOOKUP($C14,'RECAP SECT'!$G$6:$CU$253,50,FALSE) -> 49% | I14: =VLOOKUP($C14,'RECAP SECT'!$G$6:$CU$253,51,FALSE) -> 10 | J14: =VLOOKUP($C14,'RECAP SECT'!$G$6:$CU$253,52,FALSE) -> 1,816 | K14: =VLOOKUP($C14,'RECAP SECT'!$G$6:$CU$253,53,FALSE) -> 27.95 | L14: =VLOOKUP($C14,'RECAP SECT'!$G$6:$CU$253,54,FALSE) -> 32% | M14: =VLOOKUP($C14,'RECAP SECT'!$G$6:$CU$253,55,FALSE) -> 17 | N14: =VLOOKUP($C14,'RECAP SECT'!$G$6:$CU$253,56,FALSE) -> 892 | O14: =VLOOKUP($C14,'RECAP SECT'!$G$6:$CU$253,57,FALSE) -> 13.73 | P14: =VLOOKUP($C14,'RECAP SECT'!$G$6:$CU$253,58,FALSE) -> 39% | Q14: =VLOOKUP($C14,'RECAP SECT'!$G$6:$CU$253,59,FALSE) -> 11 | R14: =VLOOKUP($C14,'RECAP SECT'!$G$6:$CU$253,60,FALSE) -> 40% | S14: =VLOOKUP($C14,'RECAP SECT'!$G$6:$CU$253,61,FALSE) -> 35% | T14: =VLOOKUP($C14,'RECAP SECT'!$G$6:$CU$253,62,FALSE) -> 11
A15: 264 | B15: HAUT-RHIN | C15: 5130 | D15: COLMAR | E15: =VLOOKUP($C15,'RECAP SECT'!$G$6:$CU$253,3,FALSE) -> 49.9 | F15: =VLOOKUP($C15,'RECAP SECT'!$G$6:$CU$253,48,FALSE) -> 3,773 | G15: =VLOOKUP($C15,'RECAP SECT'!$G$6:$CU$253,49,FALSE) -> 75.69 | H15: =VLOOKUP($C15,'RECAP SECT'!$G$6:$CU$253,50,FALSE) -> 72% | I15: =VLOOKUP($C15,'RECAP SECT'!$G$6:$CU$253,51,FALSE) -> 18 | J15: =VLOOKUP($C15,'RECAP SECT'!$G$6:$CU$253,52,FALSE) -> 1,326 | K15: =VLOOKUP($C15,'RECAP SECT'!$G$6:$CU$253,53,FALSE) -> 26.60 | L15: =VLOOKUP($C15,'RECAP SECT'!$G$6:$CU$253,54,FALSE) -> 35% | M15: =VLOOKUP($C15,'RECAP SECT'!$G$6:$CU$253,55,FALSE) -> 18 | N15: =VLOOKUP($C15,'RECAP SECT'!$G$6:$CU$253,56,FALSE) -> 495 | O15: =VLOOKUP($C15,'RECAP SECT'!$G$6:$CU$253,57,FALSE) -> 9.93 | P15: =VLOOKUP($C15,'RECAP SECT'!$G$6:$CU$253,58,FALSE) -> 56% | Q15: =VLOOKUP($C15,'RECAP SECT'!$G$6:$CU$253,59,FALSE) -> 18 | R15: =VLOOKUP($C15,'RECAP SECT'!$G$6:$CU$253,60,FALSE) -> 54% | S15: =VLOOKUP($C15,'RECAP SECT'!$G$6:$CU$253,61,FALSE) -> 50% | T15: =VLOOKUP($C15,'RECAP SECT'!$G$6:$CU$253,62,FALSE) -> 18
A16: 264 | B16: HAUT-RHIN | C16: 5169 | D16: MULHOUSE | E16: =VLOOKUP($C16,'RECAP SECT'!$G$6:$CU$253,3,FALSE) -> 45.4 | F16: =VLOOKUP($C16,'RECAP SECT'!$G$6:$CU$253,48,FALSE) -> 4,982 | G16: =VLOOKUP($C16,'RECAP SECT'!$G$6:$CU$253,49,FALSE) -> 109.63 | H16: =VLOOKUP($C16,'RECAP SECT'!$G$6:$CU$253,50,FALSE) -> 59% | I16: =VLOOKUP($C16,'RECAP SECT'!$G$6:$CU$253,51,FALSE) -> 12 | J16: =VLOOKUP($C16,'RECAP SECT'!$G$6:$CU$253,52,FALSE) -> 1,293 | K16: =VLOOKUP($C16,'RECAP SECT'!$G$6:$CU$253,53,FALSE) -> 28.46 | L16: =VLOOKUP($C16,'RECAP SECT'!$G$6:$CU$253,54,FALSE) -> 31% | M16: =VLOOKUP($C16,'RECAP SECT'!$G$6:$CU$253,55,FALSE) -> 15 | N16: =VLOOKUP($C16,'RECAP SECT'!$G$6:$CU$253,56,FALSE) -> 491 | O16: =VLOOKUP($C16,'RECAP SECT'!$G$6:$CU$253,57,FALSE) -> 10.81 | P16: =VLOOKUP($C16,'RECAP SECT'!$G$6:$CU$253,58,FALSE) -> 52% | Q16: =VLOOKUP($C16,'RECAP SECT'!$G$6:$CU$253,59,FALSE) -> 16 | R16: =VLOOKUP($C16,'RECAP SECT'!$G$6:$CU$253,60,FALSE) -> 48% | S16: =VLOOKUP($C16,'RECAP SECT'!$G$6:$CU$253,61,FALSE) -> 43% | T16: =VLOOKUP($C16,'RECAP SECT'!$G$6:$CU$253,62,FALSE) -> 16
A17: 30 | B17: MARNE-ARDENNES | C17: 6 | D17: CHALONS EN CHAMPAGNE | E17: =VLOOKUP($C17,'RECAP SECT'!$G$6:$CU$253,3,FALSE) -> 38.6 | F17: =VLOOKUP($C17,'RECAP SECT'!$G$6:$CU$253,48,FALSE) -> 6,055 | G17: =VLOOKUP($C17,'RECAP SECT'!$G$6:$CU$253,49,FALSE) -> 157.02 | H17: =VLOOKUP($C17,'RECAP SECT'!$G$6:$CU$253,50,FALSE) -> 41% | I17: =VLOOKUP($C17,'RECAP SECT'!$G$6:$CU$253,51,FALSE) -> 8 | J17: =VLOOKUP($C17,'RECAP SECT'!$G$6:$CU$253,52,FALSE) -> 1,286 | K17: =VLOOKUP($C17,'RECAP SECT'!$G$6:$CU$253,53,FALSE) -> 33.34 | L17: =VLOOKUP($C17,'RECAP SECT'!$G$6:$CU$253,54,FALSE) -> 19% | M17: =VLOOKUP($C17,'RECAP SECT'!$G$6:$CU$253,55,FALSE) -> 9 | N17: =VLOOKUP($C17,'RECAP SECT'!$G$6:$CU$253,56,FALSE) -> 593 | O17: =VLOOKUP($C17,'RECAP SECT'!$G$6:$CU$253,57,FALSE) -> 15.38 | P17: =VLOOKUP($C17,'RECAP SECT'!$G$6:$CU$253,58,FALSE) -> 32% | Q17: =VLOOKUP($C17,'RECAP SECT'!$G$6:$CU$253,59,FALSE) -> 6 | R17: =VLOOKUP($C17,'RECAP SECT'!$G$6:$CU$253,60,FALSE) -> 31% | S17: =VLOOKUP($C17,'RECAP SECT'!$G$6:$CU$253,61,FALSE) -> 26% | T17: =VLOOKUP($C17,'RECAP SECT'!$G$6:$CU$253,62,FALSE) -> 9
A18: 30 | B18: MARNE-ARDENNES | C18: 2 | D18: CHARLEVILLE MEZIERES | E18: =VLOOKUP($C18,'RECAP SECT'!$G$6:$CU$253,3,FALSE) -> 48.5 | F18: =VLOOKUP($C18,'RECAP SECT'!$G$6:$CU$253,48,FALSE) -> 10,098 | G18: =VLOOKUP($C18,'RECAP SECT'!$G$6:$CU$253,49,FALSE) -> 208.07 | H18: =VLOOKUP($C18,'RECAP SECT'!$G$6:$CU$253,50,FALSE) -> 22% | I18: =VLOOKUP($C18,'RECAP SECT'!$G$6:$CU$253,51,FALSE) -> 5 | J18: =VLOOKUP($C18,'RECAP SECT'!$G$6:$CU$253,52,FALSE) -> 1,570 | K18: =VLOOKUP($C18,'RECAP SECT'!$G$6:$CU$253,53,FALSE) -> 32.36 | L18: =VLOOKUP($C18,'RECAP SECT'!$G$6:$CU$253,54,FALSE) -> 21% | M18: =VLOOKUP($C18,'RECAP SECT'!$G$6:$CU$253,55,FALSE) -> 11 | N18: =VLOOKUP($C18,'RECAP SECT'!$G$6:$CU$253,56,FALSE) -> 911 | O18: =VLOOKUP($C18,'RECAP SECT'!$G$6:$CU$253,57,FALSE) -> 18.77 | P18: =VLOOKUP($C18,'RECAP SECT'!$G$6:$CU$253,58,FALSE) -> 17% | Q18: =VLOOKUP($C18,'RECAP SECT'!$G$6:$CU$253,59,FALSE) -> 4 | R18: =VLOOKUP($C18,'RECAP SECT'!$G$6:$CU$253,60,FALSE) -> 20% | S18: =VLOOKUP($C18,'RECAP SECT'!$G$6:$CU$253,61,FALSE) -> 15% | T18: =VLOOKUP($C18,'RECAP SECT'!$G$6:$CU$253,62,FALSE) -> 5
A19: 30 | B19: MARNE-ARDENNES | C19: 11 | D19: REIMS | E19: =VLOOKUP($C19,'RECAP SECT'!$G$6:$CU$253,3,FALSE) -> 69.0 | F19: =VLOOKUP($C19,'RECAP SECT'!$G$6:$CU$253,48,FALSE) -> 17,498 | G19: =VLOOKUP($C19,'RECAP SECT'!$G$6:$CU$253,49,FALSE) -> 253.78 | H19: =VLOOKUP($C19,'RECAP SECT'!$G$6:$CU$253,50,FALSE) -> 5% | I19: =VLOOKUP($C19,'RECAP SECT'!$G$6:$CU$253,51,FALSE) -> 2 | J19: =VLOOKUP($C19,'RECAP SECT'!$G$6:$CU$253,52,FALSE) -> 2,108 | K19: =VLOOKUP($C19,'RECAP SECT'!$G$6:$CU$253,53,FALSE) -> 30.58 | L19: =VLOOKUP($C19,'RECAP SECT'!$G$6:$CU$253,54,FALSE) -> 26% | M19: =VLOOKUP($C19,'RECAP SECT'!$G$6:$CU$253,55,FALSE) -> 14 | N19: =VLOOKUP($C19,'RECAP SECT'!$G$6:$CU$253,56,FALSE) -> 1,553 | O19: =VLOOKUP($C19,'RECAP SECT'!$G$6:$CU$253,57,FALSE) -> 22.52 | P19: =VLOOKUP($C19,'RECAP SECT'!$G$6:$CU$253,58,FALSE) -> 0% | Q19: =VLOOKUP($C19,'RECAP SECT'!$G$6:$CU$253,59,FALSE) -> 1 | R19: =VLOOKUP($C19,'RECAP SECT'!$G$6:$CU$253,60,FALSE) -> 9% | S19: =VLOOKUP($C19,'RECAP SECT'!$G$6:$CU$253,61,FALSE) -> 5% | T19: =VLOOKUP($C19,'RECAP SECT'!$G$6:$CU$253,62,FALSE) -> 2
A20: 110 | B20: MEURTHE ET MOSELLE MEUSE | C20: 26 | D20: NANCY | E20: =VLOOKUP($C20,'RECAP SECT'!$G$6:$CU$253,3,FALSE) -> 55.0 | F20: =VLOOKUP($C20,'RECAP SECT'!$G$6:$CU$253,48,FALSE) -> 13,243 | G20: =VLOOKUP($C20,'RECAP SECT'!$G$6:$CU$253,49,FALSE) -> 240.79 | H20: =VLOOKUP($C20,'RECAP SECT'!$G$6:$CU$253,50,FALSE) -> 10% | I20: =VLOOKUP($C20,'RECAP SECT'!$G$6:$CU$253,51,FALSE) -> 3 | J20: =VLOOKUP($C20,'RECAP SECT'!$G$6:$CU$253,52,FALSE) -> 1,960 | K20: =VLOOKUP($C20,'RECAP SECT'!$G$6:$CU$253,53,FALSE) -> 35.63 | L20: =VLOOKUP($C20,'RECAP SECT'!$G$6:$CU$253,54,FALSE) -> 13% | M20: =VLOOKUP($C20,'RECAP SECT'!$G$6:$CU$253,55,FALSE) -> 6 | N20: =VLOOKUP($C20,'RECAP SECT'!$G$6:$CU$253,56,FALSE) -> 1,048 | O20: =VLOOKUP($C20,'RECAP SECT'!$G$6:$CU$253,57,FALSE) -> 19.05 | P20: =VLOOKUP($C20,'RECAP SECT'!$G$6:$CU$253,58,FALSE) -> 15% | Q20: =VLOOKUP($C20,'RECAP SECT'!$G$6:$CU$253,59,FALSE) -> 3 | R20: =VLOOKUP($C20,'RECAP SECT'!$G$6:$CU$253,60,FALSE) -> 13% | S20: =VLOOKUP($C20,'RECAP SECT'!$G$6:$CU$253,61,FALSE) -> 9% | T20: =VLOOKUP($C20,'RECAP SECT'!$G$6:$CU$253,62,FALSE) -> 3
A21: 110 | B21: MEURTHE ET MOSELLE MEUSE | C21: 27 | D21: PONT A MOUSSON | E21: =VLOOKUP($C21,'RECAP SECT'!$G$6:$CU$253,3,FALSE) -> 59.5 | F21: =VLOOKUP($C21,'RECAP SECT'!$G$6:$CU$253,48,FALSE) -> 12,487 | G21: =VLOOKUP($C21,'RECAP SECT'!$G$6:$CU$253,49,FALSE) -> 209.79 | H21: =VLOOKUP($C21,'RECAP SECT'!$G$6:$CU$253,50,FALSE) -> 22% | I21: =VLOOKUP($C21,'RECAP SECT'!$G$6:$CU$253,51,FALSE) -> 4 | J21: =VLOOKUP($C21,'RECAP SECT'!$G$6:$CU$253,52,FALSE) -> 2,015 | K21: =VLOOKUP($C21,'RECAP SECT'!$G$6:$CU$253,53,FALSE) -> 33.85 | L21: =VLOOKUP($C21,'RECAP SECT'!$G$6:$CU$253,54,FALSE) -> 18% | M21: =VLOOKUP($C21,'RECAP SECT'!$G$6:$CU$253,55,FALSE) -> 8 | N21: =VLOOKUP($C21,'RECAP SECT'!$G$6:$CU$253,56,FALSE) -> 1,075 | O21: =VLOOKUP($C21,'RECAP SECT'!$G$6:$CU$253,57,FALSE) -> 18.06 | P21: =VLOOKUP($C21,'RECAP SECT'!$G$6:$CU$253,58,FALSE) -> 20% | Q21: =VLOOKUP($C21,'RECAP SECT'!$G$6:$CU$253,59,FALSE) -> 5 | R21: =VLOOKUP($C21,'RECAP SECT'!$G$6:$CU$253,60,FALSE) -> 20% | S21: =VLOOKUP($C21,'RECAP SECT'!$G$6:$CU$253,61,FALSE) -> 15% | T21: =VLOOKUP($C21,'RECAP SECT'!$G$6:$CU$253,62,FALSE) -> 4
A22: 110 | B22: MEURTHE ET MOSELLE MEUSE | C22: 31 | D22: VERDUN | E22: =VLOOKUP($C22,'RECAP SECT'!$G$6:$CU$253,3,FALSE) -> 48.3 | F22: =VLOOKUP($C22,'RECAP SECT'!$G$6:$CU$253,48,FALSE) -> 7,114 | G22: =VLOOKUP($C22,'RECAP SECT'!$G$6:$CU$253,49,FALSE) -> 147.43 | H22: =VLOOKUP($C22,'RECAP SECT'!$G$6:$CU$253,50,FALSE) -> 45% | I22: =VLOOKUP($C22,'RECAP SECT'!$G$6:$CU$253,51,FALSE) -> 9 | J22: =VLOOKUP($C22,'RECAP SECT'!$G$6:$CU$253,52,FALSE) -> 1,950 | K22: =VLOOKUP($C22,'RECAP SECT'!$G$6:$CU$253,53,FALSE) -> 40.42 | L22: =VLOOKUP($C22,'RECAP SECT'!$G$6:$CU$253,54,FALSE) -> 2% | M22: =VLOOKUP($C22,'RECAP SECT'!$G$6:$CU$253,55,FALSE) -> 2 | N22: =VLOOKUP($C22,'RECAP SECT'!$G$6:$CU$253,56,FALSE) -> 683 | O22: =VLOOKUP($C22,'RECAP SECT'!$G$6:$CU$253,57,FALSE) -> 14.16 | P22: =VLOOKUP($C22,'RECAP SECT'!$G$6:$CU$253,58,FALSE) -> 37% | Q22: =VLOOKUP($C22,'RECAP SECT'!$G$6:$CU$253,59,FALSE) -> 10 | R22: =VLOOKUP($C22,'RECAP SECT'!$G$6:$CU$253,60,FALSE) -> 29% | S22: =VLOOKUP($C22,'RECAP SECT'!$G$6:$CU$253,61,FALSE) -> 24% | T22: =VLOOKUP($C22,'RECAP SECT'!$G$6:$CU$253,62,FALSE) -> 8
A23: 160 | B23: MOSELLE | C23: 45 | D23: METZ | E23: =VLOOKUP($C23,'RECAP SECT'!$G$6:$CU$253,3,FALSE) -> 72.9 | F23: =VLOOKUP($C23,'RECAP SECT'!$G$6:$CU$253,48,FALSE) -> 12,351 | G23: =VLOOKUP($C23,'RECAP SECT'!$G$6:$CU$253,49,FALSE) -> 169.47 | H23: =VLOOKUP($C23,'RECAP SECT'!$G$6:$CU$253,50,FALSE) -> 37% | I23: =VLOOKUP($C23,'RECAP SECT'!$G$6:$CU$253,51,FALSE) -> 6 | J23: =VLOOKUP($C23,'RECAP SECT'!$G$6:$CU$253,52,FALSE) -> 2,673 | K23: =VLOOKUP($C23,'RECAP SECT'!$G$6:$CU$253,53,FALSE) -> 36.68 | L23: =VLOOKUP($C23,'RECAP SECT'!$G$6:$CU$253,54,FALSE) -> 11% | M23: =VLOOKUP($C23,'RECAP SECT'!$G$6:$CU$253,55,FALSE) -> 5 | N23: =VLOOKUP($C23,'RECAP SECT'!$G$6:$CU$253,56,FALSE) -> 1,075 | O23: =VLOOKUP($C23,'RECAP SECT'!$G$6:$CU$253,57,FALSE) -> 14.75 | P23: =VLOOKUP($C23,'RECAP SECT'!$G$6:$CU$253,58,FALSE) -> 35% | Q23: =VLOOKUP($C23,'RECAP SECT'!$G$6:$CU$253,59,FALSE) -> 9 | R23: =VLOOKUP($C23,'RECAP SECT'!$G$6:$CU$253,60,FALSE) -> 28% | S23: =VLOOKUP($C23,'RECAP SECT'!$G$6:$CU$253,61,FALSE) -> 23% | T23: =VLOOKUP($C23,'RECAP SECT'!$G$6:$CU$253,62,FALSE) -> 7
A24: 160 | B24: MOSELLE | C24: 42 | D24: MOSELLE EST | E24: =VLOOKUP($C24,'RECAP SECT'!$G$6:$CU$253,3,FALSE) -> 60.1 | F24: =VLOOKUP($C24,'RECAP SECT'!$G$6:$CU$253,48,FALSE) -> 9,494 | G24: =VLOOKUP($C24,'RECAP SECT'!$G$6:$CU$253,49,FALSE) -> 158.04 | H24: =VLOOKUP($C24,'RECAP SECT'!$G$6:$CU$253,50,FALSE) -> 41% | I24: =VLOOKUP($C24,'RECAP SECT'!$G$6:$CU$253,51,FALSE) -> 7 | J24: =VLOOKUP($C24,'RECAP SECT'!$G$6:$CU$253,52,FALSE) -> 2,467 | K24: =VLOOKUP($C24,'RECAP SECT'!$G$6:$CU$253,53,FALSE) -> 41.06 | L24: =VLOOKUP($C24,'RECAP SECT'!$G$6:$CU$253,54,FALSE) -> 0% | M24: =VLOOKUP($C24,'RECAP SECT'!$G$6:$CU$253,55,FALSE) -> 1 | N24: =VLOOKUP($C24,'RECAP SECT'!$G$6:$CU$253,56,FALSE) -> 898 | O24: =VLOOKUP($C24,'RECAP SECT'!$G$6:$CU$253,57,FALSE) -> 14.95 | P24: =VLOOKUP($C24,'RECAP SECT'!$G$6:$CU$253,58,FALSE) -> 34% | Q24: =VLOOKUP($C24,'RECAP SECT'!$G$6:$CU$253,59,FALSE) -> 8 | R24: =VLOOKUP($C24,'RECAP SECT'!$G$6:$CU$253,60,FALSE) -> 26% | S24: =VLOOKUP($C24,'RECAP SECT'!$G$6:$CU$253,61,FALSE) -> 21% | T24: =VLOOKUP($C24,'RECAP SECT'!$G$6:$CU$253,62,FALSE) -> 6
A25: 160 | B25: MOSELLE | C25: 44 | D25: MOSELLE NORD | E25: =VLOOKUP($C25,'RECAP SECT'!$G$6:$CU$253,3,FALSE) -> 57.3 | F25: =VLOOKUP($C25,'RECAP SECT'!$G$6:$CU$253,48,FALSE) -> 15,363 | G25: =VLOOKUP($C25,'RECAP SECT'!$G$6:$CU$253,49,FALSE) -> 268.21 | H25: =VLOOKUP($C25,'RECAP SECT'!$G$6:$CU$253,50,FALSE) -> 0% | I25: =VLOOKUP($C25,'RECAP SECT'!$G$6:$CU$253,51,FALSE) -> 1 | J25: =VLOOKUP($C25,'RECAP SECT'!$G$6:$CU$253,52,FALSE) -> 2,227 | K25: =VLOOKUP($C25,'RECAP SECT'!$G$6:$CU$253,53,FALSE) -> 38.89 | L25: =VLOOKUP($C25,'RECAP SECT'!$G$6:$CU$253,54,FALSE) -> 5% | M25: =VLOOKUP($C25,'RECAP SECT'!$G$6:$CU$253,55,FALSE) -> 3 | N25: =VLOOKUP($C25,'RECAP SECT'!$G$6:$CU$253,56,FALSE) -> 1,194 | O25: =VLOOKUP($C25,'RECAP SECT'!$G$6:$CU$253,57,FALSE) -> 20.84 | P25: =VLOOKUP($C25,'RECAP SECT'!$G$6:$CU$253,58,FALSE) -> 7% | Q25: =VLOOKUP($C25,'RECAP SECT'!$G$6:$CU$253,59,FALSE) -> 2 | R25: =VLOOKUP($C25,'RECAP SECT'!$G$6:$CU$253,60,FALSE) -> 5% | S25: =VLOOKUP($C25,'RECAP SECT'!$G$6:$CU$253,61,FALSE) -> 0% | T25: =VLOOKUP($C25,'RECAP SECT'!$G$6:$CU$253,62,FALSE) -> 1
A26: 80 | B26: VOSGES | C26: 57 | D26: EPINAL | E26: =VLOOKUP($C26,'RECAP SECT'!$G$6:$CU$253,3,FALSE) -> 53.2 | F26: =VLOOKUP($C26,'RECAP SECT'!$G$6:$CU$253,48,FALSE) -> 5,475 | G26: =VLOOKUP($C26,'RECAP SECT'!$G$6:$CU$253,49,FALSE) -> 102.91 | H26: =VLOOKUP($C26,'RECAP SECT'!$G$6:$CU$253,50,FALSE) -> 62% | I26: =VLOOKUP($C26,'RECAP SECT'!$G$6:$CU$253,51,FALSE) -> 14 | J26: =VLOOKUP($C26,'RECAP SECT'!$G$6:$CU$253,52,FALSE) -> 1,489 | K26: =VLOOKUP($C26,'RECAP SECT'!$G$6:$CU$253,53,FALSE) -> 27.98 | L26: =VLOOKUP($C26,'RECAP SECT'!$G$6:$CU$253,54,FALSE) -> 32% | M26: =VLOOKUP($C26,'RECAP SECT'!$G$6:$CU$253,55,FALSE) -> 16 | N26: =VLOOKUP($C26,'RECAP SECT'!$G$6:$CU$253,56,FALSE) -> 684 | O26: =VLOOKUP($C26,'RECAP SECT'!$G$6:$CU$253,57,FALSE) -> 12.86 | P26: =VLOOKUP($C26,'RECAP SECT'!$G$6:$CU$253,58,FALSE) -> 43% | Q26: =VLOOKUP($C26,'RECAP SECT'!$G$6:$CU$253,59,FALSE) -> 13 | R26: =VLOOKUP($C26,'RECAP SECT'!$G$6:$CU$253,60,FALSE) -> 45% | S26: =VLOOKUP($C26,'RECAP SECT'!$G$6:$CU$253,61,FALSE) -> 41% | T26: =VLOOKUP($C26,'RECAP SECT'!$G$6:$CU$253,62,FALSE) -> 15
A27: 80 | B27: VOSGES | C27: 55 | D27: SAINT DIE | E27: =VLOOKUP($C27,'RECAP SECT'!$G$6:$CU$253,3,FALSE) -> 39.7 | F27: =VLOOKUP($C27,'RECAP SECT'!$G$6:$CU$253,48,FALSE) -> 3,625 | G27: =VLOOKUP($C27,'RECAP SECT'!$G$6:$CU$253,49,FALSE) -> 91.33 | H27: =VLOOKUP($C27,'RECAP SECT'!$G$6:$CU$253,50,FALSE) -> 66% | I27: =VLOOKUP($C27,'RECAP SECT'!$G$6:$CU$253,51,FALSE) -> 16 | J27: =VLOOKUP($C27,'RECAP SECT'!$G$6:$CU$253,52,FALSE) -> 1,297 | K27: =VLOOKUP($C27,'RECAP SECT'!$G$6:$CU$253,53,FALSE) -> 32.67 | L27: =VLOOKUP($C27,'RECAP SECT'!$G$6:$CU$253,54,FALSE) -> 20% | M27: =VLOOKUP($C27,'RECAP SECT'!$G$6:$CU$253,55,FALSE) -> 10 | N27: =VLOOKUP($C27,'RECAP SECT'!$G$6:$CU$253,56,FALSE) -> 523 | O27: =VLOOKUP($C27,'RECAP SECT'!$G$6:$CU$253,57,FALSE) -> 13.18 | P27: =VLOOKUP($C27,'RECAP SECT'!$G$6:$CU$253,58,FALSE) -> 41% | Q27: =VLOOKUP($C27,'RECAP SECT'!$G$6:$CU$253,59,FALSE) -> 12 | R27: =VLOOKUP($C27,'RECAP SECT'!$G$6:$CU$253,60,FALSE) -> 43% | S27: =VLOOKUP($C27,'RECAP SECT'!$G$6:$CU$253,61,FALSE) -> 38% | T27: =VLOOKUP($C27,'RECAP SECT'!$G$6:$CU$253,62,FALSE) -> 14
A28: Total CEGEE Directions Régionales | E28: =SUM(E10:E27) -> 956

Sheet SE_IARD
B1: Accueil | F1: BAROMETRE BDD - TERRITOIRES
F2: IARD ET PREVOYANCE
F3: =ACCUEIL!F7 -> 2022-06-05
F7: Ventes Nettes produits pondérés | J7: Ventes sur client non détenteur de l’univers | N7: Total IARD Prévoyance
F8: =DATEMAJ!C23 -> au 05/06 | H8: coef | I8: ='RECAP DIRCOM'!BX4 -> 12% | J8: =DATEMAJ!C24 -> au 05/06 | L8: coef | M8: ='RECAP DIRCOM'!CB4 -> 8% | O8: coef | P8: ='RECAP DIRCOM'!CE4 -> 20%
B9: Direction | C9: eds | D9: Territoire | E9: ="ETP perf "&DATEMAJ!$C$28 -> ETP perf 05-juin | F9: VN | G9: VN / ETP | H9: % Ecart au 1er | I9: Rang | J9: VB | K9: VB / ETP | L9: % Ecart au 1er | M9: Rang | N9: Moyenne ecart au 1er | O9: % Ecart au 1er | P9: Rang CEGEE
A10: 50 | B10: AUBE HAUTE MARNE | C10: 21 | D10: CHAUMONT | E10: =VLOOKUP($C10,'RECAP SECT'!$G$6:$CU$253,3,FALSE) -> 33.7 | F10: =VLOOKUP($C10,'RECAP SECT'!$G$6:$CU$253,67,FALSE) -> 3,014 | G10: =VLOOKUP($C10,'RECAP SECT'!$G$6:$CU$253,68,FALSE) -> 89.38 | H10: =VLOOKUP($C10,'RECAP SECT'!$G$6:$CU$253,69,FALSE) -> 36% | I10: =VLOOKUP($C10,'RECAP SECT'!$G$6:$CU$253,70,FALSE) -> 8 | J10: =VLOOKUP($C10,'RECAP SECT'!$G$6:$CU$253,71,FALSE) -> 815 | K10: =VLOOKUP($C10,'RECAP SECT'!$G$6:$CU$253,72,FALSE) -> 24.17 | L10: =VLOOKUP($C10,'RECAP SECT'!$G$6:$CU$253,73,FALSE) -> 30% | M10: =VLOOKUP($C10,'RECAP SECT'!$G$6:$CU$253,74,FALSE) -> 12 | N10: =VLOOKUP($C10,'RECAP SECT'!$G$6:$CU$253,75,FALSE) -> 33% | O10: =VLOOKUP($C10,'RECAP SECT'!$G$6:$CU$253,76,FALSE) -> 33% | P10: =VLOOKUP($C10,'RECAP SECT'!$G$6:$CU$253,77,FALSE) -> 9
A11: 50 | B11: AUBE HAUTE MARNE | C11: 14 | D11: TROYES | E11: =VLOOKUP($C11,'RECAP SECT'!$G$6:$CU$253,3,FALSE) -> 54.1 | F11: =VLOOKUP($C11,'RECAP SECT'!$G$6:$CU$253,67,FALSE) -> 3,834 | G11: =VLOOKUP($C11,'RECAP SECT'!$G$6:$CU$253,68,FALSE) -> 70.83 | H11: =VLOOKUP($C11,'RECAP SECT'!$G$6:$CU$253,69,FALSE) -> 49% | I11: =VLOOKUP($C11,'RECAP SECT'!$G$6:$CU$253,70,FALSE) -> 14 | J11: =VLOOKUP($C11,'RECAP SECT'!$G$6:$CU$253,71,FALSE) -> 1,309 | K11: =VLOOKUP($C11,'RECAP SECT'!$G$6:$CU$253,72,FALSE) -> 24.18 | L11: =VLOOKUP($C11,'RECAP SECT'!$G$6:$CU$253,73,FALSE) -> 30% | M11: =VLOOKUP($C11,'RECAP SECT'!$G$6:$CU$253,74,FALSE) -> 11 | N11: =VLOOKUP($C11,'RECAP SECT'!$G$6:$CU$253,75,FALSE) -> 41% | O11: =VLOOKUP($C11,'RECAP SECT'!$G$6:$CU$253,76,FALSE) -> 41% | P11: =VLOOKUP($C11,'RECAP SECT'!$G$6:$CU$253,77,FALSE) -> 13
A12: 262 | B12: BAS-RHIN | C12: 5060 | D12: HAGUENAU | E12: =VLOOKUP($C12,'RECAP SECT'!$G$6:$CU$253,3,FALSE) -> 56.2 | F12: =VLOOKUP($C12,'RECAP SECT'!$G$6:$CU$253,67,FALSE) -> 3,590 | G12: =VLOOKUP($C12,'RECAP SECT'!$G$6:$CU$253,68,FALSE) -> 63.84 | H12: =VLOOKUP($C12,'RECAP SECT'!$G$6:$CU$253,69,FALSE) -> 54% | I12: =VLOOKUP($C12,'RECAP SECT'!$G$6:$CU$253,70,FALSE) -> 15 | J12: =VLOOKUP($C12,'RECAP SECT'!$G$6:$CU$253,71,FALSE) -> 1,234 | K12: =VLOOKUP($C12,'RECAP SECT'!$G$6:$CU$253,72,FALSE) -> 21.95 | L12: =VLOOKUP($C12,'RECAP SECT'!$G$6:$CU$253,73,FALSE) -> 36% | M12: =VLOOKUP($C12,'RECAP SECT'!$G$6:$CU$253,74,FALSE) -> 16 | N12: =VLOOKUP($C12,'RECAP SECT'!$G$6:$CU$253,75,FALSE) -> 47% | O12: =VLOOKUP($C12,'RECAP SECT'!$G$6:$CU$253,76,FALSE) -> 47% | P12: =VLOOKUP($C12,'RECAP SECT'!$G$6:$CU$253,77,FALSE) -> 15
A13: 262 | B13: BAS-RHIN | C13: 5101 | D13: SELESTAT | E13: =VLOOKUP($C13,'RECAP SECT'!$G$6:$CU$253,3,FALSE) -> 49.3 | F13: =VLOOKUP($C13,'RECAP SECT'!$G$6:$CU$253,67,FALSE) -> 3,667 | G13: =VLOOKUP($C13,'RECAP SECT'!$G$6:$CU$253,68,FALSE) -> 74.44 | H13: =VLOOKUP($C13,'RECAP SECT'!$G$6:$CU$253,69,FALSE) -> 46% | I13: =VLOOKUP($C13,'RECAP SECT'!$G$6:$CU$253,70,FALSE) -> 12 | J13: =VLOOKUP($C13,'RECAP SECT'!$G$6:$CU$253,71,FALSE) -> 1,183 | K13: =VLOOKUP($C13,'RECAP SECT'!$G$6:$CU$253,72,FALSE) -> 24.02 | L13: =VLOOKUP($C13,'RECAP SECT'!$G$6:$CU$253,73,FALSE) -> 30% | M13: =VLOOKUP($C13,'RECAP SECT'!$G$6:$CU$253,74,FALSE) -> 13 | N13: =VLOOKUP($C13,'RECAP SECT'!$G$6:$CU$253,75,FALSE) -> 40% | O13: =VLOOKUP($C13,'RECAP SECT'!$G$6:$CU$253,76,FALSE) -> 40% | P13: =VLOOKUP($C13,'RECAP SECT'!$G$6:$CU$253,77,FALSE) -> 12
A14: 262 | B14: BAS-RHIN | C14: 5006 | D14: STRASBOURG | E14: =VLOOKUP($C14,'RECAP SECT'!$G$6:$CU$253,3,FALSE) -> 65.0 | F14: =VLOOKUP($C14,'RECAP SECT'!$G$6:$CU$253,67,FALSE) -> 6,117 | G14: =VLOOKUP($C14,'RECAP SECT'!$G$6:$CU$253,68,FALSE) -> 94.17 | H14: =VLOOKUP($C14,'RECAP SECT'!$G$6:$CU$253,69,FALSE) -> 32% | I14: =VLOOKUP($C14,'RECAP SECT'!$G$6:$CU$253,70,FALSE) -> 6 | J14: =VLOOKUP($C14,'RECAP SECT'!$G$6:$CU$253,71,FALSE) -> 2,159 | K14: =VLOOKUP($C14,'RECAP SECT'!$G$6:$CU$253,72,FALSE) -> 33.24 | L14: =VLOOKUP($C14,'RECAP SECT'!$G$6:$CU$253,73,FALSE) -> 3% | M14: =VLOOKUP($C14,'RECAP SECT'!$G$6:$CU$253,74,FALSE) -> 3 | N14: =VLOOKUP($C14,'RECAP SECT'!$G$6:$CU$253,75,FALSE) -> 21% | O14: =VLOOKUP($C14,'RECAP SECT'!$G$6:$CU$253,76,FALSE) -> 21% | P14: =VLOOKUP($C14,'RECAP SECT'!$G$6:$CU$253,77,FALSE) -> 5
A15: 264 | B15: HAUT-RHIN | C15: 5130 | D15: COLMAR | E15: =VLOOKUP($C15,'RECAP SECT'!$G$6:$CU$253,3,FALSE) -> 49.9 | F15: =VLOOKUP($C15,'RECAP SECT'!$G$6:$CU$253,67,FALSE) -> 2,916 | G15: =VLOOKUP($C15,'RECAP SECT'!$G$6:$CU$253,68,FALSE) -> 58.50 | H15: =VLOOKUP($C15,'RECAP SECT'!$G$6:$CU$253,69,FALSE) -> 58% | I15: =VLOOKUP($C15,'RECAP SECT'!$G$6:$CU$253,70,FALSE) -> 16 | J15: =VLOOKUP($C15,'RECAP SECT'!$G$6:$CU$253,71,FALSE) -> 1,038 | K15: =VLOOKUP($C15,'RECAP SECT'!$G$6:$CU$253,72,FALSE) -> 20.82 | L15: =VLOOKUP($C15,'RECAP SECT'!$G$6:$CU$253,73,FALSE) -> 39% | M15: =VLOOKUP($C15,'RECAP SECT'!$G$6:$CU$253,74,FALSE) -> 18 | N15: =VLOOKUP($C15,'RECAP SECT'!$G$6:$CU$253,75,FALSE) -> 51% | O15: =VLOOKUP($C15,'RECAP SECT'!$G$6:$CU$253,76,FALSE) -> 51% | P15: =VLOOKUP($C15,'RECAP SECT'!$G$6:$CU$253,77,FALSE) -> 16
A16: 264 | B16: HAUT-RHIN | C16: 5169 | D16: MULHOUSE | E16: =VLOOKUP($C16,'RECAP SECT'!$G$6:$CU$253,3,FALSE) -> 45.4 | F16: =VLOOKUP($C16,'RECAP SECT'!$G$6:$CU$253,67,FALSE) -> 1,205 | G16: =VLOOKUP($C16,'RECAP SECT'!$G$6:$CU$253,68,FALSE) -> 26.52 | H16: =VLOOKUP($C16,'RECAP SECT'!$G$6:$CU$253,69,FALSE) -> 81% | I16: =VLOOKUP($C16,'RECAP SECT'!$G$6:$CU$253,70,FALSE) -> 18 | J16: =VLOOKUP($C16,'RECAP SECT'!$G$6:$CU$253,71,FALSE) -> 1,016 | K16: =VLOOKUP($C16,'RECAP SECT'!$G$6:$CU$253,72,FALSE) -> 22.36 | L16: =VLOOKUP($C16,'RECAP SECT'!$G$6:$CU$253,73,FALSE) -> 35% | M16: =VLOOKUP($C16,'RECAP SECT'!$G$6:$CU$253,74,FALSE) -> 15 | N16: =VLOOKUP($C16,'RECAP SECT'!$G$6:$CU$253,75,FALSE) -> 63% | O16: =VLOOKUP($C16,'RECAP SECT'!$G$6:$CU$253,76,FALSE) -> 63% | P16: =VLOOKUP($C16,'RECAP SECT'!$G$6:$CU$253,77,FALSE) -> 18
A17: 30 | B17: MARNE-ARDENNES | C17: 6 | D17: CHALONS EN CHAMPAGNE | E17: =VLOOKUP($C17,'RECAP SECT'!$G$6:$CU$253,3,FALSE) -> 38.6 | F17: =VLOOKUP($C17,'RECAP SECT'!$G$6:$CU$253,67,FALSE) -> 3,992 | G17: =VLOOKUP($C17,'RECAP SECT'!$G$6:$CU$253,68,FALSE) -> 103.53 | H17: =VLOOKUP($C17,'RECAP SECT'!$G$6:$CU$253,69,FALSE) -> 26% | I17: =VLOOKUP($C17,'RECAP SECT'!$G$6:$CU$253,70,FALSE) -> 5 | J17: =VLOOKUP($C17,'RECAP SECT'!$G$6:$CU$253,71,FALSE) -> 1,064 | K17: =VLOOKUP($C17,'RECAP SECT'!$G$6:$CU$253,72,FALSE) -> 27.59 | L17: =VLOOKUP($C17,'RECAP SECT'!$G$6:$CU$253,73,FALSE) -> 20% | M17: =VLOOKUP($C17,'RECAP SECT'!$G$6:$CU$253,74,FALSE) -> 7 | N17: =VLOOKUP($C17,'RECAP SECT'!$G$6:$CU$253,75,FALSE) -> 23% | O17: =VLOOKUP($C17,'RECAP SECT'!$G$6:$CU$253,76,FALSE) -> 23% | P17: =VLOOKUP($C17,'RECAP SECT'!$G$6:$CU$253,77,FALSE) -> 6
A18: 30 | B18: MARNE-ARDENNES | C18: 2 | D18: CHARLEVILLE MEZIERES | E18: =VLOOKUP($C18,'RECAP SECT'!$G$6:$CU$253,3,FALSE) -> 48.5 | F18: =VLOOKUP($C18,'RECAP SECT'!$G$6:$CU$253,67,FALSE) -> 6,437 | G18: =VLOOKUP($C18,'RECAP SECT'!$G$6:$CU$253,68,FALSE) -> 132.64 | H18: =VLOOKUP($C18,'RECAP SECT'!$G$6:$CU$253,69,FALSE) -> 5% | I18: =VLOOKUP($C18,'RECAP SECT'!$G$6:$CU$253,70,FALSE) -> 2 | J18: =VLOOKUP($C18,'RECAP SECT'!$G$6:$CU$253,71,FALSE) -> 1,470 | K18: =VLOOKUP($C18,'RECAP SECT'!$G$6:$CU$253,72,FALSE) -> 30.29 | L18: =VLOOKUP($C18,'RECAP SECT'!$G$6:$CU$253,73,FALSE) -> 12% | M18: =VLOOKUP($C18,'RECAP SECT'!$G$6:$CU$253,74,FALSE) -> 5 | N18: =VLOOKUP($C18,'RECAP SECT'!$G$6:$CU$253,75,FALSE) -> 8% | O18: =VLOOKUP($C18,'RECAP SECT'!$G$6:$CU$253,76,FALSE) -> 8% | P18: =VLOOKUP($C18,'RECAP SECT'!$G$6:$CU$253,77,FALSE) -> 2
A19: 30 | B19: MARNE-ARDENNES | C19: 11 | D19: REIMS | E19: =VLOOKUP($C19,'RECAP SECT'!$G$6:$CU$253,3,FALSE) -> 69.0 | F19: =VLOOKUP($C19,'RECAP SECT'!$G$6:$CU$253,67,FALSE) -> 7,659 | G19: =VLOOKUP($C19,'RECAP SECT'!$G$6:$CU$253,68,FALSE) -> 111.08 | H19: =VLOOKUP($C19,'RECAP SECT'!$G$6:$CU$253,69,FALSE) -> 20% | I19: =VLOOKUP($C19,'RECAP SECT'!$G$6:$CU$253,70,FALSE) -> 4 | J19: =VLOOKUP($C19,'RECAP SECT'!$G$6:$CU$253,71,FALSE) -> 2,311 | K19: =VLOOKUP($C19,'RECAP SECT'!$G$6:$CU$253,72,FALSE) -> 33.52 | L19: =VLOOKUP($C19,'RECAP SECT'!$G$6:$CU$253,73,FALSE) -> 2% | M19: =VLOOKUP($C19,'RECAP SECT'!$G$6:$CU$253,74,FALSE) -> 2 | N19: =VLOOKUP($C19,'RECAP SECT'!$G$6:$CU$253,75,FALSE) -> 13% | O19: =VLOOKUP($C19,'RECAP SECT'!$G$6:$CU$253,76,FALSE) -> 13% | P19: =VLOOKUP($C19,'RECAP SECT'!$G$6:$CU$253,77,FALSE) -> 3
A20: 110 | B20: MEURTHE ET MOSELLE MEUSE | C20: 26 | D20: NANCY | E20: =VLOOKUP($C20,'RECAP SECT'!$G$6:$CU$253,3,FALSE) -> 55.0 | F20: =VLOOKUP($C20,'RECAP SECT'!$G$6:$CU$253,67,FALSE) -> 4,234 | G20: =VLOOKUP($C20,'RECAP SECT'!$G$6:$CU$253,68,FALSE) -> 76.98 | H20: =VLOOKUP($C20,'RECAP SECT'!$G$6:$CU$253,69,FALSE) -> 45% | I20: =VLOOKUP($C20,'RECAP SECT'!$G$6:$CU$253,70,FALSE) -> 10 | J20: =VLOOKUP($C20,'RECAP SECT'!$G$6:$CU$253,71,FALSE) -> 1,515 | K20: =VLOOKUP($C20,'RECAP SECT'!$G$6:$CU$253,72,FALSE) -> 27.55 | L20: =VLOOKUP($C20,'RECAP SECT'!$G$6:$CU$253,73,FALSE) -> 20% | M20: =VLOOKUP($C20,'RECAP SECT'!$G$6:$CU$253,74,FALSE) -> 8 | N20: =VLOOKUP($C20,'RECAP SECT'!$G$6:$CU$253,75,FALSE) -> 35% | O20: =VLOOKUP($C20,'RECAP SECT'!$G$6:$CU$253,76,FALSE) -> 35% | P20: =VLOOKUP($C20,'RECAP SECT'!$G$6:$CU$253,77,FALSE) -> 10
A21: 110 | B21: MEURTHE ET MOSELLE MEUSE | C21: 27 | D21: PONT A MOUSSON | E21: =VLOOKUP($C21,'RECAP SECT'!$G$6:$CU$253,3,FALSE) -> 59.5 | F21: =VLOOKUP($C21,'RECAP SECT'!$G$6:$CU$253,67,FALSE) -> 5,509 | G21: =VLOOKUP($C21,'RECAP SECT'!$G$6:$CU$253,68,FALSE) -> 92.56 | H21: =VLOOKUP($C21,'RECAP SECT'!$G$6:$CU$253,69,FALSE) -> 33% | I21: =VLOOKUP($C21,'RECAP SECT'!$G$6:$CU$253,70,FALSE) -> 7 | J21: =VLOOKUP($C21,'RECAP SECT'!$G$6:$CU$253,71,FALSE) -> 1,814 | K21: =VLOOKUP($C21,'RECAP SECT'!$G$6:$CU$253,72,FALSE) -> 30.48 | L21: =VLOOKUP($C21,'RECAP SECT'!$G$6:$CU$253,73,FALSE) -> 11% | M21: =VLOOKUP($C21,'RECAP SECT'!$G$6:$CU$253,74,FALSE) -> 4 | N21: =VLOOKUP($C21,'RECAP SECT'!$G$6:$CU$253,75,FALSE) -> 25% | O21: =VLOOKUP($C21,'RECAP SECT'!$G$6:$CU$253,76,FALSE) -> 25% | P21: =VLOOKUP($C21,'RECAP SECT'!$G$6:$CU$253,77,FALSE) -> 7
A22: 110 | B22: MEURTHE ET MOSELLE MEUSE | C22: 31 | D22: VERDUN | E22: =VLOOKUP($C22,'RECAP SECT'!$G$6:$CU$253,3,FALSE) -> 48.3 | F22: =VLOOKUP($C22,'RECAP SECT'!$G$6:$CU$253,67,FALSE) -> 3,679 | G22: =VLOOKUP($C22,'RECAP SECT'!$G$6:$CU$253,68,FALSE) -> 76.25 | H22: =VLOOKUP($C22,'RECAP SECT'!$G$6:$CU$253,69,FALSE) -> 45% | I22: =VLOOKUP($C22,'RECAP SECT'!$G$6:$CU$253,70,FALSE) -> 11 | J22: =VLOOKUP($C22,'RECAP SECT'!$G$6:$CU$253,71,FALSE) -> 1,187 | K22: =VLOOKUP($C22,'RECAP SECT'!$G$6:$CU$253,72,FALSE) -> 24.60 | L22: =VLOOKUP($C22,'RECAP SECT'!$G$6:$CU$253,73,FALSE) -> 28% | M22: =VLOOKUP($C22,'RECAP SECT'!$G$6:$CU$253,74,FALSE) -> 10 | N22: =VLOOKUP($C22,'RECAP SECT'!$G$6:$CU$253,75,FALSE) -> 38% | O22: =VLOOKUP($C22,'RECAP SECT'!$G$6:$CU$253,76,FALSE) -> 38% | P22: =VLOOKUP($C22,'RECAP SECT'!$G$6:$CU$253,77,FALSE) -> 11
A23: 160 | B23: MOSELLE | C23: 45 | D23: METZ | E23: =VLOOKUP($C23,'RECAP SECT'!$G$6:$CU$253,3,FALSE) -> 72.9 | F23: =VLOOKUP($C23,'RECAP SECT'!$G$6:$CU$253,67,FALSE) -> 6,492 | G23: =VLOOKUP($C23,'RECAP SECT'!$G$6:$CU$253,68,FALSE) -> 89.08 | H23: =VLOOKUP($C23,'RECAP SECT'!$G$6:$CU$253,69,FALSE) -> 36% | I23: =VLOOKUP($C23,'RECAP SECT'!$G$6:$CU$253,70,FALSE) -> 9 | J23: =VLOOKUP($C23,'RECAP SECT'!$G$6:$CU$253,71,FALSE) -> 1,960 | K23: =VLOOKUP($C23,'RECAP SECT'!$G$6:$CU$253,72,FALSE) -> 26.89 | L23: =VLOOKUP($C23,'RECAP SECT'!$G$6:$CU$253,73,FALSE) -> 22% | M23: =VLOOKUP($C23,'RECAP SECT'!$G$6:$CU$253,74,FALSE) -> 9 | N23: =VLOOKUP($C23,'RECAP SECT'!$G$6:$CU$253,75,FALSE) -> 30% | O23: =VLOOKUP($C23,'RECAP SECT'!$G$6:$CU$253,76,FALSE) -> 30% | P23: =VLOOKUP($C23,'RECAP SECT'!$G$6:$CU$253,77,FALSE) -> 8
A24: 160 | B24: MOSELLE | C24: 42 | D24: MOSELLE EST | E24: =VLOOKUP($C24,'RECAP SECT'!$G$6:$CU$253,3,FALSE) -> 60.1 | F24: =VLOOKUP($C24,'RECAP SECT'!$G$6:$CU$253,67,FALSE) -> 7,080 | G24: =VLOOKUP($C24,'RECAP SECT'!$G$6:$CU$253,68,FALSE) -> 117.86 | H24: =VLOOKUP($C24,'RECAP SECT'!$G$6:$CU$253,69,FALSE) -> 15% | I24: =VLOOKUP($C24,'RECAP SECT'!$G$6:$CU$253,70,FALSE) -> 3 | J24: =VLOOKUP($C24,'RECAP SECT'!$G$6:$CU$253,71,FALSE) -> 1,761 | K24: =VLOOKUP($C24,'RECAP SECT'!$G$6:$CU$253,72,FALSE) -> 29.32 | L24: =VLOOKUP($C24,'RECAP SECT'!$G$6:$CU$253,73,FALSE) -> 15% | M24: =VLOOKUP($C24,'RECAP SECT'!$G$6:$CU$253,74,FALSE) -> 6 | N24: =VLOOKUP($C24,'RECAP SECT'!$G$6:$CU$253,75,FALSE) -> 15% | O24: =VLOOKUP($C24,'RECAP SECT'!$G$6:$CU$253,76,FALSE) -> 15% | P24: =VLOOKUP($C24,'RECAP SECT'!$G$6:$CU$253,77,FALSE) -> 4
A25: 160 | B25: MOSELLE | C25: 44 | D25: MOSELLE NORD | E25: =VLOOKUP($C25,'RECAP SECT'!$G$6:$CU$253,3,FALSE) -> 57.3 | F25: =VLOOKUP($C25,'RECAP SECT'!$G$6:$CU$253,67,FALSE) -> 7,970 | G25: =VLOOKUP($C25,'RECAP SECT'!$G$6:$CU$253,68,FALSE) -> 139.14 | H25: =VLOOKUP($C25,'RECAP SECT'!$G$6:$CU$253,69,FALSE) -> 0% | I25: =VLOOKUP($C25,'RECAP SECT'!$G$6:$CU$253,70,FALSE) -> 1 | J25: =VLOOKUP($C25,'RECAP SECT'!$G$6:$CU$253,71,FALSE) -> 1,967 | K25: =VLOOKUP($C25,'RECAP SECT'!$G$6:$CU$253,72,FALSE) -> 34.34 | L25: =VLOOKUP($C25,'RECAP SECT'!$G$6:$CU$253,73,FALSE) -> 0% | M25: =VLOOKUP($C25,'RECAP SECT'!$G$6:$CU$253,74,FALSE) -> 1 | N25: =VLOOKUP($C25,'RECAP SECT'!$G$6:$CU$253,75,FALSE) -> 0% | O25: =VLOOKUP($C25,'RECAP SECT'!$G$6:$CU$253,76,FALSE) -> 0% | P25: =VLOOKUP($C25,'RECAP SECT'!$G$6:$CU$253,77,FALSE) -> 1
A26: 80 | B26: VOSGES | C26: 57 | D26: EPINAL | E26: =VLOOKUP($C26,'RECAP SECT'!$G$6:$CU$253,3,FALSE) -> 53.2 | F26: =VLOOKUP($C26,'RECAP SECT'!$G$6:$CU$253,67,FALSE) -> 3,820 | G26: =VLOOKUP($C26,'RECAP SECT'!$G$6:$CU$253,68,FALSE) -> 71.80 | H26: =VLOOKUP($C26,'RECAP SECT'!$G$6:$CU$253,69,FALSE) -> 48% | I26: =VLOOKUP($C26,'RECAP SECT'!$G$6:$CU$253,70,FALSE) -> 13 | J26: =VLOOKUP($C26,'RECAP SECT'!$G$6:$CU$253,71,FALSE) -> 1,217 | K26: =VLOOKUP($C26,'RECAP SECT'!$G$6:$CU$253,72,FALSE) -> 22.88 | L26: =VLOOKUP($C26,'RECAP SECT'!$G$6:$CU$253,73,FALSE) -> 33% | M26: =VLOOKUP($C26,'RECAP SECT'!$G$6:$CU$253,74,FALSE) -> 14 | N26: =VLOOKUP($C26,'RECAP SECT'!$G$6:$CU$253,75,FALSE) -> 42% | O26: =VLOOKUP($C26,'RECAP SECT'!$G$6:$CU$253,76,FALSE) -> 42% | P26: =VLOOKUP($C26,'RECAP SECT'!$G$6:$CU$253,77,FALSE) -> 14
A27: 80 | B27: VOSGES | C27: 55 | D27: SAINT DIE | E27: =VLOOKUP($C27,'RECAP SECT'!$G$6:$CU$253,3,FALSE) -> 39.7 | F27: =VLOOKUP($C27,'RECAP SECT'!$G$6:$CU$253,67,FALSE) -> 2,089 | G27: =VLOOKUP($C27,'RECAP SECT'!$G$6:$CU$253,68,FALSE) -> 52.63 | H27: =VLOOKUP($C27,'RECAP SECT'!$G$6:$CU$253,69,FALSE) -> 62% | I27: =VLOOKUP($C27,'RECAP SECT'!$G$6:$CU$253,70,FALSE) -> 17 | J27: =VLOOKUP($C27,'RECAP SECT'!$G$6:$CU$253,71,FALSE) -> 846 | K27: =VLOOKUP($C27,'RECAP SECT'!$G$6:$CU$253,72,FALSE) -> 21.32 | L27: =VLOOKUP($C27,'RECAP SECT'!$G$6:$CU$253,73,FALSE) -> 38% | M27: =VLOOKUP($C27,'RECAP SECT'!$G$6:$CU$253,74,FALSE) -> 17 | N27: =VLOOKUP($C27,'RECAP SECT'!$G$6:$CU$253,75,FALSE) -> 52% | O27: =VLOOKUP($C27,'RECAP SECT'!$G$6:$CU$253,76,FALSE) -> 52% | P27: =VLOOKUP($C27,'RECAP SECT'!$G$6:$CU$253,77,FALSE) -> 17
A28: Total CEGEE Directions Régionales | E28: =SUM(E10:E27) -> 956

Sheet SE_SATISFACTION
B1: Accueil | F1: BAROMETRE BDD - TERRITOIRES
F2: SATISFACTION
F3: =ACCUEIL!F7 -> 2022-06-05
F7: NPS à froid (SAE) | I7: NPS à chaud (QHD) | L7: Total Satisfaction Clients
F8: =DATEMAJ!E4 -> au 30/04 | G8: coef | H8: ='RECAP DIRCOM'!M4 -> 10% | I8: =DATEMAJ!C5 -> au 30/04 | J8: coef | K8: ='RECAP DIRCOM'!P4 -> 10% | M8: coef | N8: ='RECAP DIRCOM'!S4 -> 20%
B9: Direction | C9: eds | D9: Territoire | E9: ="ETP perf "&DATEMAJ!$C$28 -> ETP perf 05-juin | G9: % Ecart au 1er | H9: Rang | J9: % Ecart au 1er | K9: Rang | L9: Moyenne ecart au 1er | M9: % Ecart au 1er | N9: Rang CEGEE
A10: 50 | B10: AUBE HAUTE MARNE | C10: 21 | D10: CHAUMONT | E10: =VLOOKUP($C10,'RECAP SECT'!$G$6:$CU$253,3,FALSE) -> 33.7 | F10: =VLOOKUP($C10,'RECAP SECT'!$G$6:$CU$253,5,FALSE) -> 15.25 | G10: =VLOOKUP($C10,'RECAP SECT'!$G$6:$CU$253,6,FALSE) -> 42% | H10: =VLOOKUP($C10,'RECAP SECT'!$G$6:$CU$253,7,FALSE) -> 8 | I10: =VLOOKUP($C10,'RECAP SECT'!$G$6:$CU$253,8,FALSE) -> 64% | J10: =VLOOKUP($C10,'RECAP SECT'!$G$6:$CU$253,9,FALSE) -> 14% | K10: =VLOOKUP($C10,'RECAP SECT'!$G$6:$CU$253,10,FALSE) -> 8 | L10: =VLOOKUP($C10,'RECAP SECT'!$G$6:$CU$253,11,FALSE) -> 28% | M10: =VLOOKUP($C10,'RECAP SECT'!$G$6:$CU$253,12,FALSE) -> 24% | N10: =VLOOKUP($C10,'RECAP SECT'!$G$6:$CU$253,13,FALSE) -> 8
A11: 50 | B11: AUBE HAUTE MARNE | C11: 14 | D11: TROYES | E11: =VLOOKUP($C11,'RECAP SECT'!$G$6:$CU$253,3,FALSE) -> 54.1 | F11: =VLOOKUP($C11,'RECAP SECT'!$G$6:$CU$253,5,FALSE) -> 0 | G11: =VLOOKUP($C11,'RECAP SECT'!$G$6:$CU$253,6,FALSE) -> 100% | H11: =VLOOKUP($C11,'RECAP SECT'!$G$6:$CU$253,7,FALSE) -> 18 | I11: =VLOOKUP($C11,'RECAP SECT'!$G$6:$CU$253,8,FALSE) -> 48% | J11: =VLOOKUP($C11,'RECAP SECT'!$G$6:$CU$253,9,FALSE) -> 36% | K11: =VLOOKUP($C11,'RECAP SECT'!$G$6:$CU$253,10,FALSE) -> 17 | L11: =VLOOKUP($C11,'RECAP SECT'!$G$6:$CU$253,11,FALSE) -> 68% | M11: =VLOOKUP($C11,'RECAP SECT'!$G$6:$CU$253,12,FALSE) -> 64% | N11: =VLOOKUP($C11,'RECAP SECT'!$G$6:$CU$253,13,FALSE) -> 18
A12: 262 | B12: BAS-RHIN | C12: 5060 | D12: HAGUENAU | E12: =VLOOKUP($C12,'RECAP SECT'!$G$6:$CU$253,3,FALSE) -> 56.2 | F12: =VLOOKUP($C12,'RECAP SECT'!$G$6:$CU$253,5,FALSE) -> 11.25 | G12: =VLOOKUP($C12,'RECAP SECT'!$G$6:$CU$253,6,FALSE) -> 58% | H12: =VLOOKUP($C12,'RECAP SECT'!$G$6:$CU$253,7,FALSE) -> 11 | I12: =VLOOKUP($C12,'RECAP SECT'!$G$6:$CU$253,8,FALSE) -> 61% | J12: =VLOOKUP($C12,'RECAP SECT'!$G$6:$CU$253,9,FALSE) -> 18% | K12: =VLOOKUP($C12,'RECAP SECT'!$G$6:$CU$253,10,FALSE) -> 11 | L12: =VLOOKUP($C12,'RECAP SECT'!$G$6:$CU$253,11,FALSE) -> 38% | M12: =VLOOKUP($C12,'RECAP SECT'!$G$6:$CU$253,12,FALSE) -> 33% | N12: =VLOOKUP($C12,'RECAP SECT'!$G$6:$CU$253,13,FALSE) -> 11
A13: 262 | B13: BAS-RHIN | C13: 5101 | D13: SELESTAT | E13: =VLOOKUP($C13,'RECAP SECT'!$G$6:$CU$253,3,FALSE) -> 49.3 | F13: =VLOOKUP($C13,'RECAP SECT'!$G$6:$CU$253,5,FALSE) -> 0.75 | G13: =VLOOKUP($C13,'RECAP SECT'!$G$6:$CU$253,6,FALSE) -> 97% | H13: =VLOOKUP($C13,'RECAP SECT'!$G$6:$CU$253,7,FALSE) -> 17 | I13: =VLOOKUP($C13,'RECAP SECT'!$G$6:$CU$253,8,FALSE) -> 58% | J13: =VLOOKUP($C13,'RECAP SECT'!$G$6:$CU$253,9,FALSE) -> 23% | K13: =VLOOKUP($C13,'RECAP SECT'!$G$6:$CU$253,10,FALSE) -> 14 | L13: =VLOOKUP($C13,'RECAP SECT'!$G$6:$CU$253,11,FALSE) -> 60% | M13: =VLOOKUP($C13,'RECAP SECT'!$G$6:$CU$253,12,FALSE) -> 56% | N13: =VLOOKUP($C13,'RECAP SECT'!$G$6:$CU$253,13,FALSE) -> 16
A14: 262 | B14: BAS-RHIN | C14: 5006 | D14: STRASBOURG | E14: =VLOOKUP($C14,'RECAP SECT'!$G$6:$CU$253,3,FALSE) -> 65.0 | F14: =VLOOKUP($C14,'RECAP SECT'!$G$6:$CU$253,5,FALSE) -> 12.25 | G14: =VLOOKUP($C14,'RECAP SECT'!$G$6:$CU$253,6,FALSE) -> 54% | H14: =VLOOKUP($C14,'RECAP SECT'!$G$6:$CU$253,7,FALSE) -> 10 | I14: =VLOOKUP($C14,'RECAP SECT'!$G$6:$CU$253,8,FALSE) -> 64% | J14: =VLOOKUP($C14,'RECAP SECT'!$G$6:$CU$253,9,FALSE) -> 14% | K14: =VLOOKUP($C14,'RECAP SECT'!$G$6:$CU$253,10,FALSE) -> 7 | L14: =VLOOKUP($C14,'RECAP SECT'!$G$6:$CU$253,11,FALSE) -> 34% | M14: =VLOOKUP($C14,'RECAP SECT'!$G$6:$CU$253,12,FALSE) -> 29% | N14: =VLOOKUP($C14,'RECAP SECT'!$G$6:$CU$253,13,FALSE) -> 10
A15: 264 | B15: HAUT-RHIN | C15: 5130 | D15: COLMAR | E15: =VLOOKUP($C15,'RECAP SECT'!$G$6:$CU$253,3,FALSE) -> 49.9 | F15: =VLOOKUP($C15,'RECAP SECT'!$G$6:$CU$253,5,FALSE) -> 3.25 | G15: =VLOOKUP($C15,'RECAP SECT'!$G$6:$CU$253,6,FALSE) -> 88% | H15: =VLOOKUP($C15,'RECAP SECT'!$G$6:$CU$253,7,FALSE) -> 16 | I15: =VLOOKUP($C15,'RECAP SECT'!$G$6:$CU$253,8,FALSE) -> 53% | J15: =VLOOKUP($C15,'RECAP SECT'!$G$6:$CU$253,9,FALSE) -> 29% | K15: =VLOOKUP($C15,'RECAP SECT'!$G$6:$CU$253,10,FALSE) -> 15 | L15: =VLOOKUP($C15,'RECAP SECT'!$G$6:$CU$253,11,FALSE) -> 58% | M15: =VLOOKUP($C15,'RECAP SECT'!$G$6:$CU$253,12,FALSE) -> 54% | N15: =VLOOKUP($C15,'RECAP SECT'!$G$6:$CU$253,13,FALSE) -> 14
A16: 264 | B16: HAUT-RHIN | C16: 5169 | D16: MULHOUSE | E16: =VLOOKUP($C16,'RECAP SECT'!$G$6:$CU$253,3,FALSE) -> 45.4 | F16: =VLOOKUP($C16,'RECAP SECT'!$G$6:$CU$253,5,FALSE) -> 3.5 | G16: =VLOOKUP($C16,'RECAP SECT'!$G$6:$CU$253,6,FALSE) -> 87% | H16: =VLOOKUP($C16,'RECAP SECT'!$G$6:$CU$253,7,FALSE) -> 14 | I16: =VLOOKUP($C16,'RECAP SECT'!$G$6:$CU$253,8,FALSE) -> 47% | J16: =VLOOKUP($C16,'RECAP SECT'!$G$6:$CU$253,9,FALSE) -> 37% | K16: =VLOOKUP($C16,'RECAP SECT'!$G$6:$CU$253,10,FALSE) -> 18 | L16: =VLOOKUP($C16,'RECAP SECT'!$G$6:$CU$253,11,FALSE) -> 62% | M16: =VLOOKUP($C16,'RECAP SECT'!$G$6:$CU$253,12,FALSE) -> 57% | N16: =VLOOKUP($C16,'RECAP SECT'!$G$6:$CU$253,13,FALSE) -> 17
A17: 30 | B17: MARNE-ARDENNES | C17: 6 | D17: CHALONS EN CHAMPAGNE | E17: =VLOOKUP($C17,'RECAP SECT'!$G$6:$CU$253,3,FALSE) -> 38.6 | F17: =VLOOKUP($C17,'RECAP SECT'!$G$6:$CU$253,5,FALSE) -> 22.5 | G17: =VLOOKUP($C17,'RECAP SECT'!$G$6:$CU$253,6,FALSE) -> 15% | H17: =VLOOKUP($C17,'RECAP SECT'!$G$6:$CU$253,7,FALSE) -> 2 | I17: =VLOOKUP($C17,'RECAP SECT'!$G$6:$CU$253,8,FALSE) -> 75% | J17: =VLOOKUP($C17,'RECAP SECT'!$G$6:$CU$253,9,FALSE) -> 0% | K17: =VLOOKUP($C17,'RECAP SECT'!$G$6:$CU$253,10,FALSE) -> 1 | L17: =VLOOKUP($C17,'RECAP SECT'!$G$6:$CU$253,11,FALSE) -> 8% | M17: =VLOOKUP($C17,'RECAP SECT'!$G$6:$CU$253,12,FALSE) -> 3% | N17: =VLOOKUP($C17,'RECAP SECT'!$G$6:$CU$253,13,FALSE) -> 2
A18: 30 | B18: MARNE-ARDENNES | C18: 2 | D18: CHARLEVILLE MEZIERES | E18: =VLOOKUP($C18,'RECAP SECT'!$G$6:$CU$253,3,FALSE) -> 48.5 | F18: =VLOOKUP($C18,'RECAP SECT'!$G$6:$CU$253,5,FALSE) -> 13.25 | G18: =VLOOKUP($C18,'RECAP SECT'!$G$6:$CU$253,6,FALSE) -> 50% | H18: =VLOOKUP($C18,'RECAP SECT'!$G$6:$CU$253,7,FALSE) -> 9 | I18: =VLOOKUP($C18,'RECAP SECT'!$G$6:$CU$253,8,FALSE) -> 66% | J18: =VLOOKUP($C18,'RECAP SECT'!$G$6:$CU$253,9,FALSE) -> 11% | K18: =VLOOKUP($C18,'RECAP SECT'!$G$6:$CU$253,10,FALSE) -> 5 | L18: =VLOOKUP($C18,'RECAP SECT'!$G$6:$CU$253,11,FALSE) -> 31% | M18: =VLOOKUP($C18,'RECAP SECT'!$G$6:$CU$253,12,FALSE) -> 26% | N18: =VLOOKUP($C18,'RECAP SECT'!$G$6:$CU$253,13,FALSE) -> 9
A19: 30 | B19: MARNE-ARDENNES | C19: 11 | D19: REIMS | E19: =VLOOKUP($C19,'RECAP SECT'!$G$6:$CU$253,3,FALSE) -> 69.0 | F19: =VLOOKUP($C19,'RECAP SECT'!$G$6:$CU$253,5,FALSE) -> 16.25 | G19: =VLOOKUP($C19,'RECAP SECT'!$G$6:$CU$253,6,FALSE) -> 39% | H19: =VLOOKUP($C19,'RECAP SECT'!$G$6:$CU$253,7,FALSE) -> 7 | I19: =VLOOKUP($C19,'RECAP SECT'!$G$6:$CU$253,8,FALSE) -> 64% | J19: =VLOOKUP($C19,'RECAP SECT'!$G$6:$CU$253,9,FALSE) -> 15% | K19: =VLOOKUP($C19,'RECAP SECT'!$G$6:$CU$253,10,FALSE) -> 9 | L19: =VLOOKUP($C19,'RECAP SECT'!$G$6:$CU$253,11,FALSE) -> 27% | M19: =VLOOKUP($C19,'RECAP SECT'!$G$6:$CU$253,12,FALSE) -> 22% | N19: =VLOOKUP($C19,'RECAP SECT'!$G$6:$CU$253,13,FALSE) -> 7
A20: 110 | B20: MEURTHE ET MOSELLE MEUSE | C20: 26 | D20: NANCY | E20: =VLOOKUP($C20,'RECAP SECT'!$G$6:$CU$253,3,FALSE) -> 55.0 | F20: =VLOOKUP($C20,'RECAP SECT'!$G$6:$CU$253,5,FALSE) -> 9.5 | G20: =VLOOKUP($C20,'RECAP SECT'!$G$6:$CU$253,6,FALSE) -> 64% | H20: =VLOOKUP($C20,'RECAP SECT'!$G$6:$CU$253,7,FALSE) -> 13 | I20: =VLOOKUP($C20,'RECAP SECT'!$G$6:$CU$253,8,FALSE) -> 60% | J20: =VLOOKUP($C20,'RECAP SECT'!$G$6:$CU$253,9,FALSE) -> 19% | K20: =VLOOKUP($C20,'RECAP SECT'!$G$6:$CU$253,10,FALSE) -> 13 | L20: =VLOOKUP($C20,'RECAP SECT'!$G$6:$CU$253,11,FALSE) -> 42% | M20: =VLOOKUP($C20,'RECAP SECT'!$G$6:$CU$253,12,FALSE) -> 37% | N20: =VLOOKUP($C20,'RECAP SECT'!$G$6:$CU$253,13,FALSE) -> 13
A21: 110 | B21: MEURTHE ET MOSELLE MEUSE | C21: 27 | D21: PONT A MOUSSON | E21: =VLOOKUP($C21,'RECAP SECT'!$G$6:$CU$253,3,FALSE) -> 59.5 | F21: =VLOOKUP($C21,'RECAP SECT'!$G$6:$CU$253,5,FALSE) -> 3.5 | G21: =VLOOKUP($C21,'RECAP SECT'!$G$6:$CU$253,6,FALSE) -> 87% | H21: =VLOOKUP($C21,'RECAP SECT'!$G$6:$CU$253,7,FALSE) -> 14 | I21: =VLOOKUP($C21,'RECAP SECT'!$G$6:$CU$253,8,FALSE) -> 52% | J21: =VLOOKUP($C21,'RECAP SECT'!$G$6:$CU$253,9,FALSE) -> 30% | K21: =VLOOKUP($C21,'RECAP SECT'!$G$6:$CU$253,10,FALSE) -> 16 | L21: =VLOOKUP($C21,'RECAP SECT'!$G$6:$CU$253,11,FALSE) -> 59% | M21: =VLOOKUP($C21,'RECAP SECT'!$G$6:$CU$253,12,FALSE) -> 54% | N21: =VLOOKUP($C21,'RECAP SECT'!$G$6:$CU$253,13,FALSE) -> 15
A22: 110 | B22: MEURTHE ET MOSELLE MEUSE | C22: 31 | D22: VERDUN | E22: =VLOOKUP($C22,'RECAP SECT'!$G$6:$CU$253,3,FALSE) -> 48.3 | F22: =VLOOKUP($C22,'RECAP SECT'!$G$6:$CU$253,5,FALSE) -> 17 | G22: =VLOOKUP($C22,'RECAP SECT'!$G$6:$CU$253,6,FALSE) -> 36% | H22: =VLOOKUP($C22,'RECAP SECT'!$G$6:$CU$253,7,FALSE) -> 6 | I22: =VLOOKUP($C22,'RECAP SECT'!$G$6:$CU$253,8,FALSE) -> 65% | J22: =VLOOKUP($C22,'RECAP SECT'!$G$6:$CU$253,9,FALSE) -> 13% | K22: =VLOOKUP($C22,'RECAP SECT'!$G$6:$CU$253,10,FALSE) -> 6 | L22: =VLOOKUP($C22,'RECAP SECT'!$G$6:$CU$253,11,FALSE) -> 24% | M22: =VLOOKUP($C22,'RECAP SECT'!$G$6:$CU$253,12,FALSE) -> 20% | N22: =VLOOKUP($C22,'RECAP SECT'!$G$6:$CU$253,13,FALSE) -> 5
A23: 160 | B23: MOSELLE | C23: 45 | D23: METZ | E23: =VLOOKUP($C23,'RECAP SECT'!$G$6:$CU$253,3,FALSE) -> 72.9 | F23: =VLOOKUP($C23,'RECAP SECT'!$G$6:$CU$253,5,FALSE) -> 17.75 | G23: =VLOOKUP($C23,'RECAP SECT'!$G$6:$CU$253,6,FALSE) -> 33% | H23: =VLOOKUP($C23,'RECAP SECT'!$G$6:$CU$253,7,FALSE) -> 4 | I23: =VLOOKUP($C23,'RECAP SECT'!$G$6:$CU$253,8,FALSE) -> 61% | J23: =VLOOKUP($C23,'RECAP SECT'!$G$6:$CU$253,9,FALSE) -> 19% | K23: =VLOOKUP($C23,'RECAP SECT'!$G$6:$CU$253,10,FALSE) -> 12 | L23: =VLOOKUP($C23,'RECAP SECT'!$G$6:$CU$253,11,FALSE) -> 26% | M23: =VLOOKUP($C23,'RECAP SECT'!$G$6:$CU$253,12,FALSE) -> 22% | N23: =VLOOKUP($C23,'RECAP SECT'!$G$6:$CU$253,13,FALSE) -> 6
A24: 160 | B24: MOSELLE | C24: 42 | D24: MOSELLE EST | E24: =VLOOKUP($C24,'RECAP SECT'!$G$6:$CU$253,3,FALSE) -> 60.1 | F24: =VLOOKUP($C24,'RECAP SECT'!$G$6:$CU$253,5,FALSE) -> 17.5 | G24: =VLOOKUP($C24,'RECAP SECT'!$G$6:$CU$253,6,FALSE) -> 34% | H24: =VLOOKUP($C24,'RECAP SECT'!$G$6:$CU$253,7,FALSE) -> 5 | I24: =VLOOKUP($C24,'RECAP SECT'!$G$6:$CU$253,8,FALSE) -> 68% | J24: =VLOOKUP($C24,'RECAP SECT'!$G$6:$CU$253,9,FALSE) -> 10% | K24: =VLOOKUP($C24,'RECAP SECT'!$G$6:$CU$253,10,FALSE) -> 4 | L24: =VLOOKUP($C24,'RECAP SECT'!$G$6:$CU$253,11,FALSE) -> 22% | M24: =VLOOKUP($C24,'RECAP SECT'!$G$6:$CU$253,12,FALSE) -> 17% | N24: =VLOOKUP($C24,'RECAP SECT'!$G$6:$CU$253,13,FALSE) -> 4
A25: 160 | B25: MOSELLE | C25: 44 | D25: MOSELLE NORD | E25: =VLOOKUP($C25,'RECAP SECT'!$G$6:$CU$253,3,FALSE) -> 57.3 | F25: =VLOOKUP($C25,'RECAP SECT'!$G$6:$CU$253,5,FALSE) -> 10.75 | G25: =VLOOKUP($C25,'RECAP SECT'!$G$6:$CU$253,6,FALSE) -> 59% | H25: =VLOOKUP($C25,'RECAP SECT'!$G$6:$CU$253,7,FALSE) -> 12 | I25: =VLOOKUP($C25,'RECAP SECT'!$G$6:$CU$253,8,FALSE) -> 62% | J25: =VLOOKUP($C25,'RECAP SECT'!$G$6:$CU$253,9,FALSE) -> 17% | K25: =VLOOKUP($C25,'RECAP SECT'!$G$6:$CU$253,10,FALSE) -> 10 | L25: =VLOOKUP($C25,'RECAP SECT'!$G$6:$CU$253,11,FALSE) -> 38% | M25: =VLOOKUP($C25,'RECAP SECT'!$G$6:$CU$253,12,FALSE) -> 34% | N25: =VLOOKUP($C25,'RECAP SECT'!$G$6:$CU$253,13,FALSE) -> 12
A26: 80 | B26: VOSGES | C26: 57 | D26: EPINAL | E26: =VLOOKUP($C26,'RECAP SECT'!$G$6:$CU$253,3,FALSE) -> 53.2 | F26: =VLOOKUP($C26,'RECAP SECT'!$G$6:$CU$253,5,FALSE) -> 21 | G26: =VLOOKUP($C26,'RECAP SECT'!$G$6:$CU$253,6,FALSE) -> 21% | H26: =VLOOKUP($C26,'RECAP SECT'!$G$6:$CU$253,7,FALSE) -> 3 | I26: =VLOOKUP($C26,'RECAP SECT'!$G$6:$CU$253,8,FALSE) -> 69% | J26: =VLOOKUP($C26,'RECAP SECT'!$G$6:$CU$253,9,FALSE) -> 8% | K26: =VLOOKUP($C26,'RECAP SECT'!$G$6:$CU$253,10,FALSE) -> 2 | L26: =VLOOKUP($C26,'RECAP SECT'!$G$6:$CU$253,11,FALSE) -> 14% | M26: =VLOOKUP($C26,'RECAP SECT'!$G$6:$CU$253,12,FALSE) -> 10% | N26: =VLOOKUP($C26,'RECAP SECT'!$G$6:$CU$253,13,FALSE) -> 3
A27: 80 | B27: VOSGES | C27: 55 | D27: SAINT DIE | E27: =VLOOKUP($C27,'RECAP SECT'!$G$6:$CU$253,3,FALSE) -> 39.7 | F27: =VLOOKUP($C27,'RECAP SECT'!$G$6:$CU$253,5,FALSE) -> 26.5 | G27: =VLOOKUP($C27,'RECAP SECT'!$G$6:$CU$253,6,FALSE) -> 0% | H27: =VLOOKUP($C27,'RECAP SECT'!$G$6:$CU$253,7,FALSE) -> 1 | I27: =VLOOKUP($C27,'RECAP SECT'!$G$6:$CU$253,8,FALSE) -> 68% | J27: =VLOOKUP($C27,'RECAP SECT'!$G$6:$CU$253,9,FALSE) -> 9% | K27: =VLOOKUP($C27,'RECAP SECT'!$G$6:$CU$253,10,FALSE) -> 3 | L27: =VLOOKUP($C27,'RECAP SECT'!$G$6:$CU$253,11,FALSE) -> 4% | M27: =VLOOKUP($C27,'RECAP SECT'!$G$6:$CU$253,12,FALSE) -> 0% | N27: =VLOOKUP($C27,'RECAP SECT'!$G$6:$CU$253,13,FALSE) -> 1
A28: Total CEGEE Directions Régionales | E28: =SUM(E10:E27) -> 956

Sheet AG_CLASS
B1: Accueil | H1: BAROMETRE BDD - AGENCES
H2: CLASSEMENTS
H3: =ACCUEIL!F7 -> 2022-06-05
H8: CLASSEMENT GENERAL | I8: CRITERE Satisfaction Clients | J8: NPS à froid (SAE) | K8: NPS à chaud (QHD) | L8: CRITERE BANCARISATION | M8: Ventes Nettes produits pondérés | N8: Ventes sur client non détenteur de l’univers | O8: CRITERE EPARGNE | P8: Excédent Epargne hors DAV pondéré | Q8: Ventes sur client non détenteur de l’univers | R8: CRITERE IARD PREVOYANCE | S8: Ventes Nettes produits pondérés | T8: Ventes sur client non détenteur de l’univers | U8: CRITERE CREDITS | V8: Engagements et ventes accessoires pondérés Immo | W8: Engagements et ventes accessoires pondérés Conso | X8: Ventes sur client non détenteur de l’univers
B9: Direction | C9: eds | D9: Territoire | E9: eds | F9: Agence | G9: ="ETP perf "&DATEMAJ!$C$28 -> ETP perf 05-juin | H9: Rang | I9: Rang | J9: Rang | K9: Rang | L9: Rang | M9: Rang | N9: Rang | O9: Rang | P9: Rang | Q9: Rang | R9: Rang | S9: Rang | T9: Rang | U9: Rang | V9: Rang | W9: Rang | X9: Rang
A10: 50 | B10: MOSELLE | C10: 44 | D10: MOSELLE NORD | E10: 557508 | F10: NILVANGE | G10: 1.7 | H10: 1 | I10: 40 | J10: 43 | K10: 52 | L10: 2 | M10: 2 | N10: 2 | O10: 2 | P10: 156 | Q10: 1 | R10: 1 | S10: 1 | T10: 2 | U10: 3 | V10: 2 | W10: 10 | X10: 2
A11: 50 | B11: MEURTHE ET MOSELLE MEUSE | C11: 26 | D11: NANCY | E11: 454171 | F11: BLAMONT | G11: 0.5 | H11: 2 | I11: 245 | J11: 73 | K11: 249 | L11: 1 | M11: 1 | N11: 1 | O11: 5 | P11: 17 | Q11: 3 | R11: 2 | S11: 12 | T11: 1 | U11: 1 | V11: 1 | W11: 2 | X11: 1
A12: 50 | B12: MOSELLE | C12: 42 | D12: MOSELLE EST | E12: 457163 | F12: BEHREN LES FORBACH | G12: 1.9 | H12: 3 | I12: 30 | J12: 48 | K12: 13 | L12: 3 | M12: 4 | N12: 4 | O12: 12 | P12: 68 | Q12: 4 | R12: 36 | S12: 72 | T12: 11 | U12: 4 | V12: 3 | W12: 4 | X12: 5
A13: 50 | B13: MARNE ARDENNES | C13: 2 | D13: CHARLEVILLE MEZIERES | E13: 508820 | F13: VOUZIERS | G13: 2.9 | H13: 4 | I13: 12 | J13: 5 | K13: 109 | L13: 79 | M13: 96 | N13: 64 | O13: 20 | P13: 16 | Q13: 114 | R13: 3 | S13: 2 | T13: 7 | U13: 52 | V13: 92 | W13: 11 | X13: 60
A14: 50 | B14: VOSGES | C14: 57 | D14: EPINAL | E14: 488288 | F14: EPINAL LEOPOLD BOURG | G14: 2.0 | H14: 5 | I14: 2 | J14: 2 | K14: 4 | L14: 43 | M14: 38 | N14: 79 | O14: 7 | P14: 6 | Q14: 41 | R14: 58 | S14: 32 | T14: 180 | U14: 53 | V14: 65 | W14: 62 | X14: 50
A15: 50 | B15: MARNE ARDENNES | C15: 6 | D15: CHALONS EN CHAMPAGNE | E15: 551330 | F15: MONTMIRAIL | G15: 2.8 | H15: 6 | I15: 6 | J15: 6 | K15: 26 | L15: 24 | M15: 19 | N15: 63 | O15: 66 | P15: 80 | Q15: 73 | R15: 18 | S15: 13 | T15: 27 | U15: 84 | V15: 82 | W15: 180 | X15: 57
A16: 50 | B16: MOSELLE | C16: 45 | D16: METZ | E16: 457443 | F16: METZ REPUBLIQUE | G16: 3.7 | H16: 7 | I16: 24 | J16: 32 | K16: 24 | L16: 171 | M16: 160 | N16: 183 | O16: 1 | P16: 1 | Q16: 116 | R16: 20 | S16: 19 | T16: 44 | U16: 180 | V16: 191 | W16: 108 | X16: 191
A17: 50 | B17: MARNE ARDENNES | C17: 11 | D17: REIMS | E17: 551305 | F17: REIMS HIPPODROME | G17: 5.4 | H17: 8 | I17: 99 | J17: 106 | K17: 89 | L17: 37 | M17: 70 | N17: 9 | O17: 10 | P17: 7 | Q17: 59 | R17: 11 | S17: 9 | T17: 17 | U17: 13 | V17: 16 | W17: 95 | X17: 10
A18: 50 | B18: MOSELLE | C18: 42 | D18: MOSELLE EST | E18: 457165 | F18: BITCHE | G18: 2.3 | H18: 9 | I18: 68 | J18: 85 | K18: 45 | L18: 4 | M18: 3 | N18: 37 | O18: 63 | P18: 129 | Q18: 11 | R18: 10 | S18: 6 | T18: 26 | U18: 106 | V18: 105 | W18: 51 | X18: 143
A19: 50 | B19: MOSELLE | C19: 44 | D19: MOSELLE NORD | E19: 557113 | F19: AUDUN LE TICHE | G19: 2.2 | H19: 10 | I19: 117 | J19: 186 | K19: 23 | L19: 9 | M19: 14 | N19: 6 | O19: 46 | P19: 149 | Q19: 7 | R19: 12 | S19: 17 | T19: 8 | U19: 18 | V19: 15 | W19: 19 | X19: 33
A20: 50 | B20: MEURTHE ET MOSELLE MEUSE | C20: 26 | D20: NANCY | E20: 554601 | F20: SAINT MAX | G20: 3.6 | H20: 11 | I20: 31 | J20: 46 | K20: 19 | L20: 64 | M20: 67 | N20: 91 | O20: 29 | P20: 26 | Q20: 103 | R20: 25 | S20: 21 | T20: 67 | U20: 49 | V20: 46 | W20: 97 | X20: 69
A21: 50 | B21: MARNE ARDENNES | C21: 2 | D21: CHARLEVILLE MEZIERES | E21: 408801 | F21: CHARLEVILLE JEAN JAURES | G21: 8.7 | H21: 12 | I21: 37 | J21: 54 | K21: 18 | L21: 46 | M21: 52 | N21: 40 | O21: 95 | P21: 140 | Q21: 23 | R21: 22 | S21: 22 | T21: 56 | U21: 20 | V21: 14 | W21: 171 | X21: 23
A22: 50 | B22: MOSELLE | C22: 42 | D22: MOSELLE EST | E22: 557250 | F22: CREUTZWALD | G22: 2.5 | H22: 13 | I22: 8 | J22: 9 | K22: 30 | L22: 151 | M22: 167 | N22: 107 | O22: 96 | P22: 114 | Q22: 45 | R22: 35 | S22: 20 | T22: 118 | U22: 47 | V22: 51 | W22: 12 | X22: 138
A23: 50 | B23: MOSELLE | C23: 44 | D23: MOSELLE NORD | E23: 557660 | F23: UCKANGE | G23: 1.7 | H23: 14 | I23: 240 | J23: 200 | K23: 235 | L23: 8 | M23: 13 | N23: 8 | O23: 48 | P23: 217 | Q23: 2 | R23: 5 | S23: 8 | T23: 5 | U23: 6 | V23: 5 | W23: 49 | X23: 4
A24: 50 | B24: MARNE ARDENNES | C24: 6 | D24: CHALONS EN CHAMPAGNE | E24: 451120 | F24: SARRY | G24: 2.3 | H24: 15 | I24: 15 | J24: 27 | K24: 5 | L24: 19 | M24: 17 | N24: 52 | O24: 134 | P24: 142 | Q24: 74 | R24: 71 | S24: 59 | T24: 105 | U24: 72 | V24: 57 | W24: 151 | X24: 85
A25: 50 | B25: MEURTHE ET MOSELLE MEUSE | C25: 26 | D25: NANCY | E25: 554476 | F25: NANCY ARTEM | G25: 2.8 | H25: 16 | I25: 90 | J25: 114 | K25: 36 | L25: 15 | M25: 21 | N25: 16 | O25: 162 | P25: 139 | Q25: 165 | R25: 59 | S25: 49 | T25: 100 | U25: 5 | V25: 4 | W25: 134 | X25: 6
A26: 50 | B26: BAS RHIN | C26: 5006 | D26: STRASBOURG | E26: 4037 | F26: MUNDOLSHEIM | G26: 3.7 | H26: 17 | I26: 67 | J26: 67 | K26: 80 | L26: 25 | M26: 34 | N26: 17 | O26: 100 | P26: 128 | Q26: 31 | R26: 19 | S26: 29 | T26: 22 | U26: 25 | V26: 27 | W26: 177 | X26: 18
A27: 50 | B27: MEURTHE ET MOSELLE MEUSE | C27: 26 | D27: NANCY | E27: 554356 | F27: JARVILLE LA MALGRANGE | G27: 4.2 | H27: 18 | I27: 78 | J27: 87 | K27: 68 | L27: 10 | M27: 7 | N27: 43 | O27: 114 | P27: 132 | Q27: 57 | R27: 42 | S27: 45 | T27: 50 | U27: 21 | V27: 19 | W27: 157 | X27: 19
A28: 262 | B28: MOSELLE | C28: 45 | D28: METZ | E28: 457453 | F28: MONTIGNY LES METZ | G28: 6.9 | H28: 19 | I28: 19 | J28: 23 | K28: 11 | L28: 56 | M28: 47 | N28: 109 | O28: 49 | P28: 95 | Q28: 15 | R28: 111 | S28: 89 | T28: 169 | U28: 39 | V28: 39 | W28: 52 | X28: 78
A29: 262 | B29: MOSELLE | C29: 45 | D29: METZ | E29: 457574 | F29: ROMBAS | G29: 3.2 | H29: 20 | I29: 14 | J29: 15 | K29: 34 | L29: 88 | M29: 79 | N29: 131 | O29: 55 | P29: 77 | Q29: 36 | R29: 23 | S29: 15 | T29: 86 | U29: 174 | V29: 182 | W29: 133 | X29: 174
A30: 262 | B30: MEURTHE ET MOSELLE MEUSE | C30: 27 | D30: PONT A MOUSSON | E30: 554506 | F30: CHALIGNY NEUVES MAISONS | G30: 3.4 | H30: 21 | I30: 155 | J30: 131 | K30: 168 | L30: 6 | M30: 8 | N30: 7 | O30: 186 | P30: 214 | Q30: 48 | R30: 7 | S30: 3 | T30: 18 | U30: 15 | V30: 23 | W30: 48 | X30: 12
A31: 262 | B31: MEURTHE ET MOSELLE MEUSE | C31: 26 | D31: NANCY | E31: 554116 | F31: BACCARAT | G31: 2.8 | H31: 22 | I31: 1 | J31: 1 | K31: 12 | L31: 76 | M31: 63 | N31: 162 | O31: 90 | P31: 46 | Q31: 233 | R31: 161 | S31: 159 | T31: 145 | U31: 159 | V31: 103 | W31: 153 | X31: 189
A32: 262 | B32: BAS RHIN | C32: 5006 | D32: STRASBOURG | E32: 4038 | F32: OBERHAUSBERGEN | G32: 3.1 | H32: 23 | I32: 46 | J32: 50 | K32: 78 | L32: 51 | M32: 74 | N32: 23 | O32: 6 | P32: 5 | Q32: 22 | R32: 181 | S32: 222 | T32: 41 | U32: 45 | V32: 41 | W32: 80 | X32: 75
A33: 262 | B33: MARNE ARDENNES | C33: 2 | D33: CHARLEVILLE MEZIERES | E33: 508839 | F33: GIVET | G33: 3.3 | H33: 24 | I33: 86 | J33: 81 | K33: 92 | L33: 44 | M33: 59 | N33: 28 | O33: 138 | P33: 173 | Q33: 35 | R33: 8 | S33: 4 | T33: 24 | U33: 24 | V33: 26 | W33: 37 | X33: 48
A34: 262 | B34: MEURTHE ET MOSELLE MEUSE | C34: 31 | D34: VERDUN | E34: 455676 | F34: VAUCOULEURS | G34: 0.4 | H34: 25 | I34: 164 | J34: 200 | K34: 131 | L34: 249 | M34: 249 | N34: 35 | O34: 21 | P34: 94 | Q34: 5 | R34: 4 | S34: 10 | T34: 3 | U34: 2 | V34: 37 | W34: 1 | X34: 3
A35: 262 | B35: VOSGES | C35: 55 | D35: SAINT DIE | E35: 488246 | F35: CORNIMONT LA BRESSE | G35: 2.4 | H35: 26 | I35: 5 | J35: 3 | K35: 28 | L35: 68 | M35: 75 | N35: 100 | O35: 147 | P35: 92 | Q35: 238 | R35: 67 | S35: 48 | T35: 143 | U35: 172 | V35: 229 | W35: 45 | X35: 167
A36: 262 | B36: MARNE ARDENNES | C36: 11 | D36: REIMS | E36: 551349 | F36: REIMS SAINT REMI | G36: 2.9 | H36: 27 | I36: 130 | J36: 129 | K36: 125 | L36: 5 | M36: 5 | N36: 11 | O36: 229 | P36: 241 | Q36: 13 | R36: 15 | S36: 18 | T36: 15 | U36: 11 | V36: 8 | W36: 101 | X36: 11
A37: 262 | B37: BAS RHIN | C37: 5101 | D37: SELESTAT | E37: 4113 | F37: BARR | G37: 2.9 | H37: 28 | I37: 27 | J37: 52 | K37: 2 | L37: 21 | M37: 18 | N37: 54 | O37: 142 | P37: 194 | Q37: 25 | R37: 103 | S37: 80 | T37: 176 | U37: 55 | V37: 24 | W37: 247 | X37: 59
A38: 262 | B38: MARNE ARDENNES | C38: 11 | D38: REIMS | E38: 551340 | F38: BETHENY | G38: 2.6 | H38: 29 | I38: 56 | J38: 59 | K38: 64 | L38: 13 | M38: 16 | N38: 24 | O38: 154 | P38: 207 | Q38: 17 | R38: 112 | S38: 112 | T38: 119 | U38: 14 | V38: 7 | W38: 127 | X38: 31
A39: 262 | B39: MARNE ARDENNES | C39: 11 | D39: REIMS | E39: 551306 | F39: REIMS SAINT MARCEAUX | G39: 4.5 | H39: 30 | I39: 22 | J39: 17 | K39: 43 | L39: 16 | M39: 15 | N39: 47 | O39: 238 | P39: 243 | Q39: 51 | R39: 53 | S39: 57 | T39: 54 | U39: 30 | V39: 25 | W39: 192 | X39: 26
A40: 262 | B40: MOSELLE | C40: 44 | D40: MOSELLE NORD | E40: 457348 | F40: HAGONDANGE | G40: 7.9 | H40: 31 | I40: 50 | J40: 41 | K40: 110 | L40: 41 | M40: 40 | N40: 53 | O40: 121 | P40: 127 | Q40: 80 | R40: 43 | S40: 42 | T40: 72 | U40: 43 | V40: 44 | W40: 82 | X40: 54
A41: 262 | B41: MARNE ARDENNES | C41: 6 | D41: CHALONS EN CHAMPAGNE | E41: 551110 | F41: CHALONS ROOSEVELT | G41: 4.0 | H41: 32 | I41: 18 | J41: 16 | K41: 44 | L41: 80 | M41: 82 | N41: 103 | O41: 197 | P41: 210 | Q41: 84 | R41: 34 | S41: 25 | T41: 89 | U41: 87 | V41: 77 | W41: 155 | X41: 73
A42: 262 | B42: MARNE ARDENNES | C42: 11 | D42: REIMS | E42: 551365 | F42: DORMANS | G42: 2.6 | H42: 33 | I42: 64 | J42: 57 | K42: 91 | L42: 20 | M42: 22 | N42: 39 | O42: 156 | P42: 184 | Q42: 47 | R42: 47 | S42: 53 | T42: 59 | U42: 40 | V42: 60 | W42: 202 | X42: 17
A43: 262 | B43: MEURTHE ET MOSELLE MEUSE | C43: 27 | D43: PONT A MOUSSON | E43: 554531 | F43: POMPEY | G43: 2.6 | H43: 34 | I43: 217 | J43: 182 | K43: 215 | L43: 7 | M43: 10 | N43: 3 | O43: 61 | P43: 158 | Q43: 9 | R43: 41 | S43: 74 | T43: 16 | U43: 7 | V43: 10 | W43: 13 | X43: 9
A44: 262 | B44: BAS RHIN | C44: 5006 | D44: STRASBOURG | E44: 4010 | F44: STRASBOURG MEINAU | G44: 2.7 | H44: 35 | I44: 49 | J44: 22 | K44: 156 | L44: 105 | M44: 141 | N44: 49 | O44: 60 | P44: 75 | Q44: 78 | R44: 16 | S44: 28 | T44: 12 | U44: 161 | V44: 199 | W44: 24 | X44: 197
A45: 262 | B45: MARNE ARDENNES | C45: 6 | D45: CHALONS EN CHAMPAGNE | E45: 451115 | F45: MOURMELON LE GRAND | G45: 2.7 | H45: 36 | I45: 55 | J45: 98 | K45: 8 | L45: 47 | M45: 50 | N45: 44 | O45: 71 | P45: 117 | Q45: 20 | R45: 60 | S45: 66 | T45: 45 | U45: 76 | V45: 128 | W45: 21 | X45: 70
A46: 262 | B46: MOSELLE | C46: 45 | D46: METZ | E46: 557439 | F46: METZ POMPIDOU | G46: 2.6 | H46: 37 | I46: 52 | J46: 53 | K46: 76 | L46: 98 | M46: 136 | N46: 48 | O46: 9 | P46: 4 | Q46: 97 | R46: 132 | S46: 157 | T46: 79 | U46: 114 | V46: 109 | W46: 92 | X46: 115
A47: 262 | B47: MARNE ARDENNES | C47: 11 | D47: REIMS | E47: 451350 | F47: REIMS CENTRE VILLE | G47: 6.6 | H47: 38 | I47: 157 | J47: 151 | K47: 153 | L47: 18 | M47: 26 | N47: 21 | O47: 107 | P47: 136 | Q47: 33 | R47: 30 | S47: 40 | T47: 35 | U47: 10 | V47: 11 | W47: 57 | X47: 8
A48: 262 | B48: MOSELLE | C48: 42 | D48: MOSELLE EST | E48: 557668 | F48: VALMONT | G48: 2.5 | H48: 39 | I48: 47 | J48: 30 | K48: 145 | L48: 141 | M48: 151 | N48: 125 | O48: 11 | P48: 10 | Q48: 79 | R48: 65 | S48: 56 | T48: 85 | U48: 132 | V48: 201 | W48: 22 | X48: 147
A49: 262 | B49: MEURTHE ET MOSELLE MEUSE | C49: 31 | D49: VERDUN | E49: 455678 | F49: VERDUN CENTRALE | G49: 8.7 | H49: 40 | I49: 20 | J49: 14 | K49: 77 | L49: 62 | M49: 77 | N49: 56 | O49: 185 | P49: 191 | Q49: 109 | R49: 149 | S49: 147 | T49: 132 | U49: 26 | V49: 29 | W49: 86 | X49: 28
A50: 262 | B50: MEURTHE ET MOSELLE MEUSE | C50: 26 | D50: NANCY | E50: 554636 | F50: TOMBLAINE | G50: 2.8 | H50: 41 | I50: 16 | J50: 24 | K50: 7 | L50: 115 | M50: 120 | N50: 114 | O50: 32 | P50: 34 | Q50: 66 | R50: 170 | S50: 183 | T50: 121 | U50: 126 | V50: 146 | W50: 138 | X50: 96
A51: 262 | B51: MARNE ARDENNES | C51: 11 | D51: REIMS | E51: 451361 | F51: PIERRY LECLERC | G51: 1.8 | H51: 42 | I51: 113 | J51: 120 | K51: 98 | L51: 31 | M51: 27 | N51: 58 | O51: 14 | P51: 19 | Q51: 44 | R51: 88 | S51: 73 | T51: 138 | U51: 54 | V51: 38 | W51: 211 | X51: 46
A52: 262 | B52: MARNE ARDENNES | C52: 2 | D52: CHARLEVILLE MEZIERES | E52: 508802 | F52: CHARLEVILLE NEVERS | G52: 2.8 | H52: 43 | I52: 7 | J52: 10 | K52: 25 | L52: 205 | M52: 194 | N52: 213 | O52: 111 | P52: 90 | Q52: 154 | R52: 52 | S52: 33 | T52: 155 | U52: 173 | V52: 139 | W52: 116 | X52: 207
A53: 262 | B53: MOSELLE | C53: 42 | D53: MOSELLE EST | E53: 457308 | F53: FORBACH CENTRALE | G53: 9.3 | H53: 44 | I53: 83 | J53: 71 | K53: 105 | L53: 38 | M53: 33 | N53: 70 | O53: 70 | P53: 74 | Q53: 91 | R53: 40 | S53: 37 | T53: 75 | U53: 97 | V53: 106 | W53: 41 | X53: 122
A54: 262 | B54: MOSELLE | C54: 45 | D54: METZ | E54: 557447 | F54: METZ SAINT MAXIMIN | G54: 2.0 | H54: 45 | I54: 180 | J54: 200 | K54: 161 | L54: 42 | M54: 60 | N54: 19 | O54: 50 | P54: 162 | Q54: 6 | R54: 6 | S54: 5 | T54: 9 | U54: 58 | V54: 45 | W54: 35 | X54: 124
A55: 262 | B55: VOSGES | C55: 57 | D55: EPINAL | E55: 588336 | F55: GOLBEY | G55: 2.8 | H55: 46 | I55: 25 | J55: 19 | K55: 65 | L55: 93 | M55: 87 | N55: 123 | O55: 56 | P55: 54 | Q55: 90 | R55: 117 | S55: 107 | T55: 149 | U55: 137 | V55: 159 | W55: 149 | X55: 97
A56: 262 | B56: MOSELLE | C56: 44 | D56: MOSELLE NORD | E56: 457350 | F56: HAYANGE | G56: 6.7 | H56: 47 | I56: 131 | J56: 117 | K56: 151 | L56: 22 | M56: 20 | N56: 50 | O56: 92 | P56: 143 | Q56: 19 | R56: 28 | S56: 31 | T56: 42 | U56: 37 | V56: 31 | W56: 168 | X56: 42
A57: 262 | B57: AUBE HAUTE MARNE | C57: 21 | D57: CHAUMONT | E57: 510590 | F57: CHAUMONT REPUBLIQUE | G57: 2.9 | H57: 48 | I57: 66 | J57: 76 | K57: 53 | L57: 179 | M57: 196 | N57: 89 | O57: 35 | P57: 42 | Q57: 40 | R57: 32 | S57: 30 | T57: 73 | U57: 56 | V57: 107 | W57: 18 | X57: 36
A58: 262 | B58: BAS RHIN | C58: 5060 | D58: HAGUENAU | E58: 4092 | F58: HOCHFELDEN | G58: 2.0 | H58: 49 | I58: 36 | J58: 35 | K58: 59 | L58: 107 | M58: 122 | N58: 90 | O58: 41 | P58: 31 | Q58: 209 | R58: 106 | S58: 127 | T58: 80 | U58: 93 | V58: 64 | W58: 182 | X58: 108
A59: 262 | B59: MARNE ARDENNES | C59: 6 | D59: CHALONS EN CHAMPAGNE | E59: 551354 | F59: VERTUS | G59: 2.0 | H59: 50 | I59: 4 | J59: 11 | K59: 1 | L59: 162 | M59: 126 | N59: 227 | O59: 130 | P59: 105 | Q59: 156 | R59: 207 | S59: 204 | T59: 163 | U59: 109 | V59: 117 | W59: 75 | X59: 103
A60: 262 | B60: MEURTHE ET MOSELLE MEUSE | C60: 31 | D60: VERDUN | E60: 554413 | F60: LONGWY BAS | G60: 3.6 | H60: 51 | I60: 29 | J60: 26 | K60: 50 | L60: 70 | M60: 71 | N60: 119 | O60: 117 | P60: 96 | Q60: 150 | R60: 96 | S60: 68 | T60: 187 | U60: 100 | V60: 70 | W60: 71 | X60: 192
A61: 262 | B61: MARNE ARDENNES | C61: 11 | D61: REIMS | E61: 551367 | F61: AY CHAMPAGNE | G61: 2.7 | H61: 52 | I61: 39 | J61: 34 | K61: 93 | L61: 114 | M61: 130 | N61: 88 | O61: 151 | P61: 113 | Q61: 206 | R61: 45 | S61: 51 | T61: 47 | U61: 70 | V61: 43 | W61: 233 | X61: 74
A62: 262 | B62: MEURTHE ET MOSELLE MEUSE | C62: 31 | D62: VERDUN | E62: 555679 | F62: VERDUN MAZEL | G62: 3.6 | H62: 53 | I62: 21 | J62: 27 | K62: 16 | L62: 112 | M62: 101 | N62: 149 | O62: 58 | P62: 51 | Q62: 145 | R62: 138 | S62: 125 | T62: 167 | U62: 142 | V62: 140 | W62: 175 | X62: 106
A63: 262 | B63: MOSELLE | C63: 42 | D63: MOSELLE EST | E63: 457583 | F63: SAINT AVOLD | G63: 7.0 | H63: 54 | I63: 58 | J63: 66 | K63: 54 | L63: 39 | M63: 32 | N63: 95 | O63: 73 | P63: 81 | Q63: 69 | R63: 85 | S63: 90 | T63: 82 | U63: 147 | V63: 148 | W63: 120 | X63: 135
A64: 262 | B64: MEURTHE ET MOSELLE MEUSE | C64: 26 | D64: NANCY | E64: 454481 | F64: NANCY PLACE DOMBASLE | G64: 7.7 | H64: 55 | I64: 214 | J64: 195 | K64: 198 | L64: 57 | M64: 83 | N64: 25 | O64: 8 | P64: 11 | Q64: 10 | R64: 101 | S64: 135 | T64: 60 | U64: 8 | V64: 6 | W64: 96 | X64: 13
A65: 262 | B65: AUBE HAUTE MARNE | C65: 14 | D65: TROYES | E65: 510570 | F65: NOGENT SUR SEINE | G65: 4.7 | H65: 56 | I65: 11 | J65: 8 | K65: 56 | L65: 74 | M65: 78 | N65: 98 | O65: 201 | P65: 208 | Q65: 98 | R65: 148 | S65: 118 | T65: 205 | U65: 122 | V65: 94 | W65: 150 | X65: 127
A66: 262 | B66: BAS RHIN | C66: 5006 | D66: STRASBOURG | E66: 4043 | F66: STRASBOURG HALLES | G66: 7.4 | H66: 57 | I66: 115 | J66: 133 | K66: 79 | L66: 45 | M66: 61 | N66: 30 | O66: 104 | P66: 151 | Q66: 21 | R66: 13 | S66: 16 | T66: 13 | U66: 128 | V66: 113 | W66: 232 | X66: 80
A67: 262 | B67: BAS RHIN | C67: 5060 | D67: HAGUENAU | E67: 4079 | F67: SOULTZ SOUS FORETS | G67: 1.9 | H67: 58 | I67: 54 | J67: 94 | K67: 9 | L67: 54 | M67: 45 | N67: 112 | O67: 51 | P67: 40 | Q67: 116 | R67: 92 | S67: 101 | T67: 98 | U67: 171 | V67: 151 | W67: 85 | X67: 214
A68: 262 | B68: VOSGES | C68: 57 | D68: EPINAL | E68: 488561 | F68: REMIREMONT | G68: 7.1 | H68: 59 | I68: 9 | J68: 7 | K68: 39 | L68: 134 | M68: 104 | N68: 214 | O68: 167 | P68: 138 | Q68: 184 | R68: 120 | S68: 65 | T68: 232 | U68: 201 | V68: 179 | W68: 226 | X68: 157
A69: 262 | B69: MARNE ARDENNES | C69: 11 | D69: REIMS | E69: 451301 | F69: REIMS HOTEL DE VILLE | G69: 7.5 | H69: 60 | I69: 93 | J69: 104 | K69: 73 | L69: 65 | M69: 72 | N69: 84 | O69: 199 | P69: 222 | Q69: 38 | R69: 17 | S69: 11 | T69: 31 | U69: 50 | V69: 42 | W69: 145 | X69: 55
A70: 262 | B70: BAS RHIN | C70: 5006 | D70: STRASBOURG | E70: 4054 | F70: STRASBOURG MONTAGNE VERTE | G70: 2.6 | H70: 61 | I70: 57 | J70: 51 | K70: 102 | L70: 66 | M70: 86 | N70: 36 | O70: 54 | P70: 65 | Q70: 62 | R70: 54 | S70: 70 | T70: 39 | U70: 210 | V70: 242 | W70: 156 | X70: 134
A71: 262 | B71: MOSELLE | C71: 45 | D71: METZ | E71: 557434 | F71: MARLY | G71: 3.0 | H71: 62 | I71: 42 | J71: 38 | K71: 81 | L71: 120 | M71: 99 | N71: 186 | O71: 34 | P71: 23 | Q71: 185 | R71: 184 | S71: 166 | T71: 209 | U71: 69 | V71: 54 | W71: 196 | X71: 58
A72: 262 | B72: MOSELLE | C72: 42 | D72: MOSELLE EST | E72: 457543 | F72: PUTTELANGE AUX LACS | G72: 2.5 | H72: 63 | I72: 100 | J72: 94 | K72: 126 | L72: 99 | M72: 105 | N72: 107 | O72: 79 | P72: 104 | Q72: 45 | R72: 31 | S72: 39 | T72: 40 | U72: 59 | V72: 52 | W72: 185 | X72: 40
A73: 262 | B73: MOSELLE | C73: 45 | D73: METZ | E73: 457446 | F73: METZ SAINT LOUIS | G73: 5.4 | H73: 64 | I73: 82 | J73: 88 | K73: 71 | L73: 48 | M73: 51 | N73: 45 | O73: 208 | P73: 230 | Q73: 24 | R73: 70 | S73: 64 | T73: 76 | U73: 27 | V73: 22 | W73: 99 | X73: 37
A74: 262 | B74: MOSELLE | C74: 44 | D74: MOSELLE NORD | E74: 557352 | F74: HETTANGE GRANDE | G74: 2.9 | H74: 65 | I74: 139 | J74: 124 | K74: 158 | L74: 29 | M74: 43 | N74: 18 | O74: 158 | P74: 186 | Q74: 49 | R74: 57 | S74: 75 | T74: 37 | U74: 17 | V74: 49 | W74: 6 | X74: 20
A75: 264 | B75: VOSGES | C75: 57 | D75: EPINAL | E75: 588396 | F75: LE VAL D AJOL | G75: 2.6 | H75: 66 | I75: 10 | J75: 13 | K75: 14 | L75: 140 | M75: 125 | N75: 197 | O75: 141 | P75: 118 | Q75: 155 | R75: 144 | S75: 95 | T75: 231 | U75: 221 | V75: 164 | W75: 246 | X75: 200
A76: 264 | B76: BAS RHIN | C76: 5006 | D76: STRASBOURG | E76: 4048 | F76: STRASBOURG KOENIGSHOFFEN | G76: 2.2 | H76: 67 | I76: 176 | J76: 200 | K76: 159 | L76: 23 | M76: 25 | N76: 31 | O76: 44 | P76: 89 | Q76: 16 | R76: 29 | S76: 77 | T76: 6 | U76: 60 | V76: 97 | W76: 59 | X76: 32
A77: 264 | B77: MARNE ARDENNES | C77: 2 | D77: CHARLEVILLE MEZIERES | E77: 508833 | F77: VILLERS SEMEUSE CORA | G77: 3.4 | H77: 68 | I77: 186 | J77: 200 | K77: 166 | L77: 123 | M77: 155 | N77: 65 | O77: 33 | P77: 50 | Q77: 27 | R77: 9 | S77: 7 | T77: 21 | U77: 32 | V77: 36 | W77: 55 | X77: 39
A78: 264 | B78: MOSELLE | C78: 44 | D78: MOSELLE NORD | E78: 457632 | F78: THIONVILLE CENTRALE | G78: 10.7 | H78: 69 | I78: 122 | J78: 141 | K78: 94 | L78: 34 | M78: 28 | N78: 62 | O78: 171 | P78: 200 | Q78: 37 | R78: 38 | S78: 34 | T78: 57 | U78: 38 | V78: 32 | W78: 111 | X78: 53
A79: 264 | B79: MEURTHE ET MOSELLE MEUSE | C79: 27 | D79: PONT A MOUSSON | E79: 554381 | F79: LAXOU ARISTIDE BRIAND | G79: 2.4 | H79: 70 | I79: 194 | J79: 193 | K79: 185 | L79: 17 | M79: 29 | N79: 14 | O79: 157 | P79: 187 | Q79: 42 | R79: 26 | S79: 47 | T79: 20 | U79: 16 | V79: 13 | W79: 64 | X79: 15
A80: 264 | B80: MARNE ARDENNES | C80: 11 | D80: REIMS | E80: 451370 | F80: EPERNAY | G80: 8.7 | H80: 71 | I80: 59 | J80: 73 | K80: 47 | L80: 63 | M80: 64 | N80: 101 | O80: 109 | P80: 120 | Q80: 67 | R80: 127 | S80: 133 | T80: 128 | U80: 63 | V80: 69 | W80: 125 | X80: 43
A81: 264 | B81: MOSELLE | C81: 44 | D81: MOSELLE NORD | E81: 557303 | F81: FAMECK | G81: 2.6 | H81: 72 | I81: 35 | J81: 45 | K81: 35 | L81: 125 | M81: 207 | N81: 10 | O81: 131 | P81: 154 | Q81: 50 | R81: 198 | S81: 202 | T81: 146 | U81: 29 | V81: 53 | W81: 38 | X81: 25
A82: 264 | B82: BAS RHIN | C82: 5101 | D82: SELESTAT | E82: 4104 | F82: ERSTEIN | G82: 4.3 | H82: 73 | I82: 210 | J82: 200 | K82: 195 | L82: 11 | M82: 6 | N82: 68 | O82: 86 | P82: 84 | Q82: 92 | R82: 33 | S82: 14 | T82: 152 | U82: 44 | V82: 30 | W82: 146 | X82: 63
A83: 264 | B83: AUBE HAUTE MARNE | C83: 21 | D83: CHAUMONT | E83: 451154 | F83: JOINVILLE | G83: 1.8 | H83: 74 | I83: 48 | J83: 57 | K83: 41 | L83: 58 | M83: 73 | N83: 42 | O83: 236 | P83: 236 | Q83: 157 | R83: 21 | S83: 27 | T83: 35 | U83: 94 | V83: 152 | W83: 102 | X83: 51
A84: 264 | B84: VOSGES | C84: 55 | D84: SAINT DIE | E84: 588186 | F84: BRUYERES | G84: 3.4 | H84: 75 | I84: 28 | J84: 18 | K84: 90 | L84: 146 | M84: 148 | N84: 146 | O84: 136 | P84: 130 | Q84: 100 | R84: 160 | S84: 199 | T84: 62 | U84: 86 | V84: 126 | W84: 123 | X84: 44
A85: 264 | B85: VOSGES | C85: 55 | D85: SAINT DIE | E85: 488326 | F85: GERARDMER | G85: 3.7 | H85: 76 | I85: 73 | J85: 56 | K85: 113 | L85: 108 | M85: 102 | N85: 138 | O85: 31 | P85: 24 | Q85: 125 | R85: 150 | S85: 150 | T85: 131 | U85: 110 | V85: 108 | W85: 90 | X85: 109
A86: 264 | B86: MOSELLE | C86: 44 | D86: MOSELLE NORD | E86: 457306 | F86: FLORANGE | G86: 4.9 | H86: 77 | I86: 231 | J86: 177 | K86: 234 | L86: 12 | M86: 9 | N86: 27 | O86: 81 | P86: 121 | Q86: 26 | R86: 80 | S86: 102 | T86: 55 | U86: 12 | V86: 9 | W86: 78 | X86: 16
A87: 264 | B87: MOSELLE | C87: 45 | D87: METZ | E87: 557612 | F87: SAINTE MARIE AUX CHENES | G87: 3.7 | H87: 78 | I87: 23 | J87: 41 | K87: 3 | L87: 222 | M87: 202 | N87: 240 | O87: 26 | P87: 9 | Q87: 247 | R87: 159 | S87: 116 | T87: 222 | U87: 229 | V87: 236 | W87: 204 | X87: 171
A88: 264 | B88: VOSGES | C88: 55 | D88: SAINT DIE | E88: 588666 | F88: VAGNEY | G88: 3.2 | H88: 79 | I88: 34 | J88: 36 | K88: 49 | L88: 153 | M88: 114 | N88: 233 | O88: 45 | P88: 36 | Q88: 147 | R88: 179 | S88: 139 | T88: 236 | U88: 169 | V88: 193 | W88: 89 | X88: 180
A89: 264 | B89: MOSELLE | C89: 42 | D89: MOSELLE EST | E89: 557210 | F89: CHATEAU SALINS | G89: 1.0 | H89: 80 | I89: 161 | J89: 200 | K89: 112 | L89: 103 | M89: 156 | N89: 33 | O89: 126 | P89: 107 | Q89: 137 | R89: 14 | S89: 24 | T89: 10 | U89: 33 | V89: 137 | W89: 3 | X89: 71
A90: 264 | B90: MARNE ARDENNES | C90: 11 | D90: REIMS | E90: 551314 | F90: FISMES | G90: 2.6 | H90: 81 | I90: 94 | J90: 133 | K90: 15 | L90: 33 | M90: 44 | N90: 26 | O90: 115 | P90: 178 | Q90: 17 | R90: 151 | S90: 190 | T90: 71 | U90: 73 | V90: 67 | W90: 189 | X90: 52
A91: 264 | B91: BAS RHIN | C91: 5060 | D91: HAGUENAU | E91: 4031 | F91: TRUCHTERSHEIM | G91: 2.3 | H91: 82 | I91: 13 | J91: 12 | K91: 60 | L91: 85 | M91: 54 | N91: 224 | O91: 42 | P91: 27 | Q91: 236 | R91: 239 | S91: 236 | T91: 243 | U91: 236 | V91: 181 | W91: 244 | X91: 239
A92: 264 | B92: BAS RHIN | C92: 5060 | D92: HAGUENAU | E92: 4071 | F92: WISSEMBOURG | G92: 6.7 | H92: 83 | I92: 33 | J92: 44 | K92: 27 | L92: 160 | M92: 154 | N92: 161 | O92: 75 | P92: 72 | Q92: 104 | R92: 105 | S92: 111 | T92: 117 | U92: 230 | V92: 235 | W92: 165 | X92: 206
A93: 264 | B93: MARNE ARDENNES | C93: 6 | D93: CHALONS EN CHAMPAGNE | E93: 551128 | F93: SAINTE MENEHOULD | G93: 3.2 | H93: 84 | I93: 32 | J93: 24 | K93: 82 | L93: 84 | M93: 48 | N93: 241 | O93: 219 | P93: 209 | Q93: 213 | R93: 66 | S93: 46 | T93: 141 | U93: 208 | V93: 204 | W93: 84 | X93: 240
A94: 264 | B94: MEURTHE ET MOSELLE MEUSE | C94: 31 | D94: VERDUN | E94: 454414 | F94: LONGWY HAUT | G94: 3.2 | H94: 85 | I94: 114 | J94: 116 | K94: 111 | L94: 82 | M94: 88 | N94: 82 | O94: 76 | P94: 62 | Q94: 146 | R94: 63 | S94: 62 | T94: 65 | U94: 67 | V94: 86 | W94: 46 | X94: 68
A95: 264 | B95: AUBE HAUTE MARNE | C95: 21 | D95: CHAUMONT | E95: 410541 | F95: LANGRES | G95: 8.2 | H95: 86 | I95: 69 | J95: 67 | K95: 83 | L95: 78 | M95: 65 | N95: 165 | O95: 93 | P95: 76 | Q95: 144 | R95: 102 | S95: 87 | T95: 151 | U95: 146 | V95: 194 | W95: 83 | X95: 118
A96: 264 | B96: BAS RHIN | C96: 5060 | D96: HAGUENAU | E96: 4041 | F96: HOERDT | G96: 1.6 | H96: 87 | I96: 62 | J96: 60 | K96: 72 | L96: 143 | M96: 128 | N96: 174 | O96: 18 | P96: 8 | Q96: 181 | R96: 199 | S96: 155 | T96: 242 | U96: 140 | V96: 95 | W96: 179 | X96: 154
A97: 30 | B97: BAS RHIN | C97: 5006 | D97: STRASBOURG | E97: 4047 | F97: STRASBOURG CRONENBOURG | G97: 4.5 | H97: 88 | I97: 87 | J97: 102 | K97: 70 | L97: 61 | M97: 56 | N97: 111 | O97: 113 | P97: 122 | Q97: 70 | R97: 86 | S97: 84 | T97: 94 | U97: 118 | V97: 71 | W97: 187 | X97: 137
A98: 30 | B98: HAUT RHIN | C98: 5130 | D98: COLMAR | E98: 4143 | F98: MUNSTER | G98: 4.2 | H98: 89 | I98: 134 | J98: 200 | K98: 46 | L98: 40 | M98: 23 | N98: 195 | O98: 23 | P98: 12 | Q98: 198 | R98: 116 | S98: 78 | T98: 198 | U98: 167 | V98: 186 | W98: 79 | X98: 183
A99: 30 | B99: MARNE ARDENNES | C99: 6 | D99: CHALONS EN CHAMPAGNE | E99: 451101 | F99: CHALONS VIVIERS | G99: 9.7 | H99: 90 | I99: 38 | J99: 55 | K99: 20 | L99: 126 | M99: 112 | N99: 173 | O99: 188 | P99: 202 | Q99: 83 | R99: 93 | S99: 96 | T99: 113 | U99: 112 | V99: 90 | W99: 163 | X99: 100
A100: 30 | B100: BAS RHIN | C100: 5101 | D100: SELESTAT | E100: 4126 | F100: MUTZIG | G100: 2.6 | H100: 91 | I100: 154 | J100: 188 | K100: 115 | L100: 26 | M100: 11 | N100: 140 | O100: 15 | P100: 15 | Q100: 82 | R100: 171 | S100: 152 | T100: 185 | U100: 120 | V100: 87 | W100: 238 | X100: 88
A101: 30 | B101: MOSELLE | C101: 45 | D101: METZ | E101: 557105 | F101: ARS SUR MOSELLE | G101: 3.8 | H101: 92 | I101: 63 | J101: 33 | K101: 164 | L101: 104 | M101: 111 | N101: 105 | O101: 145 | P101: 150 | Q101: 86 | R101: 168 | S101: 187 | T101: 99 | U101: 34 | V101: 34 | W101: 53 | X101: 64
A102: 30 | B102: MEURTHE ET MOSELLE MEUSE | C102: 27 | D102: PONT A MOUSSON | E102: 554516 | F102: PAGNY SUR MOSELLE | G102: 2.8 | H102: 93 | I102: 104 | J102: 91 | K102: 140 | L102: 100 | M102: 90 | N102: 141 | O102: 91 | P102: 64 | Q102: 193 | R102: 77 | S102: 83 | T102: 66 | U102: 83 | V102: 62 | W102: 122 | X102: 101
A103: 30 | B103: MOSELLE | C103: 44 | D103: MOSELLE NORD | E103: 457192 | F103: CATTENOM | G103: 1.6 | H103: 94 | I103: 118 | J103: 120 | K103: 106 | L103: 50 | M103: 36 | N103: 136 | O103: 135 | P103: 170 | Q103: 30 | R103: 95 | S103: 76 | T103: 154 | U103: 57 | V103: 35 | W103: 118 | X103: 89
A104: 30 | B104: MARNE ARDENNES | C104: 2 | D104: CHARLEVILLE MEZIERES | E104: 408840 | F104: RETHEL | G104: 4.1 | H104: 95 | I104: 151 | J104: 143 | K104: 150 | L104: 52 | M104: 41 | N104: 113 | O104: 122 | P104: 110 | Q104: 128 | R104: 46 | S104: 41 | T104: 108 | U104: 62 | V104: 85 | W104: 27 | X104: 61
A105: 30 | B105: BAS RHIN | C105: 5006 | D105: STRASBOURG | E105: 4027 | F105: SCHILTIGHEIM CENTRE | G105: 3.2 | H105: 96 | I105: 175 | J105: 200 | K105: 157 | L105: 35 | M105: 35 | N105: 46 | O105: 24 | P105: 30 | Q105: 55 | R105: 69 | S105: 106 | T105: 30 | U105: 153 | V105: 154 | W105: 72 | X105: 176
A106: 30 | B106: MOSELLE | C106: 44 | D106: MOSELLE NORD | E106: 557347 | F106: GUENANGE | G106: 4.6 | H106: 97 | I106: 208 | J106: 190 | K106: 197 | L106: 27 | M106: 24 | N106: 78 | O106: 149 | P106: 153 | Q106: 89 | R106: 44 | S106: 44 | T106: 63 | U106: 23 | V106: 20 | W106: 107 | X106: 29
A107: 30 | B107: VOSGES | C107: 55 | D107: SAINT DIE | E107: 588551 | F107: RAMBERVILLERS | G107: 2.6 | H107: 98 | I107: 26 | J107: 19 | K107: 66 | L107: 218 | M107: 231 | N107: 94 | O107: 77 | P107: 43 | Q107: 219 | R107: 231 | S107: 232 | T107: 208 | U107: 35 | V107: 66 | W107: 50 | X107: 30
A108: 30 | B108: MOSELLE | C108: 45 | D108: METZ | E108: 557444 | F108: SAINT JULIEN LES METZ | G108: 3.7 | H108: 99 | I108: 219 | J108: 160 | K108: 222 | L108: 49 | M108: 55 | N108: 41 | O108: 25 | P108: 37 | Q108: 28 | R108: 48 | S108: 98 | T108: 19 | U108: 65 | V108: 81 | W108: 15 | X108: 112
A109: 30 | B109: MOSELLE | C109: 44 | D109: MOSELLE NORD | E109: 457158 | F109: YUTZ | G109: 4.3 | H109: 100 | I109: 167 | J109: 196 | K109: 138 | L109: 59 | M109: 46 | N109: 156 | O109: 101 | P109: 78 | Q109: 167 | R109: 24 | S109: 23 | T109: 58 | U109: 88 | V109: 89 | W109: 33 | X109: 131
A110: 30 | B110: MOSELLE | C110: 42 | D110: MOSELLE EST | E110: 557503 | F110: NEUNKIRCH | G110: 3.5 | H110: 101 | I110: 3 | J110: 4 | K110: 6 | L110: 210 | M110: 198 | N110: 228 | O110: 203 | P110: 185 | Q110: 203 | R110: 226 | S110: 209 | T110: 244 | U110: 190 | V110: 178 | W110: 128 | X110: 203
A111: 30 | B111: MARNE ARDENNES | C111: 11 | D111: REIMS | E111: 551369 | F111: DAMERY | G111: 1.8 | H111: 102 | I111: 103 | J111: 61 | K111: 180 | L111: 36 | M111: 49 | N111: 20 | O111: 207 | P111: 180 | Q111: 230 | R111: 135 | S111: 184 | T111: 48 | U111: 48 | V111: 55 | W111: 193 | X111: 27
A112: 30 | B112: MEURTHE ET MOSELLE MEUSE | C112: 31 | D112: VERDUN | E112: 455151 | F112: BAR LE DUC | G112: 10.0 | H112: 103 | I112: 74 | J112: 93 | K112: 40 | L112: 116 | M112: 91 | N112: 187 | O112: 128 | P112: 106 | Q112: 142 | R112: 104 | S112: 88 | T112: 161 | U112: 148 | V112: 158 | W112: 70 | X112: 168
A113: 30 | B113: MOSELLE | C113: 42 | D113: MOSELLE EST | E113: 457617 | F113: SARREGUEMINES | G113: 7.0 | H113: 104 | I113: 136 | J113: 133 | K113: 134 | L113: 86 | M113: 92 | N113: 97 | O113: 69 | P113: 85 | Q113: 58 | R113: 82 | S113: 79 | T113: 88 | U113: 66 | V113: 63 | W113: 103 | X113: 67
A114: 30 | B114: MOSELLE | C114: 45 | D114: METZ | E114: 557441 | F114: METZ PLAPPEVILLE | G114: 2.1 | H114: 105 | I114: 196 | J114: 157 | K114: 202 | L114: 117 | M114: 146 | N114: 66 | O114: 4 | P114: 3 | Q114: 87 | R114: 136 | S114: 138 | T114: 138 | U114: 103 | V114: 163 | W114: 20 | X114: 114
A115: 30 | B115: MARNE ARDENNES | C115: 2 | D115: CHARLEVILLE MEZIERES | E115: 408862 | F115: REVIN | G115: 3.4 | H115: 106 | I115: 72 | J115: 73 | K115: 74 | L115: 167 | M115: 163 | N115: 159 | O115: 166 | P115: 177 | Q115: 81 | R115: 64 | S115: 52 | T115: 106 | U115: 139 | V115: 129 | W115: 176 | X115: 107
A116: 30 | B116: MEURTHE ET MOSELLE MEUSE | C116: 31 | D116: VERDUN | E116: 554700 | F116: VILLERUPT | G116: 2.8 | H116: 107 | I116: 44 | J116: 48 | K116: 62 | L116: 95 | M116: 97 | N116: 114 | O116: 146 | P116: 164 | Q116: 68 | R116: 166 | S116: 153 | T116: 162 | U116: 211 | V116: 206 | W116: 115 | X116: 232
A117: 30 | B117: VOSGES | C117: 57 | D117: EPINAL | E117: 588201 | F117: CHANTRAINE | G117: 3.6 | H117: 108 | I117: 91 | J117: 86 | K117: 99 | L117: 69 | M117: 66 | N117: 133 | O117: 53 | P117: 47 | Q117: 93 | R117: 196 | S117: 173 | T117: 221 | U117: 156 | V117: 121 | W117: 172 | X117: 151
A118: 30 | B118: MOSELLE | C118: 42 | D118: MOSELLE EST | E118: 557305 | F118: FAULQUEMONT | G118: 4.4 | H118: 109 | I118: 222 | J118: 168 | K118: 223 | L118: 32 | M118: 37 | N118: 32 | O118: 153 | P118: 171 | Q118: 60 | R118: 61 | S118: 69 | T118: 49 | U118: 19 | V118: 21 | W118: 91 | X118: 14
A119: 30 | B119: VOSGES | C119: 57 | D119: EPINAL | E119: 588716 | F119: XERTIGNY | G119: 2.7 | H119: 110 | I119: 53 | J119: 71 | K119: 33 | L119: 200 | M119: 178 | N119: 232 | O119: 94 | P119: 73 | Q119: 162 | R119: 91 | S119: 55 | T119: 215 | U119: 205 | V119: 169 | W119: 132 | X119: 235
A120: 30 | B120: BAS RHIN | C120: 5006 | D120: STRASBOURG | E120: 4006 | F120: STRASBOURG NEUDORF | G120: 7.9 | H120: 111 | I120: 17 | J120: 21 | K120: 10 | L120: 187 | M120: 188 | N120: 153 | O120: 222 | P120: 215 | Q120: 205 | R120: 124 | S120: 126 | T120: 133 | U120: 217 | V120: 211 | W120: 218 | X120: 184
A121: 30 | B121: MEURTHE ET MOSELLE MEUSE | C121: 27 | D121: PONT A MOUSSON | E121: 454535 | F121: PONT A MOUSSON CENTRALE | G121: 5.6 | H121: 112 | I121: 232 | J121: 177 | K121: 236 | L121: 30 | M121: 42 | N121: 22 | O121: 80 | P121: 48 | Q121: 217 | R121: 79 | S121: 92 | T121: 64 | U121: 22 | V121: 17 | W121: 158 | X121: 22
A122: 30 | B122: VOSGES | C122: 57 | D122: EPINAL | E122: 488706 | F122: VITTEL | G122: 2.8 | H122: 113 | I122: 71 | J122: 78 | K122: 55 | L122: 155 | M122: 144 | N122: 172 | O122: 182 | P122: 159 | Q122: 187 | R122: 90 | S122: 103 | T122: 91 | U122: 101 | V122: 165 | W122: 94 | X122: 56
A123: 30 | B123: VOSGES | C123: 57 | D123: EPINAL | E123: 588631 | F123: THAON LES VOSGES | G123: 4.0 | H123: 114 | I123: 127 | J123: 127 | K123: 127 | L123: 87 | M123: 80 | N123: 129 | O123: 169 | P123: 148 | Q123: 160 | R123: 51 | S123: 67 | T123: 32 | U123: 79 | V123: 100 | W123: 26 | X123: 92
A124: 30 | B124: MEURTHE ET MOSELLE MEUSE | C124: 31 | D124: VERDUN | E124: 555406 | F124: LIGNY EN BARROIS | G124: 2.5 | H124: 115 | I124: 43 | J124: 47 | K124: 63 | L124: 90 | M124: 84 | N124: 116 | O124: 84 | P124: 70 | Q124: 136 | R124: 220 | S124: 217 | T124: 204 | U124: 212 | V124: 217 | W124: 186 | X124: 185
A125: 30 | B125: VOSGES | C125: 57 | D125: EPINAL | E125: 488281 | F125: ELOYES | G125: 3.1 | H125: 116 | I125: 41 | J125: 39 | K125: 75 | L125: 202 | M125: 187 | N125: 216 | O125: 37 | P125: 32 | Q125: 131 | R125: 210 | S125: 181 | T125: 233 | U125: 216 | V125: 226 | W125: 67 | X125: 236
A126: 30 | B126: MOSELLE | C126: 42 | D126: MOSELLE EST | E126: 557523 | F126: PHALSBOURG | G126: 2.2 | H126: 117 | I126: 149 | J126: 168 | K126: 103 | L126: 193 | M126: 210 | N126: 99 | O126: 19 | P126: 20 | Q126: 65 | R126: 55 | S126: 38 | T126: 158 | U126: 155 | V126: 190 | W126: 17 | X126: 213
A127: 30 | B127: MEURTHE ET MOSELLE MEUSE | C127: 27 | D127: PONT A MOUSSON | E127: 554376 | F127: LAXOU BOUFFLERS | G127: 3.1 | H127: 118 | I127: 243 | J127: 200 | K127: 239 | L127: 14 | M127: 31 | N127: 5 | O127: 209 | P127: 211 | Q127: 121 | R127: 76 | S127: 160 | T127: 14 | U127: 9 | V127: 12 | W127: 47 | X127: 7
A128: 30 | B128: MARNE ARDENNES | C128: 2 | D128: CHARLEVILLE MEZIERES | E128: 408822 | F128: CHARLEVILLE MEZIERES | G128: 5.3 | H128: 119 | I128: 215 | J128: 200 | K128: 199 | L128: 170 | M128: 205 | N128: 34 | O128: 22 | P128: 58 | Q128: 8 | R128: 49 | S128: 71 | T128: 28 | U128: 42 | V128: 50 | W128: 223 | X128: 21
A129: 30 | B129: MEURTHE ET MOSELLE MEUSE | C129: 26 | D129: NANCY | E129: 554486 | F129: NANCY POINT CENTRAL | G129: 2.7 | H129: 120 | I129: 138 | J129: 90 | K129: 205 | L129: 159 | M129: 183 | N129: 67 | O129: 17 | P129: 21 | Q129: 52 | R129: 152 | S129: 163 | T129: 122 | U129: 108 | V129: 78 | W129: 88 | X129: 162
A130: 30 | B130: BAS RHIN | C130: 5006 | D130: STRASBOURG | E130: 4020 | F130: STRASBOURG ROBERTSAU | G130: 5.4 | H130: 121 | I130: 140 | J130: 145 | K130: 128 | L130: 192 | M130: 185 | N130: 202 | O130: 3 | P130: 2 | Q130: 115 | R130: 202 | S130: 176 | T130: 219 | U130: 225 | V130: 218 | W130: 140 | X130: 227
A131: 30 | B131: MEURTHE ET MOSELLE MEUSE | C131: 27 | D131: PONT A MOUSSON | E131: 454651 | F131: TOUL | G131: 9.7 | H131: 122 | I131: 206 | J131: 138 | K131: 225 | L131: 147 | M131: 165 | N131: 104 | O131: 47 | P131: 49 | Q131: 77 | R131: 72 | S131: 93 | T131: 46 | U131: 31 | V131: 28 | W131: 77 | X131: 49
A132: 30 | B132: MARNE ARDENNES | C132: 11 | D132: REIMS | E132: 451336 | F132: TINQUEUX | G132: 4.5 | H132: 123 | I132: 142 | J132: 113 | K132: 175 | L132: 94 | M132: 109 | N132: 76 | O132: 139 | P132: 163 | Q132: 56 | R132: 126 | S132: 170 | T132: 61 | U132: 46 | V132: 48 | W132: 129 | X132: 47
A133: 30 | B133: BAS RHIN | C133: 5060 | D133: HAGUENAU | E133: 4057 | F133: BISCHWILLER | G133: 7.1 | H133: 124 | I133: 107 | J133: 130 | K133: 51 | L133: 53 | M133: 30 | N133: 198 | O133: 174 | P133: 144 | Q133: 194 | R133: 110 | S133: 100 | T133: 144 | U133: 232 | V133: 246 | W133: 76 | X133: 241
A134: 30 | B134: MOSELLE | C134: 45 | D134: METZ | E134: 557432 | F134: MAIZIERES LES METZ | G134: 2.8 | H134: 125 | I134: 147 | J134: 120 | K134: 170 | L134: 118 | M134: 153 | N134: 59 | O134: 170 | P134: 160 | Q134: 130 | R134: 107 | S134: 115 | T134: 101 | U134: 28 | V134: 18 | W134: 162 | X134: 38
A135: 30 | B135: BAS RHIN | C135: 5101 | D135: SELESTAT | E135: 4121 | F135: SCHIRMECK | G135: 2.8 | H135: 126 | I135: 77 | J135: 112 | K135: 17 | L135: 72 | M135: 68 | N135: 132 | O135: 211 | P135: 212 | Q135: 127 | R135: 211 | S135: 194 | T135: 228 | U135: 81 | V135: 79 | W135: 73 | X135: 91
A136: 110 | B136: MARNE ARDENNES | C136: 6 | D136: CHALONS EN CHAMPAGNE | E136: 551103 | F136: FAGNIERES LECLERC | G136: 2.9 | H136: 127 | I136: 129 | J136: 200 | K136: 32 | L136: 197 | M136: 191 | N136: 188 | O136: 178 | P136: 197 | Q136: 64 | R136: 37 | S136: 36 | T136: 52 | U136: 82 | V136: 98 | W136: 44 | X136: 94
A137: 110 | B137: MARNE ARDENNES | C137: 11 | D137: REIMS | E137: 551309 | F137: REIMS EUROPE | G137: 2.9 | H137: 128 | I137: 61 | J137: 27 | K137: 179 | L137: 221 | M137: 230 | N137: 106 | O137: 143 | P137: 124 | Q137: 141 | R137: 125 | S137: 162 | T137: 69 | U137: 135 | V137: 124 | W137: 190 | X137: 99
A138: 110 | B138: HAUT RHIN | C138: 5130 | D138: COLMAR | E138: 4132 | F138: COLMAR MARAICHERS | G138: 3.8 | H138: 129 | I138: 102 | J138: 88 | K138: 144 | L138: 128 | M138: 127 | N138: 139 | O138: 67 | P138: 71 | Q138: 96 | R138: 121 | S138: 97 | T138: 196 | U138: 231 | V138: 237 | W138: 142 | X138: 218
A139: 110 | B139: MARNE ARDENNES | C139: 6 | D139: CHALONS EN CHAMPAGNE | E139: 451381 | F139: SEZANNE | G139: 5.3 | H139: 130 | I139: 106 | J139: 117 | K139: 85 | L139: 131 | M139: 123 | N139: 169 | O139: 57 | P139: 41 | Q139: 143 | R139: 204 | S139: 196 | T139: 203 | U139: 116 | V139: 72 | W139: 194 | X139: 121
A140: 110 | B140: BAS RHIN | C140: 5006 | D140: STRASBOURG | E140: 4019 | F140: STRASBOURG ANVERS | G140: 4.6 | H140: 131 | I140: 177 | J140: 177 | K140: 178 | L140: 55 | M140: 57 | N140: 60 | O140: 97 | P140: 125 | Q140: 32 | R140: 113 | S140: 121 | T140: 104 | U140: 77 | V140: 40 | W140: 230 | X140: 95
A141: 110 | B141: MEURTHE ET MOSELLE MEUSE | C141: 26 | D141: NANCY | E141: 454426 | F141: LUNEVILLE CARNOT | G141: 7.4 | H141: 132 | I141: 195 | J141: 157 | K141: 200 | L141: 97 | M141: 118 | N141: 80 | O141: 27 | P141: 22 | Q141: 112 | R141: 172 | S141: 192 | T141: 111 | U141: 41 | V141: 59 | W141: 54 | X141: 45
A142: 110 | B142: MEURTHE ET MOSELLE MEUSE | C142: 27 | D142: PONT A MOUSSON | E142: 554686 | F142: VEZELISE | G142: 1.9 | H142: 133 | I142: 109 | J142: 160 | K142: 21 | L142: 83 | M142: 94 | N142: 72 | O142: 74 | P142: 60 | Q142: 152 | R142: 177 | S142: 172 | T142: 172 | U142: 215 | V142: 214 | W142: 144 | X142: 218
A143: 110 | B143: MEURTHE ET MOSELLE MEUSE | C143: 31 | D143: VERDUN | E143: 455566 | F143: REVIGNY SUR ORNAIN | G143: 2.7 | H143: 134 | I143: 111 | J143: 110 | K143: 129 | L143: 157 | M143: 131 | N143: 212 | O143: 83 | P143: 56 | Q143: 189 | R143: 108 | S143: 82 | T143: 178 | U143: 188 | V143: 222 | W143: 29 | X143: 222
A144: 110 | B144: BAS RHIN | C144: 5006 | D144: STRASBOURG | E144: 4023 | F144: STRASBOURG VOSGES | G144: 2.7 | H144: 135 | I144: 156 | J144: 119 | K144: 193 | L144: 136 | M144: 145 | N144: 126 | O144: 13 | P144: 14 | Q144: 76 | R144: 191 | S144: 179 | T144: 200 | U144: 136 | V144: 47 | W144: 241 | X144: 224
A145: 110 | B145: AUBE HAUTE MARNE | C145: 14 | D145: TROYES | E145: 510513 | F145: TROYES 1ER MAI | G145: 2.2 | H145: 136 | I145: 236 | J145: 200 | K145: 230 | L145: 60 | M145: 108 | N145: 15 | O145: 106 | P145: 174 | Q145: 12 | R145: 27 | S145: 35 | T145: 34 | U145: 115 | V145: 99 | W145: 98 | X145: 129
A146: 110 | B146: MOSELLE | C146: 42 | D146: MOSELLE EST | E146: 457258 | F146: DIEUZE | G146: 3.1 | H146: 137 | I146: 51 | J146: 61 | K146: 38 | L146: 180 | M146: 168 | N146: 210 | O146: 160 | P146: 112 | Q146: 234 | R146: 174 | S146: 168 | T146: 175 | U146: 239 | V146: 227 | W146: 215 | X146: 228
A147: 110 | B147: BAS RHIN | C147: 5060 | D147: HAGUENAU | E147: 4085 | F147: INGWILLER | G147: 3.4 | H147: 138 | I147: 123 | J147: 109 | K147: 155 | L147: 133 | M147: 133 | N147: 143 | O147: 116 | P147: 93 | Q147: 159 | R147: 129 | S147: 144 | T147: 107 | U147: 131 | V147: 170 | W147: 40 | X147: 155
A148: 110 | B148: MOSELLE | C148: 45 | D148: METZ | E148: 557437 | F148: METZ SARRE | G148: 2.5 | H148: 139 | I148: 121 | J148: 37 | K148: 241 | L148: 91 | M148: 175 | N148: 12 | O148: 175 | P148: 157 | Q148: 158 | R148: 178 | S148: 214 | T148: 53 | U148: 78 | V148: 76 | W148: 217 | X148: 35
A149: 110 | B149: MEURTHE ET MOSELLE MEUSE | C149: 31 | D149: VERDUN | E149: 554412 | F149: LONGUYON | G149: 2.9 | H149: 140 | I149: 96 | J149: 101 | K149: 97 | L149: 106 | M149: 124 | N149: 85 | O149: 179 | P149: 152 | Q149: 188 | R149: 164 | S149: 145 | T149: 184 | U149: 179 | V149: 150 | W149: 195 | X149: 165
A150: 110 | B150: MOSELLE | C150: 45 | D150: METZ | E150: 557559 | F150: REMILLY | G150: 3.4 | H150: 141 | I150: 126 | J150: 98 | K150: 182 | L150: 166 | M150: 157 | N150: 179 | O150: 127 | P150: 101 | Q150: 151 | R150: 139 | S150: 146 | T150: 109 | U150: 89 | V150: 101 | W150: 31 | X150: 111
A151: 110 | B151: MOSELLE | C151: 42 | D151: MOSELLE EST | E151: 457435 | F151: MERLEBACH | G151: 2.7 | H151: 142 | I151: 133 | J151: 141 | K151: 122 | L151: 148 | M151: 197 | N151: 29 | O151: 183 | P151: 218 | Q151: 29 | R151: 73 | S151: 120 | T151: 25 | U151: 107 | V151: 225 | W151: 16 | X151: 84
A152: 110 | B152: MARNE ARDENNES | C152: 2 | D152: CHARLEVILLE MEZIERES | E152: 408806 | F152: SEDAN | G152: 7.7 | H152: 143 | I152: 75 | J152: 97 | K152: 42 | L152: 169 | M152: 164 | N152: 164 | O152: 180 | P152: 192 | Q152: 94 | R152: 213 | S152: 186 | T152: 235 | U152: 95 | V152: 80 | W152: 170 | X152: 90
A153: 110 | B153: MEURTHE ET MOSELLE MEUSE | C153: 31 | D153: VERDUN | E153: 455298 | F153: ETAIN | G153: 0.9 | H153: 144 | I153: 124 | J153: 127 | K153: 120 | L153: 195 | M153: 221 | N153: 61 | O153: 190 | P153: 228 | Q153: 14 | R153: 75 | S153: 114 | T153: 29 | U153: 74 | V153: 73 | W153: 93 | X153: 77
A154: 110 | B154: AUBE HAUTE MARNE | C154: 21 | D154: CHAUMONT | E154: 410566 | F154: CHAUMONT HOTEL DE VILLE | G154: 10.4 | H154: 145 | I154: 108 | J154: 106 | K154: 123 | L154: 176 | M154: 169 | N154: 157 | O154: 64 | P154: 52 | Q154: 153 | R154: 180 | S154: 161 | T154: 211 | U154: 170 | V154: 196 | W154: 106 | X154: 159
A155: 110 | B155: VOSGES | C155: 57 | D155: EPINAL | E155: 488286 | F155: EPINAL ARISTIDE BRIAND | G155: 7.8 | H155: 146 | I155: 185 | J155: 193 | K155: 177 | L155: 73 | M155: 81 | N155: 73 | O155: 38 | P155: 39 | Q155: 70 | R155: 146 | S155: 164 | T155: 96 | U155: 152 | V155: 120 | W155: 225 | X155: 102
A156: 110 | B156: AUBE HAUTE MARNE | C156: 21 | D156: CHAUMONT | E156: 451156 | F156: SAINT DIZIER CENTRE | G156: 8.5 | H156: 147 | I156: 144 | J156: 138 | K156: 141 | L156: 127 | M156: 150 | N156: 93 | O156: 161 | P156: 145 | Q156: 135 | R156: 94 | S156: 104 | T156: 102 | U156: 117 | V156: 173 | W156: 105 | X156: 76
A157: 110 | B157: MOSELLE | C157: 45 | D157: METZ | E157: 557440 | F157: METZ MOZART | G157: 2.7 | H157: 148 | I157: 165 | J157: 200 | K157: 133 | L157: 121 | M157: 98 | N157: 192 | O157: 118 | P157: 108 | Q157: 123 | R157: 81 | S157: 54 | T157: 170 | U157: 133 | V157: 125 | W157: 124 | X157: 128
A158: 110 | B158: MEURTHE ET MOSELLE MEUSE | C158: 27 | D158: PONT A MOUSSON | E158: 554357 | F158: JOEUF | G158: 3.3 | H158: 149 | I158: 76 | J158: 77 | K158: 88 | L158: 164 | M158: 179 | N158: 92 | O158: 212 | P158: 204 | Q158: 170 | R158: 182 | S158: 200 | T158: 124 | U158: 127 | V158: 149 | W158: 58 | X158: 150
A159: 110 | B159: VOSGES | C159: 55 | D159: SAINT DIE | E159: 588461 | F159: MOYENMOUTIER | G159: 5.0 | H159: 150 | I159: 101 | J159: 79 | K159: 152 | L159: 101 | M159: 58 | N159: 246 | O159: 163 | P159: 119 | Q159: 218 | R159: 157 | S159: 132 | T159: 195 | U159: 234 | V159: 243 | W159: 136 | X159: 222
A160: 110 | B160: HAUT RHIN | C160: 5130 | D160: COLMAR | E160: 4157 | F160: NEUF BRISACH | G160: 3.2 | H160: 151 | I160: 120 | J160: 64 | K160: 204 | L160: 198 | M160: 199 | N160: 155 | O160: 137 | P160: 131 | Q160: 99 | R160: 78 | S160: 58 | T160: 140 | U160: 182 | V160: 205 | W160: 126 | X160: 170
A161: 110 | B161: BAS RHIN | C161: 5101 | D161: SELESTAT | E161: 4107 | F161: VILLE | G161: 2.1 | H161: 152 | I161: 226 | J161: 200 | K161: 216 | L161: 28 | M161: 12 | N161: 194 | O161: 43 | P161: 33 | Q161: 176 | R161: 147 | S161: 123 | T161: 193 | U161: 220 | V161: 232 | W161: 131 | X161: 204
A162: 110 | B162: MEURTHE ET MOSELLE MEUSE | C162: 26 | D162: NANCY | E162: 554296 | F162: ESSEY LES NANCY | G162: 3.6 | H162: 153 | I162: 84 | J162: 105 | K162: 37 | L162: 177 | M162: 180 | N162: 137 | O162: 184 | P162: 166 | Q162: 191 | R162: 203 | S162: 197 | T162: 199 | U162: 130 | V162: 185 | W162: 154 | X162: 72
A163: 110 | B163: MEURTHE ET MOSELLE MEUSE | C163: 26 | D163: NANCY | E163: 554266 | F163: DOMBASLE SUR MEURTHE | G163: 3.3 | H163: 154 | I163: 192 | J163: 200 | K163: 174 | L163: 230 | M163: 227 | N163: 184 | O163: 16 | P163: 13 | Q163: 113 | R163: 97 | S163: 113 | T163: 78 | U163: 96 | V163: 96 | W163: 25 | X163: 163
A164: 110 | B164: BAS RHIN | C164: 5101 | D164: SELESTAT | E164: 4007 | F164: ILLKIRCH CENTRE | G164: 6.5 | H164: 155 | I164: 200 | J164: 200 | K164: 187 | L164: 124 | M164: 107 | N164: 167 | O164: 140 | P164: 116 | Q164: 163 | R164: 39 | S164: 26 | T164: 90 | U164: 163 | V164: 130 | W164: 114 | X164: 193
A165: 110 | B165: MEURTHE ET MOSELLE MEUSE | C165: 27 | D165: PONT A MOUSSON | E165: 554496 | F165: NANCY TROIS MAISONS | G165: 2.1 | H165: 156 | I165: 179 | J165: 180 | K165: 181 | L165: 154 | M165: 174 | N165: 74 | O165: 165 | P165: 147 | Q165: 139 | R165: 68 | S165: 86 | T165: 43 | U165: 71 | V165: 93 | W165: 34 | X165: 83
A166: 110 | B166: MEURTHE ET MOSELLE MEUSE | C166: 27 | D166: PONT A MOUSSON | E166: 554416 | F166: LUDRES | G166: 3.7 | H166: 157 | I166: 65 | J166: 67 | K166: 69 | L166: 138 | M166: 121 | N166: 193 | O166: 239 | P166: 238 | Q166: 195 | R166: 167 | S166: 129 | T166: 220 | U166: 119 | V166: 83 | W166: 213 | X166: 105
A167: 110 | B167: VOSGES | C167: 55 | D167: SAINT DIE | E167: 588316 | F167: FRAIZE | G167: 3.7 | H167: 158 | I167: 132 | J167: 182 | K167: 57 | L167: 216 | M167: 208 | N167: 215 | O167: 119 | P167: 102 | Q167: 134 | R167: 89 | S167: 63 | T167: 173 | U167: 134 | V167: 131 | W167: 139 | X167: 117
A168: 110 | B168: BAS RHIN | C168: 5006 | D168: STRASBOURG | E168: 4039 | F168: REICHSTETT | G168: 1.6 | H168: 159 | I168: 168 | J168: 200 | K168: 137 | L168: 156 | M168: 140 | N168: 196 | O168: 65 | P168: 67 | Q168: 102 | R168: 115 | S168: 91 | T168: 174 | U168: 160 | V168: 122 | W168: 212 | X168: 120
A169: 110 | B169: VOSGES | C169: 55 | D169: SAINT DIE | E169: 488556 | F169: RAON L ETAPE | G169: 2.3 | H169: 160 | I169: 45 | J169: 31 | K169: 135 | L169: 235 | M169: 235 | N169: 142 | O169: 215 | P169: 196 | Q169: 226 | R169: 206 | S169: 206 | T169: 142 | U169: 138 | V169: 238 | W169: 28 | X169: 87
A170: 110 | B170: MOSELLE | C170: 45 | D170: METZ | E170: 557436 | F170: METZ CATHEDRALE | G170: 3.6 | H170: 161 | I170: 234 | J170: 200 | K170: 227 | L170: 109 | M170: 110 | N170: 121 | O170: 39 | P170: 35 | Q170: 124 | R170: 74 | S170: 61 | T170: 110 | U170: 158 | V170: 133 | W170: 198 | X170: 123
A171: 110 | B171: MARNE ARDENNES | C171: 2 | D171: CHARLEVILLE MEZIERES | E171: 508815 | F171: CARIGNAN | G171: 2.7 | H171: 162 | I171: 95 | J171: 98 | K171: 96 | L171: 119 | M171: 142 | N171: 86 | O171: 132 | P171: 123 | Q171: 101 | R171: 228 | S171: 229 | T171: 212 | U171: 197 | V171: 104 | W171: 229 | X171: 211
A172: 110 | B172: AUBE HAUTE MARNE | C172: 14 | D172: TROYES | E172: 410550 | F172: BAR SUR AUBE | G172: 4.9 | H172: 163 | I172: 81 | J172: 64 | K172: 118 | L172: 203 | M172: 195 | N172: 185 | O172: 200 | P172: 175 | Q172: 222 | R172: 173 | S172: 171 | T172: 166 | U172: 176 | V172: 183 | W172: 87 | X172: 199
A173: 110 | B173: MEURTHE ET MOSELLE MEUSE | C173: 27 | D173: PONT A MOUSSON | E173: 454355 | F173: JARNY | G173: 3.9 | H173: 164 | I173: 135 | J173: 133 | K173: 132 | L173: 137 | M173: 147 | N173: 122 | O173: 155 | P173: 135 | Q173: 140 | R173: 140 | S173: 143 | T173: 126 | U173: 183 | V173: 187 | W173: 197 | X173: 141
A174: 110 | B174: MARNE ARDENNES | C174: 11 | D174: REIMS | E174: 551310 | F174: REIMS CHATILLONS | G174: 3.9 | H174: 165 | I174: 170 | J174: 200 | K174: 147 | L174: 102 | M174: 106 | N174: 110 | O174: 110 | P174: 97 | Q174: 122 | R174: 158 | S174: 165 | T174: 123 | U174: 123 | V174: 135 | W174: 184 | X174: 81
A175: 110 | B175: HAUT RHIN | C175: 5169 | D175: MULHOUSE | E175: 4178 | F175: SAINT LOUIS | G175: 6.3 | H175: 166 | I175: 174 | J175: 163 | K175: 184 | L175: 145 | M175: 143 | N175: 148 | O175: 62 | P175: 53 | Q175: 138 | R175: 109 | S175: 105 | T175: 135 | U175: 195 | V175: 112 | W175: 203 | X175: 220
A176: 110 | B176: MOSELLE | C176: 45 | D176: METZ | E176: 557459 | F176: MOULINS LES METZ | G176: 2.4 | H176: 167 | I176: 60 | J176: 40 | K176: 146 | L176: 228 | M176: 203 | N176: 247 | O176: 213 | P176: 190 | Q176: 232 | R176: 165 | S176: 130 | T176: 216 | U176: 203 | V176: 156 | W176: 183 | X176: 210
A177: 110 | B177: MOSELLE | C177: 42 | D177: MOSELLE EST | E177: 457614 | F177: SARREBOURG | G177: 8.3 | H177: 168 | I177: 141 | J177: 182 | K177: 86 | L177: 142 | M177: 119 | N177: 204 | O177: 172 | P177: 169 | Q177: 108 | R177: 119 | S177: 85 | T177: 192 | U177: 184 | V177: 162 | W177: 119 | X177: 209
A178: 110 | B178: MEURTHE ET MOSELLE MEUSE | C178: 26 | D178: NANCY | E178: 554166 | F178: BLAINVILLE | G178: 2.5 | H178: 169 | I178: 178 | J178: 200 | K178: 160 | L178: 129 | M178: 134 | N178: 130 | O178: 191 | P178: 182 | Q178: 166 | R178: 84 | S178: 60 | T178: 147 | U178: 102 | V178: 115 | W178: 135 | X178: 65
A179: 110 | B179: BAS RHIN | C179: 5101 | D179: SELESTAT | E179: 4109 | F179: MARCKOLSHEIM | G179: 2.8 | H179: 170 | I179: 146 | J179: 200 | K179: 67 | L179: 96 | M179: 85 | N179: 145 | O179: 206 | P179: 219 | Q179: 75 | R179: 130 | S179: 154 | T179: 81 | U179: 185 | V179: 180 | W179: 174 | X179: 173
A180: 110 | B180: BAS RHIN | C180: 5101 | D180: SELESTAT | E180: 4101 | F180: SELESTAT CENTRE | G180: 7.4 | H180: 171 | I180: 190 | J180: 180 | K180: 191 | L180: 75 | M180: 62 | N180: 181 | O180: 173 | P180: 141 | Q180: 197 | R180: 114 | S180: 124 | T180: 97 | U180: 151 | V180: 188 | W180: 60 | X180: 156
A181: 110 | B181: MEURTHE ET MOSELLE MEUSE | C181: 27 | D181: PONT A MOUSSON | E181: 554257 | F181: DIEULOUARD | G181: 2.7 | H181: 172 | I181: 119 | J181: 110 | K181: 143 | L181: 150 | M181: 116 | N181: 222 | O181: 72 | P181: 38 | Q181: 244 | R181: 212 | S181: 182 | T181: 238 | U181: 245 | V181: 234 | W181: 242 | X181: 245
A182: 160 | B182: MOSELLE | C182: 45 | D182: METZ | E182: 557712 | F182: WOIPPY | G182: 4.3 | H182: 173 | I182: 197 | J182: 120 | K182: 237 | L182: 110 | M182: 113 | N182: 118 | O182: 150 | P182: 168 | Q182: 61 | R182: 100 | S182: 109 | T182: 114 | U182: 149 | V182: 102 | W182: 181 | X182: 148
A183: 160 | B183: MOSELLE | C183: 45 | D183: METZ | E183: 557433 | F183: MARANGE SILVANGE | G183: 2.9 | H183: 174 | I183: 198 | J183: 151 | K183: 207 | L183: 161 | M183: 152 | N183: 170 | O183: 88 | P183: 69 | Q183: 149 | R183: 137 | S183: 119 | T183: 179 | U183: 113 | V183: 192 | W183: 14 | X183: 139
A184: 160 | B184: MEURTHE ET MOSELLE MEUSE | C184: 27 | D184: PONT A MOUSSON | E184: 554196 | F184: CHAMPIGNEULLES | G184: 2.4 | H184: 175 | I184: 188 | J184: 200 | K184: 167 | L184: 190 | M184: 171 | N184: 221 | O184: 181 | P184: 165 | Q184: 172 | R184: 56 | S184: 50 | T184: 95 | U184: 104 | V184: 61 | W184: 228 | X184: 116
A185: 160 | B185: VOSGES | C185: 55 | D185: SAINT DIE | E185: 588386 | F185: LE THILLOT | G185: 2.2 | H185: 176 | I185: 105 | J185: 143 | K185: 31 | L185: 132 | M185: 89 | N185: 237 | O185: 221 | P185: 216 | Q185: 173 | R185: 187 | S185: 177 | T185: 196 | U185: 193 | V185: 216 | W185: 166 | X185: 140
A186: 160 | B186: HAUT RHIN | C186: 5169 | D186: MULHOUSE | E186: 4170 | F186: MULHOUSE REUNION | G186: 7.3 | H186: 177 | I186: 169 | J186: 124 | K186: 213 | L186: 122 | M186: 137 | N186: 102 | O186: 195 | P186: 201 | Q186: 110 | R186: 99 | S186: 149 | T186: 38 | U186: 129 | V186: 110 | W186: 117 | X186: 145
A187: 160 | B187: BAS RHIN | C187: 5006 | D187: STRASBOURG | E187: 4028 | F187: BISCHHEIM | G187: 3.5 | H187: 178 | I187: 187 | J187: 196 | K187: 169 | L187: 175 | M187: 172 | N187: 144 | O187: 98 | P187: 109 | Q187: 63 | R187: 87 | S187: 108 | T187: 70 | U187: 200 | V187: 189 | W187: 191 | X187: 186
A188: 160 | B188: AUBE HAUTE MARNE | C188: 14 | D188: TROYES | E188: 510523 | F188: LA CHAPELLE ST LUC | G188: 4.2 | H188: 179 | I188: 237 | J188: 200 | K188: 231 | L188: 181 | M188: 209 | N188: 55 | O188: 82 | P188: 111 | Q188: 34 | R188: 50 | S188: 81 | T188: 23 | U188: 124 | V188: 168 | W188: 100 | X188: 98
A189: 160 | B189: BAS RHIN | C189: 5101 | D189: SELESTAT | E189: 4008 | F189: FEGERSHEIM | G189: 2.1 | H189: 180 | I189: 145 | J189: 138 | K189: 142 | L189: 67 | M189: 39 | N189: 231 | O189: 220 | P189: 205 | Q189: 229 | R189: 155 | S189: 137 | T189: 183 | U189: 224 | V189: 215 | W189: 160 | X189: 225
A190: 160 | B190: MOSELLE | C190: 44 | D190: MOSELLE NORD | E190: 557307 | F190: FONTOY | G190: 1.9 | H190: 181 | I190: 128 | J190: 160 | K190: 58 | L190: 194 | M190: 184 | N190: 211 | O190: 133 | P190: 86 | Q190: 225 | R190: 222 | S190: 216 | T190: 230 | U190: 85 | V190: 68 | W190: 32 | X190: 190
A191: 160 | B191: BAS RHIN | C191: 5060 | D191: HAGUENAU | E191: 4060 | F191: HAGUENAU HOUBLON | G191: 8.4 | H191: 182 | I191: 181 | J191: 164 | K191: 188 | L191: 149 | M191: 138 | N191: 171 | O191: 78 | P191: 61 | Q191: 171 | R191: 162 | S191: 141 | T191: 186 | U191: 199 | V191: 213 | W191: 110 | X191: 194
A192: 160 | B192: VOSGES | C192: 57 | D192: EPINAL | E192: 588206 | F192: CHARMES | G192: 2.7 | H192: 183 | I192: 137 | J192: 200 | K192: 48 | L192: 233 | M192: 239 | N192: 120 | O192: 36 | P192: 29 | Q192: 199 | R192: 215 | S192: 220 | T192: 127 | U192: 209 | V192: 247 | W192: 109 | X192: 136
A193: 160 | B193: MEURTHE ET MOSELLE MEUSE | C193: 27 | D193: PONT A MOUSSON | E193: 454696 | F193: VILLERS GENERAL LECLERC | G193: 4.6 | H193: 184 | I193: 162 | J193: 200 | K193: 116 | L193: 217 | M193: 216 | N193: 177 | O193: 28 | P193: 18 | Q193: 201 | R193: 208 | S193: 185 | T193: 226 | U193: 222 | V193: 202 | W193: 199 | X193: 212
A194: 160 | B194: HAUT RHIN | C194: 5130 | D194: COLMAR | E194: 4130 | F194: COLMAR REPUBLIQUE | G194: 6.4 | H194: 185 | I194: 211 | J194: 145 | K194: 226 | L194: 174 | M194: 149 | N194: 219 | O194: 168 | P194: 134 | Q194: 196 | R194: 62 | S194: 43 | T194: 148 | U194: 178 | V194: 175 | W194: 141 | X194: 179
A195: 160 | B195: MARNE ARDENNES | C195: 2 | D195: CHARLEVILLE MEZIERES | E195: 508819 | F195: MOUZON | G195: 1.8 | H195: 186 | I195: 92 | J195: 81 | K195: 121 | L195: 243 | M195: 247 | N195: 81 | O195: 99 | P195: 88 | Q195: 106 | R195: 235 | S195: 245 | T195: 116 | U195: 98 | V195: 160 | W195: 245 | X195: 24
A196: 160 | B196: MARNE ARDENNES | C196: 11 | D196: REIMS | E196: 551341 | F196: REIMS JEAN JAURES | G196: 2.7 | H196: 187 | I196: 207 | J196: 190 | K196: 196 | L196: 168 | M196: 189 | N196: 69 | O196: 103 | P196: 99 | Q196: 88 | R196: 200 | S196: 215 | T196: 83 | U196: 80 | V196: 74 | W196: 208 | X196: 41
A197: 160 | B197: HAUT RHIN | C197: 5169 | D197: MULHOUSE | E197: 4180 | F197: RIEDISHEIM | G197: 3.3 | H197: 188 | I197: 112 | J197: 102 | K197: 149 | L197: 165 | M197: 129 | N197: 230 | O197: 235 | P197: 231 | Q197: 202 | R197: 142 | S197: 110 | T197: 206 | U197: 202 | V197: 114 | W197: 214 | X197: 226
A198: 160 | B198: HAUT RHIN | C198: 5169 | D198: MULHOUSE | E198: 4194 | F198: THANN | G198: 9.1 | H198: 189 | I198: 80 | J198: 91 | K198: 61 | L198: 224 | M198: 219 | N198: 203 | O198: 194 | P198: 181 | Q198: 180 | R198: 227 | S198: 223 | T198: 225 | U198: 191 | V198: 195 | W198: 164 | X198: 169
A199: 160 | B199: BAS RHIN | C199: 5060 | D199: HAGUENAU | E199: 4087 | F199: SAVERNE | G199: 6.0 | H199: 190 | I199: 233 | J199: 154 | K199: 240 | L199: 71 | M199: 53 | N199: 189 | O199: 159 | P199: 137 | Q199: 161 | R199: 118 | S199: 94 | T199: 177 | U199: 166 | V199: 119 | W199: 112 | X199: 208
A200: 160 | B200: HAUT RHIN | C200: 5130 | D200: COLMAR | E200: 4147 | F200: GUEBWILLER | G200: 4.4 | H200: 191 | I200: 160 | J200: 168 | K200: 139 | L200: 152 | M200: 135 | N200: 190 | O200: 164 | P200: 133 | Q200: 186 | R200: 192 | S200: 201 | T200: 134 | U200: 175 | V200: 134 | W200: 220 | X200: 153
A201: 160 | B201: BAS RHIN | C201: 5006 | D201: STRASBOURG | E201: 4026 | F201: STRASBOURG DANUBE | G201: 3.2 | H201: 192 | I201: 202 | J201: 148 | K201: 217 | L201: 226 | M201: 229 | N201: 135 | O201: 52 | P201: 44 | Q201: 95 | R201: 128 | S201: 178 | T201: 51 | U201: 162 | V201: 142 | W201: 81 | X201: 196
A202: 160 | B202: BAS RHIN | C202: 5060 | D202: HAGUENAU | E202: 4082 | F202: BOUXWILLER | G202: 2.4 | H202: 193 | I202: 98 | J202: 133 | K202: 22 | L202: 173 | M202: 166 | N202: 163 | O202: 246 | P202: 246 | Q202: 208 | R202: 83 | S202: 99 | T202: 68 | U202: 90 | V202: 84 | W202: 152 | X202: 82
A203: 160 | B203: MARNE ARDENNES | C203: 11 | D203: REIMS | E203: 451308 | F203: REIMS SAINT THOMAS | G203: 5.2 | H203: 194 | I203: 209 | J203: 145 | K203: 224 | L203: 111 | M203: 132 | N203: 77 | O203: 231 | P203: 235 | Q203: 72 | R203: 133 | S203: 156 | T203: 87 | U203: 36 | V203: 33 | W203: 161 | X203: 34
A204: 160 | B204: VOSGES | C204: 55 | D204: SAINT DIE | E204: 488586 | F204: SAINT DIE | G204: 11.2 | H204: 195 | I204: 88 | J204: 81 | K204: 104 | L204: 206 | M204: 193 | N204: 223 | O204: 210 | P204: 195 | Q204: 216 | R204: 221 | S204: 218 | T204: 218 | U204: 223 | V204: 210 | W204: 207 | X204: 198
... 55 more rows

Sheet AG_FICHE
A1: Accueil
A2: BAROMETRE GRAND PUBLIC
A4: UNITE: | B4: Agence | E4: ETP perf : | F4: =VLOOKUP(A5,'RECAP AG'!$G$6:$CY$256,3,FALSE) -> 4.95
A5: =VLOOKUP(B5,LISTES!$C$6:$D$254,2,FALSE) -> 4189 | B5: ALTKIRCH
C6: Coefficient du critère | E6: Résultats | I6: Ecart au 1ier | K6: =IF(OR(A5=4017,A5=4022),"Rang estimé","Rang") -> Rang
E7: du 1ier | G7: de l'Agence
A9: RANG GRAND PUBLIC | K9: =VLOOKUP($A$5,'RECAP AG'!$G$6:$CY$256,96,FALSE) -> 249
A11: SATISFACTION CLIENTS | C11: 20% | K11: =VLOOKUP($A$5,'RECAP AG'!$G$6:$CY$256,13,FALSE) -> 249
B12: NPS à froid (SAE) | C12: 10% | E12: =+'RECAP AG'!K4 -> 61 | G12: =VLOOKUP($A$5,'RECAP AG'!$G$6:$CY$256,5,FALSE) -> 0.0 | I12: =VLOOKUP($A$5,'RECAP AG'!$G$6:$CY$256,6,FALSE) -> 100% | K12: =VLOOKUP($A$5,'RECAP AG'!$G$6:$CY$256,7,FALSE) -> 200
B13: NPS à chaud (QHD) | C13: 10% | E13: =+'RECAP AG'!N4 -> 88% | G13: =VLOOKUP($A$5,'RECAP AG'!$G$6:$CY$256,8,FALSE) -> 13% | I13: =VLOOKUP($A$5,'RECAP AG'!$G$6:$CY$256,9,FALSE) -> 85% | K13: =VLOOKUP($A$5,'RECAP AG'!$G$6:$CY$256,10,FALSE) -> 248
A15: BANCARISATION | C15: 20% | K15: =VLOOKUP($A$5,'RECAP AG'!$G$6:$CY$256,28,FALSE) -> 247
B16: Ventes Nettes produits pondérés | C16: 12% | E16: ='RECAP AG'!X4 -> 82.8 | G16: =VLOOKUP($A$5,'RECAP AG'!$G$6:$CY$256,19,FALSE) -> -12.6 | I16: =VLOOKUP($A$5,'RECAP AG'!$G$6:$CY$256,20,FALSE) -> 115% | K16: =VLOOKUP($A$5,'RECAP AG'!$G$6:$CY$256,21,FALSE) -> 246
B17: Ventes sur client non détenteur de l’univers | C17: 8% | E17: ='RECAP AG'!AB4 -> 175.9 | G17: =VLOOKUP($A$5,'RECAP AG'!$G$6:$CY$256,23,FALSE) -> 21.0 | I17: =VLOOKUP($A$5,'RECAP AG'!$G$6:$CY$256,24,FALSE) -> 88% | K17: =VLOOKUP($A$5,'RECAP AG'!$G$6:$CY$256,25,FALSE) -> 236
A19: EPARGNE | C19: 20% | K19: =VLOOKUP($A$5,'RECAP AG'!$G$6:$CY$256,43,FALSE) -> 237
B20: Excédent Epargne hors DAV pondéré | C20: 12% | E20: ='RECAP AG'!AM4 -> 1680.2 | G20: =VLOOKUP($A$5,'RECAP AG'!$G$6:$CY$256,34,FALSE) -> -378.6 | I20: =VLOOKUP($A$5,'RECAP AG'!$G$6:$CY$256,35,FALSE) -> 91% | K20: =VLOOKUP($A$5,'RECAP AG'!$G$6:$CY$256,36,FALSE) -> 233
B21: Ventes sur client non détenteur de l’univers | C21: 8% | E21: ='RECAP AG'!AQ4 -> 180.5 | G21: =VLOOKUP($A$5,'RECAP AG'!$G$6:$CY$256,38,FALSE) -> 20.4 | I21: =VLOOKUP($A$5,'RECAP AG'!$G$6:$CY$256,39,FALSE) -> 89% | K21: =VLOOKUP($A$5,'RECAP AG'!$G$6:$CY$256,40,FALSE) -> 237
A23: IARD PREVOYANCE | C23: 20% | K23: =VLOOKUP($A$5,'RECAP AG'!$G$6:$CY$256,77,FALSE) -> 241
B24: Ventes Nettes produits pondérés | C24: 12% | E24: ='RECAP AG'!BU4 -> 481.0 | G24: =VLOOKUP($A$5,'RECAP AG'!$G$6:$CY$256,68,FALSE) -> -33.9 | I24: =VLOOKUP($A$5,'RECAP AG'!$G$6:$CY$256,69,FALSE) -> 107% | K24: =VLOOKUP($A$5,'RECAP AG'!$G$6:$CY$256,70,FALSE) -> 242
B25: Ventes sur client non détenteur de l’univers | C25: 8% | E25: ='RECAP AG'!BY4 -> 109.3 | G25: =VLOOKUP($A$5,'RECAP AG'!$G$6:$CY$256,72,FALSE) -> 18.2 | I25: =VLOOKUP($A$5,'RECAP AG'!$G$6:$CY$256,73,FALSE) -> 83% | K25: =VLOOKUP($A$5,'RECAP AG'!$G$6:$CY$256,74,FALSE) -> 210
A27: CREDITS | C27: 20% | K27: =VLOOKUP($A$5,'RECAP AG'!$G$6:$CY$256,62,FALSE) -> 242
B28: Engagements et ventes accessoires pondérés Immo | C28: 6% | E28: ='RECAP AG'!BB4 -> 776.1 | G28: =VLOOKUP($A$5,'RECAP AG'!$G$6:$CY$256,49,FALSE) -> 37.3 | I28: =VLOOKUP($A$5,'RECAP AG'!$G$6:$CY$256,50,FALSE) -> 95% | K28: =VLOOKUP($A$5,'RECAP AG'!$G$6:$CY$256,51,FALSE) -> 240
B29: Engagements et ventes accessoires pondérés Conso | C29: 6% | E29: ='RECAP AG'!BF4 -> 226.4 | G29: =VLOOKUP($A$5,'RECAP AG'!$G$6:$CY$256,53,FALSE) -> 24.3 | I29: =VLOOKUP($A$5,'RECAP AG'!$G$6:$CY$256,54,FALSE) -> 89% | K29: =VLOOKUP($A$5,'RECAP AG'!$G$6:$CY$256,55,FALSE) -> 201
B30: Ventes sur client non détenteur de l’univers | C30: 8% | E30: ='RECAP AG'!BJ4 -> 85.2 | G30: =VLOOKUP($A$5,'RECAP AG'!$G$6:$CY$256,57,FALSE) -> 7.9 | I30: =VLOOKUP($A$5,'RECAP AG'!$G$6:$CY$256,58,FALSE) -> 91% | K30: =VLOOKUP($A$5,'RECAP AG'!$G$6:$CY$256,59,FALSE) -> 233

Sheet AG_TOTAL
B1: Accueil | H1: BAROMETRE BDD - AGENCES
H2: TOTAL GENERAL
H3: =ACCUEIL!F7 -> 2022-06-05
H7: TOTAL GENERAL | K7: Total Satisfaction Clients | N7: Total Bancarisation | Q7: Total Epargne | T7: Total IARD Prévoyance | W7: Total Crédits
I8: coef | J8: =M8+P8+S8+V8+Y8 -> 100% | L8: coef | M8: =AG_SATISFACTION!P8 -> 20% | O8: coef | P8: =AG_BANCA!R8 -> 20% | R8: coef | S8: =AG_EPARGNE!R8 -> 20% | U8: coef | V8: =AG_IARD!R8 -> 20% | X8: coef | Y8: =AG_CREDIT!V8 -> 20%
B9: Direction | C9: eds | D9: Territoire | E9: eds | F9: Agence | G9: ="ETP perf "&DATEMAJ!$C$28 -> ETP perf 05-juin | H9: Moyenne ecart au 1er | I9: % Ecart au 1er | J9: Rang CEGEE | K9: Moyenne ecart au 1er | L9: % Ecart au 1er | M9: Rang CEGEE | N9: Moyenne ecart au 1er | O9: % Ecart au 1er | P9: Rang CEGEE | Q9: Moyenne ecart au 1er | R9: % Ecart au 1er | S9: Rang CEGEE | T9: Moyenne ecart au 1er | U9: % Ecart au 1er | V9: Rang CEGEE | W9: Moyenne ecart au 1er | X9: % Ecart au 1er | Y9: Rang CEGEE
A10: 50 | B10: MOSELLE | C10: 44 | D10: MOSELLE NORD | E10: 557508 | F10: NILVANGE | G10: 1.7 | H10: 20% | I10: 0% | J10: 1 | K10: 33% | L10: 30% | M10: 40 | N10: 18% | O10: 18% | P10: 2 | Q10: 43% | R10: 10% | S10: 2 | T10: 1% | U10: 0% | V10: 1 | W10: 42% | X10: 40% | Y10: 3
A11: 50 | B11: MEURTHE ET MOSELLE MEUSE | C11: 26 | D11: NANCY | E11: 454171 | F11: BLAMONT | G11: 0.5 | H11: 25% | I11: 6% | J11: 2 | K11: 82% | L11: 79% | M11: 245 | N11: 0% | O11: 0% | P11: 1 | Q11: 46% | R11: 13% | S11: 5 | T11: 36% | U11: 35% | V11: 2 | W11: 3% | X11: 0% | Y11: 1
A12: 50 | B12: MOSELLE | C12: 42 | D12: MOSELLE EST | E12: 457163 | F12: BEHREN LES FORBACH | G12: 1.9 | H12: 43% | I12: 24% | J12: 3 | K12: 30% | L12: 26% | M12: 30 | N12: 54% | O12: 54% | P12: 3 | Q12: 56% | R12: 23% | S12: 12 | T12: 68% | U12: 67% | V12: 36 | W12: 48% | X12: 45% | Y12: 4
A13: 50 | B13: MARNE ARDENNES | C13: 2 | D13: CHARLEVILLE MEZIERES | E13: 508820 | F13: VOUZIERS | G13: 2.9 | H13: 47% | I13: 28% | J13: 4 | K13: 21% | L13: 18% | M13: 12 | N13: 80% | O13: 80% | P13: 79 | Q13: 59% | R13: 26% | S13: 20 | T13: 39% | U13: 38% | V13: 3 | W13: 78% | X13: 75% | Y13: 52
A14: 50 | B14: VOSGES | C14: 57 | D14: EPINAL | E14: 488288 | F14: EPINAL LEOPOLD BOURG | G14: 2.0 | H14: 48% | I14: 28% | J14: 5 | K14: 5% | L14: 1% | M14: 2 | N14: 74% | O14: 74% | P14: 43 | Q14: 50% | R14: 18% | S14: 7 | T14: 73% | U14: 71% | V14: 58 | W14: 78% | X14: 75% | Y14: 53
A15: 50 | B15: MARNE ARDENNES | C15: 6 | D15: CHALONS EN CHAMPAGNE | E15: 551330 | F15: MONTMIRAIL | G15: 2.8 | H15: 51% | I15: 31% | J15: 6 | K15: 14% | L15: 10% | M15: 6 | N15: 69% | O15: 69% | P15: 24 | Q15: 68% | R15: 36% | S15: 66 | T15: 62% | U15: 61% | V15: 18 | W15: 81% | X15: 79% | Y15: 84
A16: 50 | B16: MOSELLE | C16: 45 | D16: METZ | E16: 457443 | F16: METZ REPUBLIQUE | G16: 3.7 | H16: 52% | I16: 32% | J16: 7 | K16: 27% | L16: 23% | M16: 24 | N16: 87% | O16: 87% | P16: 171 | Q16: 33% | R16: 0% | S16: 1 | T16: 65% | U16: 64% | V16: 20 | W16: 87% | X16: 84% | Y16: 180
A17: 50 | B17: MARNE ARDENNES | C17: 11 | D17: REIMS | E17: 551305 | F17: REIMS HIPPODROME | G17: 5.4 | H17: 52% | I17: 33% | J17: 8 | K17: 49% | L17: 45% | M17: 99 | N17: 72% | O17: 72% | P17: 37 | Q17: 54% | R17: 22% | S17: 10 | T17: 58% | U17: 56% | V17: 11 | W17: 68% | X17: 65% | Y17: 13
A18: 50 | B18: MOSELLE | C18: 42 | D18: MOSELLE EST | E18: 457165 | F18: BITCHE | G18: 2.3 | H18: 53% | I18: 33% | J18: 9 | K18: 42% | L18: 38% | M18: 68 | N18: 55% | O18: 55% | P18: 4 | Q18: 68% | R18: 35% | S18: 63 | T18: 58% | U18: 56% | V18: 10 | W18: 83% | X18: 80% | Y18: 106
A19: 50 | B19: MOSELLE | C19: 44 | D19: MOSELLE NORD | E19: 557113 | F19: AUDUN LE TICHE | G19: 2.2 | H19: 54% | I19: 35% | J19: 10 | K19: 54% | L19: 50% | M19: 117 | N19: 62% | O19: 62% | P19: 9 | Q19: 65% | R19: 33% | S19: 46 | T19: 59% | U19: 58% | V19: 12 | W19: 71% | X19: 68% | Y19: 18
A20: 50 | B20: MEURTHE ET MOSELLE MEUSE | C20: 26 | D20: NANCY | E20: 554601 | F20: SAINT MAX | G20: 3.6 | H20: 55% | I20: 35% | J20: 11 | K20: 30% | L20: 27% | M20: 31 | N20: 78% | O20: 78% | P20: 64 | Q20: 61% | R20: 29% | S20: 29 | T20: 67% | U20: 65% | V20: 25 | W20: 78% | X20: 75% | Y20: 49
A21: 50 | B21: MARNE ARDENNES | C21: 2 | D21: CHARLEVILLE MEZIERES | E21: 408801 | F21: CHARLEVILLE JEAN JAURES | G21: 8.7 | H21: 55% | I21: 35% | J21: 12 | K21: 33% | L21: 29% | M21: 37 | N21: 75% | O21: 75% | P21: 46 | Q21: 70% | R21: 37% | S21: 95 | T21: 66% | U21: 65% | V21: 22 | W21: 72% | X21: 69% | Y21: 20
A22: 50 | B22: MOSELLE | C22: 42 | D22: MOSELLE EST | E22: 557250 | F22: CREUTZWALD | G22: 2.5 | H22: 55% | I22: 36% | J22: 13 | K22: 16% | L22: 12% | M22: 8 | N22: 86% | O22: 86% | P22: 151 | Q22: 70% | R22: 38% | S22: 96 | T22: 68% | U22: 67% | V22: 35 | W22: 78% | X22: 75% | Y22: 47
A23: 50 | B23: MOSELLE | C23: 44 | D23: MOSELLE NORD | E23: 557660 | F23: UCKANGE | G23: 1.7 | H23: 56% | I23: 36% | J23: 14 | K23: 79% | L23: 75% | M23: 240 | N23: 62% | O23: 62% | P23: 8 | Q23: 66% | R23: 33% | S23: 48 | T23: 53% | U23: 52% | V23: 5 | W23: 58% | X23: 55% | Y23: 6
A24: 50 | B24: MARNE ARDENNES | C24: 6 | D24: CHALONS EN CHAMPAGNE | E24: 451120 | F24: SARRY | G24: 2.3 | H24: 56% | I24: 36% | J24: 15 | K24: 22% | L24: 19% | M24: 15 | N24: 68% | O24: 68% | P24: 19 | Q24: 73% | R24: 41% | S24: 134 | T24: 74% | U24: 73% | V24: 71 | W24: 80% | X24: 77% | Y24: 72
A25: 50 | B25: MEURTHE ET MOSELLE MEUSE | C25: 26 | D25: NANCY | E25: 554476 | F25: NANCY ARTEM | G25: 2.8 | H25: 56% | I25: 36% | J25: 16 | K25: 46% | L25: 43% | M25: 90 | N25: 66% | O25: 66% | P25: 15 | Q25: 75% | R25: 43% | S25: 162 | T25: 73% | U25: 71% | V25: 59 | W25: 58% | X25: 55% | Y25: 5
A26: 50 | B26: BAS RHIN | C26: 5006 | D26: STRASBOURG | E26: 4037 | F26: MUNDOLSHEIM | G26: 3.7 | H26: 56% | I26: 36% | J26: 17 | K26: 41% | L26: 38% | M26: 67 | N26: 69% | O26: 69% | P26: 25 | Q26: 70% | R26: 38% | S26: 100 | T26: 64% | U26: 62% | V26: 19 | W26: 73% | X26: 71% | Y26: 25
A27: 50 | B27: MEURTHE ET MOSELLE MEUSE | C27: 26 | D27: NANCY | E27: 554356 | F27: JARVILLE LA MALGRANGE | G27: 4.2 | H27: 56% | I27: 37% | J27: 18 | K27: 44% | L27: 40% | M27: 78 | N27: 63% | O27: 63% | P27: 10 | Q27: 72% | R27: 39% | S27: 114 | T27: 70% | U27: 68% | V27: 42 | W27: 72% | X27: 69% | Y27: 21
A28: 262 | B28: MOSELLE | C28: 45 | D28: METZ | E28: 457453 | F28: MONTIGNY LES METZ | G28: 6.9 | H28: 56% | I28: 37% | J28: 19 | K28: 23% | L28: 20% | M28: 19 | N28: 76% | O28: 76% | P28: 56 | Q28: 66% | R28: 33% | S28: 49 | T28: 79% | U28: 78% | V28: 111 | W28: 77% | X28: 74% | Y28: 39
A29: 262 | B29: MOSELLE | C29: 45 | D29: METZ | E29: 457574 | F29: ROMBAS | G29: 3.2 | H29: 56% | I29: 37% | J29: 20 | K29: 22% | L29: 18% | M29: 14 | N29: 81% | O29: 81% | P29: 88 | Q29: 66% | R29: 34% | S29: 55 | T29: 66% | U29: 65% | V29: 23 | W29: 87% | X29: 84% | Y29: 174
A30: 262 | B30: MEURTHE ET MOSELLE MEUSE | C30: 27 | D30: PONT A MOUSSON | E30: 554506 | F30: CHALIGNY NEUVES MAISONS | G30: 3.4 | H30: 56% | I30: 37% | J30: 21 | K30: 62% | L30: 59% | M30: 155 | N30: 59% | O30: 59% | P30: 6 | Q30: 78% | R30: 45% | S30: 186 | T30: 54% | U30: 52% | V30: 7 | W30: 69% | X30: 66% | Y30: 15
A31: 262 | B31: MEURTHE ET MOSELLE MEUSE | C31: 26 | D31: NANCY | E31: 554116 | F31: BACCARAT | G31: 2.8 | H31: 56% | I31: 37% | J31: 22 | K31: 4% | L31: 0% | M31: 1 | N31: 80% | O31: 80% | P31: 76 | Q31: 70% | R31: 37% | S31: 90 | T31: 83% | U31: 82% | V31: 161 | W31: 85% | X31: 83% | Y31: 159
A32: 262 | B32: BAS RHIN | C32: 5006 | D32: STRASBOURG | E32: 4038 | F32: OBERHAUSBERGEN | G32: 3.1 | H32: 56% | I32: 37% | J32: 23 | K32: 37% | L32: 33% | M32: 46 | N32: 75% | O32: 75% | P32: 51 | Q32: 47% | R32: 15% | S32: 6 | T32: 86% | U32: 84% | V32: 181 | W32: 77% | X32: 75% | Y32: 45
A33: 262 | B33: MARNE ARDENNES | C33: 2 | D33: CHARLEVILLE MEZIERES | E33: 508839 | F33: GIVET | G33: 3.3 | H33: 56% | I33: 37% | J33: 24 | K33: 45% | L33: 41% | M33: 86 | N33: 74% | O33: 74% | P33: 44 | Q33: 74% | R33: 41% | S33: 138 | T33: 57% | U33: 55% | V33: 8 | W33: 73% | X33: 71% | Y33: 24
A34: 262 | B34: MEURTHE ET MOSELLE MEUSE | C34: 31 | D34: VERDUN | E34: 455676 | F34: VAUCOULEURS | G34: 0.4 | H34: 57% | I34: 37% | J34: 25 | K34: 64% | L34: 61% | M34: 164 | N34: 112% | O34: 112% | P34: 249 | Q34: 59% | R34: 26% | S34: 21 | T34: 49% | U34: 47% | V34: 4 | W34: 40% | X34: 37% | Y34: 2
A35: 262 | B35: VOSGES | C35: 55 | D35: SAINT DIE | E35: 488246 | F35: CORNIMONT LA BRESSE | G35: 2.4 | H35: 57% | I35: 38% | J35: 26 | K35: 12% | L35: 9% | M35: 5 | N35: 79% | O35: 79% | P35: 68 | Q35: 74% | R35: 42% | S35: 147 | T35: 74% | U35: 72% | V35: 67 | W35: 86% | X35: 84% | Y35: 172
A36: 262 | B36: MARNE ARDENNES | C36: 11 | D36: REIMS | E36: 551349 | F36: REIMS SAINT REMI | G36: 2.9 | H36: 57% | I36: 38% | J36: 27 | K36: 56% | L36: 53% | M36: 130 | N36: 58% | O36: 58% | P36: 5 | Q36: 86% | R36: 53% | S36: 229 | T36: 61% | U36: 60% | V36: 15 | W36: 66% | X36: 63% | Y36: 11
A37: 262 | B37: BAS RHIN | C37: 5101 | D37: SELESTAT | E37: 4113 | F37: BARR | G37: 2.9 | H37: 57% | I37: 38% | J37: 28 | K37: 28% | L37: 25% | M37: 27 | N37: 69% | O37: 69% | P37: 21 | Q37: 74% | R37: 42% | S37: 142 | T37: 79% | U37: 77% | V37: 103 | W37: 78% | X37: 75% | Y37: 55
A38: 262 | B38: MARNE ARDENNES | C38: 11 | D38: REIMS | E38: 551340 | F38: BETHENY | G38: 2.6 | H38: 58% | I38: 38% | J38: 29 | K38: 39% | L38: 36% | M38: 56 | N38: 66% | O38: 66% | P38: 13 | Q38: 75% | R38: 42% | S38: 154 | T38: 79% | U38: 78% | V38: 112 | W38: 69% | X38: 66% | Y38: 14
A39: 262 | B39: MARNE ARDENNES | C39: 11 | D39: REIMS | E39: 551306 | F39: REIMS SAINT MARCEAUX | G39: 4.5 | H39: 58% | I39: 38% | J39: 30 | K39: 25% | L39: 21% | M39: 22 | N39: 68% | O39: 68% | P39: 16 | Q39: 91% | R39: 58% | S39: 238 | T39: 72% | U39: 71% | V39: 53 | W39: 75% | X39: 72% | Y39: 30
A40: 262 | B40: MOSELLE | C40: 44 | D40: MOSELLE NORD | E40: 457348 | F40: HAGONDANGE | G40: 7.9 | H40: 58% | I40: 38% | J40: 31 | K40: 37% | L40: 34% | M40: 50 | N40: 73% | O40: 73% | P40: 41 | Q40: 72% | R40: 40% | S40: 121 | T40: 70% | U40: 69% | V40: 43 | W40: 77% | X40: 74% | Y40: 43
A41: 262 | B41: MARNE ARDENNES | C41: 6 | D41: CHALONS EN CHAMPAGNE | E41: 551110 | F41: CHALONS ROOSEVELT | G41: 4.0 | H41: 58% | I41: 39% | J41: 32 | K41: 23% | L41: 20% | M41: 18 | N41: 80% | O41: 80% | P41: 80 | Q41: 79% | R41: 46% | S41: 197 | T41: 68% | U41: 67% | V41: 34 | W41: 81% | X41: 79% | Y41: 87
A42: 262 | B42: MARNE ARDENNES | C42: 11 | D42: REIMS | E42: 551365 | F42: DORMANS | G42: 2.6 | H42: 58% | I42: 39% | J42: 33 | K42: 41% | L42: 37% | M42: 64 | N42: 68% | O42: 68% | P42: 20 | Q42: 75% | R42: 42% | S42: 156 | T42: 71% | U42: 70% | V42: 47 | W42: 77% | X42: 74% | Y42: 40
A43: 262 | B43: MEURTHE ET MOSELLE MEUSE | C43: 27 | D43: PONT A MOUSSON | E43: 554531 | F43: POMPEY | G43: 2.6 | H43: 58% | I43: 39% | J43: 34 | K43: 73% | L43: 70% | M43: 217 | N43: 59% | O43: 59% | P43: 7 | Q43: 68% | R43: 35% | S43: 61 | T43: 70% | U43: 68% | V43: 41 | W43: 63% | X43: 60% | Y43: 7
A44: 262 | B44: BAS RHIN | C44: 5006 | D44: STRASBOURG | E44: 4010 | F44: STRASBOURG MEINAU | G44: 2.7 | H44: 59% | I44: 39% | J44: 35 | K44: 37% | L44: 34% | M44: 49 | N44: 82% | O44: 82% | P44: 105 | Q44: 68% | R44: 35% | S44: 60 | T44: 62% | U44: 60% | V44: 16 | W44: 85% | X44: 83% | Y44: 161
A45: 262 | B45: MARNE ARDENNES | C45: 6 | D45: CHALONS EN CHAMPAGNE | E45: 451115 | F45: MOURMELON LE GRAND | G45: 2.7 | H45: 59% | I45: 39% | J45: 36 | K45: 39% | L45: 35% | M45: 55 | N45: 75% | O45: 75% | P45: 47 | Q45: 68% | R45: 36% | S45: 71 | T45: 73% | U45: 71% | V45: 60 | W45: 80% | X45: 78% | Y45: 76
A46: 262 | B46: MOSELLE | C46: 45 | D46: METZ | E46: 557439 | F46: METZ POMPIDOU | G46: 2.6 | H46: 59% | I46: 39% | J46: 37 | K46: 38% | L46: 34% | M46: 52 | N46: 82% | O46: 82% | P46: 98 | Q46: 51% | R46: 18% | S46: 9 | T46: 81% | U46: 80% | V46: 132 | W46: 83% | X46: 80% | Y46: 114
A47: 262 | B47: MARNE ARDENNES | C47: 11 | D47: REIMS | E47: 451350 | F47: REIMS CENTRE VILLE | G47: 6.6 | H47: 59% | I47: 39% | J47: 38 | K47: 63% | L47: 59% | M47: 157 | N47: 68% | O47: 68% | P47: 18 | Q47: 71% | R47: 38% | S47: 107 | T47: 68% | U47: 66% | V47: 30 | W47: 65% | X47: 63% | Y47: 10
A48: 262 | B48: MOSELLE | C48: 42 | D48: MOSELLE EST | E48: 557668 | F48: VALMONT | G48: 2.5 | H48: 59% | I48: 39% | J48: 39 | K48: 37% | L48: 33% | M48: 47 | N48: 85% | O48: 85% | P48: 141 | Q48: 56% | R48: 23% | S48: 11 | T48: 73% | U48: 72% | V48: 65 | W48: 84% | X48: 82% | Y48: 132
A49: 262 | B49: MEURTHE ET MOSELLE MEUSE | C49: 31 | D49: VERDUN | E49: 455678 | F49: VERDUN CENTRALE | G49: 8.7 | H49: 59% | I49: 40% | J49: 40 | K49: 24% | L49: 21% | M49: 20 | N49: 78% | O49: 78% | P49: 62 | Q49: 78% | R49: 45% | S49: 185 | T49: 82% | U49: 81% | V49: 149 | W49: 74% | X49: 71% | Y49: 26
A50: 262 | B50: MEURTHE ET MOSELLE MEUSE | C50: 26 | D50: NANCY | E50: 554636 | F50: TOMBLAINE | G50: 2.8 | H50: 59% | I50: 40% | J50: 41 | K50: 23% | L50: 19% | M50: 16 | N50: 83% | O50: 83% | P50: 115 | Q50: 62% | R50: 29% | S50: 32 | T50: 84% | U50: 83% | V50: 170 | W50: 84% | X50: 81% | Y50: 126
A51: 262 | B51: MARNE ARDENNES | C51: 11 | D51: REIMS | E51: 451361 | F51: PIERRY LECLERC | G51: 1.8 | H51: 59% | I51: 40% | J51: 42 | K51: 53% | L51: 50% | M51: 113 | N51: 71% | O51: 71% | P51: 31 | Q51: 57% | R51: 24% | S51: 14 | T51: 77% | U51: 75% | V51: 88 | W51: 78% | X51: 75% | Y51: 54
A52: 262 | B52: MARNE ARDENNES | C52: 2 | D52: CHARLEVILLE MEZIERES | E52: 508802 | F52: CHARLEVILLE NEVERS | G52: 2.8 | H52: 59% | I52: 40% | J52: 43 | K52: 15% | L52: 12% | M52: 7 | N52: 91% | O52: 91% | P52: 205 | Q52: 72% | R52: 39% | S52: 111 | T52: 72% | U52: 70% | V52: 52 | W52: 86% | X52: 84% | Y52: 173
A53: 262 | B53: MOSELLE | C53: 42 | D53: MOSELLE EST | E53: 457308 | F53: FORBACH CENTRALE | G53: 9.3 | H53: 59% | I53: 40% | J53: 44 | K53: 45% | L53: 41% | M53: 83 | N53: 73% | O53: 73% | P53: 38 | Q53: 68% | R53: 36% | S53: 70 | T53: 70% | U53: 68% | V53: 40 | W53: 82% | X53: 79% | Y53: 97
A54: 262 | B54: MOSELLE | C54: 45 | D54: METZ | E54: 557447 | F54: METZ SAINT MAXIMIN | G54: 2.0 | H54: 60% | I54: 40% | J54: 45 | K54: 68% | L54: 65% | M54: 180 | N54: 73% | O54: 73% | P54: 42 | Q54: 66% | R54: 33% | S54: 50 | T54: 53% | U54: 52% | V54: 6 | W54: 78% | X54: 76% | Y54: 58
A55: 262 | B55: VOSGES | C55: 57 | D55: EPINAL | E55: 588336 | F55: GOLBEY | G55: 2.8 | H55: 60% | I55: 40% | J55: 46 | K55: 27% | L55: 24% | M55: 25 | N55: 81% | O55: 81% | P55: 93 | Q55: 67% | R55: 34% | S55: 56 | T55: 79% | U55: 78% | V55: 117 | W55: 84% | X55: 82% | Y55: 137
A56: 262 | B56: MOSELLE | C56: 44 | D56: MOSELLE NORD | E56: 457350 | F56: HAYANGE | G56: 6.7 | H56: 60% | I56: 40% | J56: 47 | K56: 57% | L56: 54% | M56: 131 | N56: 69% | O56: 69% | P56: 22 | Q56: 70% | R56: 37% | S56: 92 | T56: 67% | U56: 66% | V56: 28 | W56: 76% | X56: 74% | Y56: 37
A57: 262 | B57: AUBE HAUTE MARNE | C57: 21 | D57: CHAUMONT | E57: 510590 | F57: CHAUMONT REPUBLIQUE | G57: 2.9 | H57: 60% | I57: 40% | J57: 48 | K57: 41% | L57: 38% | M57: 66 | N57: 88% | O57: 88% | P57: 179 | Q57: 63% | R57: 31% | S57: 35 | T57: 68% | U57: 67% | V57: 32 | W57: 78% | X57: 75% | Y57: 56
A58: 262 | B58: BAS RHIN | C58: 5060 | D58: HAGUENAU | E58: 4092 | F58: HOCHFELDEN | G58: 2.0 | H58: 60% | I58: 40% | J58: 49 | K58: 32% | L58: 28% | M58: 36 | N58: 82% | O58: 82% | P58: 107 | Q58: 65% | R58: 32% | S58: 41 | T58: 79% | U58: 77% | V58: 106 | W58: 82% | X58: 79% | Y58: 93
A59: 262 | B59: MARNE ARDENNES | C59: 6 | D59: CHALONS EN CHAMPAGNE | E59: 551354 | F59: VERTUS | G59: 2.0 | H59: 60% | I59: 40% | J59: 50 | K59: 10% | L59: 7% | M59: 4 | N59: 87% | O59: 87% | P59: 162 | Q59: 73% | R59: 40% | S59: 130 | T59: 88% | U59: 86% | V59: 207 | W59: 83% | X59: 80% | Y59: 109
A60: 262 | B60: MEURTHE ET MOSELLE MEUSE | C60: 31 | D60: VERDUN | E60: 554413 | F60: LONGWY BAS | G60: 3.6 | H60: 60% | I60: 40% | J60: 51 | K60: 29% | L60: 25% | M60: 29 | N60: 79% | O60: 79% | P60: 70 | Q60: 72% | R60: 40% | S60: 117 | T60: 78% | U60: 77% | V60: 96 | W60: 82% | X60: 80% | Y60: 100
A61: 262 | B61: MARNE ARDENNES | C61: 11 | D61: REIMS | E61: 551367 | F61: AY CHAMPAGNE | G61: 2.7 | H61: 60% | I61: 41% | J61: 52 | K61: 33% | L61: 30% | M61: 39 | N61: 83% | O61: 83% | P61: 114 | Q61: 75% | R61: 42% | S61: 151 | T61: 71% | U61: 69% | V61: 45 | W61: 80% | X61: 77% | Y61: 70
A62: 262 | B62: MEURTHE ET MOSELLE MEUSE | C62: 31 | D62: VERDUN | E62: 555679 | F62: VERDUN MAZEL | G62: 3.6 | H62: 60% | I62: 41% | J62: 53 | K62: 25% | L62: 21% | M62: 21 | N62: 83% | O62: 83% | P62: 112 | Q62: 68% | R62: 35% | S62: 58 | T62: 81% | U62: 80% | V62: 138 | W62: 85% | X62: 82% | Y62: 142
A63: 262 | B63: MOSELLE | C63: 42 | D63: MOSELLE EST | E63: 457583 | F63: SAINT AVOLD | G63: 7.0 | H63: 61% | I63: 41% | J63: 54 | K63: 40% | L63: 36% | M63: 58 | N63: 73% | O63: 73% | P63: 39 | Q63: 68% | R63: 36% | S63: 73 | T63: 76% | U63: 75% | V63: 85 | W63: 85% | X63: 82% | Y63: 147
A64: 262 | B64: MEURTHE ET MOSELLE MEUSE | C64: 26 | D64: NANCY | E64: 454481 | F64: NANCY PLACE DOMBASLE | G64: 7.7 | H64: 61% | I64: 41% | J64: 55 | K64: 72% | L64: 69% | M64: 214 | N64: 77% | O64: 77% | P64: 57 | Q64: 50% | R64: 18% | S64: 8 | T64: 78% | U64: 77% | V64: 101 | W64: 65% | X64: 62% | Y64: 8
A65: 262 | B65: AUBE HAUTE MARNE | C65: 14 | D65: TROYES | E65: 510570 | F65: NOGENT SUR SEINE | G65: 4.7 | H65: 61% | I65: 41% | J65: 56 | K65: 18% | L65: 14% | M65: 11 | N65: 80% | O65: 80% | P65: 74 | Q65: 79% | R65: 47% | S65: 201 | T65: 82% | U65: 81% | V65: 148 | W65: 84% | X65: 81% | Y65: 122
A66: 262 | B66: BAS RHIN | C66: 5006 | D66: STRASBOURG | E66: 4043 | F66: STRASBOURG HALLES | G66: 7.4 | H66: 61% | I66: 41% | J66: 57 | K66: 54% | L66: 50% | M66: 115 | N66: 74% | O66: 74% | P66: 45 | Q66: 71% | R66: 38% | S66: 104 | T66: 60% | U66: 59% | V66: 13 | W66: 84% | X66: 82% | Y66: 128
A67: 262 | B67: BAS RHIN | C67: 5060 | D67: HAGUENAU | E67: 4079 | F67: SOULTZ SOUS FORETS | G67: 1.9 | H67: 61% | I67: 41% | J67: 58 | K67: 38% | L67: 35% | M67: 54 | N67: 76% | O67: 76% | P67: 54 | Q67: 66% | R67: 33% | S67: 51 | T67: 78% | U67: 76% | V67: 92 | W67: 86% | X67: 84% | Y67: 171
A68: 262 | B68: VOSGES | C68: 57 | D68: EPINAL | E68: 488561 | F68: REMIREMONT | G68: 7.1 | H68: 61% | I68: 41% | J68: 59 | K68: 16% | L68: 12% | M68: 9 | N68: 85% | O68: 85% | P68: 134 | Q68: 76% | R68: 43% | S68: 167 | T68: 80% | U68: 78% | V68: 120 | W68: 88% | X68: 85% | Y68: 201
A69: 262 | B69: MARNE ARDENNES | C69: 11 | D69: REIMS | E69: 451301 | F69: REIMS HOTEL DE VILLE | G69: 7.5 | H69: 61% | I69: 41% | J69: 60 | K69: 47% | L69: 44% | M69: 93 | N69: 78% | O69: 78% | P69: 65 | Q69: 79% | R69: 47% | S69: 199 | T69: 62% | U69: 61% | V69: 17 | W69: 78% | X69: 75% | Y69: 50
A70: 262 | B70: BAS RHIN | C70: 5006 | D70: STRASBOURG | E70: 4054 | F70: STRASBOURG MONTAGNE VERTE | G70: 2.6 | H70: 61% | I70: 41% | J70: 61 | K70: 39% | L70: 36% | M70: 57 | N70: 78% | O70: 78% | P70: 66 | Q70: 66% | R70: 34% | S70: 54 | T70: 72% | U70: 71% | V70: 54 | W70: 89% | X70: 86% | Y70: 210
A71: 262 | B71: MOSELLE | C71: 45 | D71: METZ | E71: 557434 | F71: MARLY | G71: 3.0 | H71: 61% | I71: 42% | J71: 62 | K71: 34% | L71: 30% | M71: 42 | N71: 84% | O71: 84% | P71: 120 | Q71: 63% | R71: 31% | S71: 34 | T71: 86% | U71: 84% | V71: 184 | W71: 80% | X71: 77% | Y71: 69
A72: 262 | B72: MOSELLE | C72: 42 | D72: MOSELLE EST | E72: 457543 | F72: PUTTELANGE AUX LACS | G72: 2.5 | H72: 61% | I72: 42% | J72: 63 | K72: 49% | L72: 46% | M72: 100 | N72: 82% | O72: 82% | P72: 99 | Q72: 69% | R72: 37% | S72: 79 | T72: 68% | U72: 66% | V72: 31 | W72: 78% | X72: 76% | Y72: 59
A73: 262 | B73: MOSELLE | C73: 45 | D73: METZ | E73: 457446 | F73: METZ SAINT LOUIS | G73: 5.4 | H73: 61% | I73: 42% | J73: 64 | K73: 44% | L73: 41% | M73: 82 | N73: 75% | O73: 75% | P73: 48 | Q73: 80% | R73: 48% | S73: 208 | T73: 74% | U73: 73% | V73: 70 | W73: 74% | X73: 71% | Y73: 27
A74: 262 | B74: MOSELLE | C74: 44 | D74: MOSELLE NORD | E74: 557352 | F74: HETTANGE GRANDE | G74: 2.9 | H74: 61% | I74: 42% | J74: 65 | K74: 59% | L74: 55% | M74: 139 | N74: 71% | O74: 71% | P74: 29 | Q74: 75% | R74: 43% | S74: 158 | T74: 73% | U74: 71% | V74: 57 | W74: 70% | X74: 68% | Y74: 17
A75: 264 | B75: VOSGES | C75: 57 | D75: EPINAL | E75: 588396 | F75: LE VAL D AJOL | G75: 2.6 | H75: 61% | I75: 42% | J75: 66 | K75: 17% | L75: 14% | M75: 10 | N75: 85% | O75: 85% | P75: 140 | Q75: 74% | R75: 42% | S75: 141 | T75: 82% | U75: 80% | V75: 144 | W75: 89% | X75: 86% | Y75: 221
A76: 264 | B76: BAS RHIN | C76: 5006 | D76: STRASBOURG | E76: 4048 | F76: STRASBOURG KOENIGSHOFFEN | G76: 2.2 | H76: 62% | I76: 42% | J76: 67 | K76: 67% | L76: 64% | M76: 176 | N76: 69% | O76: 69% | P76: 23 | Q76: 65% | R76: 33% | S76: 44 | T76: 68% | U76: 66% | V76: 29 | W76: 79% | X76: 76% | Y76: 60
A77: 264 | B77: MARNE ARDENNES | C77: 2 | D77: CHARLEVILLE MEZIERES | E77: 508833 | F77: VILLERS SEMEUSE CORA | G77: 3.4 | H77: 62% | I77: 42% | J77: 68 | K77: 69% | L77: 65% | M77: 186 | N77: 84% | O77: 84% | P77: 123 | Q77: 63% | R77: 30% | S77: 33 | T77: 58% | U77: 56% | V77: 9 | W77: 75% | X77: 72% | Y77: 32
A78: 264 | B78: MOSELLE | C78: 44 | D78: MOSELLE NORD | E78: 457632 | F78: THIONVILLE CENTRALE | G78: 10.7 | H78: 62% | I78: 42% | J78: 69 | K78: 55% | L78: 52% | M78: 122 | N78: 72% | O78: 72% | P78: 34 | Q78: 76% | R78: 44% | S78: 171 | T78: 68% | U78: 67% | V78: 38 | W78: 76% | X78: 74% | Y78: 38
A79: 264 | B79: MEURTHE ET MOSELLE MEUSE | C79: 27 | D79: PONT A MOUSSON | E79: 554381 | F79: LAXOU ARISTIDE BRIAND | G79: 2.4 | H79: 62% | I79: 42% | J79: 70 | K79: 70% | L79: 66% | M79: 194 | N79: 68% | O79: 68% | P79: 17 | Q79: 75% | R79: 42% | S79: 157 | T79: 67% | U79: 65% | V79: 26 | W79: 69% | X79: 66% | Y79: 16
A80: 264 | B80: MARNE ARDENNES | C80: 11 | D80: REIMS | E80: 451370 | F80: EPERNAY | G80: 8.7 | H80: 62% | I80: 42% | J80: 71 | K80: 40% | L80: 36% | M80: 59 | N80: 78% | O80: 78% | P80: 63 | Q80: 71% | R80: 39% | S80: 109 | T80: 81% | U80: 79% | V80: 127 | W80: 79% | X80: 76% | Y80: 63
A81: 264 | B81: MOSELLE | C81: 44 | D81: MOSELLE NORD | E81: 557303 | F81: FAMECK | G81: 2.6 | H81: 62% | I81: 42% | J81: 72 | K81: 32% | L81: 28% | M81: 35 | N81: 84% | O81: 84% | P81: 125 | Q81: 73% | R81: 40% | S81: 131 | T81: 87% | U81: 85% | V81: 198 | W81: 74% | X81: 71% | Y81: 29
A82: 264 | B82: BAS RHIN | C82: 5101 | D82: SELESTAT | E82: 4104 | F82: ERSTEIN | G82: 4.3 | H82: 62% | I82: 42% | J82: 73 | K82: 72% | L82: 69% | M82: 210 | N82: 63% | O82: 63% | P82: 11 | Q82: 70% | R82: 37% | S82: 86 | T82: 68% | U82: 67% | V82: 33 | W82: 77% | X82: 74% | Y82: 44
A83: 264 | B83: AUBE HAUTE MARNE | C83: 21 | D83: CHAUMONT | E83: 451154 | F83: JOINVILLE | G83: 1.8 | H83: 62% | I83: 43% | J83: 74 | K83: 37% | L83: 34% | M83: 48 | N83: 77% | O83: 77% | P83: 58 | Q83: 89% | R83: 57% | S83: 236 | T83: 66% | U83: 64% | V83: 21 | W83: 82% | X83: 79% | Y83: 94
A84: 264 | B84: VOSGES | C84: 55 | D84: SAINT DIE | E84: 588186 | F84: BRUYERES | G84: 3.4 | H84: 62% | I84: 43% | J84: 75 | K84: 28% | L84: 25% | M84: 28 | N84: 86% | O84: 86% | P84: 146 | Q84: 73% | R84: 41% | S84: 136 | T84: 83% | U84: 82% | V84: 160 | W84: 81% | X84: 79% | Y84: 86
A85: 264 | B85: VOSGES | C85: 55 | D85: SAINT DIE | E85: 488326 | F85: GERARDMER | G85: 3.7 | H85: 62% | I85: 43% | J85: 76 | K85: 42% | L85: 39% | M85: 73 | N85: 83% | O85: 83% | P85: 108 | Q85: 62% | R85: 29% | S85: 31 | T85: 82% | U85: 81% | V85: 150 | W85: 83% | X85: 80% | Y85: 110
A86: 264 | B86: MOSELLE | C86: 44 | D86: MOSELLE NORD | E86: 457306 | F86: FLORANGE | G86: 4.9 | H86: 63% | I86: 43% | J86: 77 | K86: 77% | L86: 73% | M86: 231 | N86: 64% | O86: 64% | P86: 12 | Q86: 69% | R86: 37% | S86: 81 | T86: 76% | U86: 74% | V86: 80 | W86: 67% | X86: 65% | Y86: 12
A87: 264 | B87: MOSELLE | C87: 45 | D87: METZ | E87: 557612 | F87: SAINTE MARIE AUX CHENES | G87: 3.7 | H87: 63% | I87: 43% | J87: 78 | K87: 26% | L87: 22% | M87: 23 | N87: 94% | O87: 94% | P87: 222 | Q87: 61% | R87: 28% | S87: 26 | T87: 83% | U87: 82% | V87: 159 | W87: 90% | X87: 87% | Y87: 229
A88: 264 | B88: VOSGES | C88: 55 | D88: SAINT DIE | E88: 588666 | F88: VAGNEY | G88: 3.2 | H88: 63% | I88: 43% | J88: 79 | K88: 31% | L88: 27% | M88: 34 | N88: 86% | O88: 86% | P88: 153 | Q88: 65% | R88: 33% | S88: 45 | T88: 85% | U88: 84% | V88: 179 | W88: 86% | X88: 84% | Y88: 169
A89: 264 | B89: MOSELLE | C89: 42 | D89: MOSELLE EST | E89: 557210 | F89: CHATEAU SALINS | G89: 1.0 | H89: 63% | I89: 43% | J89: 80 | K89: 63% | L89: 60% | M89: 161 | N89: 82% | O89: 82% | P89: 103 | Q89: 73% | R89: 40% | S89: 126 | T89: 61% | U89: 59% | V89: 14 | W89: 75% | X89: 73% | Y89: 33
A90: 264 | B90: MARNE ARDENNES | C90: 11 | D90: REIMS | E90: 551314 | F90: FISMES | G90: 2.6 | H90: 63% | I90: 43% | J90: 81 | K90: 48% | L90: 44% | M90: 94 | N90: 72% | O90: 72% | P90: 33 | Q90: 72% | R90: 40% | S90: 115 | T90: 83% | U90: 81% | V90: 151 | W90: 80% | X90: 77% | Y90: 73
A91: 264 | B91: BAS RHIN | C91: 5060 | D91: HAGUENAU | E91: 4031 | F91: TRUCHTERSHEIM | G91: 2.3 | H91: 63% | I91: 43% | J91: 82 | K91: 21% | L91: 18% | M91: 13 | N91: 81% | O91: 81% | P91: 85 | Q91: 65% | R91: 32% | S91: 42 | T91: 97% | U91: 96% | V91: 239 | W91: 90% | X91: 88% | Y91: 236
A92: 264 | B92: BAS RHIN | C92: 5060 | D92: HAGUENAU | E92: 4071 | F92: WISSEMBOURG | G92: 6.7 | H92: 63% | I92: 43% | J92: 83 | K92: 31% | L92: 27% | M92: 33 | N92: 86% | O92: 86% | P92: 160 | Q92: 69% | R92: 36% | S92: 75 | T92: 79% | U92: 77% | V92: 105 | W92: 90% | X92: 87% | Y92: 230
A93: 264 | B93: MARNE ARDENNES | C93: 6 | D93: CHALONS EN CHAMPAGNE | E93: 551128 | F93: SAINTE MENEHOULD | G93: 3.2 | H93: 63% | I93: 43% | J93: 84 | K93: 31% | L93: 27% | M93: 32 | N93: 80% | O93: 80% | P93: 84 | Q93: 82% | R93: 50% | S93: 219 | T93: 74% | U93: 72% | V93: 66 | W93: 88% | X93: 86% | Y93: 208
A94: 264 | B94: MEURTHE ET MOSELLE MEUSE | C94: 31 | D94: VERDUN | E94: 454414 | F94: LONGWY HAUT | G94: 3.2 | H94: 63% | I94: 43% | J94: 85 | K94: 53% | L94: 50% | M94: 114 | N94: 80% | O94: 80% | P94: 82 | Q94: 69% | R94: 36% | S94: 76 | T94: 73% | U94: 72% | V94: 63 | W94: 79% | X94: 77% | Y94: 67
A95: 264 | B95: AUBE HAUTE MARNE | C95: 21 | D95: CHAUMONT | E95: 410541 | F95: LANGRES | G95: 8.2 | H95: 63% | I95: 43% | J95: 86 | K95: 42% | L95: 38% | M95: 69 | N95: 80% | O95: 80% | P95: 78 | Q95: 70% | R95: 37% | S95: 93 | T95: 78% | U95: 77% | V95: 102 | W95: 85% | X95: 82% | Y95: 146
A96: 264 | B96: BAS RHIN | C96: 5060 | D96: HAGUENAU | E96: 4041 | F96: HOERDT | G96: 1.6 | H96: 63% | I96: 43% | J96: 87 | K96: 40% | L96: 37% | M96: 62 | N96: 85% | O96: 85% | P96: 143 | Q96: 58% | R96: 26% | S96: 18 | T96: 87% | U96: 85% | V96: 199 | W96: 85% | X96: 82% | Y96: 140
A97: 30 | B97: BAS RHIN | C97: 5006 | D97: STRASBOURG | E97: 4047 | F97: STRASBOURG CRONENBOURG | G97: 4.5 | H97: 63% | I97: 43% | J97: 88 | K97: 46% | L97: 43% | M97: 87 | N97: 78% | O97: 78% | P97: 61 | Q97: 72% | R97: 39% | S97: 113 | T97: 77% | U97: 75% | V97: 86 | W97: 83% | X97: 81% | Y97: 118
A98: 30 | B98: HAUT RHIN | C98: 5130 | D98: COLMAR | E98: 4143 | F98: MUNSTER | G98: 4.2 | H98: 63% | I98: 44% | J98: 89 | K98: 58% | L98: 54% | M98: 134 | N98: 73% | O98: 73% | P98: 40 | Q98: 60% | R98: 27% | S98: 23 | T98: 79% | U98: 78% | V98: 116 | W98: 86% | X98: 83% | Y98: 167
A99: 30 | B99: MARNE ARDENNES | C99: 6 | D99: CHALONS EN CHAMPAGNE | E99: 451101 | F99: CHALONS VIVIERS | G99: 9.7 | H99: 63% | I99: 44% | J99: 90 | K99: 33% | L99: 30% | M99: 38 | N99: 84% | O99: 84% | P99: 126 | Q99: 78% | R99: 46% | S99: 188 | T99: 78% | U99: 76% | V99: 93 | W99: 83% | X99: 80% | Y99: 112
A100: 30 | B100: BAS RHIN | C100: 5101 | D100: SELESTAT | E100: 4126 | F100: MUTZIG | G100: 2.6 | H100: 63% | I100: 44% | J100: 91 | K100: 62% | L100: 59% | M100: 154 | N100: 69% | O100: 69% | P100: 26 | Q100: 57% | R100: 25% | S100: 15 | T100: 84% | U100: 83% | V100: 171 | W100: 84% | X100: 81% | Y100: 120
A101: 30 | B101: MOSELLE | C101: 45 | D101: METZ | E101: 557105 | F101: ARS SUR MOSELLE | G101: 3.8 | H101: 63% | I101: 44% | J101: 92 | K101: 40% | L101: 37% | M101: 63 | N101: 82% | O101: 82% | P101: 104 | Q101: 74% | R101: 42% | S101: 145 | T101: 84% | U101: 82% | V101: 168 | W101: 76% | X101: 73% | Y101: 34
A102: 30 | B102: MEURTHE ET MOSELLE MEUSE | C102: 27 | D102: PONT A MOUSSON | E102: 554516 | F102: PAGNY SUR MOSELLE | G102: 2.8 | H102: 64% | I102: 44% | J102: 93 | K102: 50% | L102: 47% | M102: 104 | N102: 82% | O102: 82% | P102: 100 | Q102: 70% | R102: 37% | S102: 91 | T102: 75% | U102: 74% | V102: 77 | W102: 81% | X102: 78% | Y102: 83
A103: 30 | B103: MOSELLE | C103: 44 | D103: MOSELLE NORD | E103: 457192 | F103: CATTENOM | G103: 1.6 | H103: 64% | I103: 44% | J103: 94 | K103: 54% | L103: 50% | M103: 118 | N103: 75% | O103: 75% | P103: 50 | Q103: 73% | R103: 41% | S103: 135 | T103: 78% | U103: 76% | V103: 95 | W103: 78% | X103: 75% | Y103: 57
A104: 30 | B104: MARNE ARDENNES | C104: 2 | D104: CHARLEVILLE MEZIERES | E104: 408840 | F104: RETHEL | G104: 4.1 | H104: 64% | I104: 44% | J104: 95 | K104: 61% | L104: 57% | M104: 151 | N104: 75% | O104: 75% | P104: 52 | Q104: 72% | R104: 40% | S104: 122 | T104: 71% | U104: 70% | V104: 46 | W104: 79% | X104: 76% | Y104: 62
A105: 30 | B105: BAS RHIN | C105: 5006 | D105: STRASBOURG | E105: 4027 | F105: SCHILTIGHEIM CENTRE | G105: 3.2 | H105: 64% | I105: 44% | J105: 96 | K105: 67% | L105: 64% | M105: 175 | N105: 72% | O105: 72% | P105: 35 | Q105: 60% | R105: 27% | S105: 24 | T105: 74% | U105: 73% | V105: 69 | W105: 85% | X105: 82% | Y105: 153
A106: 30 | B106: MOSELLE | C106: 44 | D106: MOSELLE NORD | E106: 557347 | F106: GUENANGE | G106: 4.6 | H106: 64% | I106: 44% | J106: 97 | K106: 71% | L106: 68% | M106: 208 | N106: 71% | O106: 71% | P106: 27 | Q106: 74% | R106: 42% | S106: 149 | T106: 70% | U106: 69% | V106: 44 | W106: 73% | X106: 70% | Y106: 23
A107: 30 | B107: VOSGES | C107: 55 | D107: SAINT DIE | E107: 588551 | F107: RAMBERVILLERS | G107: 2.6 | H107: 64% | I107: 44% | J107: 98 | K107: 27% | L107: 24% | M107: 26 | N107: 93% | O107: 93% | P107: 218 | Q107: 69% | R107: 36% | S107: 77 | T107: 94% | U107: 92% | V107: 231 | W107: 76% | X107: 73% | Y107: 35
A108: 30 | B108: MOSELLE | C108: 45 | D108: METZ | E108: 557444 | F108: SAINT JULIEN LES METZ | G108: 3.7 | H108: 64% | I108: 44% | J108: 99 | K108: 73% | L108: 70% | M108: 219 | N108: 75% | O108: 75% | P108: 49 | Q108: 61% | R108: 28% | S108: 25 | T108: 71% | U108: 70% | V108: 48 | W108: 79% | X108: 77% | Y108: 65
A109: 30 | B109: MOSELLE | C109: 44 | D109: MOSELLE NORD | E109: 457158 | F109: YUTZ | G109: 4.3 | H109: 64% | I109: 44% | J109: 100 | K109: 65% | L109: 62% | M109: 167 | N109: 77% | O109: 77% | P109: 59 | Q109: 71% | R109: 38% | S109: 101 | T109: 66% | U109: 65% | V109: 24 | W109: 81% | X109: 79% | Y109: 88
A110: 30 | B110: MOSELLE | C110: 42 | D110: MOSELLE EST | E110: 557503 | F110: NEUNKIRCH | G110: 3.5 | H110: 64% | I110: 45% | J110: 101 | K110: 10% | L110: 6% | M110: 3 | N110: 92% | O110: 92% | P110: 210 | Q110: 80% | R110: 47% | S110: 203 | T110: 92% | U110: 91% | V110: 226 | W110: 87% | X110: 85% | Y110: 190
A111: 30 | B111: MARNE ARDENNES | C111: 11 | D111: REIMS | E111: 551369 | F111: DAMERY | G111: 1.8 | H111: 64% | I111: 45% | J111: 102 | K111: 50% | L111: 47% | M111: 103 | N111: 72% | O111: 72% | P111: 36 | Q111: 80% | R111: 47% | S111: 207 | T111: 81% | U111: 80% | V111: 135 | W111: 78% | X111: 75% | Y111: 48
A112: 30 | B112: MEURTHE ET MOSELLE MEUSE | C112: 31 | D112: VERDUN | E112: 455151 | F112: BAR LE DUC | G112: 10.0 | H112: 64% | I112: 45% | J112: 103 | K112: 43% | L112: 39% | M112: 74 | N112: 83% | O112: 83% | P112: 116 | Q112: 73% | R112: 40% | S112: 128 | T112: 79% | U112: 77% | V112: 104 | W112: 85% | X112: 82% | Y112: 148
A113: 30 | B113: MOSELLE | C113: 42 | D113: MOSELLE EST | E113: 457617 | F113: SARREGUEMINES | G113: 7.0 | H113: 64% | I113: 45% | J113: 104 | K113: 58% | L113: 54% | M113: 136 | N113: 81% | O113: 81% | P113: 86 | Q113: 68% | R113: 36% | S113: 69 | T113: 76% | U113: 75% | V113: 82 | W113: 79% | X113: 77% | Y113: 66
A114: 30 | B114: MOSELLE | C114: 45 | D114: METZ | E114: 557441 | F114: METZ PLAPPEVILLE | G114: 2.1 | H114: 64% | I114: 45% | J114: 105 | K114: 70% | L114: 66% | M114: 196 | N114: 83% | O114: 83% | P114: 117 | Q114: 45% | R114: 12% | S114: 4 | T114: 81% | U114: 80% | V114: 136 | W114: 83% | X114: 80% | Y114: 103
A115: 30 | B115: MARNE ARDENNES | C115: 2 | D115: CHARLEVILLE MEZIERES | E115: 408862 | F115: REVIN | G115: 3.4 | H115: 64% | I115: 45% | J115: 106 | K115: 42% | L115: 39% | M115: 72 | N115: 87% | O115: 87% | P115: 167 | Q115: 76% | R115: 43% | S115: 166 | T115: 73% | U115: 72% | V115: 64 | W115: 85% | X115: 82% | Y115: 139
A116: 30 | B116: MEURTHE ET MOSELLE MEUSE | C116: 31 | D116: VERDUN | E116: 554700 | F116: VILLERUPT | G116: 2.8 | H116: 65% | I116: 45% | J116: 107 | K116: 36% | L116: 32% | M116: 44 | N116: 82% | O116: 82% | P116: 95 | Q116: 74% | R116: 42% | S116: 146 | T116: 84% | U116: 82% | V116: 166 | W116: 89% | X116: 86% | Y116: 211
A117: 30 | B117: VOSGES | C117: 57 | D117: EPINAL | E117: 588201 | F117: CHANTRAINE | G117: 3.6 | H117: 65% | I117: 45% | J117: 108 | K117: 46% | L117: 43% | M117: 91 | N117: 79% | O117: 79% | P117: 69 | Q117: 66% | R117: 34% | S117: 53 | T117: 87% | U117: 85% | V117: 196 | W117: 85% | X117: 83% | Y117: 156
A118: 30 | B118: MOSELLE | C118: 42 | D118: MOSELLE EST | E118: 557305 | F118: FAULQUEMONT | G118: 4.4 | H118: 65% | I118: 45% | J118: 109 | K118: 74% | L118: 71% | M118: 222 | N118: 72% | O118: 72% | P118: 32 | Q118: 75% | R118: 42% | S118: 153 | T118: 73% | U118: 72% | V118: 61 | W118: 71% | X118: 68% | Y118: 19
A119: 30 | B119: VOSGES | C119: 57 | D119: EPINAL | E119: 588716 | F119: XERTIGNY | G119: 2.7 | H119: 65% | I119: 45% | J119: 110 | K119: 38% | L119: 35% | M119: 53 | N119: 91% | O119: 91% | P119: 200 | Q119: 70% | R119: 37% | S119: 94 | T119: 77% | U119: 76% | V119: 91 | W119: 88% | X119: 85% | Y119: 205
A120: 30 | B120: BAS RHIN | C120: 5006 | D120: STRASBOURG | E120: 4006 | F120: STRASBOURG NEUDORF | G120: 7.9 | H120: 65% | I120: 45% | J120: 111 | K120: 23% | L120: 19% | M120: 17 | N120: 89% | O120: 89% | P120: 187 | Q120: 83% | R120: 50% | S120: 222 | T120: 81% | U120: 79% | V120: 124 | W120: 89% | X120: 86% | Y120: 217
A121: 30 | B121: MEURTHE ET MOSELLE MEUSE | C121: 27 | D121: PONT A MOUSSON | E121: 454535 | F121: PONT A MOUSSON CENTRALE | G121: 5.6 | H121: 65% | I121: 45% | J121: 112 | K121: 77% | L121: 73% | M121: 232 | N121: 71% | O121: 71% | P121: 30 | Q121: 69% | R121: 37% | S121: 80 | T121: 75% | U121: 74% | V121: 79 | W121: 72% | X121: 69% | Y121: 22
A122: 30 | B122: VOSGES | C122: 57 | D122: EPINAL | E122: 488706 | F122: VITTEL | G122: 2.8 | H122: 65% | I122: 45% | J122: 113 | K122: 42% | L122: 38% | M122: 71 | N122: 86% | O122: 86% | P122: 155 | Q122: 77% | R122: 45% | S122: 182 | T122: 77% | U122: 76% | V122: 90 | W122: 82% | X122: 80% | Y122: 101
A123: 30 | B123: VOSGES | C123: 57 | D123: EPINAL | E123: 588631 | F123: THAON LES VOSGES | G123: 4.0 | H123: 65% | I123: 45% | J123: 114 | K123: 56% | L123: 52% | M123: 127 | N123: 81% | O123: 81% | P123: 87 | Q123: 76% | R123: 43% | S123: 169 | T123: 72% | U123: 70% | V123: 51 | W123: 81% | X123: 78% | Y123: 79
A124: 30 | B124: MEURTHE ET MOSELLE MEUSE | C124: 31 | D124: VERDUN | E124: 555406 | F124: LIGNY EN BARROIS | G124: 2.5 | H124: 65% | I124: 45% | J124: 115 | K124: 36% | L124: 32% | M124: 43 | N124: 81% | O124: 81% | P124: 90 | Q124: 69% | R124: 37% | S124: 84 | T124: 91% | U124: 89% | V124: 220 | W124: 89% | X124: 86% | Y124: 212
A125: 30 | B125: VOSGES | C125: 57 | D125: EPINAL | E125: 488281 | F125: ELOYES | G125: 3.1 | H125: 65% | I125: 46% | J125: 116 | K125: 34% | L125: 30% | M125: 41 | N125: 91% | O125: 91% | P125: 202 | Q125: 64% | R125: 31% | S125: 37 | T125: 88% | U125: 87% | V125: 210 | W125: 89% | X125: 86% | Y125: 216
A126: 30 | B126: MOSELLE | C126: 42 | D126: MOSELLE EST | E126: 557523 | F126: PHALSBOURG | G126: 2.2 | H126: 65% | I126: 46% | J126: 117 | K126: 60% | L126: 57% | M126: 149 | N126: 90% | O126: 90% | P126: 193 | Q126: 58% | R126: 26% | S126: 19 | T126: 72% | U126: 71% | V126: 55 | W126: 85% | X126: 83% | Y126: 155
A127: 30 | B127: MEURTHE ET MOSELLE MEUSE | C127: 27 | D127: PONT A MOUSSON | E127: 554376 | F127: LAXOU BOUFFLERS | G127: 3.1 | H127: 65% | I127: 46% | J127: 118 | K127: 81% | L127: 77% | M127: 243 | N127: 66% | O127: 66% | P127: 14 | Q127: 80% | R127: 48% | S127: 209 | T127: 75% | U127: 73% | V127: 76 | W127: 65% | X127: 62% | Y127: 9
A128: 30 | B128: MARNE ARDENNES | C128: 2 | D128: CHARLEVILLE MEZIERES | E128: 408822 | F128: CHARLEVILLE MEZIERES | G128: 5.3 | H128: 65% | I128: 46% | J128: 119 | K128: 73% | L128: 69% | M128: 215 | N128: 87% | O128: 87% | P128: 170 | Q128: 59% | R128: 26% | S128: 22 | T128: 72% | U128: 70% | V128: 49 | W128: 77% | X128: 74% | Y128: 42
A129: 30 | B129: MEURTHE ET MOSELLE MEUSE | C129: 26 | D129: NANCY | E129: 554486 | F129: NANCY POINT CENTRAL | G129: 2.7 | H129: 66% | I129: 46% | J129: 120 | K129: 58% | L129: 55% | M129: 138 | N129: 86% | O129: 86% | P129: 159 | Q129: 58% | R129: 26% | S129: 17 | T129: 83% | U129: 81% | V129: 152 | W129: 83% | X129: 80% | Y129: 108
A130: 30 | B130: BAS RHIN | C130: 5006 | D130: STRASBOURG | E130: 4020 | F130: STRASBOURG ROBERTSAU | G130: 5.4 | H130: 66% | I130: 46% | J130: 121 | K130: 59% | L130: 55% | M130: 140 | N130: 90% | O130: 90% | P130: 192 | Q130: 45% | R130: 12% | S130: 3 | T130: 87% | U130: 86% | V130: 202 | W130: 89% | X130: 87% | Y130: 225
A131: 30 | B131: MEURTHE ET MOSELLE MEUSE | C131: 27 | D131: PONT A MOUSSON | E131: 454651 | F131: TOUL | G131: 9.7 | H131: 66% | I131: 47% | J131: 122 | K131: 71% | L131: 68% | M131: 206 | N131: 86% | O131: 86% | P131: 147 | Q131: 66% | R131: 33% | S131: 47 | T131: 75% | U131: 73% | V131: 72 | W131: 75% | X131: 72% | Y131: 31
A132: 30 | B132: MARNE ARDENNES | C132: 11 | D132: REIMS | E132: 451336 | F132: TINQUEUX | G132: 4.5 | H132: 66% | I132: 47% | J132: 123 | K132: 59% | L132: 56% | M132: 142 | N132: 81% | O132: 81% | P132: 94 | Q132: 74% | R132: 41% | S132: 139 | T132: 81% | U132: 79% | V132: 126 | W132: 77% | X132: 75% | Y132: 46
A133: 30 | B133: BAS RHIN | C133: 5060 | D133: HAGUENAU | E133: 4057 | F133: BISCHWILLER | G133: 7.1 | H133: 66% | I133: 47% | J133: 124 | K133: 51% | L133: 48% | M133: 107 | N133: 76% | O133: 76% | P133: 53 | Q133: 76% | R133: 44% | S133: 174 | T133: 79% | U133: 78% | V133: 110 | W133: 90% | X133: 88% | Y133: 232
A134: 30 | B134: MOSELLE | C134: 45 | D134: METZ | E134: 557432 | F134: MAIZIERES LES METZ | G134: 2.8 | H134: 66% | I134: 47% | J134: 125 | K134: 60% | L134: 57% | M134: 147 | N134: 83% | O134: 83% | P134: 118 | Q134: 76% | R134: 43% | S134: 170 | T134: 79% | U134: 77% | V134: 107 | W134: 74% | X134: 71% | Y134: 28
A135: 30 | B135: BAS RHIN | C135: 5101 | D135: SELESTAT | E135: 4121 | F135: SCHIRMECK | G135: 2.8 | H135: 67% | I135: 47% | J135: 126 | K135: 44% | L135: 40% | M135: 77 | N135: 79% | O135: 79% | P135: 72 | Q135: 81% | R135: 48% | S135: 211 | T135: 88% | U135: 87% | V135: 211 | W135: 81% | X135: 78% | Y135: 81
A136: 110 | B136: MARNE ARDENNES | C136: 6 | D136: CHALONS EN CHAMPAGNE | E136: 551103 | F136: FAGNIERES LECLERC | G136: 2.9 | H136: 67% | I136: 47% | J136: 127 | K136: 56% | L136: 53% | M136: 129 | N136: 91% | O136: 91% | P136: 197 | Q136: 77% | R136: 44% | S136: 178 | T136: 68% | U136: 67% | V136: 37 | W136: 81% | X136: 78% | Y136: 82
A137: 110 | B137: MARNE ARDENNES | C137: 11 | D137: REIMS | E137: 551309 | F137: REIMS EUROPE | G137: 2.9 | H137: 67% | I137: 47% | J137: 128 | K137: 40% | L137: 37% | M137: 61 | N137: 94% | O137: 94% | P137: 221 | Q137: 74% | R137: 42% | S137: 143 | T137: 81% | U137: 79% | V137: 125 | W137: 84% | X137: 82% | Y137: 135
A138: 110 | B138: HAUT RHIN | C138: 5130 | D138: COLMAR | E138: 4132 | F138: COLMAR MARAICHERS | G138: 3.8 | H138: 67% | I138: 47% | J138: 129 | K138: 50% | L138: 47% | M138: 102 | N138: 84% | O138: 84% | P138: 128 | Q138: 68% | R138: 36% | S138: 67 | T138: 80% | U138: 79% | V138: 121 | W138: 90% | X138: 88% | Y138: 231
A139: 110 | B139: MARNE ARDENNES | C139: 6 | D139: CHALONS EN CHAMPAGNE | E139: 451381 | F139: SEZANNE | G139: 5.3 | H139: 67% | I139: 47% | J139: 130 | K139: 51% | L139: 48% | M139: 106 | N139: 85% | O139: 85% | P139: 131 | Q139: 67% | R139: 34% | S139: 57 | T139: 88% | U139: 86% | V139: 204 | W139: 83% | X139: 81% | Y139: 116
A140: 110 | B140: BAS RHIN | C140: 5006 | D140: STRASBOURG | E140: 4019 | F140: STRASBOURG ANVERS | G140: 4.6 | H140: 67% | I140: 47% | J140: 131 | K140: 68% | L140: 64% | M140: 177 | N140: 76% | O140: 76% | P140: 55 | Q140: 70% | R140: 38% | S140: 97 | T140: 79% | U140: 78% | V140: 113 | W140: 80% | X140: 78% | Y140: 77
A141: 110 | B141: MEURTHE ET MOSELLE MEUSE | C141: 26 | D141: NANCY | E141: 454426 | F141: LUNEVILLE CARNOT | G141: 7.4 | H141: 67% | I141: 47% | J141: 132 | K141: 70% | L141: 66% | M141: 195 | N141: 82% | O141: 82% | P141: 97 | Q141: 61% | R141: 29% | S141: 27 | T141: 84% | U141: 83% | V141: 172 | W141: 77% | X141: 74% | Y141: 41
A142: 110 | B142: MEURTHE ET MOSELLE MEUSE | C142: 27 | D142: PONT A MOUSSON | E142: 554686 | F142: VEZELISE | G142: 1.9 | H142: 67% | I142: 47% | J142: 133 | K142: 52% | L142: 48% | M142: 109 | N142: 80% | O142: 80% | P142: 83 | Q142: 69% | R142: 36% | S142: 74 | T142: 85% | U142: 83% | V142: 177 | W142: 89% | X142: 86% | Y142: 215
A143: 110 | B143: MEURTHE ET MOSELLE MEUSE | C143: 31 | D143: VERDUN | E143: 455566 | F143: REVIGNY SUR ORNAIN | G143: 2.7 | H143: 67% | I143: 47% | J143: 134 | K143: 53% | L143: 49% | M143: 111 | N143: 86% | O143: 86% | P143: 157 | Q143: 69% | R143: 37% | S143: 83 | T143: 79% | U143: 77% | V143: 108 | W143: 87% | X143: 84% | Y143: 188
A144: 110 | B144: BAS RHIN | C144: 5006 | D144: STRASBOURG | E144: 4023 | F144: STRASBOURG VOSGES | G144: 2.7 | H144: 67% | I144: 47% | J144: 135 | K144: 62% | L144: 59% | M144: 156 | N144: 85% | O144: 85% | P144: 136 | Q144: 57% | R144: 24% | S144: 13 | T144: 86% | U144: 85% | V144: 191 | W144: 84% | X144: 82% | Y144: 136
A145: 110 | B145: AUBE HAUTE MARNE | C145: 14 | D145: TROYES | E145: 510513 | F145: TROYES 1ER MAI | G145: 2.2 | H145: 67% | I145: 48% | J145: 136 | K145: 78% | L145: 75% | M145: 236 | N145: 77% | O145: 77% | P145: 60 | Q145: 71% | R145: 38% | S145: 106 | T145: 67% | U145: 66% | V145: 27 | W145: 83% | X145: 81% | Y145: 115
A146: 110 | B146: MOSELLE | C146: 42 | D146: MOSELLE EST | E146: 457258 | F146: DIEUZE | G146: 3.1 | H146: 67% | I146: 48% | J146: 137 | K146: 38% | L146: 34% | M146: 51 | N146: 89% | O146: 89% | P146: 180 | Q146: 75% | R146: 43% | S146: 160 | T146: 85% | U146: 83% | V146: 174 | W146: 91% | X146: 88% | Y146: 239
A147: 110 | B147: BAS RHIN | C147: 5060 | D147: HAGUENAU | E147: 4085 | F147: INGWILLER | G147: 3.4 | H147: 67% | I147: 48% | J147: 138 | K147: 55% | L147: 52% | M147: 123 | N147: 85% | O147: 85% | P147: 133 | Q147: 72% | R147: 40% | S147: 116 | T147: 81% | U147: 80% | V147: 129 | W147: 84% | X147: 82% | Y147: 131
A148: 110 | B148: MOSELLE | C148: 45 | D148: METZ | E148: 557437 | F148: METZ SARRE | G148: 2.5 | H148: 67% | I148: 48% | J148: 139 | K148: 55% | L148: 51% | M148: 121 | N148: 81% | O148: 81% | P148: 91 | Q148: 77% | R148: 44% | S148: 175 | T148: 85% | U148: 84% | V148: 178 | W148: 80% | X148: 78% | Y148: 78
A149: 110 | B149: MEURTHE ET MOSELLE MEUSE | C149: 31 | D149: VERDUN | E149: 554412 | F149: LONGUYON | G149: 2.9 | H149: 67% | I149: 48% | J149: 140 | K149: 48% | L149: 45% | M149: 96 | N149: 82% | O149: 82% | P149: 106 | Q149: 77% | R149: 44% | S149: 179 | T149: 83% | U149: 82% | V149: 164 | W149: 87% | X149: 84% | Y149: 179
A150: 110 | B150: MOSELLE | C150: 45 | D150: METZ | E150: 557559 | F150: REMILLY | G150: 3.4 | H150: 68% | I150: 48% | J150: 141 | K150: 56% | L150: 52% | M150: 126 | N150: 87% | O150: 87% | P150: 166 | Q150: 73% | R150: 40% | S150: 127 | T150: 82% | U150: 80% | V150: 139 | W150: 81% | X150: 79% | Y150: 89
A151: 110 | B151: MOSELLE | C151: 42 | D151: MOSELLE EST | E151: 457435 | F151: MERLEBACH | G151: 2.7 | H151: 68% | I151: 48% | J151: 142 | K151: 58% | L151: 54% | M151: 133 | N151: 86% | O151: 86% | P151: 148 | Q151: 78% | R151: 45% | S151: 183 | T151: 75% | U151: 73% | V151: 73 | W151: 83% | X151: 80% | Y151: 107
A152: 110 | B152: MARNE ARDENNES | C152: 2 | D152: CHARLEVILLE MEZIERES | E152: 408806 | F152: SEDAN | G152: 7.7 | H152: 68% | I152: 48% | J152: 143 | K152: 43% | L152: 40% | M152: 75 | N152: 87% | O152: 87% | P152: 169 | Q152: 77% | R152: 45% | S152: 180 | T152: 89% | U152: 87% | V152: 213 | W152: 82% | X152: 79% | Y152: 95
A153: 110 | B153: MEURTHE ET MOSELLE MEUSE | C153: 31 | D153: VERDUN | E153: 455298 | F153: ETAIN | G153: 0.9 | H153: 68% | I153: 48% | J153: 144 | K153: 55% | L153: 52% | M153: 124 | N153: 90% | O153: 90% | P153: 195 | Q153: 78% | R153: 46% | S153: 190 | T153: 75% | U153: 73% | V153: 75 | W153: 80% | X153: 77% | Y153: 74
A154: 110 | B154: AUBE HAUTE MARNE | C154: 21 | D154: CHAUMONT | E154: 410566 | F154: CHAUMONT HOTEL DE VILLE | G154: 10.4 | H154: 68% | I154: 48% | J154: 145 | K154: 51% | L154: 48% | M154: 108 | N154: 88% | O154: 88% | P154: 176 | Q154: 68% | R154: 36% | S154: 64 | T154: 86% | U154: 84% | V154: 180 | W154: 86% | X154: 84% | Y154: 170
A155: 110 | B155: VOSGES | C155: 57 | D155: EPINAL | E155: 488286 | F155: EPINAL ARISTIDE BRIAND | G155: 7.8 | H155: 68% | I155: 48% | J155: 146 | K155: 69% | L155: 65% | M155: 185 | N155: 80% | O155: 80% | P155: 73 | Q155: 64% | R155: 31% | S155: 38 | T155: 82% | U155: 81% | V155: 146 | W155: 85% | X155: 82% | Y155: 152
A156: 110 | B156: AUBE HAUTE MARNE | C156: 21 | D156: CHAUMONT | E156: 451156 | F156: SAINT DIZIER CENTRE | G156: 8.5 | H156: 68% | I156: 48% | J156: 147 | K156: 60% | L156: 56% | M156: 144 | N156: 84% | O156: 84% | P156: 127 | Q156: 75% | R156: 43% | S156: 161 | T156: 78% | U156: 76% | V156: 94 | W156: 83% | X156: 81% | Y156: 117
A157: 110 | B157: MOSELLE | C157: 45 | D157: METZ | E157: 557440 | F157: METZ MOZART | G157: 2.7 | H157: 68% | I157: 48% | J157: 148 | K157: 64% | L157: 61% | M157: 165 | N157: 84% | O157: 84% | P157: 121 | Q157: 72% | R157: 40% | S157: 118 | T157: 76% | U157: 74% | V157: 81 | W157: 84% | X157: 82% | Y157: 133
A158: 110 | B158: MEURTHE ET MOSELLE MEUSE | C158: 27 | D158: PONT A MOUSSON | E158: 554357 | F158: JOEUF | G158: 3.3 | H158: 68% | I158: 48% | J158: 149 | K158: 43% | L158: 40% | M158: 76 | N158: 87% | O158: 87% | P158: 164 | Q158: 81% | R158: 48% | S158: 212 | T158: 86% | U158: 84% | V158: 182 | W158: 84% | X158: 81% | Y158: 127
A159: 110 | B159: VOSGES | C159: 55 | D159: SAINT DIE | E159: 588461 | F159: MOYENMOUTIER | G159: 5.0 | H159: 68% | I159: 49% | J159: 150 | K159: 50% | L159: 46% | M159: 101 | N159: 82% | O159: 82% | P159: 101 | Q159: 76% | R159: 43% | S159: 163 | T159: 83% | U159: 81% | V159: 157 | W159: 90% | X159: 88% | Y159: 234
A160: 110 | B160: HAUT RHIN | C160: 5130 | D160: COLMAR | E160: 4157 | F160: NEUF BRISACH | G160: 3.2 | H160: 68% | I160: 49% | J160: 151 | K160: 54% | L160: 51% | M160: 120 | N160: 91% | O160: 91% | P160: 198 | Q160: 73% | R160: 41% | S160: 137 | T160: 75% | U160: 74% | V160: 78 | W160: 87% | X160: 84% | Y160: 182
A161: 110 | B161: BAS RHIN | C161: 5101 | D161: SELESTAT | E161: 4107 | F161: VILLE | G161: 2.1 | H161: 68% | I161: 49% | J161: 152 | K161: 75% | L161: 72% | M161: 226 | N161: 71% | O161: 71% | P161: 28 | Q161: 65% | R161: 33% | S161: 43 | T161: 82% | U161: 81% | V161: 147 | W161: 89% | X161: 86% | Y161: 220
A162: 110 | B162: MEURTHE ET MOSELLE MEUSE | C162: 26 | D162: NANCY | E162: 554296 | F162: ESSEY LES NANCY | G162: 3.6 | H162: 68% | I162: 49% | J162: 153 | K162: 45% | L162: 41% | M162: 84 | N162: 88% | O162: 88% | P162: 177 | Q162: 78% | R162: 45% | S162: 184 | T162: 88% | U162: 86% | V162: 203 | W162: 84% | X162: 82% | Y162: 130
A163: 110 | B163: MEURTHE ET MOSELLE MEUSE | C163: 26 | D163: NANCY | E163: 554266 | F163: DOMBASLE SUR MEURTHE | G163: 3.3 | H163: 68% | I163: 49% | J163: 154 | K163: 69% | L163: 66% | M163: 192 | N163: 95% | O163: 95% | P163: 230 | Q163: 58% | R163: 25% | S163: 16 | T163: 78% | U163: 77% | V163: 97 | W163: 82% | X163: 79% | Y163: 96
A164: 110 | B164: BAS RHIN | C164: 5101 | D164: SELESTAT | E164: 4007 | F164: ILLKIRCH CENTRE | G164: 6.5 | H164: 68% | I164: 49% | J164: 155 | K164: 71% | L164: 67% | M164: 200 | N164: 84% | O164: 84% | P164: 124 | Q164: 74% | R164: 41% | S164: 140 | T164: 69% | U164: 67% | V164: 39 | W164: 86% | X164: 83% | Y164: 163
A165: 110 | B165: MEURTHE ET MOSELLE MEUSE | C165: 27 | D165: PONT A MOUSSON | E165: 554496 | F165: NANCY TROIS MAISONS | G165: 2.1 | H165: 69% | I165: 49% | J165: 156 | K165: 68% | L165: 64% | M165: 179 | N165: 86% | O165: 86% | P165: 154 | Q165: 76% | R165: 43% | S165: 165 | T165: 74% | U165: 73% | V165: 68 | W165: 80% | X165: 77% | Y165: 71
A166: 110 | B166: MEURTHE ET MOSELLE MEUSE | C166: 27 | D166: PONT A MOUSSON | E166: 554416 | F166: LUDRES | G166: 3.7 | H166: 69% | I166: 49% | J166: 157 | K166: 41% | L166: 37% | M166: 65 | N166: 85% | O166: 85% | P166: 138 | Q166: 91% | R166: 58% | S166: 239 | T166: 84% | U166: 82% | V166: 167 | W166: 83% | X166: 81% | Y166: 119
A167: 110 | B167: VOSGES | C167: 55 | D167: SAINT DIE | E167: 588316 | F167: FRAIZE | G167: 3.7 | H167: 69% | I167: 49% | J167: 158 | K167: 57% | L167: 54% | M167: 132 | N167: 93% | O167: 93% | P167: 216 | Q167: 72% | R167: 40% | S167: 119 | T167: 77% | U167: 76% | V167: 89 | W167: 84% | X167: 82% | Y167: 134
A168: 110 | B168: BAS RHIN | C168: 5006 | D168: STRASBOURG | E168: 4039 | F168: REICHSTETT | G168: 1.6 | H168: 69% | I168: 49% | J168: 159 | K168: 65% | L168: 62% | M168: 168 | N168: 86% | O168: 86% | P168: 156 | Q168: 68% | R168: 36% | S168: 65 | T168: 79% | U168: 78% | V168: 115 | W168: 85% | X168: 83% | Y168: 160
A169: 110 | B169: VOSGES | C169: 55 | D169: SAINT DIE | E169: 488556 | F169: RAON L ETAPE | G169: 2.3 | H169: 69% | I169: 49% | J169: 160 | K169: 36% | L169: 32% | M169: 45 | N169: 96% | O169: 96% | P169: 235 | Q169: 81% | R169: 48% | S169: 215 | T169: 88% | U169: 86% | V169: 206 | W169: 84% | X169: 82% | Y169: 138
A170: 110 | B170: MOSELLE | C170: 45 | D170: METZ | E170: 557436 | F170: METZ CATHEDRALE | G170: 3.6 | H170: 69% | I170: 49% | J170: 161 | K170: 78% | L170: 74% | M170: 234 | N170: 83% | O170: 83% | P170: 109 | Q170: 64% | R170: 31% | S170: 39 | T170: 75% | U170: 73% | V170: 74 | W170: 85% | X170: 83% | Y170: 158
A171: 110 | B171: MARNE ARDENNES | C171: 2 | D171: CHARLEVILLE MEZIERES | E171: 508815 | F171: CARIGNAN | G171: 2.7 | H171: 69% | I171: 49% | J171: 162 | K171: 48% | L171: 45% | M171: 95 | N171: 84% | O171: 84% | P171: 119 | Q171: 73% | R171: 40% | S171: 132 | T171: 93% | U171: 92% | V171: 228 | W171: 88% | X171: 85% | Y171: 197
A172: 110 | B172: AUBE HAUTE MARNE | C172: 14 | D172: TROYES | E172: 410550 | F172: BAR SUR AUBE | G172: 4.9 | H172: 69% | I172: 49% | J172: 163 | K172: 44% | L172: 41% | M172: 81 | N172: 91% | O172: 91% | P172: 203 | Q172: 79% | R172: 47% | S172: 200 | T172: 85% | U172: 83% | V172: 173 | W172: 87% | X172: 84% | Y172: 176
A173: 110 | B173: MEURTHE ET MOSELLE MEUSE | C173: 27 | D173: PONT A MOUSSON | E173: 454355 | F173: JARNY | G173: 3.9 | H173: 69% | I173: 50% | J173: 164 | K173: 58% | L173: 54% | M173: 135 | N173: 85% | O173: 85% | P173: 137 | Q173: 75% | R173: 42% | S173: 155 | T173: 82% | U173: 80% | V173: 140 | W173: 87% | X173: 84% | Y173: 183
A174: 110 | B174: MARNE ARDENNES | C174: 11 | D174: REIMS | E174: 551310 | F174: REIMS CHATILLONS | G174: 3.9 | H174: 69% | I174: 50% | J174: 165 | K174: 66% | L174: 63% | M174: 170 | N174: 82% | O174: 82% | P174: 102 | Q174: 72% | R174: 39% | S174: 110 | T174: 83% | U174: 81% | V174: 158 | W174: 84% | X174: 81% | Y174: 123
A175: 110 | B175: HAUT RHIN | C175: 5169 | D175: MULHOUSE | E175: 4178 | F175: SAINT LOUIS | G175: 6.3 | H175: 69% | I175: 50% | J175: 166 | K175: 67% | L175: 64% | M175: 174 | N175: 86% | O175: 86% | P175: 145 | Q175: 68% | R175: 35% | S175: 62 | T175: 79% | U175: 77% | V175: 109 | W175: 87% | X175: 85% | Y175: 195
A176: 110 | B176: MOSELLE | C176: 45 | D176: METZ | E176: 557459 | F176: MOULINS LES METZ | G176: 2.4 | H176: 69% | I176: 50% | J176: 167 | K176: 40% | L176: 37% | M176: 60 | N176: 95% | O176: 95% | P176: 228 | Q176: 81% | R176: 48% | S176: 213 | T176: 84% | U176: 82% | V176: 165 | W176: 88% | X176: 85% | Y176: 203
A177: 110 | B177: MOSELLE | C177: 42 | D177: MOSELLE EST | E177: 457614 | F177: SARREBOURG | G177: 8.3 | H177: 69% | I177: 50% | J177: 168 | K177: 59% | L177: 56% | M177: 141 | N177: 85% | O177: 85% | P177: 142 | Q177: 76% | R177: 44% | S177: 172 | T177: 80% | U177: 78% | V177: 119 | W177: 87% | X177: 84% | Y177: 184
A178: 110 | B178: MEURTHE ET MOSELLE MEUSE | C178: 26 | D178: NANCY | E178: 554166 | F178: BLAINVILLE | G178: 2.5 | H178: 70% | I178: 50% | J178: 169 | K178: 68% | L178: 64% | M178: 178 | N178: 84% | O178: 84% | P178: 129 | Q178: 79% | R178: 46% | S178: 191 | T178: 76% | U178: 75% | V178: 84 | W178: 82% | X178: 80% | Y178: 102
A179: 110 | B179: BAS RHIN | C179: 5101 | D179: SELESTAT | E179: 4109 | F179: MARCKOLSHEIM | G179: 2.8 | H179: 70% | I179: 50% | J179: 170 | K179: 60% | L179: 56% | M179: 146 | N179: 82% | O179: 82% | P179: 96 | Q179: 80% | R179: 47% | S179: 206 | T179: 81% | U179: 80% | V179: 130 | W179: 87% | X179: 84% | Y179: 185
A180: 110 | B180: BAS RHIN | C180: 5101 | D180: SELESTAT | E180: 4101 | F180: SELESTAT CENTRE | G180: 7.4 | H180: 70% | I180: 50% | J180: 171 | K180: 69% | L180: 66% | M180: 190 | N180: 80% | O180: 80% | P180: 75 | Q180: 76% | R180: 44% | S180: 173 | T180: 79% | U180: 78% | V180: 114 | W180: 85% | X180: 82% | Y180: 151
A181: 110 | B181: MEURTHE ET MOSELLE MEUSE | C181: 27 | D181: PONT A MOUSSON | E181: 554257 | F181: DIEULOUARD | G181: 2.7 | H181: 70% | I181: 50% | J181: 172 | K181: 54% | L181: 51% | M181: 119 | N181: 86% | O181: 86% | P181: 150 | Q181: 68% | R181: 36% | S181: 72 | T181: 89% | U181: 87% | V181: 212 | W181: 93% | X181: 90% | Y181: 245
A182: 160 | B182: MOSELLE | C182: 45 | D182: METZ | E182: 557712 | F182: WOIPPY | G182: 4.3 | H182: 70% | I182: 50% | J182: 173 | K182: 70% | L182: 67% | M182: 197 | N182: 83% | O182: 83% | P182: 110 | Q182: 74% | R182: 42% | S182: 150 | T182: 78% | U182: 77% | V182: 100 | W182: 85% | X182: 82% | Y182: 149
A183: 160 | B183: MOSELLE | C183: 45 | D183: METZ | E183: 557433 | F183: MARANGE SILVANGE | G183: 2.9 | H183: 70% | I183: 51% | J183: 174 | K183: 70% | L183: 67% | M183: 198 | N183: 87% | O183: 87% | P183: 161 | Q183: 70% | R183: 37% | S183: 88 | T183: 81% | U183: 80% | V183: 137 | W183: 83% | X183: 80% | Y183: 113
A184: 160 | B184: MEURTHE ET MOSELLE MEUSE | C184: 27 | D184: PONT A MOUSSON | E184: 554196 | F184: CHAMPIGNEULLES | G184: 2.4 | H184: 70% | I184: 51% | J184: 175 | K184: 69% | L184: 65% | M184: 188 | N184: 90% | O184: 90% | P184: 190 | Q184: 77% | R184: 45% | S184: 181 | T184: 73% | U184: 71% | V184: 56 | W184: 83% | X184: 80% | Y184: 104
A185: 160 | B185: VOSGES | C185: 55 | D185: SAINT DIE | E185: 588386 | F185: LE THILLOT | G185: 2.2 | H185: 70% | I185: 51% | J185: 176 | K185: 51% | L185: 47% | M185: 105 | N185: 85% | O185: 85% | P185: 132 | Q185: 82% | R185: 50% | S185: 221 | T185: 86% | U185: 85% | V185: 187 | W185: 87% | X185: 85% | Y185: 193
A186: 160 | B186: HAUT RHIN | C186: 5169 | D186: MULHOUSE | E186: 4170 | F186: MULHOUSE REUNION | G186: 7.3 | H186: 70% | I186: 51% | J186: 177 | K186: 66% | L186: 62% | M186: 169 | N186: 84% | O186: 84% | P186: 122 | Q186: 79% | R186: 46% | S186: 195 | T186: 78% | U186: 77% | V186: 99 | W186: 84% | X186: 82% | Y186: 129
A187: 160 | B187: BAS RHIN | C187: 5006 | D187: STRASBOURG | E187: 4028 | F187: BISCHHEIM | G187: 3.5 | H187: 70% | I187: 51% | J187: 178 | K187: 69% | L187: 65% | M187: 187 | N187: 88% | O187: 88% | P187: 175 | Q187: 70% | R187: 38% | S187: 98 | T187: 77% | U187: 75% | V187: 87 | W187: 88% | X187: 85% | Y187: 200
A188: 160 | B188: AUBE HAUTE MARNE | C188: 14 | D188: TROYES | E188: 510523 | F188: LA CHAPELLE ST LUC | G188: 4.2 | H188: 70% | I188: 51% | J188: 179 | K188: 78% | L188: 75% | M188: 237 | N188: 89% | O188: 89% | P188: 181 | Q188: 69% | R188: 37% | S188: 82 | T188: 72% | U188: 70% | V188: 50 | W188: 84% | X188: 81% | Y188: 124
A189: 160 | B189: BAS RHIN | C189: 5101 | D189: SELESTAT | E189: 4008 | F189: FEGERSHEIM | G189: 2.1 | H189: 70% | I189: 51% | J189: 180 | K189: 60% | L189: 56% | M189: 145 | N189: 78% | O189: 78% | P189: 67 | Q189: 82% | R189: 50% | S189: 220 | T189: 83% | U189: 81% | V189: 155 | W189: 89% | X189: 87% | Y189: 224
A190: 160 | B190: MOSELLE | C190: 44 | D190: MOSELLE NORD | E190: 557307 | F190: FONTOY | G190: 1.9 | H190: 70% | I190: 51% | J190: 181 | K190: 56% | L190: 52% | M190: 128 | N190: 90% | O190: 90% | P190: 194 | Q190: 73% | R190: 40% | S190: 133 | T190: 92% | U190: 90% | V190: 222 | W190: 81% | X190: 79% | Y190: 85
A191: 160 | B191: BAS RHIN | C191: 5060 | D191: HAGUENAU | E191: 4060 | F191: HAGUENAU HOUBLON | G191: 8.4 | H191: 71% | I191: 51% | J191: 182 | K191: 68% | L191: 65% | M191: 181 | N191: 86% | O191: 86% | P191: 149 | Q191: 69% | R191: 36% | S191: 78 | T191: 83% | U191: 82% | V191: 162 | W191: 88% | X191: 85% | Y191: 199
A192: 160 | B192: VOSGES | C192: 57 | D192: EPINAL | E192: 588206 | F192: CHARMES | G192: 2.7 | H192: 71% | I192: 51% | J192: 183 | K192: 58% | L192: 54% | M192: 137 | N192: 96% | O192: 96% | P192: 233 | Q192: 64% | R192: 31% | S192: 36 | T192: 89% | U192: 87% | V192: 215 | W192: 89% | X192: 86% | Y192: 209
A193: 160 | B193: MEURTHE ET MOSELLE MEUSE | C193: 27 | D193: PONT A MOUSSON | E193: 454696 | F193: VILLERS GENERAL LECLERC | G193: 4.6 | H193: 71% | I193: 51% | J193: 184 | K193: 63% | L193: 60% | M193: 162 | N193: 93% | O193: 93% | P193: 217 | Q193: 61% | R193: 29% | S193: 28 | T193: 88% | U193: 87% | V193: 208 | W193: 89% | X193: 86% | Y193: 222
A194: 160 | B194: HAUT RHIN | C194: 5130 | D194: COLMAR | E194: 4130 | F194: COLMAR REPUBLIQUE | G194: 6.4 | H194: 71% | I194: 51% | J194: 185 | K194: 72% | L194: 69% | M194: 211 | N194: 88% | O194: 88% | P194: 174 | Q194: 76% | R194: 43% | S194: 168 | T194: 73% | U194: 72% | V194: 62 | W194: 87% | X194: 84% | Y194: 178
A195: 160 | B195: MARNE ARDENNES | C195: 2 | D195: CHARLEVILLE MEZIERES | E195: 508819 | F195: MOUZON | G195: 1.8 | H195: 71% | I195: 52% | J195: 186 | K195: 47% | L195: 44% | M195: 92 | N195: 101% | O195: 101% | P195: 243 | Q195: 70% | R195: 38% | S195: 99 | T195: 95% | U195: 94% | V195: 235 | W195: 82% | X195: 79% | Y195: 98
A196: 160 | B196: MARNE ARDENNES | C196: 11 | D196: REIMS | E196: 551341 | F196: REIMS JEAN JAURES | G196: 2.7 | H196: 71% | I196: 52% | J196: 187 | K196: 71% | L196: 68% | M196: 207 | N196: 87% | O196: 87% | P196: 168 | Q196: 71% | R196: 38% | S196: 103 | T196: 87% | U196: 85% | V196: 200 | W196: 81% | X196: 78% | Y196: 80
A197: 160 | B197: HAUT RHIN | C197: 5169 | D197: MULHOUSE | E197: 4180 | F197: RIEDISHEIM | G197: 3.3 | H197: 71% | I197: 52% | J197: 188 | K197: 53% | L197: 49% | M197: 112 | N197: 87% | O197: 87% | P197: 165 | Q197: 88% | R197: 55% | S197: 235 | T197: 82% | U197: 80% | V197: 142 | W197: 88% | X197: 85% | Y197: 202
A198: 160 | B198: HAUT RHIN | C198: 5169 | D198: MULHOUSE | E198: 4194 | F198: THANN | G198: 9.1 | H198: 71% | I198: 52% | J198: 189 | K198: 44% | L198: 41% | M198: 80 | N198: 94% | O198: 94% | P198: 224 | Q198: 79% | R198: 46% | S198: 194 | T198: 93% | U198: 92% | V198: 227 | W198: 87% | X198: 85% | Y198: 191
A199: 160 | B199: BAS RHIN | C199: 5060 | D199: HAGUENAU | E199: 4087 | F199: SAVERNE | G199: 6.0 | H199: 71% | I199: 52% | J199: 190 | K199: 77% | L199: 74% | M199: 233 | N199: 79% | O199: 79% | P199: 71 | Q199: 75% | R199: 43% | S199: 159 | T199: 80% | U199: 78% | V199: 118 | W199: 86% | X199: 83% | Y199: 166
A200: 160 | B200: HAUT RHIN | C200: 5130 | D200: COLMAR | E200: 4147 | F200: GUEBWILLER | G200: 4.4 | H200: 71% | I200: 52% | J200: 191 | K200: 63% | L200: 60% | M200: 160 | N200: 86% | O200: 86% | P200: 152 | Q200: 76% | R200: 43% | S200: 164 | T200: 86% | U200: 85% | V200: 192 | W200: 87% | X200: 84% | Y200: 175
A201: 160 | B201: BAS RHIN | C201: 5006 | D201: STRASBOURG | E201: 4026 | F201: STRASBOURG DANUBE | G201: 3.2 | H201: 71% | I201: 52% | J201: 192 | K201: 71% | L201: 67% | M201: 202 | N201: 94% | O201: 94% | P201: 226 | Q201: 66% | R201: 34% | S201: 52 | T201: 81% | U201: 79% | V201: 128 | W201: 86% | X201: 83% | Y201: 162
A202: 160 | B202: BAS RHIN | C202: 5060 | D202: HAGUENAU | E202: 4082 | F202: BOUXWILLER | G202: 2.4 | H202: 71% | I202: 52% | J202: 193 | K202: 49% | L202: 45% | M202: 98 | N202: 88% | O202: 88% | P202: 173 | Q202: 104% | R202: 71% | S202: 246 | T202: 76% | U202: 75% | V202: 83 | W202: 82% | X202: 79% | Y202: 90
A203: 160 | B203: MARNE ARDENNES | C203: 11 | D203: REIMS | E203: 451308 | F203: REIMS SAINT THOMAS | G203: 5.2 | H203: 72% | I203: 52% | J203: 194 | K203: 72% | L203: 68% | M203: 209 | N203: 83% | O203: 83% | P203: 111 | Q203: 87% | R203: 54% | S203: 231 | T203: 81% | U203: 80% | V203: 133 | W203: 76% | X203: 74% | Y203: 36
... 56 more rows

Sheet AG_BANCA
B1: Accueil | H1: BAROMETRE BDD - AGENCES
H2: BANCARISATION
H3: =ACCUEIL!F7 -> 2022-06-05
H7: Ventes Nettes produits pondérés | L7: Ventes sur client non détenteur de l’univers | P7: Total Bancarisation
H8: =DATEMAJ!C8 -> au 05/06 | J8: coef | K8: ='RECAP DIRCOM'!AA4 -> 12% | L8: =DATEMAJ!C9 -> au 05/06 | N8: coef | O8: ='RECAP DIRCOM'!AE4 -> 8% | Q8: coef | R8: ='RECAP DIRCOM'!$AH$4 -> 20%
B9: Direction | C9: eds | D9: Territoire | E9: eds | F9: Agence | G9: ="ETP perf "&DATEMAJ!$C$28 -> ETP perf 05-juin | H9: VN | I9: VN / ETP | J9: % Ecart au 1er | K9: Rang | L9: VB | M9: VB / ETP | N9: % Ecart au 1er | O9: Rang | P9: Moyenne ecart au 1er | Q9: % Ecart au 1er | R9: Rang CEGEE
A10: 50 | B10: AUBE HAUTE MARNE | C10: 21 | D10: CHAUMONT | E10: 410541 | F10: LANGRES | G10: =VLOOKUP($E10,'RECAP AG'!$G$6:$CU$255,3,FALSE) -> 8.2 | H10: =VLOOKUP($E10,'RECAP AG'!$G$6:$CU$255,18,FALSE) -> 149.8 | I10: =VLOOKUP($E10,'RECAP AG'!$G$6:$CU$255,19,FALSE) -> 18.22 | J10: =VLOOKUP($E10,'RECAP AG'!$G$6:$CU$255,20,FALSE) -> 78% | K10: =VLOOKUP($E10,'RECAP AG'!$G$6:$CU$255,21,FALSE) -> 65 | L10: =VLOOKUP($E10,'RECAP AG'!$G$6:$CU$255,22,FALSE) -> 245 | M10: =VLOOKUP($E10,'RECAP AG'!$G$6:$CU$255,23,FALSE) -> 29.81 | N10: =VLOOKUP($E10,'RECAP AG'!$G$6:$CU$255,24,FALSE) -> 83% | O10: =VLOOKUP($E10,'RECAP AG'!$G$6:$CU$255,25,FALSE) -> 165 | P10: =VLOOKUP($E10,'RECAP AG'!$G$6:$CU$255,26,FALSE) -> 80% | Q10: =VLOOKUP($E10,'RECAP AG'!$G$6:$CU$255,27,FALSE) -> 80% | R10: =VLOOKUP($E10,'RECAP AG'!$G$6:$CU$255,28,FALSE) -> 78
A11: 50 | B11: AUBE HAUTE MARNE | C11: 21 | D11: CHAUMONT | E11: 410566 | F11: CHAUMONT HOTEL DE VILLE | G11: =VLOOKUP($E11,'RECAP AG'!$G$6:$CU$255,3,FALSE) -> 10.4 | H11: =VLOOKUP($E11,'RECAP AG'!$G$6:$CU$255,18,FALSE) -> 75.6 | I11: =VLOOKUP($E11,'RECAP AG'!$G$6:$CU$255,19,FALSE) -> 7.27 | J11: =VLOOKUP($E11,'RECAP AG'!$G$6:$CU$255,20,FALSE) -> 91% | K11: =VLOOKUP($E11,'RECAP AG'!$G$6:$CU$255,21,FALSE) -> 169 | L11: =VLOOKUP($E11,'RECAP AG'!$G$6:$CU$255,22,FALSE) -> 319 | M11: =VLOOKUP($E11,'RECAP AG'!$G$6:$CU$255,23,FALSE) -> 30.67 | N11: =VLOOKUP($E11,'RECAP AG'!$G$6:$CU$255,24,FALSE) -> 83% | O11: =VLOOKUP($E11,'RECAP AG'!$G$6:$CU$255,25,FALSE) -> 157 | P11: =VLOOKUP($E11,'RECAP AG'!$G$6:$CU$255,26,FALSE) -> 88% | Q11: =VLOOKUP($E11,'RECAP AG'!$G$6:$CU$255,27,FALSE) -> 88% | R11: =VLOOKUP($E11,'RECAP AG'!$G$6:$CU$255,28,FALSE) -> 176
A12: 50 | B12: AUBE HAUTE MARNE | C12: 21 | D12: CHAUMONT | E12: 510590 | F12: CHAUMONT REPUBLIQUE | G12: =VLOOKUP($E12,'RECAP AG'!$G$6:$CU$255,3,FALSE) -> 2.9 | H12: =VLOOKUP($E12,'RECAP AG'!$G$6:$CU$255,18,FALSE) -> 9.9 | I12: =VLOOKUP($E12,'RECAP AG'!$G$6:$CU$255,19,FALSE) -> 3.47 | J12: =VLOOKUP($E12,'RECAP AG'!$G$6:$CU$255,20,FALSE) -> 96% | K12: =VLOOKUP($E12,'RECAP AG'!$G$6:$CU$255,21,FALSE) -> 196 | L12: =VLOOKUP($E12,'RECAP AG'!$G$6:$CU$255,22,FALSE) -> 113 | M12: =VLOOKUP($E12,'RECAP AG'!$G$6:$CU$255,23,FALSE) -> 39.65 | N12: =VLOOKUP($E12,'RECAP AG'!$G$6:$CU$255,24,FALSE) -> 77% | O12: =VLOOKUP($E12,'RECAP AG'!$G$6:$CU$255,25,FALSE) -> 89 | P12: =VLOOKUP($E12,'RECAP AG'!$G$6:$CU$255,26,FALSE) -> 88% | Q12: =VLOOKUP($E12,'RECAP AG'!$G$6:$CU$255,27,FALSE) -> 88% | R12: =VLOOKUP($E12,'RECAP AG'!$G$6:$CU$255,28,FALSE) -> 179
A13: 50 | B13: AUBE HAUTE MARNE | C13: 21 | D13: CHAUMONT | E13: 451154 | F13: JOINVILLE | G13: =VLOOKUP($E13,'RECAP AG'!$G$6:$CU$255,3,FALSE) -> 1.8 | H13: =VLOOKUP($E13,'RECAP AG'!$G$6:$CU$255,18,FALSE) -> 31.6 | I13: =VLOOKUP($E13,'RECAP AG'!$G$6:$CU$255,19,FALSE) -> 17.17 | J13: =VLOOKUP($E13,'RECAP AG'!$G$6:$CU$255,20,FALSE) -> 79% | K13: =VLOOKUP($E13,'RECAP AG'!$G$6:$CU$255,21,FALSE) -> 73 | L13: =VLOOKUP($E13,'RECAP AG'!$G$6:$CU$255,22,FALSE) -> 87 | M13: =VLOOKUP($E13,'RECAP AG'!$G$6:$CU$255,23,FALSE) -> 47.28 | N13: =VLOOKUP($E13,'RECAP AG'!$G$6:$CU$255,24,FALSE) -> 73% | O13: =VLOOKUP($E13,'RECAP AG'!$G$6:$CU$255,25,FALSE) -> 42 | P13: =VLOOKUP($E13,'RECAP AG'!$G$6:$CU$255,26,FALSE) -> 77% | Q13: =VLOOKUP($E13,'RECAP AG'!$G$6:$CU$255,27,FALSE) -> 77% | R13: =VLOOKUP($E13,'RECAP AG'!$G$6:$CU$255,28,FALSE) -> 58
A14: 50 | B14: AUBE HAUTE MARNE | C14: 21 | D14: CHAUMONT | E14: 451156 | F14: SAINT DIZIER CENTRE | G14: =VLOOKUP($E14,'RECAP AG'!$G$6:$CU$255,3,FALSE) -> 8.5 | H14: =VLOOKUP($E14,'RECAP AG'!$G$6:$CU$255,18,FALSE) -> 80.3 | I14: =VLOOKUP($E14,'RECAP AG'!$G$6:$CU$255,19,FALSE) -> 9.49 | J14: =VLOOKUP($E14,'RECAP AG'!$G$6:$CU$255,20,FALSE) -> 89% | K14: =VLOOKUP($E14,'RECAP AG'!$G$6:$CU$255,21,FALSE) -> 150 | L14: =VLOOKUP($E14,'RECAP AG'!$G$6:$CU$255,22,FALSE) -> 331 | M14: =VLOOKUP($E14,'RECAP AG'!$G$6:$CU$255,23,FALSE) -> 39.13 | N14: =VLOOKUP($E14,'RECAP AG'!$G$6:$CU$255,24,FALSE) -> 78% | O14: =VLOOKUP($E14,'RECAP AG'!$G$6:$CU$255,25,FALSE) -> 93 | P14: =VLOOKUP($E14,'RECAP AG'!$G$6:$CU$255,26,FALSE) -> 84% | Q14: =VLOOKUP($E14,'RECAP AG'!$G$6:$CU$255,27,FALSE) -> 84% | R14: =VLOOKUP($E14,'RECAP AG'!$G$6:$CU$255,28,FALSE) -> 127
A15: 50 | B15: AUBE HAUTE MARNE | C15: 21 | D15: CHAUMONT | E15: 451151 | F15: WASSY | G15: =VLOOKUP($E15,'RECAP AG'!$G$6:$CU$255,3,FALSE) -> 2.0 | H15: =VLOOKUP($E15,'RECAP AG'!$G$6:$CU$255,18,FALSE) -> 27.9 | I15: =VLOOKUP($E15,'RECAP AG'!$G$6:$CU$255,19,FALSE) -> 14.31 | J15: =VLOOKUP($E15,'RECAP AG'!$G$6:$CU$255,20,FALSE) -> 83% | K15: =VLOOKUP($E15,'RECAP AG'!$G$6:$CU$255,21,FALSE) -> 93 | L15: =VLOOKUP($E15,'RECAP AG'!$G$6:$CU$255,22,FALSE) -> 58 | M15: =VLOOKUP($E15,'RECAP AG'!$G$6:$CU$255,23,FALSE) -> 29.74 | N15: =VLOOKUP($E15,'RECAP AG'!$G$6:$CU$255,24,FALSE) -> 83% | O15: =VLOOKUP($E15,'RECAP AG'!$G$6:$CU$255,25,FALSE) -> 166 | P15: =VLOOKUP($E15,'RECAP AG'!$G$6:$CU$255,26,FALSE) -> 83% | Q15: =VLOOKUP($E15,'RECAP AG'!$G$6:$CU$255,27,FALSE) -> 83% | R15: =VLOOKUP($E15,'RECAP AG'!$G$6:$CU$255,28,FALSE) -> 113
A16: 50 | B16: AUBE HAUTE MARNE | C16: 14 | D16: TROYES | E16: 510523 | F16: LA CHAPELLE ST LUC | G16: =VLOOKUP($E16,'RECAP AG'!$G$6:$CU$255,3,FALSE) -> 4.2 | H16: =VLOOKUP($E16,'RECAP AG'!$G$6:$CU$255,18,FALSE) -> 7.0 | I16: =VLOOKUP($E16,'RECAP AG'!$G$6:$CU$255,19,FALSE) -> 1.65 | J16: =VLOOKUP($E16,'RECAP AG'!$G$6:$CU$255,20,FALSE) -> 98% | K16: =VLOOKUP($E16,'RECAP AG'!$G$6:$CU$255,21,FALSE) -> 209 | L16: =VLOOKUP($E16,'RECAP AG'!$G$6:$CU$255,22,FALSE) -> 188 | M16: =VLOOKUP($E16,'RECAP AG'!$G$6:$CU$255,23,FALSE) -> 44.34 | N16: =VLOOKUP($E16,'RECAP AG'!$G$6:$CU$255,24,FALSE) -> 75% | O16: =VLOOKUP($E16,'RECAP AG'!$G$6:$CU$255,25,FALSE) -> 55 | P16: =VLOOKUP($E16,'RECAP AG'!$G$6:$CU$255,26,FALSE) -> 89% | Q16: =VLOOKUP($E16,'RECAP AG'!$G$6:$CU$255,27,FALSE) -> 89% | R16: =VLOOKUP($E16,'RECAP AG'!$G$6:$CU$255,28,FALSE) -> 181
A17: 50 | B17: AUBE HAUTE MARNE | C17: 14 | D17: TROYES | E17: 510530 | F17: ARCIS SUR AUBE | G17: =VLOOKUP($E17,'RECAP AG'!$G$6:$CU$255,3,FALSE) -> 3.5 | H17: =VLOOKUP($E17,'RECAP AG'!$G$6:$CU$255,18,FALSE) -> 29.6 | I17: =VLOOKUP($E17,'RECAP AG'!$G$6:$CU$255,19,FALSE) -> 8.51 | J17: =VLOOKUP($E17,'RECAP AG'!$G$6:$CU$255,20,FALSE) -> 90% | K17: =VLOOKUP($E17,'RECAP AG'!$G$6:$CU$255,21,FALSE) -> 159 | L17: =VLOOKUP($E17,'RECAP AG'!$G$6:$CU$255,22,FALSE) -> 97 | M17: =VLOOKUP($E17,'RECAP AG'!$G$6:$CU$255,23,FALSE) -> 27.87 | N17: =VLOOKUP($E17,'RECAP AG'!$G$6:$CU$255,24,FALSE) -> 84% | O17: =VLOOKUP($E17,'RECAP AG'!$G$6:$CU$255,25,FALSE) -> 191 | P17: =VLOOKUP($E17,'RECAP AG'!$G$6:$CU$255,26,FALSE) -> 87% | Q17: =VLOOKUP($E17,'RECAP AG'!$G$6:$CU$255,27,FALSE) -> 87% | R17: =VLOOKUP($E17,'RECAP AG'!$G$6:$CU$255,28,FALSE) -> 172
A18: 50 | B18: AUBE HAUTE MARNE | C18: 14 | D18: TROYES | E18: 410550 | F18: BAR SUR AUBE | G18: =VLOOKUP($E18,'RECAP AG'!$G$6:$CU$255,3,FALSE) -> 4.9 | H18: =VLOOKUP($E18,'RECAP AG'!$G$6:$CU$255,18,FALSE) -> 18.3 | I18: =VLOOKUP($E18,'RECAP AG'!$G$6:$CU$255,19,FALSE) -> 3.77 | J18: =VLOOKUP($E18,'RECAP AG'!$G$6:$CU$255,20,FALSE) -> 95% | K18: =VLOOKUP($E18,'RECAP AG'!$G$6:$CU$255,21,FALSE) -> 195 | L18: =VLOOKUP($E18,'RECAP AG'!$G$6:$CU$255,22,FALSE) -> 137 | M18: =VLOOKUP($E18,'RECAP AG'!$G$6:$CU$255,23,FALSE) -> 28.19 | N18: =VLOOKUP($E18,'RECAP AG'!$G$6:$CU$255,24,FALSE) -> 84% | O18: =VLOOKUP($E18,'RECAP AG'!$G$6:$CU$255,25,FALSE) -> 185 | P18: =VLOOKUP($E18,'RECAP AG'!$G$6:$CU$255,26,FALSE) -> 91% | Q18: =VLOOKUP($E18,'RECAP AG'!$G$6:$CU$255,27,FALSE) -> 91% | R18: =VLOOKUP($E18,'RECAP AG'!$G$6:$CU$255,28,FALSE) -> 203
A19: 50 | B19: AUBE HAUTE MARNE | C19: 14 | D19: TROYES | E19: 510556 | F19: BAR SUR SEINE | G19: =VLOOKUP($E19,'RECAP AG'!$G$6:$CU$255,3,FALSE) -> 2.7 | H19: =VLOOKUP($E19,'RECAP AG'!$G$6:$CU$255,18,FALSE) -> 1.8 | I19: =VLOOKUP($E19,'RECAP AG'!$G$6:$CU$255,19,FALSE) -> 0.66 | J19: =VLOOKUP($E19,'RECAP AG'!$G$6:$CU$255,20,FALSE) -> 99% | K19: =VLOOKUP($E19,'RECAP AG'!$G$6:$CU$255,21,FALSE) -> 214 | L19: =VLOOKUP($E19,'RECAP AG'!$G$6:$CU$255,22,FALSE) -> 66 | M19: =VLOOKUP($E19,'RECAP AG'!$G$6:$CU$255,23,FALSE) -> 24.35 | N19: =VLOOKUP($E19,'RECAP AG'!$G$6:$CU$255,24,FALSE) -> 86% | O19: =VLOOKUP($E19,'RECAP AG'!$G$6:$CU$255,25,FALSE) -> 218 | P19: =VLOOKUP($E19,'RECAP AG'!$G$6:$CU$255,26,FALSE) -> 94% | Q19: =VLOOKUP($E19,'RECAP AG'!$G$6:$CU$255,27,FALSE) -> 94% | R19: =VLOOKUP($E19,'RECAP AG'!$G$6:$CU$255,28,FALSE) -> 225
A20: 50 | B20: AUBE HAUTE MARNE | C20: 14 | D20: TROYES | E20: 510570 | F20: NOGENT SUR SEINE | G20: =VLOOKUP($E20,'RECAP AG'!$G$6:$CU$255,3,FALSE) -> 4.7 | H20: =VLOOKUP($E20,'RECAP AG'!$G$6:$CU$255,18,FALSE) -> 75.0 | I20: =VLOOKUP($E20,'RECAP AG'!$G$6:$CU$255,19,FALSE) -> 15.99 | J20: =VLOOKUP($E20,'RECAP AG'!$G$6:$CU$255,20,FALSE) -> 81% | K20: =VLOOKUP($E20,'RECAP AG'!$G$6:$CU$255,21,FALSE) -> 78 | L20: =VLOOKUP($E20,'RECAP AG'!$G$6:$CU$255,22,FALSE) -> 181 | M20: =VLOOKUP($E20,'RECAP AG'!$G$6:$CU$255,23,FALSE) -> 38.59 | N20: =VLOOKUP($E20,'RECAP AG'!$G$6:$CU$255,24,FALSE) -> 78% | O20: =VLOOKUP($E20,'RECAP AG'!$G$6:$CU$255,25,FALSE) -> 98 | P20: =VLOOKUP($E20,'RECAP AG'!$G$6:$CU$255,26,FALSE) -> 80% | Q20: =VLOOKUP($E20,'RECAP AG'!$G$6:$CU$255,27,FALSE) -> 80% | R20: =VLOOKUP($E20,'RECAP AG'!$G$6:$CU$255,28,FALSE) -> 74
A21: 50 | B21: AUBE HAUTE MARNE | C21: 14 | D21: TROYES | E21: 410571 | F21: ROMILLY SUR SEINE | G21: =VLOOKUP($E21,'RECAP AG'!$G$6:$CU$255,3,FALSE) -> 4.7 | H21: =VLOOKUP($E21,'RECAP AG'!$G$6:$CU$255,18,FALSE) -> 20.3 | I21: =VLOOKUP($E21,'RECAP AG'!$G$6:$CU$255,19,FALSE) -> 4.28 | J21: =VLOOKUP($E21,'RECAP AG'!$G$6:$CU$255,20,FALSE) -> 95% | K21: =VLOOKUP($E21,'RECAP AG'!$G$6:$CU$255,21,FALSE) -> 192 | L21: =VLOOKUP($E21,'RECAP AG'!$G$6:$CU$255,22,FALSE) -> 161 | M21: =VLOOKUP($E21,'RECAP AG'!$G$6:$CU$255,23,FALSE) -> 33.97 | N21: =VLOOKUP($E21,'RECAP AG'!$G$6:$CU$255,24,FALSE) -> 81% | O21: =VLOOKUP($E21,'RECAP AG'!$G$6:$CU$255,25,FALSE) -> 134 | P21: =VLOOKUP($E21,'RECAP AG'!$G$6:$CU$255,26,FALSE) -> 89% | Q21: =VLOOKUP($E21,'RECAP AG'!$G$6:$CU$255,27,FALSE) -> 89% | R21: =VLOOKUP($E21,'RECAP AG'!$G$6:$CU$255,28,FALSE) -> 185
A22: 50 | B22: AUBE HAUTE MARNE | C22: 14 | D22: TROYES | E22: 510520 | F22: SAINT ANDRE LES VERGERS | G22: =VLOOKUP($E22,'RECAP AG'!$G$6:$CU$255,3,FALSE) -> 3.7 | H22: =VLOOKUP($E22,'RECAP AG'!$G$6:$CU$255,18,FALSE) -> 31.2 | I22: =VLOOKUP($E22,'RECAP AG'!$G$6:$CU$255,19,FALSE) -> 8.41 | J22: =VLOOKUP($E22,'RECAP AG'!$G$6:$CU$255,20,FALSE) -> 90% | K22: =VLOOKUP($E22,'RECAP AG'!$G$6:$CU$255,21,FALSE) -> 161 | L22: =VLOOKUP($E22,'RECAP AG'!$G$6:$CU$255,22,FALSE) -> 118 | M22: =VLOOKUP($E22,'RECAP AG'!$G$6:$CU$255,23,FALSE) -> 31.81 | N22: =VLOOKUP($E22,'RECAP AG'!$G$6:$CU$255,24,FALSE) -> 82% | O22: =VLOOKUP($E22,'RECAP AG'!$G$6:$CU$255,25,FALSE) -> 147 | P22: =VLOOKUP($E22,'RECAP AG'!$G$6:$CU$255,26,FALSE) -> 87% | Q22: =VLOOKUP($E22,'RECAP AG'!$G$6:$CU$255,27,FALSE) -> 87% | R22: =VLOOKUP($E22,'RECAP AG'!$G$6:$CU$255,28,FALSE) -> 163
A23: 50 | B23: AUBE HAUTE MARNE | C23: 14 | D23: TROYES | E23: 410524 | F23: SAINT JULIEN LES VILLAS | G23: =VLOOKUP($E23,'RECAP AG'!$G$6:$CU$255,3,FALSE) -> 5.1 | H23: =VLOOKUP($E23,'RECAP AG'!$G$6:$CU$255,18,FALSE) -> 28.7 | I23: =VLOOKUP($E23,'RECAP AG'!$G$6:$CU$255,19,FALSE) -> 5.68 | J23: =VLOOKUP($E23,'RECAP AG'!$G$6:$CU$255,20,FALSE) -> 93% | K23: =VLOOKUP($E23,'RECAP AG'!$G$6:$CU$255,21,FALSE) -> 182 | L23: =VLOOKUP($E23,'RECAP AG'!$G$6:$CU$255,22,FALSE) -> 159 | M23: =VLOOKUP($E23,'RECAP AG'!$G$6:$CU$255,23,FALSE) -> 31.49 | N23: =VLOOKUP($E23,'RECAP AG'!$G$6:$CU$255,24,FALSE) -> 82% | O23: =VLOOKUP($E23,'RECAP AG'!$G$6:$CU$255,25,FALSE) -> 150 | P23: =VLOOKUP($E23,'RECAP AG'!$G$6:$CU$255,26,FALSE) -> 89% | Q23: =VLOOKUP($E23,'RECAP AG'!$G$6:$CU$255,27,FALSE) -> 89% | R23: =VLOOKUP($E23,'RECAP AG'!$G$6:$CU$255,28,FALSE) -> 182
A24: 50 | B24: AUBE HAUTE MARNE | C24: 14 | D24: TROYES | E24: 410521 | F24: SAINTE SAVINE | G24: =VLOOKUP($E24,'RECAP AG'!$G$6:$CU$255,3,FALSE) -> 4.3 | H24: =VLOOKUP($E24,'RECAP AG'!$G$6:$CU$255,18,FALSE) -> 1.5 | I24: =VLOOKUP($E24,'RECAP AG'!$G$6:$CU$255,19,FALSE) -> 0.35 | J24: =VLOOKUP($E24,'RECAP AG'!$G$6:$CU$255,20,FALSE) -> 100% | K24: =VLOOKUP($E24,'RECAP AG'!$G$6:$CU$255,21,FALSE) -> 218 | L24: =VLOOKUP($E24,'RECAP AG'!$G$6:$CU$255,22,FALSE) -> 131 | M24: =VLOOKUP($E24,'RECAP AG'!$G$6:$CU$255,23,FALSE) -> 30.32 | N24: =VLOOKUP($E24,'RECAP AG'!$G$6:$CU$255,24,FALSE) -> 83% | O24: =VLOOKUP($E24,'RECAP AG'!$G$6:$CU$255,25,FALSE) -> 160 | P24: =VLOOKUP($E24,'RECAP AG'!$G$6:$CU$255,26,FALSE) -> 93% | Q24: =VLOOKUP($E24,'RECAP AG'!$G$6:$CU$255,27,FALSE) -> 93% | R24: =VLOOKUP($E24,'RECAP AG'!$G$6:$CU$255,28,FALSE) -> 211
A25: 50 | B25: AUBE HAUTE MARNE | C25: 14 | D25: TROYES | E25: 510513 | F25: TROYES 1ER MAI | G25: =VLOOKUP($E25,'RECAP AG'!$G$6:$CU$255,3,FALSE) -> 2.2 | H25: =VLOOKUP($E25,'RECAP AG'!$G$6:$CU$255,18,FALSE) -> 27.6 | I25: =VLOOKUP($E25,'RECAP AG'!$G$6:$CU$255,19,FALSE) -> 12.84 | J25: =VLOOKUP($E25,'RECAP AG'!$G$6:$CU$255,20,FALSE) -> 84% | K25: =VLOOKUP($E25,'RECAP AG'!$G$6:$CU$255,21,FALSE) -> 108 | L25: =VLOOKUP($E25,'RECAP AG'!$G$6:$CU$255,22,FALSE) -> 127 | M25: =VLOOKUP($E25,'RECAP AG'!$G$6:$CU$255,23,FALSE) -> 59.07 | N25: =VLOOKUP($E25,'RECAP AG'!$G$6:$CU$255,24,FALSE) -> 66% | O25: =VLOOKUP($E25,'RECAP AG'!$G$6:$CU$255,25,FALSE) -> 15 | P25: =VLOOKUP($E25,'RECAP AG'!$G$6:$CU$255,26,FALSE) -> 77% | Q25: =VLOOKUP($E25,'RECAP AG'!$G$6:$CU$255,27,FALSE) -> 77% | R25: =VLOOKUP($E25,'RECAP AG'!$G$6:$CU$255,28,FALSE) -> 60
A26: 50 | B26: AUBE HAUTE MARNE | C26: 14 | D26: TROYES | E26: 410510 | F26: TROYES GAMBETTA | G26: =VLOOKUP($E26,'RECAP AG'!$G$6:$CU$255,3,FALSE) -> 8.9 | H26: =VLOOKUP($E26,'RECAP AG'!$G$6:$CU$255,18,FALSE) -> 63.0 | I26: =VLOOKUP($E26,'RECAP AG'!$G$6:$CU$255,19,FALSE) -> 7.07 | J26: =VLOOKUP($E26,'RECAP AG'!$G$6:$CU$255,20,FALSE) -> 91% | K26: =VLOOKUP($E26,'RECAP AG'!$G$6:$CU$255,21,FALSE) -> 170 | L26: =VLOOKUP($E26,'RECAP AG'!$G$6:$CU$255,22,FALSE) -> 258 | M26: =VLOOKUP($E26,'RECAP AG'!$G$6:$CU$255,23,FALSE) -> 28.96 | N26: =VLOOKUP($E26,'RECAP AG'!$G$6:$CU$255,24,FALSE) -> 84% | O26: =VLOOKUP($E26,'RECAP AG'!$G$6:$CU$255,25,FALSE) -> 176 | P26: =VLOOKUP($E26,'RECAP AG'!$G$6:$CU$255,26,FALSE) -> 88% | Q26: =VLOOKUP($E26,'RECAP AG'!$G$6:$CU$255,27,FALSE) -> 88% | R26: =VLOOKUP($E26,'RECAP AG'!$G$6:$CU$255,28,FALSE) -> 178
A27: 50 | B27: AUBE HAUTE MARNE | C27: 14 | D27: TROYES | E27: 410512 | F27: TROYES ZOLA | G27: =VLOOKUP($E27,'RECAP AG'!$G$6:$CU$255,3,FALSE) -> 5.3 | H27: =VLOOKUP($E27,'RECAP AG'!$G$6:$CU$255,18,FALSE) -> 0.6 | I27: =VLOOKUP($E27,'RECAP AG'!$G$6:$CU$255,19,FALSE) -> 0.11 | J27: =VLOOKUP($E27,'RECAP AG'!$G$6:$CU$255,20,FALSE) -> 100% | K27: =VLOOKUP($E27,'RECAP AG'!$G$6:$CU$255,21,FALSE) -> 220 | L27: =VLOOKUP($E27,'RECAP AG'!$G$6:$CU$255,22,FALSE) -> 163 | M27: =VLOOKUP($E27,'RECAP AG'!$G$6:$CU$255,23,FALSE) -> 30.93 | N27: =VLOOKUP($E27,'RECAP AG'!$G$6:$CU$255,24,FALSE) -> 82% | O27: =VLOOKUP($E27,'RECAP AG'!$G$6:$CU$255,25,FALSE) -> 154 | P27: =VLOOKUP($E27,'RECAP AG'!$G$6:$CU$255,26,FALSE) -> 93% | Q27: =VLOOKUP($E27,'RECAP AG'!$G$6:$CU$255,27,FALSE) -> 93% | R27: =VLOOKUP($E27,'RECAP AG'!$G$6:$CU$255,28,FALSE) -> 212
A28: 262 | B28: BAS RHIN | C28: 5060 | D28: HAGUENAU | E28: 4057 | F28: BISCHWILLER | G28: =VLOOKUP($E28,'RECAP AG'!$G$6:$CU$255,3,FALSE) -> 7.1 | H28: =VLOOKUP($E28,'RECAP AG'!$G$6:$CU$255,18,FALSE) -> 179.0 | I28: =VLOOKUP($E28,'RECAP AG'!$G$6:$CU$255,19,FALSE) -> 25.18 | J28: =VLOOKUP($E28,'RECAP AG'!$G$6:$CU$255,20,FALSE) -> 70% | K28: =VLOOKUP($E28,'RECAP AG'!$G$6:$CU$255,21,FALSE) -> 30 | L28: =VLOOKUP($E28,'RECAP AG'!$G$6:$CU$255,22,FALSE) -> 192 | M28: =VLOOKUP($E28,'RECAP AG'!$G$6:$CU$255,23,FALSE) -> 27.00 | N28: =VLOOKUP($E28,'RECAP AG'!$G$6:$CU$255,24,FALSE) -> 85% | O28: =VLOOKUP($E28,'RECAP AG'!$G$6:$CU$255,25,FALSE) -> 198 | P28: =VLOOKUP($E28,'RECAP AG'!$G$6:$CU$255,26,FALSE) -> 76% | Q28: =VLOOKUP($E28,'RECAP AG'!$G$6:$CU$255,27,FALSE) -> 76% | R28: =VLOOKUP($E28,'RECAP AG'!$G$6:$CU$255,28,FALSE) -> 53
A29: 262 | B29: BAS RHIN | C29: 5060 | D29: HAGUENAU | E29: 4082 | F29: BOUXWILLER | G29: =VLOOKUP($E29,'RECAP AG'!$G$6:$CU$255,3,FALSE) -> 2.4 | H29: =VLOOKUP($E29,'RECAP AG'!$G$6:$CU$255,18,FALSE) -> 18.4 | I29: =VLOOKUP($E29,'RECAP AG'!$G$6:$CU$255,19,FALSE) -> 7.76 | J29: =VLOOKUP($E29,'RECAP AG'!$G$6:$CU$255,20,FALSE) -> 91% | K29: =VLOOKUP($E29,'RECAP AG'!$G$6:$CU$255,21,FALSE) -> 166 | L29: =VLOOKUP($E29,'RECAP AG'!$G$6:$CU$255,22,FALSE) -> 71 | M29: =VLOOKUP($E29,'RECAP AG'!$G$6:$CU$255,23,FALSE) -> 29.96 | N29: =VLOOKUP($E29,'RECAP AG'!$G$6:$CU$255,24,FALSE) -> 83% | O29: =VLOOKUP($E29,'RECAP AG'!$G$6:$CU$255,25,FALSE) -> 163 | P29: =VLOOKUP($E29,'RECAP AG'!$G$6:$CU$255,26,FALSE) -> 88% | Q29: =VLOOKUP($E29,'RECAP AG'!$G$6:$CU$255,27,FALSE) -> 88% | R29: =VLOOKUP($E29,'RECAP AG'!$G$6:$CU$255,28,FALSE) -> 173
A30: 262 | B30: BAS RHIN | C30: 5060 | D30: HAGUENAU | E30: 4030 | F30: BRUMATH | G30: =VLOOKUP($E30,'RECAP AG'!$G$6:$CU$255,3,FALSE) -> 4.7 | H30: =VLOOKUP($E30,'RECAP AG'!$G$6:$CU$255,18,FALSE) -> 67.1 | I30: =VLOOKUP($E30,'RECAP AG'!$G$6:$CU$255,19,FALSE) -> 14.25 | J30: =VLOOKUP($E30,'RECAP AG'!$G$6:$CU$255,20,FALSE) -> 83% | K30: =VLOOKUP($E30,'RECAP AG'!$G$6:$CU$255,21,FALSE) -> 95 | L30: =VLOOKUP($E30,'RECAP AG'!$G$6:$CU$255,22,FALSE) -> 100 | M30: =VLOOKUP($E30,'RECAP AG'!$G$6:$CU$255,23,FALSE) -> 21.23 | N30: =VLOOKUP($E30,'RECAP AG'!$G$6:$CU$255,24,FALSE) -> 88% | O30: =VLOOKUP($E30,'RECAP AG'!$G$6:$CU$255,25,FALSE) -> 235 | P30: =VLOOKUP($E30,'RECAP AG'!$G$6:$CU$255,26,FALSE) -> 85% | Q30: =VLOOKUP($E30,'RECAP AG'!$G$6:$CU$255,27,FALSE) -> 85% | R30: =VLOOKUP($E30,'RECAP AG'!$G$6:$CU$255,28,FALSE) -> 135
A31: 262 | B31: BAS RHIN | C31: 5060 | D31: HAGUENAU | E31: 4060 | F31: HAGUENAU HOUBLON | G31: =VLOOKUP($E31,'RECAP AG'!$G$6:$CU$255,3,FALSE) -> 8.4 | H31: =VLOOKUP($E31,'RECAP AG'!$G$6:$CU$255,18,FALSE) -> 88.7 | I31: =VLOOKUP($E31,'RECAP AG'!$G$6:$CU$255,19,FALSE) -> 10.51 | J31: =VLOOKUP($E31,'RECAP AG'!$G$6:$CU$255,20,FALSE) -> 87% | K31: =VLOOKUP($E31,'RECAP AG'!$G$6:$CU$255,21,FALSE) -> 138 | L31: =VLOOKUP($E31,'RECAP AG'!$G$6:$CU$255,22,FALSE) -> 248 | M31: =VLOOKUP($E31,'RECAP AG'!$G$6:$CU$255,23,FALSE) -> 29.38 | N31: =VLOOKUP($E31,'RECAP AG'!$G$6:$CU$255,24,FALSE) -> 83% | O31: =VLOOKUP($E31,'RECAP AG'!$G$6:$CU$255,25,FALSE) -> 171 | P31: =VLOOKUP($E31,'RECAP AG'!$G$6:$CU$255,26,FALSE) -> 86% | Q31: =VLOOKUP($E31,'RECAP AG'!$G$6:$CU$255,27,FALSE) -> 86% | R31: =VLOOKUP($E31,'RECAP AG'!$G$6:$CU$255,28,FALSE) -> 149
A32: 262 | B32: BAS RHIN | C32: 5060 | D32: HAGUENAU | E32: 4092 | F32: HOCHFELDEN | G32: =VLOOKUP($E32,'RECAP AG'!$G$6:$CU$255,3,FALSE) -> 2.0 | H32: =VLOOKUP($E32,'RECAP AG'!$G$6:$CU$255,18,FALSE) -> 23.4 | I32: =VLOOKUP($E32,'RECAP AG'!$G$6:$CU$255,19,FALSE) -> 11.88 | J32: =VLOOKUP($E32,'RECAP AG'!$G$6:$CU$255,20,FALSE) -> 86% | K32: =VLOOKUP($E32,'RECAP AG'!$G$6:$CU$255,21,FALSE) -> 122 | L32: =VLOOKUP($E32,'RECAP AG'!$G$6:$CU$255,22,FALSE) -> 78 | M32: =VLOOKUP($E32,'RECAP AG'!$G$6:$CU$255,23,FALSE) -> 39.59 | N32: =VLOOKUP($E32,'RECAP AG'!$G$6:$CU$255,24,FALSE) -> 77% | O32: =VLOOKUP($E32,'RECAP AG'!$G$6:$CU$255,25,FALSE) -> 90 | P32: =VLOOKUP($E32,'RECAP AG'!$G$6:$CU$255,26,FALSE) -> 82% | Q32: =VLOOKUP($E32,'RECAP AG'!$G$6:$CU$255,27,FALSE) -> 82% | R32: =VLOOKUP($E32,'RECAP AG'!$G$6:$CU$255,28,FALSE) -> 107
A33: 262 | B33: BAS RHIN | C33: 5060 | D33: HAGUENAU | E33: 4041 | F33: HOERDT | G33: =VLOOKUP($E33,'RECAP AG'!$G$6:$CU$255,3,FALSE) -> 1.6 | H33: =VLOOKUP($E33,'RECAP AG'!$G$6:$CU$255,18,FALSE) -> 18.1 | I33: =VLOOKUP($E33,'RECAP AG'!$G$6:$CU$255,19,FALSE) -> 11.17 | J33: =VLOOKUP($E33,'RECAP AG'!$G$6:$CU$255,20,FALSE) -> 87% | K33: =VLOOKUP($E33,'RECAP AG'!$G$6:$CU$255,21,FALSE) -> 128 | L33: =VLOOKUP($E33,'RECAP AG'!$G$6:$CU$255,22,FALSE) -> 47 | M33: =VLOOKUP($E33,'RECAP AG'!$G$6:$CU$255,23,FALSE) -> 29.01 | N33: =VLOOKUP($E33,'RECAP AG'!$G$6:$CU$255,24,FALSE) -> 84% | O33: =VLOOKUP($E33,'RECAP AG'!$G$6:$CU$255,25,FALSE) -> 174 | P33: =VLOOKUP($E33,'RECAP AG'!$G$6:$CU$255,26,FALSE) -> 85% | Q33: =VLOOKUP($E33,'RECAP AG'!$G$6:$CU$255,27,FALSE) -> 85% | R33: =VLOOKUP($E33,'RECAP AG'!$G$6:$CU$255,28,FALSE) -> 143
A34: 262 | B34: BAS RHIN | C34: 5060 | D34: HAGUENAU | E34: 4085 | F34: INGWILLER | G34: =VLOOKUP($E34,'RECAP AG'!$G$6:$CU$255,3,FALSE) -> 3.4 | H34: =VLOOKUP($E34,'RECAP AG'!$G$6:$CU$255,18,FALSE) -> 36.5 | I34: =VLOOKUP($E34,'RECAP AG'!$G$6:$CU$255,19,FALSE) -> 10.67 | J34: =VLOOKUP($E34,'RECAP AG'!$G$6:$CU$255,20,FALSE) -> 87% | K34: =VLOOKUP($E34,'RECAP AG'!$G$6:$CU$255,21,FALSE) -> 133 | L34: =VLOOKUP($E34,'RECAP AG'!$G$6:$CU$255,22,FALSE) -> 112 | M34: =VLOOKUP($E34,'RECAP AG'!$G$6:$CU$255,23,FALSE) -> 32.75 | N34: =VLOOKUP($E34,'RECAP AG'!$G$6:$CU$255,24,FALSE) -> 81% | O34: =VLOOKUP($E34,'RECAP AG'!$G$6:$CU$255,25,FALSE) -> 143 | P34: =VLOOKUP($E34,'RECAP AG'!$G$6:$CU$255,26,FALSE) -> 85% | Q34: =VLOOKUP($E34,'RECAP AG'!$G$6:$CU$255,27,FALSE) -> 85% | R34: =VLOOKUP($E34,'RECAP AG'!$G$6:$CU$255,28,FALSE) -> 133
A35: 262 | B35: BAS RHIN | C35: 5060 | D35: HAGUENAU | E35: 4066 | F35: NIEDERBRONN LES BAINS | G35: =VLOOKUP($E35,'RECAP AG'!$G$6:$CU$255,3,FALSE) -> 5.6 | H35: =VLOOKUP($E35,'RECAP AG'!$G$6:$CU$255,18,FALSE) -> -19.9 | I35: =VLOOKUP($E35,'RECAP AG'!$G$6:$CU$255,19,FALSE) -> -3.58 | J35: =VLOOKUP($E35,'RECAP AG'!$G$6:$CU$255,20,FALSE) -> 104% | K35: =VLOOKUP($E35,'RECAP AG'!$G$6:$CU$255,21,FALSE) -> 233 | L35: =VLOOKUP($E35,'RECAP AG'!$G$6:$CU$255,22,FALSE) -> 145 | M35: =VLOOKUP($E35,'RECAP AG'!$G$6:$CU$255,23,FALSE) -> 26.08 | N35: =VLOOKUP($E35,'RECAP AG'!$G$6:$CU$255,24,FALSE) -> 85% | O35: =VLOOKUP($E35,'RECAP AG'!$G$6:$CU$255,25,FALSE) -> 205 | P35: =VLOOKUP($E35,'RECAP AG'!$G$6:$CU$255,26,FALSE) -> 97% | Q35: =VLOOKUP($E35,'RECAP AG'!$G$6:$CU$255,27,FALSE) -> 97% | R35: =VLOOKUP($E35,'RECAP AG'!$G$6:$CU$255,28,FALSE) -> 239
A36: 262 | B36: BAS RHIN | C36: 5060 | D36: HAGUENAU | E36: 4067 | F36: PFAFFENHOFFEN | G36: =VLOOKUP($E36,'RECAP AG'!$G$6:$CU$255,3,FALSE) -> 1.9 | H36: =VLOOKUP($E36,'RECAP AG'!$G$6:$CU$255,18,FALSE) -> 22.8 | I36: =VLOOKUP($E36,'RECAP AG'!$G$6:$CU$255,19,FALSE) -> 12.19 | J36: =VLOOKUP($E36,'RECAP AG'!$G$6:$CU$255,20,FALSE) -> 85% | K36: =VLOOKUP($E36,'RECAP AG'!$G$6:$CU$255,21,FALSE) -> 117 | L36: =VLOOKUP($E36,'RECAP AG'!$G$6:$CU$255,22,FALSE) -> 48 | M36: =VLOOKUP($E36,'RECAP AG'!$G$6:$CU$255,23,FALSE) -> 25.67 | N36: =VLOOKUP($E36,'RECAP AG'!$G$6:$CU$255,24,FALSE) -> 85% | O36: =VLOOKUP($E36,'RECAP AG'!$G$6:$CU$255,25,FALSE) -> 209 | P36: =VLOOKUP($E36,'RECAP AG'!$G$6:$CU$255,26,FALSE) -> 85% | Q36: =VLOOKUP($E36,'RECAP AG'!$G$6:$CU$255,27,FALSE) -> 85% | R36: =VLOOKUP($E36,'RECAP AG'!$G$6:$CU$255,28,FALSE) -> 144
A37: 262 | B37: BAS RHIN | C37: 5060 | D37: HAGUENAU | E37: 4095 | F37: SARRE UNION | G37: =VLOOKUP($E37,'RECAP AG'!$G$6:$CU$255,3,FALSE) -> 2.3 | H37: =VLOOKUP($E37,'RECAP AG'!$G$6:$CU$255,18,FALSE) -> 41.0 | I37: =VLOOKUP($E37,'RECAP AG'!$G$6:$CU$255,19,FALSE) -> 17.67 | J37: =VLOOKUP($E37,'RECAP AG'!$G$6:$CU$255,20,FALSE) -> 79% | K37: =VLOOKUP($E37,'RECAP AG'!$G$6:$CU$255,21,FALSE) -> 69 | L37: =VLOOKUP($E37,'RECAP AG'!$G$6:$CU$255,22,FALSE) -> 71 | M37: =VLOOKUP($E37,'RECAP AG'!$G$6:$CU$255,23,FALSE) -> 30.60 | N37: =VLOOKUP($E37,'RECAP AG'!$G$6:$CU$255,24,FALSE) -> 83% | O37: =VLOOKUP($E37,'RECAP AG'!$G$6:$CU$255,25,FALSE) -> 158 | P37: =VLOOKUP($E37,'RECAP AG'!$G$6:$CU$255,26,FALSE) -> 80% | Q37: =VLOOKUP($E37,'RECAP AG'!$G$6:$CU$255,27,FALSE) -> 80% | R37: =VLOOKUP($E37,'RECAP AG'!$G$6:$CU$255,28,FALSE) -> 81
A38: 262 | B38: BAS RHIN | C38: 5060 | D38: HAGUENAU | E38: 4087 | F38: SAVERNE | G38: =VLOOKUP($E38,'RECAP AG'!$G$6:$CU$255,3,FALSE) -> 6.0 | H38: =VLOOKUP($E38,'RECAP AG'!$G$6:$CU$255,18,FALSE) -> 119.1 | I38: =VLOOKUP($E38,'RECAP AG'!$G$6:$CU$255,19,FALSE) -> 19.85 | J38: =VLOOKUP($E38,'RECAP AG'!$G$6:$CU$255,20,FALSE) -> 76% | K38: =VLOOKUP($E38,'RECAP AG'!$G$6:$CU$255,21,FALSE) -> 53 | L38: =VLOOKUP($E38,'RECAP AG'!$G$6:$CU$255,22,FALSE) -> 168 | M38: =VLOOKUP($E38,'RECAP AG'!$G$6:$CU$255,23,FALSE) -> 28.00 | N38: =VLOOKUP($E38,'RECAP AG'!$G$6:$CU$255,24,FALSE) -> 84% | O38: =VLOOKUP($E38,'RECAP AG'!$G$6:$CU$255,25,FALSE) -> 189 | P38: =VLOOKUP($E38,'RECAP AG'!$G$6:$CU$255,26,FALSE) -> 79% | Q38: =VLOOKUP($E38,'RECAP AG'!$G$6:$CU$255,27,FALSE) -> 79% | R38: =VLOOKUP($E38,'RECAP AG'!$G$6:$CU$255,28,FALSE) -> 71
A39: 262 | B39: BAS RHIN | C39: 5060 | D39: HAGUENAU | E39: 4079 | F39: SOULTZ SOUS FORETS | G39: =VLOOKUP($E39,'RECAP AG'!$G$6:$CU$255,3,FALSE) -> 1.9 | H39: =VLOOKUP($E39,'RECAP AG'!$G$6:$CU$255,18,FALSE) -> 41.1 | I39: =VLOOKUP($E39,'RECAP AG'!$G$6:$CU$255,19,FALSE) -> 22.10 | J39: =VLOOKUP($E39,'RECAP AG'!$G$6:$CU$255,20,FALSE) -> 73% | K39: =VLOOKUP($E39,'RECAP AG'!$G$6:$CU$255,21,FALSE) -> 45 | L39: =VLOOKUP($E39,'RECAP AG'!$G$6:$CU$255,22,FALSE) -> 68 | M39: =VLOOKUP($E39,'RECAP AG'!$G$6:$CU$255,23,FALSE) -> 36.56 | N39: =VLOOKUP($E39,'RECAP AG'!$G$6:$CU$255,24,FALSE) -> 79% | O39: =VLOOKUP($E39,'RECAP AG'!$G$6:$CU$255,25,FALSE) -> 112 | P39: =VLOOKUP($E39,'RECAP AG'!$G$6:$CU$255,26,FALSE) -> 76% | Q39: =VLOOKUP($E39,'RECAP AG'!$G$6:$CU$255,27,FALSE) -> 76% | R39: =VLOOKUP($E39,'RECAP AG'!$G$6:$CU$255,28,FALSE) -> 54
A40: 262 | B40: BAS RHIN | C40: 5060 | D40: HAGUENAU | E40: 4031 | F40: TRUCHTERSHEIM | G40: =VLOOKUP($E40,'RECAP AG'!$G$6:$CU$255,3,FALSE) -> 2.3 | H40: =VLOOKUP($E40,'RECAP AG'!$G$6:$CU$255,18,FALSE) -> 44.4 | I40: =VLOOKUP($E40,'RECAP AG'!$G$6:$CU$255,19,FALSE) -> 19.47 | J40: =VLOOKUP($E40,'RECAP AG'!$G$6:$CU$255,20,FALSE) -> 76% | K40: =VLOOKUP($E40,'RECAP AG'!$G$6:$CU$255,21,FALSE) -> 54 | L40: =VLOOKUP($E40,'RECAP AG'!$G$6:$CU$255,22,FALSE) -> 53 | M40: =VLOOKUP($E40,'RECAP AG'!$G$6:$CU$255,23,FALSE) -> 23.25 | N40: =VLOOKUP($E40,'RECAP AG'!$G$6:$CU$255,24,FALSE) -> 87% | O40: =VLOOKUP($E40,'RECAP AG'!$G$6:$CU$255,25,FALSE) -> 224 | P40: =VLOOKUP($E40,'RECAP AG'!$G$6:$CU$255,26,FALSE) -> 81% | Q40: =VLOOKUP($E40,'RECAP AG'!$G$6:$CU$255,27,FALSE) -> 81% | R40: =VLOOKUP($E40,'RECAP AG'!$G$6:$CU$255,28,FALSE) -> 85
A41: 262 | B41: BAS RHIN | C41: 5060 | D41: HAGUENAU | E41: 4071 | F41: WISSEMBOURG | G41: =VLOOKUP($E41,'RECAP AG'!$G$6:$CU$255,3,FALSE) -> 6.7 | H41: =VLOOKUP($E41,'RECAP AG'!$G$6:$CU$255,18,FALSE) -> 61.7 | I41: =VLOOKUP($E41,'RECAP AG'!$G$6:$CU$255,19,FALSE) -> 9.21 | J41: =VLOOKUP($E41,'RECAP AG'!$G$6:$CU$255,20,FALSE) -> 89% | K41: =VLOOKUP($E41,'RECAP AG'!$G$6:$CU$255,21,FALSE) -> 154 | L41: =VLOOKUP($E41,'RECAP AG'!$G$6:$CU$255,22,FALSE) -> 202 | M41: =VLOOKUP($E41,'RECAP AG'!$G$6:$CU$255,23,FALSE) -> 30.15 | N41: =VLOOKUP($E41,'RECAP AG'!$G$6:$CU$255,24,FALSE) -> 83% | O41: =VLOOKUP($E41,'RECAP AG'!$G$6:$CU$255,25,FALSE) -> 161 | P41: =VLOOKUP($E41,'RECAP AG'!$G$6:$CU$255,26,FALSE) -> 86% | Q41: =VLOOKUP($E41,'RECAP AG'!$G$6:$CU$255,27,FALSE) -> 86% | R41: =VLOOKUP($E41,'RECAP AG'!$G$6:$CU$255,28,FALSE) -> 160
A42: 262 | B42: BAS RHIN | C42: 5101 | D42: SELESTAT | E42: 4113 | F42: BARR | G42: =VLOOKUP($E42,'RECAP AG'!$G$6:$CU$255,3,FALSE) -> 2.9 | H42: =VLOOKUP($E42,'RECAP AG'!$G$6:$CU$255,18,FALSE) -> 84.3 | I42: =VLOOKUP($E42,'RECAP AG'!$G$6:$CU$255,19,FALSE) -> 29.48 | J42: =VLOOKUP($E42,'RECAP AG'!$G$6:$CU$255,20,FALSE) -> 64% | K42: =VLOOKUP($E42,'RECAP AG'!$G$6:$CU$255,21,FALSE) -> 18 | L42: =VLOOKUP($E42,'RECAP AG'!$G$6:$CU$255,22,FALSE) -> 127 | M42: =VLOOKUP($E42,'RECAP AG'!$G$6:$CU$255,23,FALSE) -> 44.41 | N42: =VLOOKUP($E42,'RECAP AG'!$G$6:$CU$255,24,FALSE) -> 75% | O42: =VLOOKUP($E42,'RECAP AG'!$G$6:$CU$255,25,FALSE) -> 54 | P42: =VLOOKUP($E42,'RECAP AG'!$G$6:$CU$255,26,FALSE) -> 69% | Q42: =VLOOKUP($E42,'RECAP AG'!$G$6:$CU$255,27,FALSE) -> 69% | R42: =VLOOKUP($E42,'RECAP AG'!$G$6:$CU$255,28,FALSE) -> 21
A43: 262 | B43: BAS RHIN | C43: 5101 | D43: SELESTAT | E43: 4111 | F43: BENFELD | G43: =VLOOKUP($E43,'RECAP AG'!$G$6:$CU$255,3,FALSE) -> 2.8 | H43: =VLOOKUP($E43,'RECAP AG'!$G$6:$CU$255,18,FALSE) -> 17.6 | I43: =VLOOKUP($E43,'RECAP AG'!$G$6:$CU$255,19,FALSE) -> 6.31 | J43: =VLOOKUP($E43,'RECAP AG'!$G$6:$CU$255,20,FALSE) -> 92% | K43: =VLOOKUP($E43,'RECAP AG'!$G$6:$CU$255,21,FALSE) -> 176 | L43: =VLOOKUP($E43,'RECAP AG'!$G$6:$CU$255,22,FALSE) -> 72 | M43: =VLOOKUP($E43,'RECAP AG'!$G$6:$CU$255,23,FALSE) -> 25.81 | N43: =VLOOKUP($E43,'RECAP AG'!$G$6:$CU$255,24,FALSE) -> 85% | O43: =VLOOKUP($E43,'RECAP AG'!$G$6:$CU$255,25,FALSE) -> 207 | P43: =VLOOKUP($E43,'RECAP AG'!$G$6:$CU$255,26,FALSE) -> 90% | Q43: =VLOOKUP($E43,'RECAP AG'!$G$6:$CU$255,27,FALSE) -> 90% | R43: =VLOOKUP($E43,'RECAP AG'!$G$6:$CU$255,28,FALSE) -> 189
A44: 262 | B44: BAS RHIN | C44: 5101 | D44: SELESTAT | E44: 4104 | F44: ERSTEIN | G44: =VLOOKUP($E44,'RECAP AG'!$G$6:$CU$255,3,FALSE) -> 4.3 | H44: =VLOOKUP($E44,'RECAP AG'!$G$6:$CU$255,18,FALSE) -> 163.4 | I44: =VLOOKUP($E44,'RECAP AG'!$G$6:$CU$255,19,FALSE) -> 37.82 | J44: =VLOOKUP($E44,'RECAP AG'!$G$6:$CU$255,20,FALSE) -> 54% | K44: =VLOOKUP($E44,'RECAP AG'!$G$6:$CU$255,21,FALSE) -> 6 | L44: =VLOOKUP($E44,'RECAP AG'!$G$6:$CU$255,22,FALSE) -> 181 | M44: =VLOOKUP($E44,'RECAP AG'!$G$6:$CU$255,23,FALSE) -> 41.90 | N44: =VLOOKUP($E44,'RECAP AG'!$G$6:$CU$255,24,FALSE) -> 76% | O44: =VLOOKUP($E44,'RECAP AG'!$G$6:$CU$255,25,FALSE) -> 68 | P44: =VLOOKUP($E44,'RECAP AG'!$G$6:$CU$255,26,FALSE) -> 63% | Q44: =VLOOKUP($E44,'RECAP AG'!$G$6:$CU$255,27,FALSE) -> 63% | R44: =VLOOKUP($E44,'RECAP AG'!$G$6:$CU$255,28,FALSE) -> 11
A45: 262 | B45: BAS RHIN | C45: 5101 | D45: SELESTAT | E45: 4008 | F45: FEGERSHEIM | G45: =VLOOKUP($E45,'RECAP AG'!$G$6:$CU$255,3,FALSE) -> 2.1 | H45: =VLOOKUP($E45,'RECAP AG'!$G$6:$CU$255,18,FALSE) -> 47.1 | I45: =VLOOKUP($E45,'RECAP AG'!$G$6:$CU$255,19,FALSE) -> 22.86 | J45: =VLOOKUP($E45,'RECAP AG'!$G$6:$CU$255,20,FALSE) -> 72% | K45: =VLOOKUP($E45,'RECAP AG'!$G$6:$CU$255,21,FALSE) -> 39 | L45: =VLOOKUP($E45,'RECAP AG'!$G$6:$CU$255,22,FALSE) -> 46 | M45: =VLOOKUP($E45,'RECAP AG'!$G$6:$CU$255,23,FALSE) -> 22.33 | N45: =VLOOKUP($E45,'RECAP AG'!$G$6:$CU$255,24,FALSE) -> 87% | O45: =VLOOKUP($E45,'RECAP AG'!$G$6:$CU$255,25,FALSE) -> 231 | P45: =VLOOKUP($E45,'RECAP AG'!$G$6:$CU$255,26,FALSE) -> 78% | Q45: =VLOOKUP($E45,'RECAP AG'!$G$6:$CU$255,27,FALSE) -> 78% | R45: =VLOOKUP($E45,'RECAP AG'!$G$6:$CU$255,28,FALSE) -> 67
A46: 262 | B46: BAS RHIN | C46: 5101 | D46: SELESTAT | E46: 4007 | F46: ILLKIRCH CENTRE | G46: =VLOOKUP($E46,'RECAP AG'!$G$6:$CU$255,3,FALSE) -> 6.5 | H46: =VLOOKUP($E46,'RECAP AG'!$G$6:$CU$255,18,FALSE) -> 84.7 | I46: =VLOOKUP($E46,'RECAP AG'!$G$6:$CU$255,19,FALSE) -> 12.95 | J46: =VLOOKUP($E46,'RECAP AG'!$G$6:$CU$255,20,FALSE) -> 84% | K46: =VLOOKUP($E46,'RECAP AG'!$G$6:$CU$255,21,FALSE) -> 107 | L46: =VLOOKUP($E46,'RECAP AG'!$G$6:$CU$255,22,FALSE) -> 194 | M46: =VLOOKUP($E46,'RECAP AG'!$G$6:$CU$255,23,FALSE) -> 29.66 | N46: =VLOOKUP($E46,'RECAP AG'!$G$6:$CU$255,24,FALSE) -> 83% | O46: =VLOOKUP($E46,'RECAP AG'!$G$6:$CU$255,25,FALSE) -> 167 | P46: =VLOOKUP($E46,'RECAP AG'!$G$6:$CU$255,26,FALSE) -> 84% | Q46: =VLOOKUP($E46,'RECAP AG'!$G$6:$CU$255,27,FALSE) -> 84% | R46: =VLOOKUP($E46,'RECAP AG'!$G$6:$CU$255,28,FALSE) -> 124
A47: 262 | B47: BAS RHIN | C47: 5101 | D47: SELESTAT | E47: 4015 | F47: LINGOLSHEIM | G47: =VLOOKUP($E47,'RECAP AG'!$G$6:$CU$255,3,FALSE) -> 1.8 | H47: =VLOOKUP($E47,'RECAP AG'!$G$6:$CU$255,18,FALSE) -> -15.7 | I47: =VLOOKUP($E47,'RECAP AG'!$G$6:$CU$255,19,FALSE) -> -8.58 | J47: =VLOOKUP($E47,'RECAP AG'!$G$6:$CU$255,20,FALSE) -> 110% | K47: =VLOOKUP($E47,'RECAP AG'!$G$6:$CU$255,21,FALSE) -> 243 | L47: =VLOOKUP($E47,'RECAP AG'!$G$6:$CU$255,22,FALSE) -> 82 | M47: =VLOOKUP($E47,'RECAP AG'!$G$6:$CU$255,23,FALSE) -> 44.81 | N47: =VLOOKUP($E47,'RECAP AG'!$G$6:$CU$255,24,FALSE) -> 75% | O47: =VLOOKUP($E47,'RECAP AG'!$G$6:$CU$255,25,FALSE) -> 51 | P47: =VLOOKUP($E47,'RECAP AG'!$G$6:$CU$255,26,FALSE) -> 96% | Q47: =VLOOKUP($E47,'RECAP AG'!$G$6:$CU$255,27,FALSE) -> 96% | R47: =VLOOKUP($E47,'RECAP AG'!$G$6:$CU$255,28,FALSE) -> 236
A48: 262 | B48: BAS RHIN | C48: 5101 | D48: SELESTAT | E48: 4109 | F48: MARCKOLSHEIM | G48: =VLOOKUP($E48,'RECAP AG'!$G$6:$CU$255,3,FALSE) -> 2.8 | H48: =VLOOKUP($E48,'RECAP AG'!$G$6:$CU$255,18,FALSE) -> 41.1 | I48: =VLOOKUP($E48,'RECAP AG'!$G$6:$CU$255,19,FALSE) -> 14.95 | J48: =VLOOKUP($E48,'RECAP AG'!$G$6:$CU$255,20,FALSE) -> 82% | K48: =VLOOKUP($E48,'RECAP AG'!$G$6:$CU$255,21,FALSE) -> 85 | L48: =VLOOKUP($E48,'RECAP AG'!$G$6:$CU$255,22,FALSE) -> 89 | M48: =VLOOKUP($E48,'RECAP AG'!$G$6:$CU$255,23,FALSE) -> 32.36 | N48: =VLOOKUP($E48,'RECAP AG'!$G$6:$CU$255,24,FALSE) -> 82% | O48: =VLOOKUP($E48,'RECAP AG'!$G$6:$CU$255,25,FALSE) -> 145 | P48: =VLOOKUP($E48,'RECAP AG'!$G$6:$CU$255,26,FALSE) -> 82% | Q48: =VLOOKUP($E48,'RECAP AG'!$G$6:$CU$255,27,FALSE) -> 82% | R48: =VLOOKUP($E48,'RECAP AG'!$G$6:$CU$255,28,FALSE) -> 96
A49: 262 | B49: BAS RHIN | C49: 5101 | D49: SELESTAT | E49: 4120 | F49: WASSELONNE | G49: =VLOOKUP($E49,'RECAP AG'!$G$6:$CU$255,3,FALSE) -> 2.9 | H49: =VLOOKUP($E49,'RECAP AG'!$G$6:$CU$255,18,FALSE) -> -7.4 | I49: =VLOOKUP($E49,'RECAP AG'!$G$6:$CU$255,19,FALSE) -> -2.60 | J49: =VLOOKUP($E49,'RECAP AG'!$G$6:$CU$255,20,FALSE) -> 103% | K49: =VLOOKUP($E49,'RECAP AG'!$G$6:$CU$255,21,FALSE) -> 228 | L49: =VLOOKUP($E49,'RECAP AG'!$G$6:$CU$255,22,FALSE) -> 89 | M49: =VLOOKUP($E49,'RECAP AG'!$G$6:$CU$255,23,FALSE) -> 31.23 | N49: =VLOOKUP($E49,'RECAP AG'!$G$6:$CU$255,24,FALSE) -> 82% | O49: =VLOOKUP($E49,'RECAP AG'!$G$6:$CU$255,25,FALSE) -> 151 | P49: =VLOOKUP($E49,'RECAP AG'!$G$6:$CU$255,26,FALSE) -> 95% | Q49: =VLOOKUP($E49,'RECAP AG'!$G$6:$CU$255,27,FALSE) -> 95% | R49: =VLOOKUP($E49,'RECAP AG'!$G$6:$CU$255,28,FALSE) -> 231
